Workbook

Sheet About

Sheet Control
B2: Model operation
N3: Model diagnostics
D4: Retain previous multi year results?
D5: FALSE | N5: Start | O5: 2017-07-07T14:29:12
F6: Scenario selection | N6: Stop | O6: 2017-07-07T15:16:43
O7: =O6-rngOPStartTime -> 00:47:31
F8: The assumptions underpinning the analysis can be changed by selecting one of the existing scenarios from the button below. Alternatively new scenarios can be created and customised to model a particular view of the future. | O8: Secs
N9: Build Zone MO Time: | O9: 00:01:50
N10: Populate Zone MO Time: | O10: 00:01:40
C11: Year | D11: Simulate? | F11: Selected scenario | I11: Mode | K11: Geographical scope | N11: Unconstrained Hydro Solution Time: | O11: 00:00:08
C12: =rngSetFiscalYears -> 2017/18 | D12: FALSE | F12: NP | I12: Two phase calc - optimal intercons | K12: GB-only | N12: Constrained Hydro Solution Time: | O12: 00:41:53
C13: 2018/19 | D13: FALSE | N13: Report Outputs Time: | O13: 00:01:15
C14: 2019/20 | D14: FALSE | N14: Total | O14: =SUM(O9:O13) -> 00:46:46
C15: 2020/21 | D15: FALSE | F15: GB generation capacity check
C16: 2021/22 | D16: FALSE | F16: =GenCheck -> Correct
C17: 2022/23 | D17: FALSE
C18: 2023/24 | D18: FALSE | F18: Year
C19: 2024/25 | D19: FALSE | F19: 2026/27
C20: 2025/26 | D20: FALSE
C21: 2026/27 | D21: TRUE
C22: 2027/28 | D22: FALSE
C23: 2028/29 | D23: FALSE
C24: 2029/30 | D24: FALSE
C25: 2030/31 | D25: FALSE
C26: 2031/32 | D26: FALSE
C27: 2032/33 | D27: FALSE
C28: 2033/34 | D28: FALSE
C29: 2034/35 | D29: FALSE
C30: 2035/36 | D30: FALSE
C31: 2036/37 | D31: FALSE
E109: =rngSetPlantTypes -> Biomass
E110: Biomass Conversion
E111: Clean Coal CCS
E112: Clean Gas CCS
E113: CHP
E114: CHP New
E115: Gas Base
E116: Gas Marg
E117: Gas Mid
E118: Hard Coal Base
E119: Hard Coal Marg
E120: Hard Coal Mid
E121: Hydro Run of River
E122: Hydro Storage
E123: Lignite
E124: Nuclear
E125: Nuclear New
E126: OCGT
E127: Offshore Wind
E128: Oil
E129: Onshore Wind
E130: Other Fossil Fuels
E131: Pumped Storage
E132: Battery Storage
E133: Air Storage
E134: Solar
E135: Tidal Enhanced
E136: Tidal
E137: Wave Enhanced
E138: SBR
E139: Intercon France Imp
E140: Intercon France Float
E141: Intercon Netherlands Imp
E142: Intercon Netherlands Float
E143: Intercon Belgium Imp
E144: Intercon Belgium Float
E145: Intercon Norway Imp
E146: Intercon Norway Float
E147: Intercon Denmark Imp
E148: Intercon Denmark Float
E149: Intercon Iceland Imp
E150: Intercon Iceland Float
E151: Intercon Spain Imp
E152: Intercon Spain Float
E153: Intercon Ireland Imp
E154: Intercon Ireland Float
E155: Not Identified
E156: Demand Side Response

Sheet Overview_User
B3: Help and support
C4: For help and support please contact: | I4: NOA team | K4: Email: | L4: transmission.etys@nationalgrid.com
B7: Model structure
C8: The model is divided up into inputs, intermediate calculations, the optimiser and outputs.
C10: The sheets in this workbook follow a naming convention and are grouped into different types. These groups are:
D11: Overview | F11: Overview_Network | G11: Description of zones and subzone
F12: Overview_Periods | G12: Mapping of half hours to ELSI time periods by season
F13: Overview_Master_Set | G13: Summary of the various different components of the problem
F14: Control | G14: The worksheet used to run the model, and select the year(s), scenario and model mode to be studied
D15: Input | F15: Ch_I_fuel_prices | G15: To review fuel prices at the start of the modelling period graphically.
F16: I_Commodities | G16: Commodity and carbon prices for GB and NWE, varying by scenario
F17: I_Plant_Assumptions | G17: Efficiency, availability and emission factors, constant across GB and NWE and constant across scenarios
F18: Ch_I_availabilities | G18: To review seasonal power plant availabilities graphically.
F19: Ch_I_efficiencies | G19: To review power plant efficiencies graphically.
F20: I_NWE_Capacity | G20: Capacity assumptions for each NWE market modelled, varying by scenario
F21: I_GB_Capacity | G21: Capacity assumptions for each GB subzone modelled, varying by scenario - NOTE this sheet feeds directly from the I_GB_Capacity_xx sheets
F22: I_GB_capacity_check | G22: To review GB capacity mix by plant type and check for discrepancies between the I_GB_capacity sheet & the I_GB_Capacity_XX ones.
F23: I_GB_Capacity_xx | G23: Capacity assumptions for each GB subzone modelled, for scenario xx. Only sheet pertaining to the current scenario will be visible, the others being hidden.
F24: Ch_I_GB_Bid_Offer | G24: To review graphically the Bid/Offer scalars for all power plant types.
F25: I_GB_Bid_Offer | G25: Bid and Offer multipliers or prices for each technology - only apply to GB plant
F26: Ch_I_peak_demand | G26: To review peak demand evolution for all NWE markets.
F27: Ch_I_peak_demand_GB | G27: To review peak demand evolution for all GB zones.
F28: I_Peak_Demand | G28: Peak demand data, including subzone breakdown, for GB and NWE, varying by sceanrio - NOTE also contains an adjustment to EU peak demands where appropriate to represent countries that are modelled only partially. At the moment, this is not in use as generation and demand are on the same (reduced) basis.
F29: Ch_I_GB_demand_profile | G29: To review graphically the GB load curve.
F30: I_Load_Duration | G30: These data representing demand in each period are populated in a separate workbook
F31: I_Randoms | G31: Random number generation used to select wind profile to be used
F32: Ch_I_wind_load_factors_off | G32: To review graphically seasonal average offshore wind load factors across all wind regions.
F33: Ch_I_wind_load_factors_on | G33: To review graphically seasonal average onshore wind load factors across all wind regions.
F34: I_Wind | G34: Wind load factors for GB and NWE, constant across scenarios
F35: Ch_I_solar_PV | G35: To review graphically seasonal average solar PV load factors across all NWE markets.
F36: I_Solar | G36: Solar load factors for GB and NWE, constant across scenarios
F37: I_Network_Static | G37: Mapping of GB sub zones to network boundaries
F38: I_Network_Capabilities | G38: Three base boundary capabilties together with user/model selected reinforcement options are used to determine final boundary capability to be used in the model
F39: I_Network_Outages | G39: Assumed daily pattern for GB network outages, constant across all scenarios
F40: Ch_I_NWE_link_avail | G40: To review graphically annual availability for NWE links.
F41: I_Network_Links | G41: Current interconnector and net transfer capacities together with user/model selected reinforcement options are used to determine final link transfer capacities used in the model
D42: Intermediate Calculations | F42: Ch_SRMC_GB | G42: To review graphically SRMCs evolution for all power plant types in GB.
F43: Ch_SRMC_NWE | G43: To review graphically SRMCs evolution for all power plant types in NWE.
F44: C_SRMC | G44: Uses commodity prices and plant assumptions to calculate costs for GB and NWE plant, varying by scenario
F45: Ch_Bid_GB | G45: To review graphically Bids evolution for all power plant types in GB.
F46: Ch_ROC_bid_GB | G46: To review graphically Bids evolution focusing on subsidized power plant types in GB.
F47: C_BidOffer | G47: Combines data for bids and offers with SRMC and ROC prices/support for GB thermal and renewable plant
D48: Optimiser | F48: Optimiser_System | G48: Calculates demand, capacity (including hydro and PS) and price inputs for the model optimiser
F49: Optimiser_Network | G49: Calculates boundary and link inputs for the model optimiser
D50: Outputs | F50: O_Period_System | G50: Model outputs for prices, generation (including hydro and PS), emissions and calculated GB BM cost
F51: O_Period_Network | G51: Model outputs for link and boundary flows and calculated constraint values
F52: O_Annual_System | G52: Annual summary of period level system output
F53: O_Annual_Network | G53: Annual summary of period level network output
F54: O_Multi_Summary | G54: Summary outputs for the years solved
F55: O_Multi_Detail | G55: Detailed outputs for the years solved
C57: The cells in each sheet are colour coded. The key used is:
D58: Text Colour Key
F59: Instructions for worksheet
F60: Cells to be edited by user on INPUT sheets
F61: Cells not to be edited by users
F62: Optimiser input
F63: Outputs direct from optimiser
B65: Version control
C66: XXX
B69: Key model assumptions
C70: See user documentation
B73: Key model simplifications
C74: See user documentation

Sheet Overview_Network
B1: Provided for information only - should only be edited by model administrators
B3: Current | C3: Proposal | I3: Network map
B4: A | C4: Eng-SE-A-1
B5: B | C5: Eng-SC-B-1 | I5: Geographic location of ELSI zones and interconnector connection points
B6: C | C6: Eng-SE-C-1
B7: D | C7: Eng-EC-D-1
B8: E | C8: Eng-SW-E-1
B9: F | C9: Eng-SW-F-1
B10: G | C10: Eng-SW-G-1
B11: H | C11: Wal-SO-H-1
B12: I | C12: Sco-SO-S-1
B13: J | C13: Eng-EC-J-1
B14: K | C14: Eng-EC-K-1
B15: L | C15: Eng-WC-L-1
B16: M | C16: Wal-NO-M-4
B17: N | C17: Eng-NW-N-1
B18: O | C18: Sco-SO-S-2
B19: P | C19: Eng-NE-P-1
B20: Q | C20: Eng-NW-Q-1
B21: R | C21: Eng-NW-R-1
B22: S | C22: Eng-SC-B-2
B23: T | C23: Eng-SE-C-2
B24: U | C24: Eng-EC-J-2
B25: V | C25: Wal-NO-M-3
B26: W | C26: Sco-EC-T-1
B27: X | C27: Sco-WC-T-1
B28: Y | C28: Sco-NE-T-1
B29: Z | C29: Sco-NW-T-1
B30: 1 | C30: Eng-SW-E-2
B31: 2 | C31: Eng-EC-J-3
B32: 3 | C32: Ire-EC-M-1
B33: 4 | C33: Wal-NO-M-2
B34: 5 | C34: Wal-NO-M-1
B35: 6 | C35: Eng-NE-P-2
B36: 7 | C36: Eng-NE-Q-1
B37: 8 | C37: Sco-NO-T-1
B38: 9 | C38: Ire-EC-H-1
B39: 0 | C39: Eng-SC-D-1
B41: Code | C41: Code | D41: Country - Compass - Major Flop Zone - Number
B43: Country
B44: Eng | C44: England
B45: Wal | C45: Wales
B46: Sco | C46: Scotland
B47: Ire | C47: Ireland
B49: Compass
B50: SO | C50: South
B51: SC | C51: South Central
B52: SE | C52: South East
B53: SW | C53: South West
B54: EC | C54: East Central
B55: WC | C55: West Central
B56: NO | C56: North
B57: NW | C57: North West
B58: NE | C58: North East

Sheet Overview_Periods
B1: Provided for information only - should only be edited by model administrators
B3: Periods Map | J3: Hours Map
B5: Hours in each ELSI Period
C7: P1 | D7: P2 | E7: P3 | F7: P4 | J7: Month
C8: Peak | D8: Plat | E8: PuDo | F8: Trough | I8: Hour | J8: 1 | K8: 2 | L8: 3 | M8: 4 | N8: 5 | O8: 6 | P8: 7 | Q8: 8 | R8: 9 | S8: 10 | T8: 11 | U8: 12
B9: Month | C9: 1 | D9: 2 | E9: 3 | F9: 4 | H9: =I10/2 -> 1 | I9: 1 | J9: P4 | K9: P4 | L9: P4 | M9: P4 | N9: P4 | O9: P4 | P9: P4 | Q9: P4 | R9: P4 | S9: P4 | T9: P4 | U9: P4
B10: 1 | C10: 4 | D10: 9 | E10: 2 | F10: 9 | I10: 2 | J10: P4 | K10: P4 | L10: P4 | M10: P4 | N10: P4 | O10: P4 | P10: P4 | Q10: P4 | R10: P4 | S10: P4 | T10: P4 | U10: P4
B11: 2 | C11: 3 | D11: 10 | E11: 3 | F11: 8 | H11: =I12/2 -> 2 | I11: 3 | J11: P4 | K11: P4 | L11: P4 | M11: P4 | N11: P4 | O11: P4 | P11: P4 | Q11: P4 | R11: P4 | S11: P4 | T11: P4 | U11: P4
B12: 3 | C12: 2 | D12: 11 | E12: 3 | F12: 8 | I12: 4 | J12: P4 | K12: P4 | L12: P4 | M12: P4 | N12: P4 | O12: P4 | P12: P4 | Q12: P4 | R12: P4 | S12: P4 | T12: P4 | U12: P4
B13: 4 | C13: 2 | D13: 11.5 | E13: 2.5 | F13: 8 | H13: =I14/2 -> 3 | I13: 5 | J13: P4 | K13: P4 | L13: P4 | M13: P4 | N13: P4 | O13: P4 | P13: P4 | Q13: P4 | R13: P4 | S13: P4 | T13: P4 | U13: P4
B14: 5 | C14: 6 | D14: 9 | E14: 2 | F14: 7 | I14: 6 | J14: P4 | K14: P4 | L14: P4 | M14: P4 | N14: P4 | O14: P4 | P14: P4 | Q14: P4 | R14: P4 | S14: P4 | T14: P4 | U14: P4
B15: 6 | C15: 7 | D15: 5 | E15: 4 | F15: 8 | H15: =I16/2 -> 4 | I15: 7 | J15: P4 | K15: P4 | L15: P4 | M15: P4 | N15: P4 | O15: P4 | P15: P4 | Q15: P4 | R15: P4 | S15: P4 | T15: P4 | U15: P4
B16: 7 | C16: 4 | D16: 8 | E16: 4 | F16: 8 | I16: 8 | J16: P4 | K16: P4 | L16: P4 | M16: P4 | N16: P4 | O16: P4 | P16: P4 | Q16: P4 | R16: P4 | S16: P4 | T16: P4 | U16: P4
B17: 8 | C17: 9 | D17: 3.5 | E17: 3.5 | F17: 8 | H17: =I18/2 -> 5 | I17: 9 | J17: P4 | K17: P4 | L17: P4 | M17: P4 | N17: P4 | O17: P4 | P17: P4 | Q17: P4 | R17: P4 | S17: P4 | T17: P4 | U17: P4
B18: 9 | C18: 5 | D18: 10 | E18: 2 | F18: 7 | I18: 10 | J18: P4 | K18: P4 | L18: P4 | M18: P4 | N18: P4 | O18: P4 | P18: P4 | Q18: P4 | R18: P4 | S18: P4 | T18: P4 | U18: P4
B19: 10 | C19: 3 | D19: 12 | E19: 2 | F19: 7 | H19: =I20/2 -> 6 | I19: 11 | J19: P4 | K19: P4 | L19: P4 | M19: P4 | N19: P4 | O19: P4 | P19: P4 | Q19: P4 | R19: P4 | S19: P4 | T19: P4 | U19: P4
B20: 11 | C20: 4 | D20: 11 | E20: 2 | F20: 7 | I20: 12 | J20: P4 | K20: P4 | L20: P4 | M20: P4 | N20: P4 | O20: P4 | P20: P4 | Q20: P4 | R20: P4 | S20: P4 | T20: P4 | U20: P4
B21: 12 | C21: 3 | D21: 10 | E21: 3 | F21: 8 | H21: =I22/2 -> 7 | I21: 13 | J21: P4 | K21: P4 | L21: P4 | M21: P4 | N21: P4 | O21: P4 | P21: P4 | Q21: P4 | R21: P4 | S21: P4 | T21: P4 | U21: P4
I22: 14 | J22: P4 | K22: P4 | L22: P4 | M22: P4 | N22: P3 | O22: P4 | P22: P4 | Q22: P4 | R22: P3 | S22: P3 | T22: P3 | U22: P4
H23: =I24/2 -> 8 | I23: 15 | J23: P4 | K23: P3 | L23: P3 | M23: P3 | N23: P3 | O23: P4 | P23: P4 | Q23: P4 | R23: P3 | S23: P2 | T23: P3 | U23: P4
I24: 16 | J24: P3 | K24: P3 | L24: P3 | M24: P3 | N24: P2 | O24: P3 | P24: P3 | Q24: P3 | R24: P2 | S24: P2 | T24: P2 | U24: P3
H25: =I26/2 -> 9 | I25: 17 | J25: P3 | K25: P2 | L25: P3 | M25: P2 | N25: P2 | O25: P3 | P25: P3 | Q25: P3 | R25: P2 | S25: P2 | T25: P2 | U25: P3
I26: 18 | J26: P2 | K26: P2 | L26: P2 | M26: P2 | N26: P2 | O26: P2 | P26: P2 | Q26: P3 | R26: P2 | S26: P2 | T26: P2 | U26: P2
H27: =I28/2 -> 10 | I27: 19 | J27: P2 | K27: P2 | L27: P2 | M27: P2 | N27: P2 | O27: P2 | P27: P2 | Q27: P1 | R27: P2 | S27: P2 | T27: P2 | U27: P2
I28: 20 | J28: P2 | K28: P2 | L28: P2 | M28: P2 | N28: P1 | O28: P1 | P28: P2 | Q28: P1 | R28: P2 | S28: P2 | T28: P2 | U28: P2
H29: =I30/2 -> 11 | I29: 21 | J29: P2 | K29: P2 | L29: P2 | M29: P2 | N29: P1 | O29: P1 | P29: P2 | Q29: P1 | R29: P2 | S29: P2 | T29: P2 | U29: P2
I30: 22 | J30: P2 | K30: P2 | L30: P2 | M30: P2 | N30: P1 | O30: P1 | P30: P1 | Q30: P1 | R30: P2 | S30: P2 | T30: P2 | U30: P2
H31: =I32/2 -> 12 | I31: 23 | J31: P2 | K31: P2 | L31: P2 | M31: P1 | N31: P1 | O31: P1 | P31: P1 | Q31: P1 | R31: P2 | S31: P2 | T31: P2 | U31: P2
I32: 24 | J32: P2 | K32: P2 | L32: P2 | M32: P1 | N32: P1 | O32: P1 | P32: P1 | Q32: P1 | R32: P1 | S32: P2 | T32: P2 | U32: P2
H33: =I34/2 -> 13 | I33: 25 | J33: P2 | K33: P2 | L33: P2 | M33: P1 | N33: P1 | O33: P1 | P33: P1 | Q33: P1 | R33: P1 | S33: P2 | T33: P2 | U33: P2
I34: 26 | J34: P2 | K34: P2 | L34: P2 | M34: P2 | N34: P1 | O34: P1 | P34: P1 | Q34: P1 | R34: P2 | S34: P2 | T34: P2 | U34: P2
H35: =I36/2 -> 14 | I35: 27 | J35: P2 | K35: P2 | L35: P2 | M35: P2 | N35: P1 | O35: P1 | P35: P2 | Q35: P1 | R35: P2 | S35: P2 | T35: P2 | U35: P2
I36: 28 | J36: P2 | K36: P2 | L36: P2 | M36: P2 | N36: P2 | O36: P1 | P36: P2 | Q36: P1 | R36: P2 | S36: P2 | T36: P2 | U36: P2
H37: =I38/2 -> 15 | I37: 29 | J37: P2 | K37: P2 | L37: P2 | M37: P2 | N37: P2 | O37: P2 | P37: P2 | Q37: P1 | R37: P2 | S37: P2 | T37: P2 | U37: P2
I38: 30 | J38: P2 | K38: P2 | L38: P2 | M38: P2 | N38: P2 | O38: P2 | P38: P2 | Q38: P1 | R38: P2 | S38: P2 | T38: P2 | U38: P2
H39: =I40/2 -> 16 | I39: 31 | J39: P2 | K39: P2 | L39: P2 | M39: P2 | N39: P2 | O39: P2 | P39: P2 | Q39: P2 | R39: P2 | S39: P2 | T39: P2 | U39: P2
I40: 32 | J40: P2 | K40: P2 | L40: P2 | M40: P2 | N40: P2 | O40: P2 | P40: P2 | Q40: P2 | R40: P2 | S40: P2 | T40: P2 | U40: P2
H41: =I42/2 -> 17 | I41: 33 | J41: P1 | K41: P2 | L41: P2 | M41: P2 | N41: P1 | O41: P1 | P41: P2 | Q41: P1 | R41: P2 | S41: P2 | T41: P1 | U41: P1
I42: 34 | J42: P1 | K42: P2 | L42: P2 | M42: P2 | N42: P1 | O42: P1 | P42: P1 | Q42: P1 | R42: P1 | S42: P2 | T42: P1 | U42: P1
H43: =I44/2 -> 18 | I43: 35 | J43: P1 | K43: P1 | L43: P2 | M43: P1 | N43: P1 | O43: P1 | P43: P1 | Q43: P1 | R43: P1 | S43: P1 | T43: P1 | U43: P1
I44: 36 | J44: P1 | K44: P1 | L44: P2 | M44: P2 | N44: P1 | O44: P1 | P44: P1 | Q44: P1 | R44: P1 | S44: P1 | T44: P1 | U44: P1
H45: =I46/2 -> 19 | I45: 37 | J45: P1 | K45: P1 | L45: P1 | M45: P2 | N45: P2 | O45: P1 | P45: P2 | Q45: P1 | R45: P1 | S45: P1 | T45: P1 | U45: P1
I46: 38 | J46: P1 | K46: P1 | L46: P1 | M46: P2 | N46: P2 | O46: P2 | P46: P2 | Q46: P1 | R46: P1 | S46: P1 | T46: P1 | U46: P1
H47: =I48/2 -> 20 | I47: 39 | J47: P1 | K47: P1 | L47: P1 | M47: P2 | N47: P2 | O47: P2 | P47: P2 | Q47: P2 | R47: P1 | S47: P1 | T47: P1 | U47: P2
I48: 40 | J48: P1 | K48: P1 | L48: P1 | M48: P2 | N48: P2 | O48: P2 | P48: P2 | Q48: P2 | R48: P1 | S48: P1 | T48: P1 | U48: P2
H49: =I50/2 -> 21 | I49: 41 | J49: P2 | K49: P2 | L49: P2 | M49: P2 | N49: P2 | O49: P2 | P49: P2 | Q49: P2 | R49: P1 | S49: P2 | T49: P2 | U49: P2
I50: 42 | J50: P2 | K50: P2 | L50: P2 | M50: P2 | N50: P2 | O50: P3 | P50: P3 | Q50: P2 | R50: P2 | S50: P2 | T50: P2 | U50: P2
H51: =I52/2 -> 22 | I51: 43 | J51: P2 | K51: P3 | L51: P2 | M51: P2 | N51: P2 | O51: P3 | P51: P3 | Q51: P2 | R51: P2 | S51: P2 | T51: P2 | U51: P2
I52: 44 | J52: P3 | K52: P3 | L52: P3 | M52: P3 | N52: P2 | O52: P3 | P52: P3 | Q52: P3 | R52: P2 | S52: P2 | T52: P2 | U52: P3
H53: =I54/2 -> 23 | I53: 45 | J53: P3 | K53: P3 | L53: P3 | M53: P3 | N53: P2 | O53: P3 | P53: P3 | Q53: P3 | R53: P2 | S53: P3 | T53: P2 | U53: P3
I54: 46 | J54: P4 | K54: P3 | L54: P3 | M54: P3 | N54: P3 | O54: P3 | P54: P3 | Q54: P3 | R54: P3 | S54: P3 | T54: P3 | U54: P3
H55: =I56/2 -> 24 | I55: 47 | J55: P4 | K55: P4 | L55: P4 | M55: P4 | N55: P3 | O55: P3 | P55: P3 | Q55: P3 | R55: P3 | S55: P3 | T55: P3 | U55: P3
I56: 48 | J56: P4 | K56: P4 | L56: P4 | M56: P4 | N56: P4 | O56: P4 | P56: P4 | Q56: P4 | R56: P4 | S56: P4 | T56: P4 | U56: P4

Sheet Overview_Master_Set
B1: Provided for information only - should only be edited by model administrators
B3: Static assumptions
B6: Days | C6: 365
B7: Periods | C7: 4 | D7: Peak
D8: Plateau
D9: Pickup / Drop off
D10: Trough
B11: Seasons | C11: 3 | D11: Winter
D12: Summer
D13: Spring / Autumn
B15: Security criteria | C15: N-2 | D15: Selected operational standards
B18: Scenarios | C18: 4 | D18: Gone Green | E18: GG
D19: Slow Progression | E19: SP
D20: No Progression | E20: NP
D21: Consumer Power | E21: CP
B26: Years | C26: =COUNTA(rngSetFiscalYears) -> 20
B27: Start Year | C27: 2017/18 | D27: =LEFT(C27,4) -> 2017
C28: 2018/19 | D28: =LEFT(C28,4) -> 2018
C29: 2019/20 | D29: 2019
C30: 2020/21 | D30: 2020
C31: 2021/22 | D31: 2021
C32: 2022/23 | D32: 2022
C33: 2023/24 | D33: 2023
C34: 2024/25 | D34: 2024
C35: 2025/26 | D35: 2025
C36: 2026/27 | D36: 2026
C37: 2027/28 | D37: 2027
C38: 2028/29 | D38: 2028
C39: 2029/30 | D39: 2029
C40: 2030/31 | D40: 2030
C41: 2031/32 | D41: 2031
C42: 2032/33 | D42: 2032
C43: 2033/34 | D43: 2033
C44: 2034/35 | D44: 2034
C45: 2035/36 | D45: 2035
B46: Final Year | C46: 2036/37 | D46: 2036
B49: Markets | C49: BE
C50: DE
C51: DK
C52: ES
C53: FR
C54: IC
C55: IE
C56: NL
C57: NO
C58: ZZ | D58: ZZ market is required to ensure proper function of ELSI in GB-only mode. It provides a dummy reservoir hydro & foreign market required.
C59: GB
B61: GB Zones | C61: GB_A
C62: GB_B
C63: GB_C
C64: GB_C1
C65: GB_D
C66: GB_E
C67: GB_F
C68: GB_G
C69: GB_H
C70: GB_I
C71: GB_J
C72: GB_K
C73: GB_L
C74: GB_M
C75: GB_N
C76: GB_O
C77: GB_P
C78: GB_Q
C79: GB_R
C80: GB_S
C81: GB_S1
C82: GB_T
C83: GB_U
C84: GB_V
C85: GB_W
C86: GB_X
C87: GB_Y
C88: GB_Y1
C89: GB_Z
C90: GB_Z1
C91: GB_1
C92: GB_2
C93: GB_3
C94: GB_4
C95: GB_5
C96: GB_6
C97: GB_7
C98: GB_8
C99: GB_9
C100: GB_0
B103: Plant types | C103: Biomass | D103: Renewables
C104: Biomass Conversion | D104: Renewables
C105: Clean Coal CCS | D105: Coal
C106: Clean Gas CCS | D106: Gas
C107: CHP | D107: CHP
C108: CHP New | D108: CHP
C109: Gas Base | D109: Gas
C110: Gas Marg | D110: Gas
C111: Gas Mid | D111: Gas
C112: Hard Coal Base | D112: Coal
C113: Hard Coal Marg | D113: Coal
C114: Hard Coal Mid | D114: Coal
C115: Hydro Run of River | D115: Renewables
C116: Hydro Storage | D116: Renewables
C117: Lignite | D117: Coal
C118: Nuclear | D118: Nuclear
C119: Nuclear New | D119: Nuclear
C120: OCGT | D120: Peak
C121: Offshore Wind | D121: Wind
C122: Oil | D122: Peak
C123: Onshore Wind | D123: Wind
C124: Other Fossil Fuels | D124: Peak
C125: Pumped Storage | D125: Storage
C126: Battery Storage | D126: Storage
C127: Air Storage | D127: Storage
C128: Solar | D128: Solar
C129: Tidal Enhanced | D129: Renewables
C130: Tidal | D130: Renewables
C131: Wave Enhanced | D131: Renewables
C132: SBR | D132: Peak
C133: Intercon France Imp | D133: Interconnector
C134: Intercon France Float | D134: Interconnector
C135: Intercon Netherlands Imp | D135: Interconnector
C136: Intercon Netherlands Float | D136: Interconnector
C137: Intercon Belgium Imp | D137: Interconnector
C138: Intercon Belgium Float | D138: Interconnector
C139: Intercon Norway Imp | D139: Interconnector
C140: Intercon Norway Float | D140: Interconnector
C141: Intercon Denmark Imp | D141: Interconnector
C142: Intercon Denmark Float | D142: Interconnector
C143: Intercon Iceland Imp | D143: Interconnector
C144: Intercon Iceland Float | D144: Interconnector
C145: Intercon Spain Imp | D145: Interconnector
C146: Intercon Spain Float | D146: Interconnector
C147: Intercon Ireland Imp | D147: Interconnector
C148: Intercon Ireland Float | D148: Interconnector
C149: Not Identified | D149: Other
C150: Demand Side Response | D150: Other
D152: Unit
B153: Fuel and cost types | C153: Biomass | D153: £/MWh
C154: CHP | D154: £/MWh
C155: Coal | D155: £/t
C156: Distillate | D156: £/barrel
C157: Gas | D157: p/th
C158: Lignite | D158: £/t
C159: Nuclear | D159: £/MWh
C160: Oil | D160: £/barrel
C161: Other Fossil Fuels | D161: £/MWh
C162: Renewable | D162: £/MWh
C163: Not Identified | D163: £/MWh
C164: Intercon France | D164: £/MWh
C165: Intercon Netherlands | D165: £/MWh
C166: Intercon Belgium | D166: £/MWh
C167: Intercon Norway | D167: £/MWh
C168: Intercon Denmark | D168: £/MWh
C169: Intercon Iceland | D169: £/MWh
C170: Intercon Spain | D170: £/MWh
C171: Intercon Ireland | D171: £/MWh
C172: CO2 | D172: £/t
C173: VLL | D173: £/MWh
B176: Wind regions | C176: BE
C177: BE_Off
C178: DE
C179: DE_Off
C180: DK
C181: DK_Off
C182: ES
C183: ES_Off
C184: FR
C185: FR_Off
C186: IC
C187: IC_Off
C188: IE
C189: IE_Off
C190: NL
C191: NL_Off
C192: NO
C193: NO_Off
C194: ES
C195: ES_Off
C196: ZZ
C197: Central England Offshore
C198: Central England Onshore
C199: Central Scotland Offshore
C200: Central Scotland Onshore
C201: East Anglia Offshore
C202: East Anglia Onshore
C203: North England Offshore
C204: North England Onshore
C205: North Scotland Offshore
C206: North Scotland Onshore
C207: Northeast Scotland Offshore
C208: Northeast Scotland Onshore
C209: Northwest Offshore
C210: Northwest Onshore
C211: SC England Offshore
C212: SC England Onshore
C213: SE Coast Offshore
C214: SE Coast Onshore
C215: South Scotland Offshore
C216: South Scotland Onshore
C217: South Wales Offshore
C218: South Wales Onshore
... 27 more rows

Sheet Variables
B1: Provided for information only - should only be edited by model administrators
A3: CurrentYear | B3: =Control!F19 -> 2026/27
A4: Cyear | B4: =MATCH(CurrentYear,rngSetFiscalYears,0) -> 10
A5: SlotsPerDay | B5: 4
A6: Days Modelled | B6: 365
A7: TotalTSlots | B7: =rngIPSlotsPerDay*rngIPNDays -> 1460
A8: FinalYear | B8: 2036 | D8: =TRANSPOSE(rngSetScenariosShort) -> GG | E8: SP | F8: NP | G8: CP
A9: Scenario ID | B9: =MATCH(SelectedScenario,rngSetScenariosShort,0) -> 3 | D9: 1 | E9: 2 | F9: 3 | G9: 4
A10: Network Scenario Index | B10: =INDEX($D$10:$I$10,1,rngIPScenario) -> 6 | D10: 3 | E10: 5 | F10: 6 | G10: 4
A11: Number of Reinforcements
D12: Winter | E12: Spr/Aut | F12: Summer
A14: Days | B14: 1 | C14: 2 | D14: 3 | E14: 4 | F14: 5 | G14: 6 | H14: 7 | I14: 8 | J14: 9 | K14: 10 | L14: 11 | M14: 12 | N14: 13 | O14: 14 | P14: 15 | Q14: 16 | R14: 17 | S14: 18 | T14: 19 | U14: 20 | V14: 21 | W14: 22 | X14: 23 | Y14: 24 | Z14: 25 | AA14: 26 | AB14: 27 | AC14: 28 | AD14: 29 | AE14: 30 | AF14: 31 | AG14: 32 | AH14: 33 | AI14: 34 | AJ14: 35 | AK14: 36 | AL14: 37 | AM14: 38 | AN14: 39 | AO14: 40 | AP14: 41 | AQ14: 42 | AR14: 43 | AS14: 44 | AT14: 45 | AU14: 46 | AV14: 47 | AW14: 48 | AX14: 49 | AY14: 50 | AZ14: 51 | BA14: 52 | BB14: 53 | BC14: 54 | BD14: 55 | BE14: 56 | BF14: 57 | BG14: 58 | BH14: 59 | BI14: 60 | BJ14: 61 | BK14: 62 | BL14: 63 | BM14: 64 | BN14: 65 | BO14: 66 | BP14: 67 | BQ14: 68 | BR14: 69 | BS14: 70 | BT14: 71 | BU14: 72 | BV14: 73 | BW14: 74 | BX14: 75 | BY14: 76 | BZ14: 77 | CA14: 78 | CB14: 79 | CC14: 80 | CD14: 81 | CE14: 82 | CF14: 83 | CG14: 84 | CH14: 85 | CI14: 86 | CJ14: 87 | CK14: 88 | CL14: 89 | CM14: 90 | CN14: 91 | CO14: 92 | CP14: 93 | CQ14: 94 | CR14: 95 | CS14: 96 | CT14: 97 | CU14: 98 | CV14: 99 | CW14: 100 | CX14: 101 | CY14: 102 | CZ14: 103 | DA14: 104 | DB14: 105 | DC14: 106 | DD14: 107 | DE14: 108 | DF14: 109 | DG14: 110 | DH14: 111 | DI14: 112 | DJ14: 113 | DK14: 114 | DL14: 115 | DM14: 116 | DN14: 117 | DO14: 118 | DP14: 119 | DQ14: 120 | DR14: 121 | DS14: 122 | DT14: 123 | DU14: 124 | DV14: 125 | DW14: 126 | DX14: 127 | DY14: 128 | DZ14: 129 | EA14: 130 | EB14: 131 | EC14: 132 | ED14: 133 | EE14: 134 | EF14: 135 | EG14: 136 | EH14: 137 | EI14: 138 | EJ14: 139 | EK14: 140 | EL14: 141 | EM14: 142 | EN14: 143 | EO14: 144 | EP14: 145 | EQ14: 146 | ER14: 147 | ES14: 148 | ET14: 149 | EU14: 150 | EV14: 151 | EW14: 152 | EX14: 153 | EY14: 154 | EZ14: 155 | FA14: 156 | FB14: 157 | FC14: 158 | FD14: 159 | FE14: 160 | FF14: 161 | FG14: 162 | FH14: 163 | FI14: 164 | FJ14: 165 | FK14: 166 | FL14: 167 | FM14: 168 | FN14: 169 | FO14: 170 | FP14: 171 | FQ14: 172 | FR14: 173 | FS14: 174 | FT14: 175 | FU14: 176 | FV14: 177 | FW14: 178 | FX14: 179 | FY14: 180 | FZ14: 181 | GA14: 182 | GB14: 183 | GC14: 184 | GD14: 185 | GE14: 186 | GF14: 187 | GG14: 188 | GH14: 189 | GI14: 190 | GJ14: 191 | GK14: 192 | GL14: 193 | GM14: 194 | GN14: 195 | GO14: 196 | GP14: 197 | GQ14: 198 | GR14: 199 | GS14: 200 | GT14: 201 | GU14: 202 | GV14: 203 | GW14: 204 | GX14: 205 | GY14: 206 | GZ14: 207 | HA14: 208 | HB14: 209 | HC14: 210 | HD14: 211 | HE14: 212 | HF14: 213 | HG14: 214 | HH14: 215 | HI14: 216 | HJ14: 217 | HK14: 218 | HL14: 219 | HM14: 220 | HN14: 221 | HO14: 222 | HP14: 223 | HQ14: 224 | HR14: 225 | HS14: 226 | HT14: 227 | HU14: 228 | HV14: 229 | HW14: 230 | HX14: 231 | HY14: 232 | HZ14: 233 | IA14: 234 | IB14: 235 | IC14: 236 | ID14: 237 | IE14: 238 | IF14: 239 | IG14: 240 | IH14: 241 | II14: 242 | IJ14: 243 | IK14: 244 | IL14: 245 | IM14: 246 | IN14: 247 | IO14: 248 | IP14: 249 | IQ14: 250 | IR14: 251 | IS14: 252 | IT14: 253 | IU14: 254 | IV14: 255 | IW14: 256 | IX14: 257 | IY14: 258 | IZ14: 259 | JA14: 260 | JB14: 261 | JC14: 262 | JD14: 263 | JE14: 264 | JF14: 265 | JG14: 266 | JH14: 267 | JI14: 268 | JJ14: 269 | JK14: 270 | JL14: 271 | JM14: 272 | JN14: 273 | JO14: 274 | JP14: 275 | JQ14: 276 | JR14: 277 | JS14: 278 | JT14: 279 | JU14: 280 | JV14: 281 | JW14: 282 | JX14: 283 | JY14: 284 | JZ14: 285 | KA14: 286 | KB14: 287 | KC14: 288 | KD14: 289 | KE14: 290 | KF14: 291 | KG14: 292 | KH14: 293 | KI14: 294 | KJ14: 295 | KK14: 296 | KL14: 297 | KM14: 298 | KN14: 299 | KO14: 300 | KP14: 301 | KQ14: 302 | KR14: 303 | KS14: 304 | KT14: 305 | KU14: 306 | KV14: 307 | KW14: 308 | KX14: 309 | KY14: 310 | KZ14: 311 | LA14: 312 | LB14: 313 | LC14: 314 | LD14: 315 | LE14: 316 | LF14: 317 | LG14: 318 | LH14: 319 | LI14: 320 | LJ14: 321 | LK14: 322 | LL14: 323 | LM14: 324 | LN14: 325 | LO14: 326 | LP14: 327 | LQ14: 328 | LR14: 329 | LS14: 330 | LT14: 331 | LU14: 332 | LV14: 333 | LW14: 334 | LX14: 335 | LY14: 336 | LZ14: 337 | MA14: 338 | MB14: 339 | MC14: 340 | MD14: 341 | ME14: 342 | MF14: 343 | MG14: 344 | MH14: 345 | MI14: 346 | MJ14: 347 | MK14: 348 | ML14: 349 | MM14: 350 | MN14: 351 | MO14: 352 | MP14: 353 | MQ14: 354 | MR14: 355 | MS14: 356 | MT14: 357 | MU14: 358 | MV14: 359 | MW14: 360 | MX14: 361 | MY14: 362 | MZ14: 363 | NA14: 364 | NB14: 365
A15: Season | B15: Winter | C15: Winter | D15: Winter | E15: Winter | F15: Winter | G15: Winter | H15: Winter | I15: Winter | J15: Winter | K15: Winter | L15: Winter | M15: Winter | N15: Winter | O15: Winter | P15: Winter | Q15: Winter | R15: Winter | S15: Winter | T15: Winter | U15: Winter | V15: Winter | W15: Winter | X15: Winter | Y15: Winter | Z15: Winter | AA15: Winter | AB15: Winter | AC15: Winter | AD15: Winter | AE15: Winter | AF15: Winter | AG15: Winter | AH15: Winter | AI15: Winter | AJ15: Winter | AK15: Winter | AL15: Winter | AM15: Winter | AN15: Winter | AO15: Winter | AP15: Winter | AQ15: Winter | AR15: Winter | AS15: Winter | AT15: Winter | AU15: Winter | AV15: Winter | AW15: Winter | AX15: Winter | AY15: Winter | AZ15: Winter | BA15: Winter | BB15: Winter | BC15: Winter | BD15: Winter | BE15: Winter | BF15: Winter | BG15: Winter | BH15: Winter | BI15: Spr/Aut | BJ15: Spr/Aut | BK15: Spr/Aut | BL15: Spr/Aut | BM15: Spr/Aut | BN15: Spr/Aut | BO15: Spr/Aut | BP15: Spr/Aut | BQ15: Spr/Aut | BR15: Spr/Aut | BS15: Spr/Aut | BT15: Spr/Aut | BU15: Spr/Aut | BV15: Spr/Aut | BW15: Spr/Aut | BX15: Spr/Aut | BY15: Spr/Aut | BZ15: Spr/Aut | CA15: Spr/Aut | CB15: Spr/Aut | CC15: Spr/Aut | CD15: Spr/Aut | CE15: Spr/Aut | CF15: Spr/Aut | CG15: Spr/Aut | CH15: Spr/Aut | CI15: Spr/Aut | CJ15: Spr/Aut | CK15: Spr/Aut | CL15: Spr/Aut | CM15: Spr/Aut | CN15: Spr/Aut | CO15: Spr/Aut | CP15: Spr/Aut | CQ15: Spr/Aut | CR15: Spr/Aut | CS15: Spr/Aut | CT15: Spr/Aut | CU15: Spr/Aut | CV15: Spr/Aut | CW15: Spr/Aut | CX15: Spr/Aut | CY15: Spr/Aut | CZ15: Spr/Aut | DA15: Spr/Aut | DB15: Spr/Aut | DC15: Spr/Aut | DD15: Spr/Aut | DE15: Spr/Aut | DF15: Spr/Aut | DG15: Spr/Aut | DH15: Spr/Aut | DI15: Spr/Aut | DJ15: Spr/Aut | DK15: Spr/Aut | DL15: Spr/Aut | DM15: Spr/Aut | DN15: Spr/Aut | DO15: Spr/Aut | DP15: Spr/Aut | DQ15: Spr/Aut | DR15: Spr/Aut | DS15: Spr/Aut | DT15: Spr/Aut | DU15: Spr/Aut | DV15: Spr/Aut | DW15: Spr/Aut | DX15: Spr/Aut | DY15: Spr/Aut | DZ15: Spr/Aut | EA15: Spr/Aut | EB15: Spr/Aut | EC15: Spr/Aut | ED15: Spr/Aut | EE15: Spr/Aut | EF15: Spr/Aut | EG15: Spr/Aut | EH15: Spr/Aut | EI15: Spr/Aut | EJ15: Spr/Aut | EK15: Spr/Aut | EL15: Spr/Aut | EM15: Spr/Aut | EN15: Spr/Aut | EO15: Spr/Aut | EP15: Spr/Aut | EQ15: Spr/Aut | ER15: Spr/Aut | ES15: Spr/Aut | ET15: Spr/Aut | EU15: Spr/Aut | EV15: Spr/Aut | EW15: Summer | EX15: Summer | EY15: Summer | EZ15: Summer | FA15: Summer | FB15: Summer | FC15: Summer | FD15: Summer | FE15: Summer | FF15: Summer | FG15: Summer | FH15: Summer | FI15: Summer | FJ15: Summer | FK15: Summer | FL15: Summer | FM15: Summer | FN15: Summer | FO15: Summer | FP15: Summer | FQ15: Summer | FR15: Summer | FS15: Summer | FT15: Summer | FU15: Summer | FV15: Summer | FW15: Summer | FX15: Summer | FY15: Summer | FZ15: Summer | GA15: Summer | GB15: Summer | GC15: Summer | GD15: Summer | GE15: Summer | GF15: Summer | GG15: Summer | GH15: Summer | GI15: Summer | GJ15: Summer | GK15: Summer | GL15: Summer | GM15: Summer | GN15: Summer | GO15: Summer | GP15: Summer | GQ15: Summer | GR15: Summer | GS15: Summer | GT15: Summer | GU15: Summer | GV15: Summer | GW15: Summer | GX15: Summer | GY15: Summer | GZ15: Summer | HA15: Summer | HB15: Summer | HC15: Summer | HD15: Summer | HE15: Summer | HF15: Summer | HG15: Summer | HH15: Summer | HI15: Summer | HJ15: Summer | HK15: Summer | HL15: Summer | HM15: Summer | HN15: Summer | HO15: Summer | HP15: Summer | HQ15: Summer | HR15: Summer | HS15: Summer | HT15: Summer | HU15: Summer | HV15: Summer | HW15: Summer | HX15: Summer | HY15: Summer | HZ15: Summer | IA15: Summer | IB15: Summer | IC15: Summer | ID15: Summer | IE15: Summer | IF15: Summer | IG15: Summer | IH15: Summer | II15: Summer | IJ15: Summer | IK15: Spr/Aut | IL15: Spr/Aut | IM15: Spr/Aut | IN15: Spr/Aut | IO15: Spr/Aut | IP15: Spr/Aut | IQ15: Spr/Aut | IR15: Spr/Aut | IS15: Spr/Aut | IT15: Spr/Aut | IU15: Spr/Aut | IV15: Spr/Aut | IW15: Spr/Aut | IX15: Spr/Aut | IY15: Spr/Aut | IZ15: Spr/Aut | JA15: Spr/Aut | JB15: Spr/Aut | JC15: Spr/Aut | JD15: Spr/Aut | JE15: Spr/Aut | JF15: Spr/Aut | JG15: Spr/Aut | JH15: Spr/Aut | JI15: Spr/Aut | JJ15: Spr/Aut | JK15: Spr/Aut | JL15: Spr/Aut | JM15: Spr/Aut | JN15: Spr/Aut | JO15: Spr/Aut | JP15: Spr/Aut | JQ15: Spr/Aut | JR15: Spr/Aut | JS15: Spr/Aut | JT15: Spr/Aut | JU15: Spr/Aut | JV15: Spr/Aut | JW15: Spr/Aut | JX15: Spr/Aut | JY15: Spr/Aut | JZ15: Spr/Aut | KA15: Spr/Aut | KB15: Spr/Aut | KC15: Spr/Aut | KD15: Spr/Aut | KE15: Spr/Aut | KF15: Spr/Aut | KG15: Spr/Aut | KH15: Spr/Aut | KI15: Spr/Aut | KJ15: Spr/Aut | KK15: Spr/Aut | KL15: Spr/Aut | KM15: Spr/Aut | KN15: Spr/Aut | KO15: Spr/Aut | KP15: Spr/Aut | KQ15: Spr/Aut | KR15: Spr/Aut | KS15: Spr/Aut | KT15: Spr/Aut | KU15: Spr/Aut | KV15: Spr/Aut | KW15: Spr/Aut | KX15: Spr/Aut | KY15: Spr/Aut | KZ15: Spr/Aut | LA15: Spr/Aut | LB15: Spr/Aut | LC15: Spr/Aut | LD15: Spr/Aut | LE15: Spr/Aut | LF15: Spr/Aut | LG15: Spr/Aut | LH15: Spr/Aut | LI15: Spr/Aut | LJ15: Spr/Aut | LK15: Spr/Aut | LL15: Spr/Aut | LM15: Spr/Aut | LN15: Spr/Aut | LO15: Spr/Aut | LP15: Spr/Aut | LQ15: Spr/Aut | LR15: Spr/Aut | LS15: Spr/Aut | LT15: Spr/Aut | LU15: Spr/Aut | LV15: Spr/Aut | LW15: Spr/Aut | LX15: Winter | LY15: Winter | LZ15: Winter | MA15: Winter | MB15: Winter | MC15: Winter | MD15: Winter | ME15: Winter | MF15: Winter | MG15: Winter | MH15: Winter | MI15: Winter | MJ15: Winter | MK15: Winter | ML15: Winter | MM15: Winter | MN15: Winter | MO15: Winter | MP15: Winter | MQ15: Winter | MR15: Winter | MS15: Winter | MT15: Winter | MU15: Winter | MV15: Winter | MW15: Winter | MX15: Winter | MY15: Winter | MZ15: Winter | NA15: Winter | NB15: Winter
A16: Season Index | B16: 1 | C16: 1 | D16: 1 | E16: 1 | F16: 1 | G16: 1 | H16: 1 | I16: 1 | J16: 1 | K16: 1 | L16: 1 | M16: 1 | N16: 1 | O16: 1 | P16: 1 | Q16: 1 | R16: 1 | S16: 1 | T16: 1 | U16: 1 | V16: 1 | W16: 1 | X16: 1 | Y16: 1 | Z16: 1 | AA16: 1 | AB16: 1 | AC16: 1 | AD16: 1 | AE16: 1 | AF16: 1 | AG16: 1 | AH16: 1 | AI16: 1 | AJ16: 1 | AK16: 1 | AL16: 1 | AM16: 1 | AN16: 1 | AO16: 1 | AP16: 1 | AQ16: 1 | AR16: 1 | AS16: 1 | AT16: 1 | AU16: 1 | AV16: 1 | AW16: 1 | AX16: 1 | AY16: 1 | AZ16: 1 | BA16: 1 | BB16: 1 | BC16: 1 | BD16: 1 | BE16: 1 | BF16: 1 | BG16: 1 | BH16: 1 | BI16: 2 | BJ16: 2 | BK16: 2 | BL16: 2 | BM16: 2 | BN16: 2 | BO16: 2 | BP16: 2 | BQ16: 2 | BR16: 2 | BS16: 2 | BT16: 2 | BU16: 2 | BV16: 2 | BW16: 2 | BX16: 2 | BY16: 2 | BZ16: 2 | CA16: 2 | CB16: 2 | CC16: 2 | CD16: 2 | CE16: 2 | CF16: 2 | CG16: 2 | CH16: 2 | CI16: 2 | CJ16: 2 | CK16: 2 | CL16: 2 | CM16: 2 | CN16: 2 | CO16: 2 | CP16: 2 | CQ16: 2 | CR16: 2 | CS16: 2 | CT16: 2 | CU16: 2 | CV16: 2 | CW16: 2 | CX16: 2 | CY16: 2 | CZ16: 2 | DA16: 2 | DB16: 2 | DC16: 2 | DD16: 2 | DE16: 2 | DF16: 2 | DG16: 2 | DH16: 2 | DI16: 2 | DJ16: 2 | DK16: 2 | DL16: 2 | DM16: 2 | DN16: 2 | DO16: 2 | DP16: 2 | DQ16: 2 | DR16: 2 | DS16: 2 | DT16: 2 | DU16: 2 | DV16: 2 | DW16: 2 | DX16: 2 | DY16: 2 | DZ16: 2 | EA16: 2 | EB16: 2 | EC16: 2 | ED16: 2 | EE16: 2 | EF16: 2 | EG16: 2 | EH16: 2 | EI16: 2 | EJ16: 2 | EK16: 2 | EL16: 2 | EM16: 2 | EN16: 2 | EO16: 2 | EP16: 2 | EQ16: 2 | ER16: 2 | ES16: 2 | ET16: 2 | EU16: 2 | EV16: 2 | EW16: 3 | EX16: 3 | EY16: 3 | EZ16: 3 | FA16: 3 | FB16: 3 | FC16: 3 | FD16: 3 | FE16: 3 | FF16: 3 | FG16: 3 | FH16: 3 | FI16: 3 | FJ16: 3 | FK16: 3 | FL16: 3 | FM16: 3 | FN16: 3 | FO16: 3 | FP16: 3 | FQ16: 3 | FR16: 3 | FS16: 3 | FT16: 3 | FU16: 3 | FV16: 3 | FW16: 3 | FX16: 3 | FY16: 3 | FZ16: 3 | GA16: 3 | GB16: 3 | GC16: 3 | GD16: 3 | GE16: 3 | GF16: 3 | GG16: 3 | GH16: 3 | GI16: 3 | GJ16: 3 | GK16: 3 | GL16: 3 | GM16: 3 | GN16: 3 | GO16: 3 | GP16: 3 | GQ16: 3 | GR16: 3 | GS16: 3 | GT16: 3 | GU16: 3 | GV16: 3 | GW16: 3 | GX16: 3 | GY16: 3 | GZ16: 3 | HA16: 3 | HB16: 3 | HC16: 3 | HD16: 3 | HE16: 3 | HF16: 3 | HG16: 3 | HH16: 3 | HI16: 3 | HJ16: 3 | HK16: 3 | HL16: 3 | HM16: 3 | HN16: 3 | HO16: 3 | HP16: 3 | HQ16: 3 | HR16: 3 | HS16: 3 | HT16: 3 | HU16: 3 | HV16: 3 | HW16: 3 | HX16: 3 | HY16: 3 | HZ16: 3 | IA16: 3 | IB16: 3 | IC16: 3 | ID16: 3 | IE16: 3 | IF16: 3 | IG16: 3 | IH16: 3 | II16: 3 | IJ16: 3 | IK16: 2 | IL16: 2 | IM16: 2 | IN16: 2 | IO16: 2 | IP16: 2 | IQ16: 2 | IR16: 2 | IS16: 2 | IT16: 2 | IU16: 2 | IV16: 2 | IW16: 2 | IX16: 2 | IY16: 2 | IZ16: 2 | JA16: 2 | JB16: 2 | JC16: 2 | JD16: 2 | JE16: 2 | JF16: 2 | JG16: 2 | JH16: 2 | JI16: 2 | JJ16: 2 | JK16: 2 | JL16: 2 | JM16: 2 | JN16: 2 | JO16: 2 | JP16: 2 | JQ16: 2 | JR16: 2 | JS16: 2 | JT16: 2 | JU16: 2 | JV16: 2 | JW16: 2 | JX16: 2 | JY16: 2 | JZ16: 2 | KA16: 2 | KB16: 2 | KC16: 2 | KD16: 2 | KE16: 2 | KF16: 2 | KG16: 2 | KH16: 2 | KI16: 2 | KJ16: 2 | KK16: 2 | KL16: 2 | KM16: 2 | KN16: 2 | KO16: 2 | KP16: 2 | KQ16: 2 | KR16: 2 | KS16: 2 | KT16: 2 | KU16: 2 | KV16: 2 | KW16: 2 | KX16: 2 | KY16: 2 | KZ16: 2 | LA16: 2 | LB16: 2 | LC16: 2 | LD16: 2 | LE16: 2 | LF16: 2 | LG16: 2 | LH16: 2 | LI16: 2 | LJ16: 2 | LK16: 2 | LL16: 2 | LM16: 2 | LN16: 2 | LO16: 2 | LP16: 2 | LQ16: 2 | LR16: 2 | LS16: 2 | LT16: 2 | LU16: 2 | LV16: 2 | LW16: 2 | LX16: 1 | LY16: 1 | LZ16: 1 | MA16: 1 | MB16: 1 | MC16: 1 | MD16: 1 | ME16: 1 | MF16: 1 | MG16: 1 | MH16: 1 | MI16: 1 | MJ16: 1 | MK16: 1 | ML16: 1 | MM16: 1 | MN16: 1 | MO16: 1 | MP16: 1 | MQ16: 1 | MR16: 1 | MS16: 1 | MT16: 1 | MU16: 1 | MV16: 1 | MW16: 1 | MX16: 1 | MY16: 1 | MZ16: 1 | NA16: 1 | NB16: 1
A17: Month Index | B17: 1 | C17: 1 | D17: 1 | E17: 1 | F17: 1 | G17: 1 | H17: 1 | I17: 1 | J17: 1 | K17: 1 | L17: 1 | M17: 1 | N17: 1 | O17: 1 | P17: 1 | Q17: 1 | R17: 1 | S17: 1 | T17: 1 | U17: 1 | V17: 1 | W17: 1 | X17: 1 | Y17: 1 | Z17: 1 | AA17: 1 | AB17: 1 | AC17: 1 | AD17: 1 | AE17: 1 | AF17: 1 | AG17: 2 | AH17: 2 | AI17: 2 | AJ17: 2 | AK17: 2 | AL17: 2 | AM17: 2 | AN17: 2 | AO17: 2 | AP17: 2 | AQ17: 2 | AR17: 2 | AS17: 2 | AT17: 2 | AU17: 2 | AV17: 2 | AW17: 2 | AX17: 2 | AY17: 2 | AZ17: 2 | BA17: 2 | BB17: 2 | BC17: 2 | BD17: 2 | BE17: 2 | BF17: 2 | BG17: 2 | BH17: 2 | BI17: 3 | BJ17: 3 | BK17: 3 | BL17: 3 | BM17: 3 | BN17: 3 | BO17: 3 | BP17: 3 | BQ17: 3 | BR17: 3 | BS17: 3 | BT17: 3 | BU17: 3 | BV17: 3 | BW17: 3 | BX17: 3 | BY17: 3 | BZ17: 3 | CA17: 3 | CB17: 3 | CC17: 3 | CD17: 3 | CE17: 3 | CF17: 3 | CG17: 3 | CH17: 3 | CI17: 3 | CJ17: 3 | CK17: 3 | CL17: 3 | CM17: 3 | CN17: 4 | CO17: 4 | CP17: 4 | CQ17: 4 | CR17: 4 | CS17: 4 | CT17: 4 | CU17: 4 | CV17: 4 | CW17: 4 | CX17: 4 | CY17: 4 | CZ17: 4 | DA17: 4 | DB17: 4 | DC17: 4 | DD17: 4 | DE17: 4 | DF17: 4 | DG17: 4 | DH17: 4 | DI17: 4 | DJ17: 4 | DK17: 4 | DL17: 4 | DM17: 4 | DN17: 4 | DO17: 4 | DP17: 4 | DQ17: 4 | DR17: 5 | DS17: 5 | DT17: 5 | DU17: 5 | DV17: 5 | DW17: 5 | DX17: 5 | DY17: 5 | DZ17: 5 | EA17: 5 | EB17: 5 | EC17: 5 | ED17: 5 | EE17: 5 | EF17: 5 | EG17: 5 | EH17: 5 | EI17: 5 | EJ17: 5 | EK17: 5 | EL17: 5 | EM17: 5 | EN17: 5 | EO17: 5 | EP17: 5 | EQ17: 5 | ER17: 5 | ES17: 5 | ET17: 5 | EU17: 5 | EV17: 5 | EW17: 6 | EX17: 6 | EY17: 6 | EZ17: 6 | FA17: 6 | FB17: 6 | FC17: 6 | FD17: 6 | FE17: 6 | FF17: 6 | FG17: 6 | FH17: 6 | FI17: 6 | FJ17: 6 | FK17: 6 | FL17: 6 | FM17: 6 | FN17: 6 | FO17: 6 | FP17: 6 | FQ17: 6 | FR17: 6 | FS17: 6 | FT17: 6 | FU17: 6 | FV17: 6 | FW17: 6 | FX17: 6 | FY17: 6 | FZ17: 6 | GA17: 7 | GB17: 7 | GC17: 7 | GD17: 7 | GE17: 7 | GF17: 7 | GG17: 7 | GH17: 7 | GI17: 7 | GJ17: 7 | GK17: 7 | GL17: 7 | GM17: 7 | GN17: 7 | GO17: 7 | GP17: 7 | GQ17: 7 | GR17: 7 | GS17: 7 | GT17: 7 | GU17: 7 | GV17: 7 | GW17: 7 | GX17: 7 | GY17: 7 | GZ17: 7 | HA17: 7 | HB17: 7 | HC17: 7 | HD17: 7 | HE17: 7 | HF17: 8 | HG17: 8 | HH17: 8 | HI17: 8 | HJ17: 8 | HK17: 8 | HL17: 8 | HM17: 8 | HN17: 8 | HO17: 8 | HP17: 8 | HQ17: 8 | HR17: 8 | HS17: 8 | HT17: 8 | HU17: 8 | HV17: 8 | HW17: 8 | HX17: 8 | HY17: 8 | HZ17: 8 | IA17: 8 | IB17: 8 | IC17: 8 | ID17: 8 | IE17: 8 | IF17: 8 | IG17: 8 | IH17: 8 | II17: 8 | IJ17: 8 | IK17: 9 | IL17: 9 | IM17: 9 | IN17: 9 | IO17: 9 | IP17: 9 | IQ17: 9 | IR17: 9 | IS17: 9 | IT17: 9 | IU17: 9 | IV17: 9 | IW17: 9 | IX17: 9 | IY17: 9 | IZ17: 9 | JA17: 9 | JB17: 9 | JC17: 9 | JD17: 9 | JE17: 9 | JF17: 9 | JG17: 9 | JH17: 9 | JI17: 9 | JJ17: 9 | JK17: 9 | JL17: 9 | JM17: 9 | JN17: 9 | JO17: 10 | JP17: 10 | JQ17: 10 | JR17: 10 | JS17: 10 | JT17: 10 | JU17: 10 | JV17: 10 | JW17: 10 | JX17: 10 | JY17: 10 | JZ17: 10 | KA17: 10 | KB17: 10 | KC17: 10 | KD17: 10 | KE17: 10 | KF17: 10 | KG17: 10 | KH17: 10 | KI17: 10 | KJ17: 10 | KK17: 10 | KL17: 10 | KM17: 10 | KN17: 10 | KO17: 10 | KP17: 10 | KQ17: 10 | KR17: 10 | KS17: 10 | KT17: 11 | KU17: 11 | KV17: 11 | KW17: 11 | KX17: 11 | KY17: 11 | KZ17: 11 | LA17: 11 | LB17: 11 | LC17: 11 | LD17: 11 | LE17: 11 | LF17: 11 | LG17: 11 | LH17: 11 | LI17: 11 | LJ17: 11 | LK17: 11 | LL17: 11 | LM17: 11 | LN17: 11 | LO17: 11 | LP17: 11 | LQ17: 11 | LR17: 11 | LS17: 11 | LT17: 11 | LU17: 11 | LV17: 11 | LW17: 11 | LX17: 12 | LY17: 12 | LZ17: 12 | MA17: 12 | MB17: 12 | MC17: 12 | MD17: 12 | ME17: 12 | MF17: 12 | MG17: 12 | MH17: 12 | MI17: 12 | MJ17: 12 | MK17: 12 | ML17: 12 | MM17: 12 | MN17: 12 | MO17: 12 | MP17: 12 | MQ17: 12 | MR17: 12 | MS17: 12 | MT17: 12 | MU17: 12 | MV17: 12 | MW17: 12 | MX17: 12 | MY17: 12 | MZ17: 12 | NA17: 12 | NB17: 12
A18: Month | B18: January | C18: January | D18: January | E18: January | F18: January | G18: January | H18: January | I18: January | J18: January | K18: January | L18: January | M18: January | N18: January | O18: January | P18: January | Q18: January | R18: January | S18: January | T18: January | U18: January | V18: January | W18: January | X18: January | Y18: January | Z18: January | AA18: January | AB18: January | AC18: January | AD18: January | AE18: January | AF18: January | AG18: February | AH18: February | AI18: February | AJ18: February | AK18: February | AL18: February | AM18: February | AN18: February | AO18: February | AP18: February | AQ18: February | AR18: February | AS18: February | AT18: February | AU18: February | AV18: February | AW18: February | AX18: February | AY18: February | AZ18: February | BA18: February | BB18: February | BC18: February | BD18: February | BE18: February | BF18: February | BG18: February | BH18: February | BI18: March | BJ18: March | BK18: March | BL18: March | BM18: March | BN18: March | BO18: March | BP18: March | BQ18: March | BR18: March | BS18: March | BT18: March | BU18: March | BV18: March | BW18: March | BX18: March | BY18: March | BZ18: March | CA18: March | CB18: March | CC18: March | CD18: March | CE18: March | CF18: March | CG18: March | CH18: March | CI18: March | CJ18: March | CK18: March | CL18: March | CM18: March | CN18: April | CO18: April | CP18: April | CQ18: April | CR18: April | CS18: April | CT18: April | CU18: April | CV18: April | CW18: April | CX18: April | CY18: April | CZ18: April | DA18: April | DB18: April | DC18: April | DD18: April | DE18: April | DF18: April | DG18: April | DH18: April | DI18: April | DJ18: April | DK18: April | DL18: April | DM18: April | DN18: April | DO18: April | DP18: April | DQ18: April | DR18: May | DS18: May | DT18: May | DU18: May | DV18: May | DW18: May | DX18: May | DY18: May | DZ18: May | EA18: May | EB18: May | EC18: May | ED18: May | EE18: May | EF18: May | EG18: May | EH18: May | EI18: May | EJ18: May | EK18: May | EL18: May | EM18: May | EN18: May | EO18: May | EP18: May | EQ18: May | ER18: May | ES18: May | ET18: May | EU18: May | EV18: May | EW18: June | EX18: June | EY18: June | EZ18: June | FA18: June | FB18: June | FC18: June | FD18: June | FE18: June | FF18: June | FG18: June | FH18: June | FI18: June | FJ18: June | FK18: June | FL18: June | FM18: June | FN18: June | FO18: June | FP18: June | FQ18: June | FR18: June | FS18: June | FT18: June | FU18: June | FV18: June | FW18: June | FX18: June | FY18: June | FZ18: June | GA18: July | GB18: July | GC18: July | GD18: July | GE18: July | GF18: July | GG18: July | GH18: July | GI18: July | GJ18: July | GK18: July | GL18: July | GM18: July | GN18: July | GO18: July | GP18: July | GQ18: July | GR18: July | GS18: July | GT18: July | GU18: July | GV18: July | GW18: July | GX18: July | GY18: July | GZ18: July | HA18: July | HB18: July | HC18: July | HD18: July | HE18: July | HF18: August | HG18: August | HH18: August | HI18: August | HJ18: August | HK18: August | HL18: August | HM18: August | HN18: August | HO18: August | HP18: August | HQ18: August | HR18: August | HS18: August | HT18: August | HU18: August | HV18: August | HW18: August | HX18: August | HY18: August | HZ18: August | IA18: August | IB18: August | IC18: August | ID18: August | IE18: August | IF18: August | IG18: August | IH18: August | II18: August | IJ18: August | IK18: September | IL18: September | IM18: September | IN18: September | IO18: September | IP18: September | IQ18: September | IR18: September | IS18: September | IT18: September | IU18: September | IV18: September | IW18: September | IX18: September | IY18: September | IZ18: September | JA18: September | JB18: September | JC18: September | JD18: September | JE18: September | JF18: September | JG18: September | JH18: September | JI18: September | JJ18: September | JK18: September | JL18: September | JM18: September | JN18: September | JO18: October | JP18: October | JQ18: October | JR18: October | JS18: October | JT18: October | JU18: October | JV18: October | JW18: October | JX18: October | JY18: October | JZ18: October | KA18: October | KB18: October | KC18: October | KD18: October | KE18: October | KF18: October | KG18: October | KH18: October | KI18: October | KJ18: October | KK18: October | KL18: October | KM18: October | KN18: October | KO18: October | KP18: October | KQ18: October | KR18: October | KS18: October | KT18: November | KU18: November | KV18: November | KW18: November | KX18: November | KY18: November | KZ18: November | LA18: November | LB18: November | LC18: November | LD18: November | LE18: November | LF18: November | LG18: November | LH18: November | LI18: November | LJ18: November | LK18: November | LL18: November | LM18: November | LN18: November | LO18: November | LP18: November | LQ18: November | LR18: November | LS18: November | LT18: November | LU18: November | LV18: November | LW18: November | LX18: December | LY18: December | LZ18: December | MA18: December | MB18: December | MC18: December | MD18: December | ME18: December | MF18: December | MG18: December | MH18: December | MI18: December | MJ18: December | MK18: December | ML18: December | MM18: December | MN18: December | MO18: December | MP18: December | MQ18: December | MR18: December | MS18: December | MT18: December | MU18: December | MV18: December | MW18: December | MX18: December | MY18: December | MZ18: December | NA18: December | NB18: December
A20: Total Hours | B20: =SUM(rngIPHours) -> 8760
A21: Hours | B21: =OFFSET($A$32,B26,B23) -> 4 | C21: =OFFSET($A$32,C26,C23) -> 9 | D21: 2 | E21: 9 | F21: 4 | G21: 9 | H21: 2 | I21: 9 | J21: 4 | K21: 9 | L21: 2 | M21: 9 | N21: 4 | O21: 9 | P21: 2 | Q21: 9 | R21: 4 | S21: 9 | T21: 2 | U21: 9 | V21: 4 | W21: 9 | X21: 2 | Y21: 9 | Z21: 4 | AA21: 9 | AB21: 2 | AC21: 9 | AD21: 4 | AE21: 9 | AF21: 2 | AG21: 9 | AH21: 4 | AI21: 9 | AJ21: 2 | AK21: 9 | AL21: 4 | AM21: 9 | AN21: 2 | AO21: 9 | AP21: 4 | AQ21: 9 | AR21: 2 | AS21: 9 | AT21: 4 | AU21: 9 | AV21: 2 | AW21: 9 | AX21: 4 | AY21: 9 | AZ21: 2 | BA21: 9 | BB21: 4 | BC21: 9 | BD21: 2 | BE21: 9 | BF21: 4 | BG21: 9 | BH21: 2 | BI21: 9 | BJ21: 4 | BK21: 9 | BL21: 2 | BM21: 9 | BN21: 4 | BO21: =OFFSET($A$32,BO26,BO23) -> 9 | BP21: 2 | BQ21: 9 | BR21: 4 | BS21: 9 | BT21: 2 | BU21: 9 | BV21: 4 | BW21: 9 | BX21: 2 | BY21: 9 | BZ21: 4 | CA21: 9 | CB21: 2 | CC21: 9 | CD21: 4 | CE21: 9 | CF21: 2 | CG21: 9 | CH21: 4 | CI21: 9 | CJ21: 2 | CK21: 9 | CL21: 4 | CM21: 9 | CN21: 2 | CO21: 9 | CP21: 4 | CQ21: 9 | CR21: 2 | CS21: 9 | CT21: 4 | CU21: 9 | CV21: 2 | CW21: 9 | CX21: 4 | CY21: 9 | CZ21: 2 | DA21: 9 | DB21: 4 | DC21: 9 | DD21: 2 | DE21: 9 | DF21: 4 | DG21: 9 | DH21: 2 | DI21: 9 | DJ21: 4 | DK21: 9 | DL21: 2 | DM21: 9 | DN21: 4 | DO21: 9 | DP21: 2 | DQ21: 9 | DR21: 4 | DS21: 9 | DT21: 2 | DU21: 9 | DV21: 3 | DW21: 10 | DX21: 3 | DY21: 8 | DZ21: 3 | EA21: =OFFSET($A$32,EA26,EA23) -> 10 | EB21: 3 | EC21: 8 | ED21: 3 | EE21: 10 | EF21: 3 | EG21: 8 | EH21: 3 | EI21: 10 | EJ21: 3 | EK21: 8 | EL21: 3 | EM21: 10 | EN21: 3 | EO21: 8 | EP21: 3 | EQ21: 10 | ER21: 3 | ES21: 8 | ET21: 3 | EU21: 10 | EV21: 3 | EW21: 8 | EX21: 3 | EY21: 10 | EZ21: 3 | FA21: 8 | FB21: 3 | FC21: 10 | FD21: 3 | FE21: 8 | FF21: 3 | FG21: 10 | FH21: 3 | FI21: 8 | FJ21: 3 | FK21: 10 | FL21: 3 | FM21: 8 | FN21: 3 | FO21: 10 | FP21: 3 | FQ21: 8 | FR21: 3 | FS21: 10 | FT21: 3 | FU21: 8 | FV21: 3 | FW21: 10 | FX21: 3 | FY21: 8 | FZ21: 3 | GA21: 10 | GB21: 3 | GC21: 8 | GD21: 3 | GE21: 10 | GF21: 3 | GG21: 8 | GH21: 3 | GI21: 10 | GJ21: 3 | GK21: 8 | GL21: 3 | GM21: =OFFSET($A$32,GM26,GM23) -> 10 | GN21: 3 | GO21: 8 | GP21: 3 | GQ21: 10 | GR21: 3 | GS21: 8 | GT21: 3 | GU21: 10 | GV21: 3 | GW21: 8 | GX21: 3 | GY21: 10 | GZ21: 3 | HA21: 8 | HB21: 3 | HC21: 10 | HD21: 3 | HE21: 8 | HF21: 3 | HG21: 10 | HH21: 3 | HI21: 8 | HJ21: 3 | HK21: 10 | HL21: 3 | HM21: 8 | HN21: 3 | HO21: 10 | HP21: 3 | HQ21: 8 | HR21: 3 | HS21: 10 | HT21: 3 | HU21: 8 | HV21: 3 | HW21: 10 | HX21: 3 | HY21: 8 | HZ21: 3 | IA21: 10 | IB21: 3 | IC21: 8 | ID21: 2 | IE21: 11 | IF21: 3 | IG21: 8 | IH21: 2 | II21: 11 | IJ21: 3 | IK21: 8 | IL21: 2 | IM21: 11 | IN21: 3 | IO21: 8 | IP21: 2 | IQ21: 11 | IR21: 3 | IS21: 8 | IT21: 2 | IU21: 11 | IV21: 3 | IW21: 8 | IX21: 2 | IY21: =OFFSET($A$32,IY26,IY23) -> 11 | IZ21: 3 | JA21: 8 | JB21: 2 | JC21: 11 | JD21: 3 | JE21: 8 | JF21: 2 | JG21: 11 | JH21: 3 | JI21: 8 | JJ21: 2 | JK21: 11 | JL21: 3 | JM21: 8 | JN21: 2 | JO21: 11 | JP21: 3 | JQ21: 8 | JR21: 2 | JS21: 11 | JT21: 3 | JU21: 8 | JV21: 2 | JW21: 11 | JX21: 3 | JY21: 8 | JZ21: 2 | KA21: 11 | KB21: 3 | KC21: 8 | KD21: 2 | KE21: 11 | KF21: 3 | KG21: 8 | KH21: 2 | KI21: 11 | KJ21: 3 | KK21: 8 | KL21: 2 | KM21: 11 | KN21: 3 | KO21: 8 | KP21: 2 | KQ21: 11 | KR21: 3 | KS21: 8 | KT21: 2 | KU21: 11 | KV21: 3 | KW21: 8 | KX21: 2 | KY21: 11 | KZ21: 3 | LA21: 8 | LB21: 2 | LC21: 11 | LD21: 3 | LE21: 8 | LF21: 2 | LG21: 11 | LH21: 3 | LI21: 8 | LJ21: 2 | LK21: =OFFSET($A$32,LK26,LK23) -> 11 | LL21: 3 | LM21: 8 | LN21: 2 | LO21: 11 | LP21: 3 | LQ21: 8 | LR21: 2 | LS21: 11 | LT21: 3 | LU21: 8 | LV21: 2 | LW21: 11 | LX21: 3 | LY21: 8 | LZ21: 2 | MA21: 11 | MB21: 3 | MC21: 8 | MD21: 2 | ME21: 11 | MF21: 3 | MG21: 8 | MH21: 2 | MI21: 11 | MJ21: 3 | MK21: 8 | ML21: 2 | MM21: 11 | MN21: 3 | MO21: 8 | MP21: 2 | MQ21: 11 | MR21: 3 | MS21: 8 | MT21: 2 | MU21: 11 | MV21: 3 | MW21: 8 | MX21: 2 | MY21: 11.5 | MZ21: 2.5 | NA21: 8 | NB21: 2 | NC21: 11.5 | ND21: 2.5 | NE21: 8 | NF21: 2 | NG21: 11.5 | NH21: 2.5 | NI21: 8 | NJ21: 2 | NK21: 11.5 | NL21: 2.5 | NM21: 8 | NN21: 2 | NO21: 11.5 | NP21: 2.5 | NQ21: 8 | NR21: 2 | NS21: 11.5 | NT21: 2.5 | NU21: 8 | NV21: 2 | NW21: =OFFSET($A$32,NW26,NW23) -> 11.5 | NX21: 2.5 | NY21: 8 | NZ21: 2 | OA21: 11.5 | OB21: 2.5 | OC21: 8 | OD21: 2 | OE21: 11.5 | OF21: 2.5 | OG21: 8 | OH21: 2 | OI21: 11.5 | OJ21: 2.5 | OK21: 8 | OL21: 2 | OM21: 11.5 | ON21: 2.5 | OO21: 8 | OP21: 2 | OQ21: 11.5 | OR21: 2.5 | OS21: 8 | OT21: 2 | OU21: 11.5 | OV21: 2.5 | OW21: 8 | OX21: 2 | OY21: 11.5 | OZ21: 2.5 | PA21: 8 | PB21: 2 | PC21: 11.5 | PD21: 2.5 | PE21: 8 | PF21: 2 | PG21: 11.5 | PH21: 2.5 | PI21: 8 | PJ21: 2 | PK21: 11.5 | PL21: 2.5 | PM21: 8 | PN21: 2 | PO21: 11.5 | PP21: 2.5 | PQ21: 8 | PR21: 2 | PS21: 11.5 | PT21: 2.5 | PU21: 8 | PV21: 2 | PW21: 11.5 | PX21: 2.5 | PY21: 8 | PZ21: 2 | QA21: 11.5 | QB21: 2.5 | QC21: 8 | QD21: 2 | QE21: 11.5 | QF21: 2.5 | QG21: 8 | QH21: 2 | QI21: =OFFSET($A$32,QI26,QI23) -> 11.5 | QJ21: 2.5 | QK21: 8 | QL21: 2 | QM21: 11.5 | QN21: 2.5 | QO21: 8 | QP21: 2 | QQ21: 11.5 | QR21: 2.5 | QS21: 8 | QT21: 2 | QU21: 11.5 | QV21: 2.5 | QW21: 8 | QX21: 2 | QY21: 11.5 | QZ21: 2.5 | RA21: 8 | RB21: 2 | RC21: 11.5 | RD21: 2.5 | RE21: 8 | RF21: 2 | RG21: 11.5 | RH21: 2.5 | RI21: 8 | RJ21: 2 | RK21: 11.5 | RL21: 2.5 | RM21: 8 | RN21: 6 | RO21: 9 | RP21: 2 | RQ21: 7 | RR21: 6 | RS21: 9 | RT21: 2 | RU21: 7 | RV21: 6 | RW21: 9 | RX21: 2 | RY21: 7 | RZ21: 6 | SA21: 9 | SB21: 2 | SC21: 7 | SD21: 6 | SE21: 9 | SF21: 2 | SG21: 7 | SH21: 6 | SI21: 9 | SJ21: 2 | SK21: 7 | SL21: 6 | SM21: 9 | SN21: 2 | SO21: 7 | SP21: 6 | SQ21: 9 | SR21: 2 | SS21: 7 | ST21: 6 | SU21: =OFFSET($A$32,SU26,SU23) -> 9 | SV21: 2 | SW21: 7 | SX21: 6 | SY21: 9 | SZ21: 2 | TA21: 7 | TB21: 6 | TC21: 9 | TD21: 2 | TE21: 7 | TF21: 6 | TG21: 9 | TH21: 2 | TI21: 7 | TJ21: 6 | TK21: 9 | TL21: 2 | TM21: 7 | TN21: 6 | TO21: 9 | TP21: 2 | TQ21: 7 | TR21: 6 | TS21: 9 | TT21: 2 | TU21: 7 | TV21: 6 | TW21: 9 | TX21: 2 | TY21: 7 | TZ21: 6 | UA21: 9 | UB21: 2 | UC21: 7 | UD21: 6 | UE21: 9 | UF21: 2 | UG21: 7 | UH21: 6 | UI21: 9 | UJ21: 2 | UK21: 7 | UL21: 6 | UM21: 9 | UN21: 2 | UO21: 7 | UP21: 6 | UQ21: 9 | UR21: 2 | US21: 7 | UT21: 6 | UU21: 9 | UV21: 2 | UW21: 7 | UX21: 6 | UY21: 9 | UZ21: 2 | VA21: 7 | VB21: 6 | VC21: 9 | VD21: 2 | VE21: 7 | VF21: 6 | VG21: =OFFSET($A$32,VG26,VG23) -> 9 | VH21: 2 | VI21: 7 | VJ21: 6 | VK21: 9 | VL21: 2 | VM21: 7 | VN21: 6 | VO21: 9 | VP21: 2 | VQ21: 7 | VR21: 6 | VS21: 9 | VT21: 2 | VU21: 7 | VV21: 6 | VW21: 9 | VX21: 2 | VY21: 7 | VZ21: 6 | WA21: 9 | WB21: 2 | WC21: 7 | WD21: 6 | WE21: 9 | WF21: 2 | WG21: 7 | WH21: 7 | WI21: 5 | WJ21: 4 | WK21: 8 | WL21: 7 | WM21: 5 | WN21: 4 | WO21: 8 | WP21: 7 | WQ21: 5 | WR21: 4 | WS21: 8 | WT21: 7 | WU21: 5 | WV21: 4 | WW21: 8 | WX21: 7 | WY21: 5 | WZ21: 4 | XA21: 8 | XB21: 7 | XC21: 5 | XD21: 4 | XE21: 8 | XF21: 7 | XG21: 5 | XH21: 4 | XI21: 8 | XJ21: 7 | XK21: 5 | XL21: 4 | XM21: 8 | XN21: 7 | XO21: 5 | XP21: 4 | XQ21: 8 | XR21: 7 | XS21: =OFFSET($A$32,XS26,XS23) -> 5 | XT21: 4 | XU21: 8 | XV21: 7 | XW21: 5 | XX21: 4 | XY21: 8 | XZ21: 7 | YA21: 5 | YB21: 4 | YC21: 8 | YD21: 7 | YE21: 5 | YF21: 4 | YG21: 8 | YH21: 7 | YI21: 5 | YJ21: 4 | YK21: 8 | YL21: 7 | YM21: 5 | YN21: 4 | YO21: 8 | YP21: 7 | YQ21: 5 | YR21: 4 | YS21: 8 | YT21: 7 | YU21: 5 | YV21: 4 | YW21: 8 | YX21: 7 | YY21: 5 | YZ21: 4 | ZA21: 8 | ZB21: 7 | ZC21: 5 | ZD21: 4 | ZE21: 8 | ZF21: 7 | ZG21: 5 | ZH21: 4 | ZI21: 8 | ZJ21: 7 | ZK21: 5 | ZL21: 4 | ZM21: 8 | ZN21: 7 | ZO21: 5 | ZP21: 4 | ZQ21: 8 | ZR21: 7 | ZS21: 5 | ZT21: 4 | ZU21: 8 | ZV21: 7 | ZW21: 5 | ZX21: 4 | ZY21: 8 | ZZ21: 7 | AAA21: 5 | AAB21: 4 | AAC21: 8 | AAD21: 7 | AAE21: =OFFSET($A$32,AAE26,AAE23) -> 5 | AAF21: 4 | AAG21: 8 | AAH21: 7 | AAI21: 5 | AAJ21: 4 | AAK21: 8 | AAL21: 7 | AAM21: 5 | AAN21: 4 | AAO21: 8 | AAP21: 7 | AAQ21: 5 | AAR21: 4 | AAS21: 8 | AAT21: 7 | AAU21: 5 | AAV21: 4 | AAW21: 8 | AAX21: 4 | AAY21: 8 | AAZ21: 4 | ABA21: 8 | ABB21: 4 | ABC21: 8 | ABD21: 4 | ABE21: 8 | ABF21: 4 | ABG21: 8 | ABH21: 4 | ABI21: 8 | ABJ21: 4 | ABK21: 8 | ABL21: 4 | ABM21: 8 | ABN21: 4 | ABO21: 8 | ABP21: 4 | ABQ21: 8 | ABR21: 4 | ABS21: 8 | ABT21: 4 | ABU21: 8 | ABV21: 4 | ABW21: 8 | ABX21: 4 | ABY21: 8 | ABZ21: 4 | ACA21: 8 | ACB21: 4 | ACC21: 8 | ACD21: 4 | ACE21: 8 | ACF21: 4 | ACG21: 8 | ACH21: 4 | ACI21: 8 | ACJ21: 4 | ACK21: 8 | ACL21: 4 | ACM21: 8 | ACN21: 4 | ACO21: 8 | ACP21: 4 | ACQ21: =OFFSET($A$32,ACQ26,ACQ23) -> 8 | ACR21: 4 | ACS21: 8 | ACT21: 4 | ACU21: 8 | ACV21: 4 | ACW21: 8 | ACX21: 4 | ACY21: 8 | ACZ21: 4 | ADA21: 8 | ADB21: 4 | ADC21: 8 | ADD21: 4 | ADE21: 8 | ADF21: 4 | ADG21: 8 | ADH21: 4 | ADI21: 8 | ADJ21: 4 | ADK21: 8 | ADL21: 4 | ADM21: 8 | ADN21: 4 | ADO21: 8 | ADP21: 4 | ADQ21: 8 | ADR21: 4 | ADS21: 8 | ADT21: 4 | ADU21: 8 | ADV21: 4 | ADW21: 8 | ADX21: 4 | ADY21: 8 | ADZ21: 4 | AEA21: 8 | AEB21: 4 | AEC21: 8 | AED21: 4 | AEE21: 8 | AEF21: 4 | AEG21: 8 | AEH21: 4 | AEI21: 8 | AEJ21: 4 | AEK21: 8 | AEL21: 4 | AEM21: 8 | AEN21: 4 | AEO21: 8 | AEP21: 4 | AEQ21: 8 | AER21: 4 | AES21: 8 | AET21: 4 | AEU21: 8 | AEV21: 4 | AEW21: 8 | AEX21: 4 | AEY21: 8 | AEZ21: 4 | AFA21: 8 | AFB21: 4 | AFC21: =OFFSET($A$32,AFC26,AFC23) -> 8 | AFD21: 4 | AFE21: 8 | AFF21: 4 | AFG21: 8 | AFH21: 4 | AFI21: 8 | AFJ21: 4 | AFK21: 8 | AFL21: 4 | AFM21: 8 | AFN21: 4 | AFO21: 8 | AFP21: 4 | AFQ21: 8 | AFR21: 9 | AFS21: 3.5 | AFT21: 3.5 | AFU21: 8 | AFV21: 9 | AFW21: 3.5 | AFX21: 3.5 | AFY21: 8 | AFZ21: 9 | AGA21: 3.5 | AGB21: 3.5 | AGC21: 8 | AGD21: 9 | AGE21: 3.5 | AGF21: 3.5 | AGG21: 8 | AGH21: 9 | AGI21: 3.5 | AGJ21: 3.5 | AGK21: 8 | AGL21: 9 | AGM21: 3.5 | AGN21: 3.5 | AGO21: 8 | AGP21: 9 | AGQ21: 3.5 | AGR21: 3.5 | AGS21: 8 | AGT21: 9 | AGU21: 3.5 | AGV21: 3.5 | AGW21: 8 | AGX21: 9 | AGY21: 3.5 | AGZ21: 3.5 | AHA21: 8 | AHB21: 9 | AHC21: 3.5 | AHD21: 3.5 | AHE21: 8 | AHF21: 9 | AHG21: 3.5 | AHH21: 3.5 | AHI21: 8 | AHJ21: 9 | AHK21: 3.5 | AHL21: 3.5 | AHM21: 8 | AHN21: 9 | AHO21: =OFFSET($A$32,AHO26,AHO23) -> 3.5 | AHP21: 3.5 | AHQ21: 8 | AHR21: 9 | AHS21: 3.5 | AHT21: 3.5 | AHU21: 8 | AHV21: 9 | AHW21: 3.5 | AHX21: 3.5 | AHY21: 8 | AHZ21: 9 | AIA21: 3.5 | AIB21: 3.5 | AIC21: 8 | AID21: 9 | AIE21: 3.5 | AIF21: 3.5 | AIG21: 8 | AIH21: 9 | AII21: 3.5 | AIJ21: 3.5 | AIK21: 8 | AIL21: 9 | AIM21: 3.5 | AIN21: 3.5 | AIO21: 8 | AIP21: 9 | AIQ21: 3.5 | AIR21: 3.5 | AIS21: 8 | AIT21: 9 | AIU21: 3.5 | AIV21: 3.5 | AIW21: 8 | AIX21: 9 | AIY21: 3.5 | AIZ21: 3.5 | AJA21: 8 | AJB21: 9 | AJC21: 3.5 | AJD21: 3.5 | AJE21: 8 | AJF21: 9 | AJG21: 3.5 | AJH21: 3.5 | AJI21: 8 | AJJ21: 9 | AJK21: 3.5 | AJL21: 3.5 | AJM21: 8 | AJN21: 9 | AJO21: 3.5 | AJP21: 3.5 | AJQ21: 8 | AJR21: 9 | AJS21: 3.5 | AJT21: 3.5 | AJU21: 8 | AJV21: 9 | AJW21: 3.5 | AJX21: 3.5 | AJY21: 8 | AJZ21: 9 | AKA21: =OFFSET($A$32,AKA26,AKA23) -> 3.5 | AKB21: 3.5 | AKC21: 8 | AKD21: 9 | AKE21: 3.5 | AKF21: 3.5 | AKG21: 8 | AKH21: 9 | AKI21: 3.5 | AKJ21: 3.5 | AKK21: 8 | AKL21: 5 | AKM21: 10 | AKN21: 2 | AKO21: 7 | AKP21: 5 | AKQ21: 10 | AKR21: 2 | AKS21: 7 | AKT21: 5 | AKU21: 10 | AKV21: 2 | AKW21: 7 | AKX21: 5 | AKY21: 10 | AKZ21: 2 | ALA21: 7 | ALB21: 5 | ALC21: 10 | ALD21: 2 | ALE21: 7 | ALF21: 5 | ALG21: 10 | ALH21: 2 | ALI21: 7 | ALJ21: 5 | ALK21: 10 | ALL21: 2 | ALM21: 7 | ALN21: 5 | ALO21: 10 | ALP21: 2 | ALQ21: 7 | ALR21: 5 | ALS21: 10 | ALT21: 2 | ALU21: 7 | ALV21: 5 | ALW21: 10 | ALX21: 2 | ALY21: 7 | ALZ21: 5 | AMA21: 10 | AMB21: 2 | AMC21: 7 | AMD21: 5 | AME21: 10 | AMF21: 2 | AMG21: 7 | AMH21: 5 | AMI21: 10 | AMJ21: 2 | AMK21: 7 | AML21: 5 | AMM21: =OFFSET($A$32,AMM26,AMM23) -> 10 | AMN21: 2 | AMO21: 7 | AMP21: 5 | AMQ21: 10 | AMR21: 2 | AMS21: 7 | AMT21: 5 | AMU21: 10 | AMV21: 2 | AMW21: 7 | AMX21: 5 | AMY21: 10 | AMZ21: 2 | ANA21: 7 | ANB21: 5 | ANC21: 10 | AND21: 2 | ANE21: 7 | ANF21: 5 | ANG21: 10 | ANH21: 2 | ANI21: 7 | ANJ21: 5 | ANK21: 10 | ANL21: 2 | ANM21: 7 | ANN21: 5 | ANO21: 10 | ANP21: 2 | ANQ21: 7 | ANR21: 5 | ANS21: 10 | ANT21: 2 | ANU21: 7 | ANV21: 5 | ANW21: 10 | ANX21: 2 | ANY21: 7 | ANZ21: 5 | AOA21: 10 | AOB21: 2 | AOC21: 7 | AOD21: 5 | AOE21: 10 | AOF21: 2 | AOG21: 7 | AOH21: 5 | AOI21: 10 | AOJ21: 2 | AOK21: 7 | AOL21: 5 | AOM21: 10 | AON21: 2 | AOO21: 7 | AOP21: 5 | AOQ21: 10 | AOR21: 2 | AOS21: 7 | AOT21: 5 | AOU21: 10 | AOV21: 2 | AOW21: 7 | AOX21: 5 | AOY21: =OFFSET($A$32,AOY26,AOY23) -> 10 | AOZ21: 2 | APA21: 7 | APB21: 3 | APC21: 12 | APD21: 2 | APE21: 7 | APF21: 3 | APG21: 12 | APH21: 2 | API21: 7 | APJ21: 3 | APK21: 12 | APL21: 2 | APM21: 7 | APN21: 3 | APO21: 12 | APP21: 2 | APQ21: 7 | APR21: 3 | APS21: 12 | APT21: 2 | APU21: 7 | APV21: 3 | APW21: 12 | APX21: 2 | APY21: 7 | APZ21: 3 | AQA21: 12 | AQB21: 2 | AQC21: 7 | AQD21: 3 | AQE21: 12 | AQF21: 2 | AQG21: 7 | AQH21: 3 | AQI21: 12 | AQJ21: 2 | AQK21: 7 | AQL21: 3 | AQM21: 12 | AQN21: 2 | AQO21: 7 | AQP21: 3 | AQQ21: 12 | AQR21: 2 | AQS21: 7 | AQT21: 3 | AQU21: 12 | AQV21: 2 | AQW21: 7 | AQX21: 3 | AQY21: 12 | AQZ21: 2 | ARA21: 7 | ARB21: 3 | ARC21: 12 | ARD21: 2 | ARE21: 7 | ARF21: 3 | ARG21: 12 | ARH21: 2 | ARI21: 7 | ARJ21: 3 | ARK21: =OFFSET($A$32,ARK26,ARK23) -> 12 | ARL21: 2 | ARM21: 7 | ARN21: 3 | ARO21: 12 | ARP21: 2 | ARQ21: 7 | ARR21: 3 | ARS21: 12 | ART21: 2 | ARU21: 7 | ARV21: 3 | ARW21: 12 | ARX21: 2 | ARY21: 7 | ARZ21: 3 | ASA21: 12 | ASB21: 2 | ASC21: 7 | ASD21: 3 | ASE21: 12 | ASF21: 2 | ASG21: 7 | ASH21: 3 | ASI21: 12 | ASJ21: 2 | ASK21: 7 | ASL21: 3 | ASM21: 12 | ASN21: 2 | ASO21: 7 | ASP21: 3 | ASQ21: 12 | ASR21: 2 | ASS21: 7 | AST21: 3 | ASU21: 12 | ASV21: 2 | ASW21: 7 | ASX21: 3 | ASY21: 12 | ASZ21: 2 | ATA21: 7 | ATB21: 3 | ATC21: 12 | ATD21: 2 | ATE21: 7 | ATF21: 3 | ATG21: 12 | ATH21: 2 | ATI21: 7 | ATJ21: 3 | ATK21: 12 | ATL21: 2 | ATM21: 7 | ATN21: 3 | ATO21: 12 | ATP21: 2 | ATQ21: 7 | ATR21: 3 | ATS21: 12 | ATT21: 2 | ATU21: 7 | ATV21: 4 | ATW21: =OFFSET($A$32,ATW26,ATW23) -> 11 | ATX21: 2 | ATY21: 7 | ATZ21: 4 | AUA21: 11 | AUB21: 2 | AUC21: 7 | AUD21: 4 | AUE21: 11 | AUF21: 2 | AUG21: 7 | AUH21: 4 | AUI21: 11 | AUJ21: 2 | AUK21: 7 | AUL21: 4 | AUM21: 11 | AUN21: 2 | AUO21: 7 | AUP21: 4 | AUQ21: 11 | AUR21: 2 | AUS21: 7 | AUT21: 4 | AUU21: 11 | AUV21: 2 | AUW21: 7 | AUX21: 4 | AUY21: 11 | AUZ21: 2 | AVA21: 7 | AVB21: 4 | AVC21: 11 | AVD21: 2 | AVE21: 7 | AVF21: 4 | AVG21: 11 | AVH21: 2 | AVI21: 7 | AVJ21: 4 | AVK21: 11 | AVL21: 2 | AVM21: 7 | AVN21: 4 | AVO21: 11 | AVP21: 2 | AVQ21: 7 | AVR21: 4 | AVS21: 11 | AVT21: 2 | AVU21: 7 | AVV21: 4 | AVW21: 11 | AVX21: 2 | AVY21: 7 | AVZ21: 4 | AWA21: 11 | AWB21: 2 | AWC21: 7 | AWD21: 4 | AWE21: 11 | AWF21: 2 | AWG21: 7 | AWH21: 4 | AWI21: =OFFSET($A$32,AWI26,AWI23) -> 11 | AWJ21: 2 | AWK21: 7 | AWL21: 4 | AWM21: 11 | AWN21: 2 | AWO21: 7 | AWP21: 4 | AWQ21: 11 | AWR21: 2 | AWS21: 7 | AWT21: 4 | AWU21: 11 | AWV21: 2 | AWW21: 7 | AWX21: 4 | AWY21: 11 | AWZ21: 2 | AXA21: 7 | AXB21: 4 | AXC21: 11 | AXD21: 2 | AXE21: 7 | AXF21: 4 | AXG21: 11 | AXH21: 2 | AXI21: 7 | AXJ21: 4 | AXK21: 11 | AXL21: 2 | AXM21: 7 | AXN21: 4 | AXO21: 11 | AXP21: 2 | AXQ21: 7 | AXR21: 4 | AXS21: 11 | AXT21: 2 | AXU21: 7 | AXV21: 4 | AXW21: 11 | AXX21: 2 | AXY21: 7 | AXZ21: 4 | AYA21: 11 | AYB21: 2 | AYC21: 7 | AYD21: 4 | AYE21: 11 | AYF21: 2 | AYG21: 7 | AYH21: 4 | AYI21: 11 | AYJ21: 2 | AYK21: 7 | AYL21: 3 | AYM21: 10 | AYN21: 3 | AYO21: 8 | AYP21: 3 | AYQ21: 10 | AYR21: 3 | AYS21: 8 | AYT21: 3 | AYU21: =OFFSET($A$32,AYU26,AYU23) -> 10 | AYV21: 3 | AYW21: 8 | AYX21: 3 | AYY21: 10 | AYZ21: 3 | AZA21: 8 | AZB21: 3 | AZC21: 10 | AZD21: 3 | AZE21: 8 | AZF21: 3 | AZG21: 10 | AZH21: 3 | AZI21: 8 | AZJ21: 3 | AZK21: 10 | AZL21: 3 | AZM21: 8 | AZN21: 3 | AZO21: 10 | AZP21: 3 | AZQ21: 8 | AZR21: 3 | AZS21: 10 | AZT21: 3 | AZU21: 8 | AZV21: 3 | AZW21: 10 | AZX21: 3 | AZY21: 8 | AZZ21: 3 | BAA21: 10 | BAB21: 3 | BAC21: 8 | BAD21: 3 | BAE21: 10 | BAF21: 3 | BAG21: 8 | BAH21: 3 | BAI21: 10 | BAJ21: 3 | BAK21: 8 | BAL21: 3 | BAM21: 10 | BAN21: 3 | BAO21: 8 | BAP21: 3 | BAQ21: 10 | BAR21: 3 | BAS21: 8 | BAT21: 3 | BAU21: 10 | BAV21: 3 | BAW21: 8 | BAX21: 3 | BAY21: 10 | BAZ21: 3 | BBA21: 8 | BBB21: 3 | BBC21: 10 | BBD21: 3 | BBE21: 8 | BBF21: 3 | BBG21: =OFFSET($A$32,BBG26,BBG23) -> 10 | BBH21: 3 | BBI21: 8 | BBJ21: 3 | BBK21: 10 | BBL21: 3 | BBM21: 8 | BBN21: 3 | BBO21: 10 | BBP21: 3 | BBQ21: 8 | BBR21: 3 | BBS21: 10 | BBT21: 3 | BBU21: 8 | BBV21: 3 | BBW21: 10 | BBX21: 3 | BBY21: 8 | BBZ21: 3 | BCA21: 10 | BCB21: 3 | BCC21: 8 | BCD21: 3 | BCE21: 10 | BCF21: 3 | BCG21: 8 | BCH21: 3 | BCI21: 10 | BCJ21: 3 | BCK21: 8 | BCL21: 3 | BCM21: 10 | BCN21: 3 | BCO21: 8 | BCP21: 3 | BCQ21: 10 | BCR21: 3 | BCS21: 8 | BCT21: 3 | BCU21: 10 | BCV21: 3 | BCW21: 8 | BCX21: 3 | BCY21: 10 | BCZ21: 3 | BDA21: 8 | BDB21: 3 | BDC21: 10 | BDD21: 3 | BDE21: 8
A22: Time Slot | B22: 1 | C22: 2 | D22: 3 | E22: 4 | F22: 5 | G22: 6 | H22: 7 | I22: 8 | J22: 9 | K22: 10 | L22: 11 | M22: 12 | N22: 13 | O22: 14 | P22: 15 | Q22: 16 | R22: 17 | S22: 18 | T22: 19 | U22: 20 | V22: 21 | W22: 22 | X22: 23 | Y22: 24 | Z22: 25 | AA22: 26 | AB22: 27 | AC22: 28 | AD22: 29 | AE22: 30 | AF22: 31 | AG22: 32 | AH22: 33 | AI22: 34 | AJ22: 35 | AK22: 36 | AL22: 37 | AM22: 38 | AN22: 39 | AO22: 40 | AP22: 41 | AQ22: 42 | AR22: 43 | AS22: 44 | AT22: 45 | AU22: 46 | AV22: 47 | AW22: 48 | AX22: 49 | AY22: 50 | AZ22: 51 | BA22: 52 | BB22: 53 | BC22: 54 | BD22: 55 | BE22: 56 | BF22: 57 | BG22: 58 | BH22: 59 | BI22: 60 | BJ22: 61 | BK22: 62 | BL22: 63 | BM22: 64 | BN22: 65 | BO22: 66 | BP22: 67 | BQ22: 68 | BR22: 69 | BS22: 70 | BT22: 71 | BU22: 72 | BV22: 73 | BW22: 74 | BX22: 75 | BY22: 76 | BZ22: 77 | CA22: 78 | CB22: 79 | CC22: 80 | CD22: 81 | CE22: 82 | CF22: 83 | CG22: 84 | CH22: 85 | CI22: 86 | CJ22: 87 | CK22: 88 | CL22: 89 | CM22: 90 | CN22: 91 | CO22: 92 | CP22: 93 | CQ22: 94 | CR22: 95 | CS22: 96 | CT22: 97 | CU22: 98 | CV22: 99 | CW22: 100 | CX22: 101 | CY22: 102 | CZ22: 103 | DA22: 104 | DB22: 105 | DC22: 106 | DD22: 107 | DE22: 108 | DF22: 109 | DG22: 110 | DH22: 111 | DI22: 112 | DJ22: 113 | DK22: 114 | DL22: 115 | DM22: 116 | DN22: 117 | DO22: 118 | DP22: 119 | DQ22: 120 | DR22: 121 | DS22: 122 | DT22: 123 | DU22: 124 | DV22: 125 | DW22: 126 | DX22: 127 | DY22: 128 | DZ22: 129 | EA22: 130 | EB22: 131 | EC22: 132 | ED22: 133 | EE22: 134 | EF22: 135 | EG22: 136 | EH22: 137 | EI22: 138 | EJ22: 139 | EK22: 140 | EL22: 141 | EM22: 142 | EN22: 143 | EO22: 144 | EP22: 145 | EQ22: 146 | ER22: 147 | ES22: 148 | ET22: 149 | EU22: 150 | EV22: 151 | EW22: 152 | EX22: 153 | EY22: 154 | EZ22: 155 | FA22: 156 | FB22: 157 | FC22: 158 | FD22: 159 | FE22: 160 | FF22: 161 | FG22: 162 | FH22: 163 | FI22: 164 | FJ22: 165 | FK22: 166 | FL22: 167 | FM22: 168 | FN22: 169 | FO22: 170 | FP22: 171 | FQ22: 172 | FR22: 173 | FS22: 174 | FT22: 175 | FU22: 176 | FV22: 177 | FW22: 178 | FX22: 179 | FY22: 180 | FZ22: 181 | GA22: 182 | GB22: 183 | GC22: 184 | GD22: 185 | GE22: 186 | GF22: 187 | GG22: 188 | GH22: 189 | GI22: 190 | GJ22: 191 | GK22: 192 | GL22: 193 | GM22: 194 | GN22: 195 | GO22: 196 | GP22: 197 | GQ22: 198 | GR22: 199 | GS22: 200 | GT22: 201 | GU22: 202 | GV22: 203 | GW22: 204 | GX22: 205 | GY22: 206 | GZ22: 207 | HA22: 208 | HB22: 209 | HC22: 210 | HD22: 211 | HE22: 212 | HF22: 213 | HG22: 214 | HH22: 215 | HI22: 216 | HJ22: 217 | HK22: 218 | HL22: 219 | HM22: 220 | HN22: 221 | HO22: 222 | HP22: 223 | HQ22: 224 | HR22: 225 | HS22: 226 | HT22: 227 | HU22: 228 | HV22: 229 | HW22: 230 | HX22: 231 | HY22: 232 | HZ22: 233 | IA22: 234 | IB22: 235 | IC22: 236 | ID22: 237 | IE22: 238 | IF22: 239 | IG22: 240 | IH22: 241 | II22: 242 | IJ22: 243 | IK22: 244 | IL22: 245 | IM22: 246 | IN22: 247 | IO22: 248 | IP22: 249 | IQ22: 250 | IR22: 251 | IS22: 252 | IT22: 253 | IU22: 254 | IV22: 255 | IW22: 256 | IX22: 257 | IY22: 258 | IZ22: 259 | JA22: 260 | JB22: 261 | JC22: 262 | JD22: 263 | JE22: 264 | JF22: 265 | JG22: 266 | JH22: 267 | JI22: 268 | JJ22: 269 | JK22: 270 | JL22: 271 | JM22: 272 | JN22: 273 | JO22: 274 | JP22: 275 | JQ22: 276 | JR22: 277 | JS22: 278 | JT22: 279 | JU22: 280 | JV22: 281 | JW22: 282 | JX22: 283 | JY22: 284 | JZ22: 285 | KA22: 286 | KB22: 287 | KC22: 288 | KD22: 289 | KE22: 290 | KF22: 291 | KG22: 292 | KH22: 293 | KI22: 294 | KJ22: 295 | KK22: 296 | KL22: 297 | KM22: 298 | KN22: 299 | KO22: 300 | KP22: 301 | KQ22: 302 | KR22: 303 | KS22: 304 | KT22: 305 | KU22: 306 | KV22: 307 | KW22: 308 | KX22: 309 | KY22: 310 | KZ22: 311 | LA22: 312 | LB22: 313 | LC22: 314 | LD22: 315 | LE22: 316 | LF22: 317 | LG22: 318 | LH22: 319 | LI22: 320 | LJ22: 321 | LK22: 322 | LL22: 323 | LM22: 324 | LN22: 325 | LO22: 326 | LP22: 327 | LQ22: 328 | LR22: 329 | LS22: 330 | LT22: 331 | LU22: 332 | LV22: 333 | LW22: 334 | LX22: 335 | LY22: 336 | LZ22: 337 | MA22: 338 | MB22: 339 | MC22: 340 | MD22: 341 | ME22: 342 | MF22: 343 | MG22: 344 | MH22: 345 | MI22: 346 | MJ22: 347 | MK22: 348 | ML22: 349 | MM22: 350 | MN22: 351 | MO22: 352 | MP22: 353 | MQ22: 354 | MR22: 355 | MS22: 356 | MT22: 357 | MU22: 358 | MV22: 359 | MW22: 360 | MX22: 361 | MY22: 362 | MZ22: 363 | NA22: 364 | NB22: 365 | NC22: 366 | ND22: 367 | NE22: 368 | NF22: 369 | NG22: 370 | NH22: 371 | NI22: 372 | NJ22: 373 | NK22: 374 | NL22: 375 | NM22: 376 | NN22: 377 | NO22: 378 | NP22: 379 | NQ22: 380 | NR22: 381 | NS22: 382 | NT22: 383 | NU22: 384 | NV22: 385 | NW22: 386 | NX22: 387 | NY22: 388 | NZ22: 389 | OA22: 390 | OB22: 391 | OC22: 392 | OD22: 393 | OE22: 394 | OF22: 395 | OG22: 396 | OH22: 397 | OI22: 398 | OJ22: 399 | OK22: 400 | OL22: 401 | OM22: 402 | ON22: 403 | OO22: 404 | OP22: 405 | OQ22: 406 | OR22: 407 | OS22: 408 | OT22: 409 | OU22: 410 | OV22: 411 | OW22: 412 | OX22: 413 | OY22: 414 | OZ22: 415 | PA22: 416 | PB22: 417 | PC22: 418 | PD22: 419 | PE22: 420 | PF22: 421 | PG22: 422 | PH22: 423 | PI22: 424 | PJ22: 425 | PK22: 426 | PL22: 427 | PM22: 428 | PN22: 429 | PO22: 430 | PP22: 431 | PQ22: 432 | PR22: 433 | PS22: 434 | PT22: 435 | PU22: 436 | PV22: 437 | PW22: 438 | PX22: 439 | PY22: 440 | PZ22: 441 | QA22: 442 | QB22: 443 | QC22: 444 | QD22: 445 | QE22: 446 | QF22: 447 | QG22: 448 | QH22: 449 | QI22: 450 | QJ22: 451 | QK22: 452 | QL22: 453 | QM22: 454 | QN22: 455 | QO22: 456 | QP22: 457 | QQ22: 458 | QR22: 459 | QS22: 460 | QT22: 461 | QU22: 462 | QV22: 463 | QW22: 464 | QX22: 465 | QY22: 466 | QZ22: 467 | RA22: 468 | RB22: 469 | RC22: 470 | RD22: 471 | RE22: 472 | RF22: 473 | RG22: 474 | RH22: 475 | RI22: 476 | RJ22: 477 | RK22: 478 | RL22: 479 | RM22: 480 | RN22: 481 | RO22: 482 | RP22: 483 | RQ22: 484 | RR22: 485 | RS22: 486 | RT22: 487 | RU22: 488 | RV22: 489 | RW22: 490 | RX22: 491 | RY22: 492 | RZ22: 493 | SA22: 494 | SB22: 495 | SC22: 496 | SD22: 497 | SE22: 498 | SF22: 499 | SG22: 500 | SH22: 501 | SI22: 502 | SJ22: 503 | SK22: 504 | SL22: 505 | SM22: 506 | SN22: 507 | SO22: 508 | SP22: 509 | SQ22: 510 | SR22: 511 | SS22: 512 | ST22: 513 | SU22: 514 | SV22: 515 | SW22: 516 | SX22: 517 | SY22: 518 | SZ22: 519 | TA22: 520 | TB22: 521 | TC22: 522 | TD22: 523 | TE22: 524 | TF22: 525 | TG22: 526 | TH22: 527 | TI22: 528 | TJ22: 529 | TK22: 530 | TL22: 531 | TM22: 532 | TN22: 533 | TO22: 534 | TP22: 535 | TQ22: 536 | TR22: 537 | TS22: 538 | TT22: 539 | TU22: 540 | TV22: 541 | TW22: 542 | TX22: 543 | TY22: 544 | TZ22: 545 | UA22: 546 | UB22: 547 | UC22: 548 | UD22: 549 | UE22: 550 | UF22: 551 | UG22: 552 | UH22: 553 | UI22: 554 | UJ22: 555 | UK22: 556 | UL22: 557 | UM22: 558 | UN22: 559 | UO22: 560 | UP22: 561 | UQ22: 562 | UR22: 563 | US22: 564 | UT22: 565 | UU22: 566 | UV22: 567 | UW22: 568 | UX22: 569 | UY22: 570 | UZ22: 571 | VA22: 572 | VB22: 573 | VC22: 574 | VD22: 575 | VE22: 576 | VF22: 577 | VG22: 578 | VH22: 579 | VI22: 580 | VJ22: 581 | VK22: 582 | VL22: 583 | VM22: 584 | VN22: 585 | VO22: 586 | VP22: 587 | VQ22: 588 | VR22: 589 | VS22: 590 | VT22: 591 | VU22: 592 | VV22: 593 | VW22: 594 | VX22: 595 | VY22: 596 | VZ22: 597 | WA22: 598 | WB22: 599 | WC22: 600 | WD22: 601 | WE22: 602 | WF22: 603 | WG22: 604 | WH22: 605 | WI22: 606 | WJ22: 607 | WK22: 608 | WL22: 609 | WM22: 610 | WN22: 611 | WO22: 612 | WP22: 613 | WQ22: 614 | WR22: 615 | WS22: 616 | WT22: 617 | WU22: 618 | WV22: 619 | WW22: 620 | WX22: 621 | WY22: 622 | WZ22: 623 | XA22: 624 | XB22: 625 | XC22: 626 | XD22: 627 | XE22: 628 | XF22: 629 | XG22: 630 | XH22: 631 | XI22: 632 | XJ22: 633 | XK22: 634 | XL22: 635 | XM22: 636 | XN22: 637 | XO22: 638 | XP22: 639 | XQ22: 640 | XR22: 641 | XS22: 642 | XT22: 643 | XU22: 644 | XV22: 645 | XW22: 646 | XX22: 647 | XY22: 648 | XZ22: 649 | YA22: 650 | YB22: 651 | YC22: 652 | YD22: 653 | YE22: 654 | YF22: 655 | YG22: 656 | YH22: 657 | YI22: 658 | YJ22: 659 | YK22: 660 | YL22: 661 | YM22: 662 | YN22: 663 | YO22: 664 | YP22: 665 | YQ22: 666 | YR22: 667 | YS22: 668 | YT22: 669 | YU22: 670 | YV22: 671 | YW22: 672 | YX22: 673 | YY22: 674 | YZ22: 675 | ZA22: 676 | ZB22: 677 | ZC22: 678 | ZD22: 679 | ZE22: 680 | ZF22: 681 | ZG22: 682 | ZH22: 683 | ZI22: 684 | ZJ22: 685 | ZK22: 686 | ZL22: 687 | ZM22: 688 | ZN22: 689 | ZO22: 690 | ZP22: 691 | ZQ22: 692 | ZR22: 693 | ZS22: 694 | ZT22: 695 | ZU22: 696 | ZV22: 697 | ZW22: 698 | ZX22: 699 | ZY22: 700 | ZZ22: 701 | AAA22: 702 | AAB22: 703 | AAC22: 704 | AAD22: 705 | AAE22: 706 | AAF22: 707 | AAG22: 708 | AAH22: 709 | AAI22: 710 | AAJ22: 711 | AAK22: 712 | AAL22: 713 | AAM22: 714 | AAN22: 715 | AAO22: 716 | AAP22: 717 | AAQ22: 718 | AAR22: 719 | AAS22: 720 | AAT22: 721 | AAU22: 722 | AAV22: 723 | AAW22: 724 | AAX22: 725 | AAY22: 726 | AAZ22: 727 | ABA22: 728 | ABB22: 729 | ABC22: 730 | ABD22: 731 | ABE22: 732 | ABF22: 733 | ABG22: 734 | ABH22: 735 | ABI22: 736 | ABJ22: 737 | ABK22: 738 | ABL22: 739 | ABM22: 740 | ABN22: 741 | ABO22: 742 | ABP22: 743 | ABQ22: 744 | ABR22: 745 | ABS22: 746 | ABT22: 747 | ABU22: 748 | ABV22: 749 | ABW22: 750 | ABX22: 751 | ABY22: 752 | ABZ22: 753 | ACA22: 754 | ACB22: 755 | ACC22: 756 | ACD22: 757 | ACE22: 758 | ACF22: 759 | ACG22: 760 | ACH22: 761 | ACI22: 762 | ACJ22: 763 | ACK22: 764 | ACL22: 765 | ACM22: 766 | ACN22: 767 | ACO22: 768 | ACP22: 769 | ACQ22: 770 | ACR22: 771 | ACS22: 772 | ACT22: 773 | ACU22: 774 | ACV22: 775 | ACW22: 776 | ACX22: 777 | ACY22: 778 | ACZ22: 779 | ADA22: 780 | ADB22: 781 | ADC22: 782 | ADD22: 783 | ADE22: 784 | ADF22: 785 | ADG22: 786 | ADH22: 787 | ADI22: 788 | ADJ22: 789 | ADK22: 790 | ADL22: 791 | ADM22: 792 | ADN22: 793 | ADO22: 794 | ADP22: 795 | ADQ22: 796 | ADR22: 797 | ADS22: 798 | ADT22: 799 | ADU22: 800 | ADV22: 801 | ADW22: 802 | ADX22: 803 | ADY22: 804 | ADZ22: 805 | AEA22: 806 | AEB22: 807 | AEC22: 808 | AED22: 809 | AEE22: 810 | AEF22: 811 | AEG22: 812 | AEH22: 813 | AEI22: 814 | AEJ22: 815 | AEK22: 816 | AEL22: 817 | AEM22: 818 | AEN22: 819 | AEO22: 820 | AEP22: 821 | AEQ22: 822 | AER22: 823 | AES22: 824 | AET22: 825 | AEU22: 826 | AEV22: 827 | AEW22: 828 | AEX22: 829 | AEY22: 830 | AEZ22: 831 | AFA22: 832 | AFB22: 833 | AFC22: 834 | AFD22: 835 | AFE22: 836 | AFF22: 837 | AFG22: 838 | AFH22: 839 | AFI22: 840 | AFJ22: 841 | AFK22: 842 | AFL22: 843 | AFM22: 844 | AFN22: 845 | AFO22: 846 | AFP22: 847 | AFQ22: 848 | AFR22: 849 | AFS22: 850 | AFT22: 851 | AFU22: 852 | AFV22: 853 | AFW22: 854 | AFX22: 855 | AFY22: 856 | AFZ22: 857 | AGA22: 858 | AGB22: 859 | AGC22: 860 | AGD22: 861 | AGE22: 862 | AGF22: 863 | AGG22: 864 | AGH22: 865 | AGI22: 866 | AGJ22: 867 | AGK22: 868 | AGL22: 869 | AGM22: 870 | AGN22: 871 | AGO22: 872 | AGP22: 873 | AGQ22: 874 | AGR22: 875 | AGS22: 876 | AGT22: 877 | AGU22: 878 | AGV22: 879 | AGW22: 880 | AGX22: 881 | AGY22: 882 | AGZ22: 883 | AHA22: 884 | AHB22: 885 | AHC22: 886 | AHD22: 887 | AHE22: 888 | AHF22: 889 | AHG22: 890 | AHH22: 891 | AHI22: 892 | AHJ22: 893 | AHK22: 894 | AHL22: 895 | AHM22: 896 | AHN22: 897 | AHO22: 898 | AHP22: 899 | AHQ22: 900 | AHR22: 901 | AHS22: 902 | AHT22: 903 | AHU22: 904 | AHV22: 905 | AHW22: 906 | AHX22: 907 | AHY22: 908 | AHZ22: 909 | AIA22: 910 | AIB22: 911 | AIC22: 912 | AID22: 913 | AIE22: 914 | AIF22: 915 | AIG22: 916 | AIH22: 917 | AII22: 918 | AIJ22: 919 | AIK22: 920 | AIL22: 921 | AIM22: 922 | AIN22: 923 | AIO22: 924 | AIP22: 925 | AIQ22: 926 | AIR22: 927 | AIS22: 928 | AIT22: 929 | AIU22: 930 | AIV22: 931 | AIW22: 932 | AIX22: 933 | AIY22: 934 | AIZ22: 935 | AJA22: 936 | AJB22: 937 | AJC22: 938 | AJD22: 939 | AJE22: 940 | AJF22: 941 | AJG22: 942 | AJH22: 943 | AJI22: 944 | AJJ22: 945 | AJK22: 946 | AJL22: 947 | AJM22: 948 | AJN22: 949 | AJO22: 950 | AJP22: 951 | AJQ22: 952 | AJR22: 953 | AJS22: 954 | AJT22: 955 | AJU22: 956 | AJV22: 957 | AJW22: 958 | AJX22: 959 | AJY22: 960 | AJZ22: 961 | AKA22: 962 | AKB22: 963 | AKC22: 964 | AKD22: 965 | AKE22: 966 | AKF22: 967 | AKG22: 968 | AKH22: 969 | AKI22: 970 | AKJ22: 971 | AKK22: 972 | AKL22: 973 | AKM22: 974 | AKN22: 975 | AKO22: 976 | AKP22: 977 | AKQ22: 978 | AKR22: 979 | AKS22: 980 | AKT22: 981 | AKU22: 982 | AKV22: 983 | AKW22: 984 | AKX22: 985 | AKY22: 986 | AKZ22: 987 | ALA22: 988 | ALB22: 989 | ALC22: 990 | ALD22: 991 | ALE22: 992 | ALF22: 993 | ALG22: 994 | ALH22: 995 | ALI22: 996 | ALJ22: 997 | ALK22: 998 | ALL22: 999 | ALM22: 1000 | ALN22: 1001 | ALO22: 1002 | ALP22: 1003 | ALQ22: 1004 | ALR22: 1005 | ALS22: 1006 | ALT22: 1007 | ALU22: 1008 | ALV22: 1009 | ALW22: 1010 | ALX22: 1011 | ALY22: 1012 | ALZ22: 1013 | AMA22: 1014 | AMB22: 1015 | AMC22: 1016 | AMD22: 1017 | AME22: 1018 | AMF22: 1019 | AMG22: 1020 | AMH22: 1021 | AMI22: 1022 | AMJ22: 1023 | AMK22: 1024 | AML22: 1025 | AMM22: 1026 | AMN22: 1027 | AMO22: 1028 | AMP22: 1029 | AMQ22: 1030 | AMR22: 1031 | AMS22: 1032 | AMT22: 1033 | AMU22: 1034 | AMV22: 1035 | AMW22: 1036 | AMX22: 1037 | AMY22: 1038 | AMZ22: 1039 | ANA22: 1040 | ANB22: 1041 | ANC22: 1042 | AND22: 1043 | ANE22: 1044 | ANF22: 1045 | ANG22: 1046 | ANH22: 1047 | ANI22: 1048 | ANJ22: 1049 | ANK22: 1050 | ANL22: 1051 | ANM22: 1052 | ANN22: 1053 | ANO22: 1054 | ANP22: 1055 | ANQ22: 1056 | ANR22: 1057 | ANS22: 1058 | ANT22: 1059 | ANU22: 1060 | ANV22: 1061 | ANW22: 1062 | ANX22: 1063 | ANY22: 1064 | ANZ22: 1065 | AOA22: 1066 | AOB22: 1067 | AOC22: 1068 | AOD22: 1069 | AOE22: 1070 | AOF22: 1071 | AOG22: 1072 | AOH22: 1073 | AOI22: 1074 | AOJ22: 1075 | AOK22: 1076 | AOL22: 1077 | AOM22: 1078 | AON22: 1079 | AOO22: 1080 | AOP22: 1081 | AOQ22: 1082 | AOR22: 1083 | AOS22: 1084 | AOT22: 1085 | AOU22: 1086 | AOV22: 1087 | AOW22: 1088 | AOX22: 1089 | AOY22: 1090 | AOZ22: 1091 | APA22: 1092 | APB22: 1093 | APC22: 1094 | APD22: 1095 | APE22: 1096 | APF22: 1097 | APG22: 1098 | APH22: 1099 | API22: 1100 | APJ22: 1101 | APK22: 1102 | APL22: 1103 | APM22: 1104 | APN22: 1105 | APO22: 1106 | APP22: 1107 | APQ22: 1108 | APR22: 1109 | APS22: 1110 | APT22: 1111 | APU22: 1112 | APV22: 1113 | APW22: 1114 | APX22: 1115 | APY22: 1116 | APZ22: 1117 | AQA22: 1118 | AQB22: 1119 | AQC22: 1120 | AQD22: 1121 | AQE22: 1122 | AQF22: 1123 | AQG22: 1124 | AQH22: 1125 | AQI22: 1126 | AQJ22: 1127 | AQK22: 1128 | AQL22: 1129 | AQM22: 1130 | AQN22: 1131 | AQO22: 1132 | AQP22: 1133 | AQQ22: 1134 | AQR22: 1135 | AQS22: 1136 | AQT22: 1137 | AQU22: 1138 | AQV22: 1139 | AQW22: 1140 | AQX22: 1141 | AQY22: 1142 | AQZ22: 1143 | ARA22: 1144 | ARB22: 1145 | ARC22: 1146 | ARD22: 1147 | ARE22: 1148 | ARF22: 1149 | ARG22: 1150 | ARH22: 1151 | ARI22: 1152 | ARJ22: 1153 | ARK22: 1154 | ARL22: 1155 | ARM22: 1156 | ARN22: 1157 | ARO22: 1158 | ARP22: 1159 | ARQ22: 1160 | ARR22: 1161 | ARS22: 1162 | ART22: 1163 | ARU22: 1164 | ARV22: 1165 | ARW22: 1166 | ARX22: 1167 | ARY22: 1168 | ARZ22: 1169 | ASA22: 1170 | ASB22: 1171 | ASC22: 1172 | ASD22: 1173 | ASE22: 1174 | ASF22: 1175 | ASG22: 1176 | ASH22: 1177 | ASI22: 1178 | ASJ22: 1179 | ASK22: 1180 | ASL22: 1181 | ASM22: 1182 | ASN22: 1183 | ASO22: 1184 | ASP22: 1185 | ASQ22: 1186 | ASR22: 1187 | ASS22: 1188 | AST22: 1189 | ASU22: 1190 | ASV22: 1191 | ASW22: 1192 | ASX22: 1193 | ASY22: 1194 | ASZ22: 1195 | ATA22: 1196 | ATB22: 1197 | ATC22: 1198 | ATD22: 1199 | ATE22: 1200 | ATF22: 1201 | ATG22: 1202 | ATH22: 1203 | ATI22: 1204 | ATJ22: 1205 | ATK22: 1206 | ATL22: 1207 | ATM22: 1208 | ATN22: 1209 | ATO22: 1210 | ATP22: 1211 | ATQ22: 1212 | ATR22: 1213 | ATS22: 1214 | ATT22: 1215 | ATU22: 1216 | ATV22: 1217 | ATW22: 1218 | ATX22: 1219 | ATY22: 1220 | ATZ22: 1221 | AUA22: 1222 | AUB22: 1223 | AUC22: 1224 | AUD22: 1225 | AUE22: 1226 | AUF22: 1227 | AUG22: 1228 | AUH22: 1229 | AUI22: 1230 | AUJ22: 1231 | AUK22: 1232 | AUL22: 1233 | AUM22: 1234 | AUN22: 1235 | AUO22: 1236 | AUP22: 1237 | AUQ22: 1238 | AUR22: 1239 | AUS22: 1240 | AUT22: 1241 | AUU22: 1242 | AUV22: 1243 | AUW22: 1244 | AUX22: 1245 | AUY22: 1246 | AUZ22: 1247 | AVA22: 1248 | AVB22: 1249 | AVC22: 1250 | AVD22: 1251 | AVE22: 1252 | AVF22: 1253 | AVG22: 1254 | AVH22: 1255 | AVI22: 1256 | AVJ22: 1257 | AVK22: 1258 | AVL22: 1259 | AVM22: 1260 | AVN22: 1261 | AVO22: 1262 | AVP22: 1263 | AVQ22: 1264 | AVR22: 1265 | AVS22: 1266 | AVT22: 1267 | AVU22: 1268 | AVV22: 1269 | AVW22: 1270 | AVX22: 1271 | AVY22: 1272 | AVZ22: 1273 | AWA22: 1274 | AWB22: 1275 | AWC22: 1276 | AWD22: 1277 | AWE22: 1278 | AWF22: 1279 | AWG22: 1280 | AWH22: 1281 | AWI22: 1282 | AWJ22: 1283 | AWK22: 1284 | AWL22: 1285 | AWM22: 1286 | AWN22: 1287 | AWO22: 1288 | AWP22: 1289 | AWQ22: 1290 | AWR22: 1291 | AWS22: 1292 | AWT22: 1293 | AWU22: 1294 | AWV22: 1295 | AWW22: 1296 | AWX22: 1297 | AWY22: 1298 | AWZ22: 1299 | AXA22: 1300 | AXB22: 1301 | AXC22: 1302 | AXD22: 1303 | AXE22: 1304 | AXF22: 1305 | AXG22: 1306 | AXH22: 1307 | AXI22: 1308 | AXJ22: 1309 | AXK22: 1310 | AXL22: 1311 | AXM22: 1312 | AXN22: 1313 | AXO22: 1314 | AXP22: 1315 | AXQ22: 1316 | AXR22: 1317 | AXS22: 1318 | AXT22: 1319 | AXU22: 1320 | AXV22: 1321 | AXW22: 1322 | AXX22: 1323 | AXY22: 1324 | AXZ22: 1325 | AYA22: 1326 | AYB22: 1327 | AYC22: 1328 | AYD22: 1329 | AYE22: 1330 | AYF22: 1331 | AYG22: 1332 | AYH22: 1333 | AYI22: 1334 | AYJ22: 1335 | AYK22: 1336 | AYL22: 1337 | AYM22: 1338 | AYN22: 1339 | AYO22: 1340 | AYP22: 1341 | AYQ22: 1342 | AYR22: 1343 | AYS22: 1344 | AYT22: 1345 | AYU22: 1346 | AYV22: 1347 | AYW22: 1348 | AYX22: 1349 | AYY22: 1350 | AYZ22: 1351 | AZA22: 1352 | AZB22: 1353 | AZC22: 1354 | AZD22: 1355 | AZE22: 1356 | AZF22: 1357 | AZG22: 1358 | AZH22: 1359 | AZI22: 1360 | AZJ22: 1361 | AZK22: 1362 | AZL22: 1363 | AZM22: 1364 | AZN22: 1365 | AZO22: 1366 | AZP22: 1367 | AZQ22: 1368 | AZR22: 1369 | AZS22: 1370 | AZT22: 1371 | AZU22: 1372 | AZV22: 1373 | AZW22: 1374 | AZX22: 1375 | AZY22: 1376 | AZZ22: 1377 | BAA22: 1378 | BAB22: 1379 | BAC22: 1380 | BAD22: 1381 | BAE22: 1382 | BAF22: 1383 | BAG22: 1384 | BAH22: 1385 | BAI22: 1386 | BAJ22: 1387 | BAK22: 1388 | BAL22: 1389 | BAM22: 1390 | BAN22: 1391 | BAO22: 1392 | BAP22: 1393 | BAQ22: 1394 | BAR22: 1395 | BAS22: 1396 | BAT22: 1397 | BAU22: 1398 | BAV22: 1399 | BAW22: 1400 | BAX22: 1401 | BAY22: 1402 | BAZ22: 1403 | BBA22: 1404 | BBB22: 1405 | BBC22: 1406 | BBD22: 1407 | BBE22: 1408 | BBF22: 1409 | BBG22: 1410 | BBH22: 1411 | BBI22: 1412 | BBJ22: 1413 | BBK22: 1414 | BBL22: 1415 | BBM22: 1416 | BBN22: 1417 | BBO22: 1418 | BBP22: 1419 | BBQ22: 1420 | BBR22: 1421 | BBS22: 1422 | BBT22: 1423 | BBU22: 1424 | BBV22: 1425 | BBW22: 1426 | BBX22: 1427 | BBY22: 1428 | BBZ22: 1429 | BCA22: 1430 | BCB22: 1431 | BCC22: 1432 | BCD22: 1433 | BCE22: 1434 | BCF22: 1435 | BCG22: 1436 | BCH22: 1437 | BCI22: 1438 | BCJ22: 1439 | BCK22: 1440 | BCL22: 1441 | BCM22: 1442 | BCN22: 1443 | BCO22: 1444 | BCP22: 1445 | BCQ22: 1446 | BCR22: 1447 | BCS22: 1448 | BCT22: 1449 | BCU22: 1450 | BCV22: 1451 | BCW22: 1452 | BCX22: 1453 | BCY22: 1454 | BCZ22: 1455 | BDA22: 1456 | BDB22: 1457 | BDC22: 1458 | BDD22: 1459 | BDE22: 1460
A23: Period | B23: =IF(A25<>B25,1,A23+1) -> 1 | C23: =IF(B25<>C25,1,B23+1) -> 2 | D23: 3 | E23: 4 | F23: 1 | G23: 2 | H23: 3 | I23: 4 | J23: 1 | K23: 2 | L23: 3 | M23: 4 | N23: 1 | O23: 2 | P23: 3 | Q23: 4 | R23: 1 | S23: 2 | T23: 3 | U23: 4 | V23: 1 | W23: 2 | X23: 3 | Y23: 4 | Z23: 1 | AA23: 2 | AB23: 3 | AC23: 4 | AD23: 1 | AE23: 2 | AF23: 3 | AG23: 4 | AH23: 1 | AI23: 2 | AJ23: 3 | AK23: 4 | AL23: 1 | AM23: 2 | AN23: 3 | AO23: 4 | AP23: 1 | AQ23: 2 | AR23: 3 | AS23: 4 | AT23: 1 | AU23: 2 | AV23: 3 | AW23: 4 | AX23: 1 | AY23: 2 | AZ23: 3 | BA23: 4 | BB23: 1 | BC23: 2 | BD23: 3 | BE23: 4 | BF23: 1 | BG23: 2 | BH23: 3 | BI23: 4 | BJ23: 1 | BK23: 2 | BL23: 3 | BM23: 4 | BN23: 1 | BO23: =IF(BN25<>BO25,1,BN23+1) -> 2 | BP23: 3 | BQ23: 4 | BR23: 1 | BS23: 2 | BT23: 3 | BU23: 4 | BV23: 1 | BW23: 2 | BX23: 3 | BY23: 4 | BZ23: 1 | CA23: 2 | CB23: 3 | CC23: 4 | CD23: 1 | CE23: 2 | CF23: 3 | CG23: 4 | CH23: 1 | CI23: 2 | CJ23: 3 | CK23: 4 | CL23: 1 | CM23: 2 | CN23: 3 | CO23: 4 | CP23: 1 | CQ23: 2 | CR23: 3 | CS23: 4 | CT23: 1 | CU23: 2 | CV23: 3 | CW23: 4 | CX23: 1 | CY23: 2 | CZ23: 3 | DA23: 4 | DB23: 1 | DC23: 2 | DD23: 3 | DE23: 4 | DF23: 1 | DG23: 2 | DH23: 3 | DI23: 4 | DJ23: 1 | DK23: 2 | DL23: 3 | DM23: 4 | DN23: 1 | DO23: 2 | DP23: 3 | DQ23: 4 | DR23: 1 | DS23: 2 | DT23: 3 | DU23: 4 | DV23: 1 | DW23: 2 | DX23: 3 | DY23: 4 | DZ23: 1 | EA23: =IF(DZ25<>EA25,1,DZ23+1) -> 2 | EB23: 3 | EC23: 4 | ED23: 1 | EE23: 2 | EF23: 3 | EG23: 4 | EH23: 1 | EI23: 2 | EJ23: 3 | EK23: 4 | EL23: 1 | EM23: 2 | EN23: 3 | EO23: 4 | EP23: 1 | EQ23: 2 | ER23: 3 | ES23: 4 | ET23: 1 | EU23: 2 | EV23: 3 | EW23: 4 | EX23: 1 | EY23: 2 | EZ23: 3 | FA23: 4 | FB23: 1 | FC23: 2 | FD23: 3 | FE23: 4 | FF23: 1 | FG23: 2 | FH23: 3 | FI23: 4 | FJ23: 1 | FK23: 2 | FL23: 3 | FM23: 4 | FN23: 1 | FO23: 2 | FP23: 3 | FQ23: 4 | FR23: 1 | FS23: 2 | FT23: 3 | FU23: 4 | FV23: 1 | FW23: 2 | FX23: 3 | FY23: 4 | FZ23: 1 | GA23: 2 | GB23: 3 | GC23: 4 | GD23: 1 | GE23: 2 | GF23: 3 | GG23: 4 | GH23: 1 | GI23: 2 | GJ23: 3 | GK23: 4 | GL23: 1 | GM23: =IF(GL25<>GM25,1,GL23+1) -> 2 | GN23: 3 | GO23: 4 | GP23: 1 | GQ23: 2 | GR23: 3 | GS23: 4 | GT23: 1 | GU23: 2 | GV23: 3 | GW23: 4 | GX23: 1 | GY23: 2 | GZ23: 3 | HA23: 4 | HB23: 1 | HC23: 2 | HD23: 3 | HE23: 4 | HF23: 1 | HG23: 2 | HH23: 3 | HI23: 4 | HJ23: 1 | HK23: 2 | HL23: 3 | HM23: 4 | HN23: 1 | HO23: 2 | HP23: 3 | HQ23: 4 | HR23: 1 | HS23: 2 | HT23: 3 | HU23: 4 | HV23: 1 | HW23: 2 | HX23: 3 | HY23: 4 | HZ23: 1 | IA23: 2 | IB23: 3 | IC23: 4 | ID23: 1 | IE23: 2 | IF23: 3 | IG23: 4 | IH23: 1 | II23: 2 | IJ23: 3 | IK23: 4 | IL23: 1 | IM23: 2 | IN23: 3 | IO23: 4 | IP23: 1 | IQ23: 2 | IR23: 3 | IS23: 4 | IT23: 1 | IU23: 2 | IV23: 3 | IW23: 4 | IX23: 1 | IY23: =IF(IX25<>IY25,1,IX23+1) -> 2 | IZ23: 3 | JA23: 4 | JB23: 1 | JC23: 2 | JD23: 3 | JE23: 4 | JF23: 1 | JG23: 2 | JH23: 3 | JI23: 4 | JJ23: 1 | JK23: 2 | JL23: 3 | JM23: 4 | JN23: 1 | JO23: 2 | JP23: 3 | JQ23: 4 | JR23: 1 | JS23: 2 | JT23: 3 | JU23: 4 | JV23: 1 | JW23: 2 | JX23: 3 | JY23: 4 | JZ23: 1 | KA23: 2 | KB23: 3 | KC23: 4 | KD23: 1 | KE23: 2 | KF23: 3 | KG23: 4 | KH23: 1 | KI23: 2 | KJ23: 3 | KK23: 4 | KL23: 1 | KM23: 2 | KN23: 3 | KO23: 4 | KP23: 1 | KQ23: 2 | KR23: 3 | KS23: 4 | KT23: 1 | KU23: 2 | KV23: 3 | KW23: 4 | KX23: 1 | KY23: 2 | KZ23: 3 | LA23: 4 | LB23: 1 | LC23: 2 | LD23: 3 | LE23: 4 | LF23: 1 | LG23: 2 | LH23: 3 | LI23: 4 | LJ23: 1 | LK23: =IF(LJ25<>LK25,1,LJ23+1) -> 2 | LL23: 3 | LM23: 4 | LN23: 1 | LO23: 2 | LP23: 3 | LQ23: 4 | LR23: 1 | LS23: 2 | LT23: 3 | LU23: 4 | LV23: 1 | LW23: 2 | LX23: 3 | LY23: 4 | LZ23: 1 | MA23: 2 | MB23: 3 | MC23: 4 | MD23: 1 | ME23: 2 | MF23: 3 | MG23: 4 | MH23: 1 | MI23: 2 | MJ23: 3 | MK23: 4 | ML23: 1 | MM23: 2 | MN23: 3 | MO23: 4 | MP23: 1 | MQ23: 2 | MR23: 3 | MS23: 4 | MT23: 1 | MU23: 2 | MV23: 3 | MW23: 4 | MX23: 1 | MY23: 2 | MZ23: 3 | NA23: 4 | NB23: 1 | NC23: 2 | ND23: 3 | NE23: 4 | NF23: 1 | NG23: 2 | NH23: 3 | NI23: 4 | NJ23: 1 | NK23: 2 | NL23: 3 | NM23: 4 | NN23: 1 | NO23: 2 | NP23: 3 | NQ23: 4 | NR23: 1 | NS23: 2 | NT23: 3 | NU23: 4 | NV23: 1 | NW23: =IF(NV25<>NW25,1,NV23+1) -> 2 | NX23: 3 | NY23: 4 | NZ23: 1 | OA23: 2 | OB23: 3 | OC23: 4 | OD23: 1 | OE23: 2 | OF23: 3 | OG23: 4 | OH23: 1 | OI23: 2 | OJ23: 3 | OK23: 4 | OL23: 1 | OM23: 2 | ON23: 3 | OO23: 4 | OP23: 1 | OQ23: 2 | OR23: 3 | OS23: 4 | OT23: 1 | OU23: 2 | OV23: 3 | OW23: 4 | OX23: 1 | OY23: 2 | OZ23: 3 | PA23: 4 | PB23: 1 | PC23: 2 | PD23: 3 | PE23: 4 | PF23: 1 | PG23: 2 | PH23: 3 | PI23: 4 | PJ23: 1 | PK23: 2 | PL23: 3 | PM23: 4 | PN23: 1 | PO23: 2 | PP23: 3 | PQ23: 4 | PR23: 1 | PS23: 2 | PT23: 3 | PU23: 4 | PV23: 1 | PW23: 2 | PX23: 3 | PY23: 4 | PZ23: 1 | QA23: 2 | QB23: 3 | QC23: 4 | QD23: 1 | QE23: 2 | QF23: 3 | QG23: 4 | QH23: 1 | QI23: =IF(QH25<>QI25,1,QH23+1) -> 2 | QJ23: 3 | QK23: 4 | QL23: 1 | QM23: 2 | QN23: 3 | QO23: 4 | QP23: 1 | QQ23: 2 | QR23: 3 | QS23: 4 | QT23: 1 | QU23: 2 | QV23: 3 | QW23: 4 | QX23: 1 | QY23: 2 | QZ23: 3 | RA23: 4 | RB23: 1 | RC23: 2 | RD23: 3 | RE23: 4 | RF23: 1 | RG23: 2 | RH23: 3 | RI23: 4 | RJ23: 1 | RK23: 2 | RL23: 3 | RM23: 4 | RN23: 1 | RO23: 2 | RP23: 3 | RQ23: 4 | RR23: 1 | RS23: 2 | RT23: 3 | RU23: 4 | RV23: 1 | RW23: 2 | RX23: 3 | RY23: 4 | RZ23: 1 | SA23: 2 | SB23: 3 | SC23: 4 | SD23: 1 | SE23: 2 | SF23: 3 | SG23: 4 | SH23: 1 | SI23: 2 | SJ23: 3 | SK23: 4 | SL23: 1 | SM23: 2 | SN23: 3 | SO23: 4 | SP23: 1 | SQ23: 2 | SR23: 3 | SS23: 4 | ST23: 1 | SU23: =IF(ST25<>SU25,1,ST23+1) -> 2 | SV23: 3 | SW23: 4 | SX23: 1 | SY23: 2 | SZ23: 3 | TA23: 4 | TB23: 1 | TC23: 2 | TD23: 3 | TE23: 4 | TF23: 1 | TG23: 2 | TH23: 3 | TI23: 4 | TJ23: 1 | TK23: 2 | TL23: 3 | TM23: 4 | TN23: 1 | TO23: 2 | TP23: 3 | TQ23: 4 | TR23: 1 | TS23: 2 | TT23: 3 | TU23: 4 | TV23: 1 | TW23: 2 | TX23: 3 | TY23: 4 | TZ23: 1 | UA23: 2 | UB23: 3 | UC23: 4 | UD23: 1 | UE23: 2 | UF23: 3 | UG23: 4 | UH23: 1 | UI23: 2 | UJ23: 3 | UK23: 4 | UL23: 1 | UM23: 2 | UN23: 3 | UO23: 4 | UP23: 1 | UQ23: 2 | UR23: 3 | US23: 4 | UT23: 1 | UU23: 2 | UV23: 3 | UW23: 4 | UX23: 1 | UY23: 2 | UZ23: 3 | VA23: 4 | VB23: 1 | VC23: 2 | VD23: 3 | VE23: 4 | VF23: 1 | VG23: =IF(VF25<>VG25,1,VF23+1) -> 2 | VH23: 3 | VI23: 4 | VJ23: 1 | VK23: 2 | VL23: 3 | VM23: 4 | VN23: 1 | VO23: 2 | VP23: 3 | VQ23: 4 | VR23: 1 | VS23: 2 | VT23: 3 | VU23: 4 | VV23: 1 | VW23: 2 | VX23: 3 | VY23: 4 | VZ23: 1 | WA23: 2 | WB23: 3 | WC23: 4 | WD23: 1 | WE23: 2 | WF23: 3 | WG23: 4 | WH23: 1 | WI23: 2 | WJ23: 3 | WK23: 4 | WL23: 1 | WM23: 2 | WN23: 3 | WO23: 4 | WP23: 1 | WQ23: 2 | WR23: 3 | WS23: 4 | WT23: 1 | WU23: 2 | WV23: 3 | WW23: 4 | WX23: 1 | WY23: 2 | WZ23: 3 | XA23: 4 | XB23: 1 | XC23: 2 | XD23: 3 | XE23: 4 | XF23: 1 | XG23: 2 | XH23: 3 | XI23: 4 | XJ23: 1 | XK23: 2 | XL23: 3 | XM23: 4 | XN23: 1 | XO23: 2 | XP23: 3 | XQ23: 4 | XR23: 1 | XS23: =IF(XR25<>XS25,1,XR23+1) -> 2 | XT23: 3 | XU23: 4 | XV23: 1 | XW23: 2 | XX23: 3 | XY23: 4 | XZ23: 1 | YA23: 2 | YB23: 3 | YC23: 4 | YD23: 1 | YE23: 2 | YF23: 3 | YG23: 4 | YH23: 1 | YI23: 2 | YJ23: 3 | YK23: 4 | YL23: 1 | YM23: 2 | YN23: 3 | YO23: 4 | YP23: 1 | YQ23: 2 | YR23: 3 | YS23: 4 | YT23: 1 | YU23: 2 | YV23: 3 | YW23: 4 | YX23: 1 | YY23: 2 | YZ23: 3 | ZA23: 4 | ZB23: 1 | ZC23: 2 | ZD23: 3 | ZE23: 4 | ZF23: 1 | ZG23: 2 | ZH23: 3 | ZI23: 4 | ZJ23: 1 | ZK23: 2 | ZL23: 3 | ZM23: 4 | ZN23: 1 | ZO23: 2 | ZP23: 3 | ZQ23: 4 | ZR23: 1 | ZS23: 2 | ZT23: 3 | ZU23: 4 | ZV23: 1 | ZW23: 2 | ZX23: 3 | ZY23: 4 | ZZ23: 1 | AAA23: 2 | AAB23: 3 | AAC23: 4 | AAD23: 1 | AAE23: =IF(AAD25<>AAE25,1,AAD23+1) -> 2 | AAF23: 3 | AAG23: 4 | AAH23: 1 | AAI23: 2 | AAJ23: 3 | AAK23: 4 | AAL23: 1 | AAM23: 2 | AAN23: 3 | AAO23: 4 | AAP23: 1 | AAQ23: 2 | AAR23: 3 | AAS23: 4 | AAT23: 1 | AAU23: 2 | AAV23: 3 | AAW23: 4 | AAX23: 1 | AAY23: 2 | AAZ23: 3 | ABA23: 4 | ABB23: 1 | ABC23: 2 | ABD23: 3 | ABE23: 4 | ABF23: 1 | ABG23: 2 | ABH23: 3 | ABI23: 4 | ABJ23: 1 | ABK23: 2 | ABL23: 3 | ABM23: 4 | ABN23: 1 | ABO23: 2 | ABP23: 3 | ABQ23: 4 | ABR23: 1 | ABS23: 2 | ABT23: 3 | ABU23: 4 | ABV23: 1 | ABW23: 2 | ABX23: 3 | ABY23: 4 | ABZ23: 1 | ACA23: 2 | ACB23: 3 | ACC23: 4 | ACD23: 1 | ACE23: 2 | ACF23: 3 | ACG23: 4 | ACH23: 1 | ACI23: 2 | ACJ23: 3 | ACK23: 4 | ACL23: 1 | ACM23: 2 | ACN23: 3 | ACO23: 4 | ACP23: 1 | ACQ23: =IF(ACP25<>ACQ25,1,ACP23+1) -> 2 | ACR23: 3 | ACS23: 4 | ACT23: 1 | ACU23: 2 | ACV23: 3 | ACW23: 4 | ACX23: 1 | ACY23: 2 | ACZ23: 3 | ADA23: 4 | ADB23: 1 | ADC23: 2 | ADD23: 3 | ADE23: 4 | ADF23: 1 | ADG23: 2 | ADH23: 3 | ADI23: 4 | ADJ23: 1 | ADK23: 2 | ADL23: 3 | ADM23: 4 | ADN23: 1 | ADO23: 2 | ADP23: 3 | ADQ23: 4 | ADR23: 1 | ADS23: 2 | ADT23: 3 | ADU23: 4 | ADV23: 1 | ADW23: 2 | ADX23: 3 | ADY23: 4 | ADZ23: 1 | AEA23: 2 | AEB23: 3 | AEC23: 4 | AED23: 1 | AEE23: 2 | AEF23: 3 | AEG23: 4 | AEH23: 1 | AEI23: 2 | AEJ23: 3 | AEK23: 4 | AEL23: 1 | AEM23: 2 | AEN23: 3 | AEO23: 4 | AEP23: 1 | AEQ23: 2 | AER23: 3 | AES23: 4 | AET23: 1 | AEU23: 2 | AEV23: 3 | AEW23: 4 | AEX23: 1 | AEY23: 2 | AEZ23: 3 | AFA23: 4 | AFB23: 1 | AFC23: =IF(AFB25<>AFC25,1,AFB23+1) -> 2 | AFD23: 3 | AFE23: 4 | AFF23: 1 | AFG23: 2 | AFH23: 3 | AFI23: 4 | AFJ23: 1 | AFK23: 2 | AFL23: 3 | AFM23: 4 | AFN23: 1 | AFO23: 2 | AFP23: 3 | AFQ23: 4 | AFR23: 1 | AFS23: 2 | AFT23: 3 | AFU23: 4 | AFV23: 1 | AFW23: 2 | AFX23: 3 | AFY23: 4 | AFZ23: 1 | AGA23: 2 | AGB23: 3 | AGC23: 4 | AGD23: 1 | AGE23: 2 | AGF23: 3 | AGG23: 4 | AGH23: 1 | AGI23: 2 | AGJ23: 3 | AGK23: 4 | AGL23: 1 | AGM23: 2 | AGN23: 3 | AGO23: 4 | AGP23: 1 | AGQ23: 2 | AGR23: 3 | AGS23: 4 | AGT23: 1 | AGU23: 2 | AGV23: 3 | AGW23: 4 | AGX23: 1 | AGY23: 2 | AGZ23: 3 | AHA23: 4 | AHB23: 1 | AHC23: 2 | AHD23: 3 | AHE23: 4 | AHF23: 1 | AHG23: 2 | AHH23: 3 | AHI23: 4 | AHJ23: 1 | AHK23: 2 | AHL23: 3 | AHM23: 4 | AHN23: 1 | AHO23: =IF(AHN25<>AHO25,1,AHN23+1) -> 2 | AHP23: 3 | AHQ23: 4 | AHR23: 1 | AHS23: 2 | AHT23: 3 | AHU23: 4 | AHV23: 1 | AHW23: 2 | AHX23: 3 | AHY23: 4 | AHZ23: 1 | AIA23: 2 | AIB23: 3 | AIC23: 4 | AID23: 1 | AIE23: 2 | AIF23: 3 | AIG23: 4 | AIH23: 1 | AII23: 2 | AIJ23: 3 | AIK23: 4 | AIL23: 1 | AIM23: 2 | AIN23: 3 | AIO23: 4 | AIP23: 1 | AIQ23: 2 | AIR23: 3 | AIS23: 4 | AIT23: 1 | AIU23: 2 | AIV23: 3 | AIW23: 4 | AIX23: 1 | AIY23: 2 | AIZ23: 3 | AJA23: 4 | AJB23: 1 | AJC23: 2 | AJD23: 3 | AJE23: 4 | AJF23: 1 | AJG23: 2 | AJH23: 3 | AJI23: 4 | AJJ23: 1 | AJK23: 2 | AJL23: 3 | AJM23: 4 | AJN23: 1 | AJO23: 2 | AJP23: 3 | AJQ23: 4 | AJR23: 1 | AJS23: 2 | AJT23: 3 | AJU23: 4 | AJV23: 1 | AJW23: 2 | AJX23: 3 | AJY23: 4 | AJZ23: 1 | AKA23: =IF(AJZ25<>AKA25,1,AJZ23+1) -> 2 | AKB23: 3 | AKC23: 4 | AKD23: 1 | AKE23: 2 | AKF23: 3 | AKG23: 4 | AKH23: 1 | AKI23: 2 | AKJ23: 3 | AKK23: 4 | AKL23: 1 | AKM23: 2 | AKN23: 3 | AKO23: 4 | AKP23: 1 | AKQ23: 2 | AKR23: 3 | AKS23: 4 | AKT23: 1 | AKU23: 2 | AKV23: 3 | AKW23: 4 | AKX23: 1 | AKY23: 2 | AKZ23: 3 | ALA23: 4 | ALB23: 1 | ALC23: 2 | ALD23: 3 | ALE23: 4 | ALF23: 1 | ALG23: 2 | ALH23: 3 | ALI23: 4 | ALJ23: 1 | ALK23: 2 | ALL23: 3 | ALM23: 4 | ALN23: 1 | ALO23: 2 | ALP23: 3 | ALQ23: 4 | ALR23: 1 | ALS23: 2 | ALT23: 3 | ALU23: 4 | ALV23: 1 | ALW23: 2 | ALX23: 3 | ALY23: 4 | ALZ23: 1 | AMA23: 2 | AMB23: 3 | AMC23: 4 | AMD23: 1 | AME23: 2 | AMF23: 3 | AMG23: 4 | AMH23: 1 | AMI23: 2 | AMJ23: 3 | AMK23: 4 | AML23: 1 | AMM23: =IF(AML25<>AMM25,1,AML23+1) -> 2 | AMN23: 3 | AMO23: 4 | AMP23: 1 | AMQ23: 2 | AMR23: 3 | AMS23: 4 | AMT23: 1 | AMU23: 2 | AMV23: 3 | AMW23: 4 | AMX23: 1 | AMY23: 2 | AMZ23: 3 | ANA23: 4 | ANB23: 1 | ANC23: 2 | AND23: 3 | ANE23: 4 | ANF23: 1 | ANG23: 2 | ANH23: 3 | ANI23: 4 | ANJ23: 1 | ANK23: 2 | ANL23: 3 | ANM23: 4 | ANN23: 1 | ANO23: 2 | ANP23: 3 | ANQ23: 4 | ANR23: 1 | ANS23: 2 | ANT23: 3 | ANU23: 4 | ANV23: 1 | ANW23: 2 | ANX23: 3 | ANY23: 4 | ANZ23: 1 | AOA23: 2 | AOB23: 3 | AOC23: 4 | AOD23: 1 | AOE23: 2 | AOF23: 3 | AOG23: 4 | AOH23: 1 | AOI23: 2 | AOJ23: 3 | AOK23: 4 | AOL23: 1 | AOM23: 2 | AON23: 3 | AOO23: 4 | AOP23: 1 | AOQ23: 2 | AOR23: 3 | AOS23: 4 | AOT23: 1 | AOU23: 2 | AOV23: 3 | AOW23: 4 | AOX23: 1 | AOY23: =IF(AOX25<>AOY25,1,AOX23+1) -> 2 | AOZ23: 3 | APA23: 4 | APB23: 1 | APC23: 2 | APD23: 3 | APE23: 4 | APF23: 1 | APG23: 2 | APH23: 3 | API23: 4 | APJ23: 1 | APK23: 2 | APL23: 3 | APM23: 4 | APN23: 1 | APO23: 2 | APP23: 3 | APQ23: 4 | APR23: 1 | APS23: 2 | APT23: 3 | APU23: 4 | APV23: 1 | APW23: 2 | APX23: 3 | APY23: 4 | APZ23: 1 | AQA23: 2 | AQB23: 3 | AQC23: 4 | AQD23: 1 | AQE23: 2 | AQF23: 3 | AQG23: 4 | AQH23: 1 | AQI23: 2 | AQJ23: 3 | AQK23: 4 | AQL23: 1 | AQM23: 2 | AQN23: 3 | AQO23: 4 | AQP23: 1 | AQQ23: 2 | AQR23: 3 | AQS23: 4 | AQT23: 1 | AQU23: 2 | AQV23: 3 | AQW23: 4 | AQX23: 1 | AQY23: 2 | AQZ23: 3 | ARA23: 4 | ARB23: 1 | ARC23: 2 | ARD23: 3 | ARE23: 4 | ARF23: 1 | ARG23: 2 | ARH23: 3 | ARI23: 4 | ARJ23: 1 | ARK23: =IF(ARJ25<>ARK25,1,ARJ23+1) -> 2 | ARL23: 3 | ARM23: 4 | ARN23: 1 | ARO23: 2 | ARP23: 3 | ARQ23: 4 | ARR23: 1 | ARS23: 2 | ART23: 3 | ARU23: 4 | ARV23: 1 | ARW23: 2 | ARX23: 3 | ARY23: 4 | ARZ23: 1 | ASA23: 2 | ASB23: 3 | ASC23: 4 | ASD23: 1 | ASE23: 2 | ASF23: 3 | ASG23: 4 | ASH23: 1 | ASI23: 2 | ASJ23: 3 | ASK23: 4 | ASL23: 1 | ASM23: 2 | ASN23: 3 | ASO23: 4 | ASP23: 1 | ASQ23: 2 | ASR23: 3 | ASS23: 4 | AST23: 1 | ASU23: 2 | ASV23: 3 | ASW23: 4 | ASX23: 1 | ASY23: 2 | ASZ23: 3 | ATA23: 4 | ATB23: 1 | ATC23: 2 | ATD23: 3 | ATE23: 4 | ATF23: 1 | ATG23: 2 | ATH23: 3 | ATI23: 4 | ATJ23: 1 | ATK23: 2 | ATL23: 3 | ATM23: 4 | ATN23: 1 | ATO23: 2 | ATP23: 3 | ATQ23: 4 | ATR23: 1 | ATS23: 2 | ATT23: 3 | ATU23: 4 | ATV23: 1 | ATW23: =IF(ATV25<>ATW25,1,ATV23+1) -> 2 | ATX23: 3 | ATY23: 4 | ATZ23: 1 | AUA23: 2 | AUB23: 3 | AUC23: 4 | AUD23: 1 | AUE23: 2 | AUF23: 3 | AUG23: 4 | AUH23: 1 | AUI23: 2 | AUJ23: 3 | AUK23: 4 | AUL23: 1 | AUM23: 2 | AUN23: 3 | AUO23: 4 | AUP23: 1 | AUQ23: 2 | AUR23: 3 | AUS23: 4 | AUT23: 1 | AUU23: 2 | AUV23: 3 | AUW23: 4 | AUX23: 1 | AUY23: 2 | AUZ23: 3 | AVA23: 4 | AVB23: 1 | AVC23: 2 | AVD23: 3 | AVE23: 4 | AVF23: 1 | AVG23: 2 | AVH23: 3 | AVI23: 4 | AVJ23: 1 | AVK23: 2 | AVL23: 3 | AVM23: 4 | AVN23: 1 | AVO23: 2 | AVP23: 3 | AVQ23: 4 | AVR23: 1 | AVS23: 2 | AVT23: 3 | AVU23: 4 | AVV23: 1 | AVW23: 2 | AVX23: 3 | AVY23: 4 | AVZ23: 1 | AWA23: 2 | AWB23: 3 | AWC23: 4 | AWD23: 1 | AWE23: 2 | AWF23: 3 | AWG23: 4 | AWH23: 1 | AWI23: =IF(AWH25<>AWI25,1,AWH23+1) -> 2 | AWJ23: 3 | AWK23: 4 | AWL23: 1 | AWM23: 2 | AWN23: 3 | AWO23: 4 | AWP23: 1 | AWQ23: 2 | AWR23: 3 | AWS23: 4 | AWT23: 1 | AWU23: 2 | AWV23: 3 | AWW23: 4 | AWX23: 1 | AWY23: 2 | AWZ23: 3 | AXA23: 4 | AXB23: 1 | AXC23: 2 | AXD23: 3 | AXE23: 4 | AXF23: 1 | AXG23: 2 | AXH23: 3 | AXI23: 4 | AXJ23: 1 | AXK23: 2 | AXL23: 3 | AXM23: 4 | AXN23: 1 | AXO23: 2 | AXP23: 3 | AXQ23: 4 | AXR23: 1 | AXS23: 2 | AXT23: 3 | AXU23: 4 | AXV23: 1 | AXW23: 2 | AXX23: 3 | AXY23: 4 | AXZ23: 1 | AYA23: 2 | AYB23: 3 | AYC23: 4 | AYD23: 1 | AYE23: 2 | AYF23: 3 | AYG23: 4 | AYH23: 1 | AYI23: 2 | AYJ23: 3 | AYK23: 4 | AYL23: 1 | AYM23: 2 | AYN23: 3 | AYO23: 4 | AYP23: 1 | AYQ23: 2 | AYR23: 3 | AYS23: 4 | AYT23: 1 | AYU23: =IF(AYT25<>AYU25,1,AYT23+1) -> 2 | AYV23: 3 | AYW23: 4 | AYX23: 1 | AYY23: 2 | AYZ23: 3 | AZA23: 4 | AZB23: 1 | AZC23: 2 | AZD23: 3 | AZE23: 4 | AZF23: 1 | AZG23: 2 | AZH23: 3 | AZI23: 4 | AZJ23: 1 | AZK23: 2 | AZL23: 3 | AZM23: 4 | AZN23: 1 | AZO23: 2 | AZP23: 3 | AZQ23: 4 | AZR23: 1 | AZS23: 2 | AZT23: 3 | AZU23: 4 | AZV23: 1 | AZW23: 2 | AZX23: 3 | AZY23: 4 | AZZ23: 1 | BAA23: 2 | BAB23: 3 | BAC23: 4 | BAD23: 1 | BAE23: 2 | BAF23: 3 | BAG23: 4 | BAH23: 1 | BAI23: 2 | BAJ23: 3 | BAK23: 4 | BAL23: 1 | BAM23: 2 | BAN23: 3 | BAO23: 4 | BAP23: 1 | BAQ23: 2 | BAR23: 3 | BAS23: 4 | BAT23: 1 | BAU23: 2 | BAV23: 3 | BAW23: 4 | BAX23: 1 | BAY23: 2 | BAZ23: 3 | BBA23: 4 | BBB23: 1 | BBC23: 2 | BBD23: 3 | BBE23: 4 | BBF23: 1 | BBG23: =IF(BBF25<>BBG25,1,BBF23+1) -> 2 | BBH23: 3 | BBI23: 4 | BBJ23: 1 | BBK23: 2 | BBL23: 3 | BBM23: 4 | BBN23: 1 | BBO23: 2 | BBP23: 3 | BBQ23: 4 | BBR23: 1 | BBS23: 2 | BBT23: 3 | BBU23: 4 | BBV23: 1 | BBW23: 2 | BBX23: 3 | BBY23: 4 | BBZ23: 1 | BCA23: 2 | BCB23: 3 | BCC23: 4 | BCD23: 1 | BCE23: 2 | BCF23: 3 | BCG23: 4 | BCH23: 1 | BCI23: 2 | BCJ23: 3 | BCK23: 4 | BCL23: 1 | BCM23: 2 | BCN23: 3 | BCO23: 4 | BCP23: 1 | BCQ23: 2 | BCR23: 3 | BCS23: 4 | BCT23: 1 | BCU23: 2 | BCV23: 3 | BCW23: 4 | BCX23: 1 | BCY23: 2 | BCZ23: 3 | BDA23: 4 | BDB23: 1 | BDC23: 2 | BDD23: 3 | BDE23: 4
A24: Period Name | B24: =INDEX($B$31:$E$31,MATCH(B$23,$B$32:$E$32,0)) -> Peak | C24: =INDEX($B$31:$E$31,MATCH(C$23,$B$32:$E$32,0)) -> Plat | D24: PuDo | E24: Trough | F24: Peak | G24: Plat | H24: PuDo | I24: Trough | J24: Peak | K24: Plat | L24: PuDo | M24: Trough | N24: Peak | O24: Plat | P24: PuDo | Q24: Trough | R24: Peak | S24: Plat | T24: PuDo | U24: Trough | V24: Peak | W24: Plat | X24: PuDo | Y24: Trough | Z24: Peak | AA24: Plat | AB24: PuDo | AC24: Trough | AD24: Peak | AE24: Plat | AF24: PuDo | AG24: Trough | AH24: Peak | AI24: Plat | AJ24: PuDo | AK24: Trough | AL24: Peak | AM24: Plat | AN24: PuDo | AO24: Trough | AP24: Peak | AQ24: Plat | AR24: PuDo | AS24: Trough | AT24: Peak | AU24: Plat | AV24: PuDo | AW24: Trough | AX24: Peak | AY24: Plat | AZ24: PuDo | BA24: Trough | BB24: Peak | BC24: Plat | BD24: PuDo | BE24: Trough | BF24: Peak | BG24: Plat | BH24: PuDo | BI24: Trough | BJ24: Peak | BK24: Plat | BL24: PuDo | BM24: Trough | BN24: Peak | BO24: =INDEX($B$31:$E$31,MATCH(BO$23,$B$32:$E$32,0)) -> Plat | BP24: PuDo | BQ24: Trough | BR24: Peak | BS24: Plat | BT24: PuDo | BU24: Trough | BV24: Peak | BW24: Plat | BX24: PuDo | BY24: Trough | BZ24: Peak | CA24: Plat | CB24: PuDo | CC24: Trough | CD24: Peak | CE24: Plat | CF24: PuDo | CG24: Trough | CH24: Peak | CI24: Plat | CJ24: PuDo | CK24: Trough | CL24: Peak | CM24: Plat | CN24: PuDo | CO24: Trough | CP24: Peak | CQ24: Plat | CR24: PuDo | CS24: Trough | CT24: Peak | CU24: Plat | CV24: PuDo | CW24: Trough | CX24: Peak | CY24: Plat | CZ24: PuDo | DA24: Trough | DB24: Peak | DC24: Plat | DD24: PuDo | DE24: Trough | DF24: Peak | DG24: Plat | DH24: PuDo | DI24: Trough | DJ24: Peak | DK24: Plat | DL24: PuDo | DM24: Trough | DN24: Peak | DO24: Plat | DP24: PuDo | DQ24: Trough | DR24: Peak | DS24: Plat | DT24: PuDo | DU24: Trough | DV24: Peak | DW24: Plat | DX24: PuDo | DY24: Trough | DZ24: Peak | EA24: =INDEX($B$31:$E$31,MATCH(EA$23,$B$32:$E$32,0)) -> Plat | EB24: PuDo | EC24: Trough | ED24: Peak | EE24: Plat | EF24: PuDo | EG24: Trough | EH24: Peak | EI24: Plat | EJ24: PuDo | EK24: Trough | EL24: Peak | EM24: Plat | EN24: PuDo | EO24: Trough | EP24: Peak | EQ24: Plat | ER24: PuDo | ES24: Trough | ET24: Peak | EU24: Plat | EV24: PuDo | EW24: Trough | EX24: Peak | EY24: Plat | EZ24: PuDo | FA24: Trough | FB24: Peak | FC24: Plat | FD24: PuDo | FE24: Trough | FF24: Peak | FG24: Plat | FH24: PuDo | FI24: Trough | FJ24: Peak | FK24: Plat | FL24: PuDo | FM24: Trough | FN24: Peak | FO24: Plat | FP24: PuDo | FQ24: Trough | FR24: Peak | FS24: Plat | FT24: PuDo | FU24: Trough | FV24: Peak | FW24: Plat | FX24: PuDo | FY24: Trough | FZ24: Peak | GA24: Plat | GB24: PuDo | GC24: Trough | GD24: Peak | GE24: Plat | GF24: PuDo | GG24: Trough | GH24: Peak | GI24: Plat | GJ24: PuDo | GK24: Trough | GL24: Peak | GM24: =INDEX($B$31:$E$31,MATCH(GM$23,$B$32:$E$32,0)) -> Plat | GN24: PuDo | GO24: Trough | GP24: Peak | GQ24: Plat | GR24: PuDo | GS24: Trough | GT24: Peak | GU24: Plat | GV24: PuDo | GW24: Trough | GX24: Peak | GY24: Plat | GZ24: PuDo | HA24: Trough | HB24: Peak | HC24: Plat | HD24: PuDo | HE24: Trough | HF24: Peak | HG24: Plat | HH24: PuDo | HI24: Trough | HJ24: Peak | HK24: Plat | HL24: PuDo | HM24: Trough | HN24: Peak | HO24: Plat | HP24: PuDo | HQ24: Trough | HR24: Peak | HS24: Plat | HT24: PuDo | HU24: Trough | HV24: Peak | HW24: Plat | HX24: PuDo | HY24: Trough | HZ24: Peak | IA24: Plat | IB24: PuDo | IC24: Trough | ID24: Peak | IE24: Plat | IF24: PuDo | IG24: Trough | IH24: Peak | II24: Plat | IJ24: PuDo | IK24: Trough | IL24: Peak | IM24: Plat | IN24: PuDo | IO24: Trough | IP24: Peak | IQ24: Plat | IR24: PuDo | IS24: Trough | IT24: Peak | IU24: Plat | IV24: PuDo | IW24: Trough | IX24: Peak | IY24: =INDEX($B$31:$E$31,MATCH(IY$23,$B$32:$E$32,0)) -> Plat | IZ24: PuDo | JA24: Trough | JB24: Peak | JC24: Plat | JD24: PuDo | JE24: Trough | JF24: Peak | JG24: Plat | JH24: PuDo | JI24: Trough | JJ24: Peak | JK24: Plat | JL24: PuDo | JM24: Trough | JN24: Peak | JO24: Plat | JP24: PuDo | JQ24: Trough | JR24: Peak | JS24: Plat | JT24: PuDo | JU24: Trough | JV24: Peak | JW24: Plat | JX24: PuDo | JY24: Trough | JZ24: Peak | KA24: Plat | KB24: PuDo | KC24: Trough | KD24: Peak | KE24: Plat | KF24: PuDo | KG24: Trough | KH24: Peak | KI24: Plat | KJ24: PuDo | KK24: Trough | KL24: Peak | KM24: Plat | KN24: PuDo | KO24: Trough | KP24: Peak | KQ24: Plat | KR24: PuDo | KS24: Trough | KT24: Peak | KU24: Plat | KV24: PuDo | KW24: Trough | KX24: Peak | KY24: Plat | KZ24: PuDo | LA24: Trough | LB24: Peak | LC24: Plat | LD24: PuDo | LE24: Trough | LF24: Peak | LG24: Plat | LH24: PuDo | LI24: Trough | LJ24: Peak | LK24: =INDEX($B$31:$E$31,MATCH(LK$23,$B$32:$E$32,0)) -> Plat | LL24: PuDo | LM24: Trough | LN24: Peak | LO24: Plat | LP24: PuDo | LQ24: Trough | LR24: Peak | LS24: Plat | LT24: PuDo | LU24: Trough | LV24: Peak | LW24: Plat | LX24: PuDo | LY24: Trough | LZ24: Peak | MA24: Plat | MB24: PuDo | MC24: Trough | MD24: Peak | ME24: Plat | MF24: PuDo | MG24: Trough | MH24: Peak | MI24: Plat | MJ24: PuDo | MK24: Trough | ML24: Peak | MM24: Plat | MN24: PuDo | MO24: Trough | MP24: Peak | MQ24: Plat | MR24: PuDo | MS24: Trough | MT24: Peak | MU24: Plat | MV24: PuDo | MW24: Trough | MX24: Peak | MY24: Plat | MZ24: PuDo | NA24: Trough | NB24: Peak | NC24: Plat | ND24: PuDo | NE24: Trough | NF24: Peak | NG24: Plat | NH24: PuDo | NI24: Trough | NJ24: Peak | NK24: Plat | NL24: PuDo | NM24: Trough | NN24: Peak | NO24: Plat | NP24: PuDo | NQ24: Trough | NR24: Peak | NS24: Plat | NT24: PuDo | NU24: Trough | NV24: Peak | NW24: =INDEX($B$31:$E$31,MATCH(NW$23,$B$32:$E$32,0)) -> Plat | NX24: PuDo | NY24: Trough | NZ24: Peak | OA24: Plat | OB24: PuDo | OC24: Trough | OD24: Peak | OE24: Plat | OF24: PuDo | OG24: Trough | OH24: Peak | OI24: Plat | OJ24: PuDo | OK24: Trough | OL24: Peak | OM24: Plat | ON24: PuDo | OO24: Trough | OP24: Peak | OQ24: Plat | OR24: PuDo | OS24: Trough | OT24: Peak | OU24: Plat | OV24: PuDo | OW24: Trough | OX24: Peak | OY24: Plat | OZ24: PuDo | PA24: Trough | PB24: Peak | PC24: Plat | PD24: PuDo | PE24: Trough | PF24: Peak | PG24: Plat | PH24: PuDo | PI24: Trough | PJ24: Peak | PK24: Plat | PL24: PuDo | PM24: Trough | PN24: Peak | PO24: Plat | PP24: PuDo | PQ24: Trough | PR24: Peak | PS24: Plat | PT24: PuDo | PU24: Trough | PV24: Peak | PW24: Plat | PX24: PuDo | PY24: Trough | PZ24: Peak | QA24: Plat | QB24: PuDo | QC24: Trough | QD24: Peak | QE24: Plat | QF24: PuDo | QG24: Trough | QH24: Peak | QI24: =INDEX($B$31:$E$31,MATCH(QI$23,$B$32:$E$32,0)) -> Plat | QJ24: PuDo | QK24: Trough | QL24: Peak | QM24: Plat | QN24: PuDo | QO24: Trough | QP24: Peak | QQ24: Plat | QR24: PuDo | QS24: Trough | QT24: Peak | QU24: Plat | QV24: PuDo | QW24: Trough | QX24: Peak | QY24: Plat | QZ24: PuDo | RA24: Trough | RB24: Peak | RC24: Plat | RD24: PuDo | RE24: Trough | RF24: Peak | RG24: Plat | RH24: PuDo | RI24: Trough | RJ24: Peak | RK24: Plat | RL24: PuDo | RM24: Trough | RN24: Peak | RO24: Plat | RP24: PuDo | RQ24: Trough | RR24: Peak | RS24: Plat | RT24: PuDo | RU24: Trough | RV24: Peak | RW24: Plat | RX24: PuDo | RY24: Trough | RZ24: Peak | SA24: Plat | SB24: PuDo | SC24: Trough | SD24: Peak | SE24: Plat | SF24: PuDo | SG24: Trough | SH24: Peak | SI24: Plat | SJ24: PuDo | SK24: Trough | SL24: Peak | SM24: Plat | SN24: PuDo | SO24: Trough | SP24: Peak | SQ24: Plat | SR24: PuDo | SS24: Trough | ST24: Peak | SU24: =INDEX($B$31:$E$31,MATCH(SU$23,$B$32:$E$32,0)) -> Plat | SV24: PuDo | SW24: Trough | SX24: Peak | SY24: Plat | SZ24: PuDo | TA24: Trough | TB24: Peak | TC24: Plat | TD24: PuDo | TE24: Trough | TF24: Peak | TG24: Plat | TH24: PuDo | TI24: Trough | TJ24: Peak | TK24: Plat | TL24: PuDo | TM24: Trough | TN24: Peak | TO24: Plat | TP24: PuDo | TQ24: Trough | TR24: Peak | TS24: Plat | TT24: PuDo | TU24: Trough | TV24: Peak | TW24: Plat | TX24: PuDo | TY24: Trough | TZ24: Peak | UA24: Plat | UB24: PuDo | UC24: Trough | UD24: Peak | UE24: Plat | UF24: PuDo | UG24: Trough | UH24: Peak | UI24: Plat | UJ24: PuDo | UK24: Trough | UL24: Peak | UM24: Plat | UN24: PuDo | UO24: Trough | UP24: Peak | UQ24: Plat | UR24: PuDo | US24: Trough | UT24: Peak | UU24: Plat | UV24: PuDo | UW24: Trough | UX24: Peak | UY24: Plat | UZ24: PuDo | VA24: Trough | VB24: Peak | VC24: Plat | VD24: PuDo | VE24: Trough | VF24: Peak | VG24: =INDEX($B$31:$E$31,MATCH(VG$23,$B$32:$E$32,0)) -> Plat | VH24: PuDo | VI24: Trough | VJ24: Peak | VK24: Plat | VL24: PuDo | VM24: Trough | VN24: Peak | VO24: Plat | VP24: PuDo | VQ24: Trough | VR24: Peak | VS24: Plat | VT24: PuDo | VU24: Trough | VV24: Peak | VW24: Plat | VX24: PuDo | VY24: Trough | VZ24: Peak | WA24: Plat | WB24: PuDo | WC24: Trough | WD24: Peak | WE24: Plat | WF24: PuDo | WG24: Trough | WH24: Peak | WI24: Plat | WJ24: PuDo | WK24: Trough | WL24: Peak | WM24: Plat | WN24: PuDo | WO24: Trough | WP24: Peak | WQ24: Plat | WR24: PuDo | WS24: Trough | WT24: Peak | WU24: Plat | WV24: PuDo | WW24: Trough | WX24: Peak | WY24: Plat | WZ24: PuDo | XA24: Trough | XB24: Peak | XC24: Plat | XD24: PuDo | XE24: Trough | XF24: Peak | XG24: Plat | XH24: PuDo | XI24: Trough | XJ24: Peak | XK24: Plat | XL24: PuDo | XM24: Trough | XN24: Peak | XO24: Plat | XP24: PuDo | XQ24: Trough | XR24: Peak | XS24: =INDEX($B$31:$E$31,MATCH(XS$23,$B$32:$E$32,0)) -> Plat | XT24: PuDo | XU24: Trough | XV24: Peak | XW24: Plat | XX24: PuDo | XY24: Trough | XZ24: Peak | YA24: Plat | YB24: PuDo | YC24: Trough | YD24: Peak | YE24: Plat | YF24: PuDo | YG24: Trough | YH24: Peak | YI24: Plat | YJ24: PuDo | YK24: Trough | YL24: Peak | YM24: Plat | YN24: PuDo | YO24: Trough | YP24: Peak | YQ24: Plat | YR24: PuDo | YS24: Trough | YT24: Peak | YU24: Plat | YV24: PuDo | YW24: Trough | YX24: Peak | YY24: Plat | YZ24: PuDo | ZA24: Trough | ZB24: Peak | ZC24: Plat | ZD24: PuDo | ZE24: Trough | ZF24: Peak | ZG24: Plat | ZH24: PuDo | ZI24: Trough | ZJ24: Peak | ZK24: Plat | ZL24: PuDo | ZM24: Trough | ZN24: Peak | ZO24: Plat | ZP24: PuDo | ZQ24: Trough | ZR24: Peak | ZS24: Plat | ZT24: PuDo | ZU24: Trough | ZV24: Peak | ZW24: Plat | ZX24: PuDo | ZY24: Trough | ZZ24: Peak | AAA24: Plat | AAB24: PuDo | AAC24: Trough | AAD24: Peak | AAE24: =INDEX($B$31:$E$31,MATCH(AAE$23,$B$32:$E$32,0)) -> Plat | AAF24: PuDo | AAG24: Trough | AAH24: Peak | AAI24: Plat | AAJ24: PuDo | AAK24: Trough | AAL24: Peak | AAM24: Plat | AAN24: PuDo | AAO24: Trough | AAP24: Peak | AAQ24: Plat | AAR24: PuDo | AAS24: Trough | AAT24: Peak | AAU24: Plat | AAV24: PuDo | AAW24: Trough | AAX24: Peak | AAY24: Plat | AAZ24: PuDo | ABA24: Trough | ABB24: Peak | ABC24: Plat | ABD24: PuDo | ABE24: Trough | ABF24: Peak | ABG24: Plat | ABH24: PuDo | ABI24: Trough | ABJ24: Peak | ABK24: Plat | ABL24: PuDo | ABM24: Trough | ABN24: Peak | ABO24: Plat | ABP24: PuDo | ABQ24: Trough | ABR24: Peak | ABS24: Plat | ABT24: PuDo | ABU24: Trough | ABV24: Peak | ABW24: Plat | ABX24: PuDo | ABY24: Trough | ABZ24: Peak | ACA24: Plat | ACB24: PuDo | ACC24: Trough | ACD24: Peak | ACE24: Plat | ACF24: PuDo | ACG24: Trough | ACH24: Peak | ACI24: Plat | ACJ24: PuDo | ACK24: Trough | ACL24: Peak | ACM24: Plat | ACN24: PuDo | ACO24: Trough | ACP24: Peak | ACQ24: =INDEX($B$31:$E$31,MATCH(ACQ$23,$B$32:$E$32,0)) -> Plat | ACR24: PuDo | ACS24: Trough | ACT24: Peak | ACU24: Plat | ACV24: PuDo | ACW24: Trough | ACX24: Peak | ACY24: Plat | ACZ24: PuDo | ADA24: Trough | ADB24: Peak | ADC24: Plat | ADD24: PuDo | ADE24: Trough | ADF24: Peak | ADG24: Plat | ADH24: PuDo | ADI24: Trough | ADJ24: Peak | ADK24: Plat | ADL24: PuDo | ADM24: Trough | ADN24: Peak | ADO24: Plat | ADP24: PuDo | ADQ24: Trough | ADR24: Peak | ADS24: Plat | ADT24: PuDo | ADU24: Trough | ADV24: Peak | ADW24: Plat | ADX24: PuDo | ADY24: Trough | ADZ24: Peak | AEA24: Plat | AEB24: PuDo | AEC24: Trough | AED24: Peak | AEE24: Plat | AEF24: PuDo | AEG24: Trough | AEH24: Peak | AEI24: Plat | AEJ24: PuDo | AEK24: Trough | AEL24: Peak | AEM24: Plat | AEN24: PuDo | AEO24: Trough | AEP24: Peak | AEQ24: Plat | AER24: PuDo | AES24: Trough | AET24: Peak | AEU24: Plat | AEV24: PuDo | AEW24: Trough | AEX24: Peak | AEY24: Plat | AEZ24: PuDo | AFA24: Trough | AFB24: Peak | AFC24: =INDEX($B$31:$E$31,MATCH(AFC$23,$B$32:$E$32,0)) -> Plat | AFD24: PuDo | AFE24: Trough | AFF24: Peak | AFG24: Plat | AFH24: PuDo | AFI24: Trough | AFJ24: Peak | AFK24: Plat | AFL24: PuDo | AFM24: Trough | AFN24: Peak | AFO24: Plat | AFP24: PuDo | AFQ24: Trough | AFR24: Peak | AFS24: Plat | AFT24: PuDo | AFU24: Trough | AFV24: Peak | AFW24: Plat | AFX24: PuDo | AFY24: Trough | AFZ24: Peak | AGA24: Plat | AGB24: PuDo | AGC24: Trough | AGD24: Peak | AGE24: Plat | AGF24: PuDo | AGG24: Trough | AGH24: Peak | AGI24: Plat | AGJ24: PuDo | AGK24: Trough | AGL24: Peak | AGM24: Plat | AGN24: PuDo | AGO24: Trough | AGP24: Peak | AGQ24: Plat | AGR24: PuDo | AGS24: Trough | AGT24: Peak | AGU24: Plat | AGV24: PuDo | AGW24: Trough | AGX24: Peak | AGY24: Plat | AGZ24: PuDo | AHA24: Trough | AHB24: Peak | AHC24: Plat | AHD24: PuDo | AHE24: Trough | AHF24: Peak | AHG24: Plat | AHH24: PuDo | AHI24: Trough | AHJ24: Peak | AHK24: Plat | AHL24: PuDo | AHM24: Trough | AHN24: Peak | AHO24: =INDEX($B$31:$E$31,MATCH(AHO$23,$B$32:$E$32,0)) -> Plat | AHP24: PuDo | AHQ24: Trough | AHR24: Peak | AHS24: Plat | AHT24: PuDo | AHU24: Trough | AHV24: Peak | AHW24: Plat | AHX24: PuDo | AHY24: Trough | AHZ24: Peak | AIA24: Plat | AIB24: PuDo | AIC24: Trough | AID24: Peak | AIE24: Plat | AIF24: PuDo | AIG24: Trough | AIH24: Peak | AII24: Plat | AIJ24: PuDo | AIK24: Trough | AIL24: Peak | AIM24: Plat | AIN24: PuDo | AIO24: Trough | AIP24: Peak | AIQ24: Plat | AIR24: PuDo | AIS24: Trough | AIT24: Peak | AIU24: Plat | AIV24: PuDo | AIW24: Trough | AIX24: Peak | AIY24: Plat | AIZ24: PuDo | AJA24: Trough | AJB24: Peak | AJC24: Plat | AJD24: PuDo | AJE24: Trough | AJF24: Peak | AJG24: Plat | AJH24: PuDo | AJI24: Trough | AJJ24: Peak | AJK24: Plat | AJL24: PuDo | AJM24: Trough | AJN24: Peak | AJO24: Plat | AJP24: PuDo | AJQ24: Trough | AJR24: Peak | AJS24: Plat | AJT24: PuDo | AJU24: Trough | AJV24: Peak | AJW24: Plat | AJX24: PuDo | AJY24: Trough | AJZ24: Peak | AKA24: =INDEX($B$31:$E$31,MATCH(AKA$23,$B$32:$E$32,0)) -> Plat | AKB24: PuDo | AKC24: Trough | AKD24: Peak | AKE24: Plat | AKF24: PuDo | AKG24: Trough | AKH24: Peak | AKI24: Plat | AKJ24: PuDo | AKK24: Trough | AKL24: Peak | AKM24: Plat | AKN24: PuDo | AKO24: Trough | AKP24: Peak | AKQ24: Plat | AKR24: PuDo | AKS24: Trough | AKT24: Peak | AKU24: Plat | AKV24: PuDo | AKW24: Trough | AKX24: Peak | AKY24: Plat | AKZ24: PuDo | ALA24: Trough | ALB24: Peak | ALC24: Plat | ALD24: PuDo | ALE24: Trough | ALF24: Peak | ALG24: Plat | ALH24: PuDo | ALI24: Trough | ALJ24: Peak | ALK24: Plat | ALL24: PuDo | ALM24: Trough | ALN24: Peak | ALO24: Plat | ALP24: PuDo | ALQ24: Trough | ALR24: Peak | ALS24: Plat | ALT24: PuDo | ALU24: Trough | ALV24: Peak | ALW24: Plat | ALX24: PuDo | ALY24: Trough | ALZ24: Peak | AMA24: Plat | AMB24: PuDo | AMC24: Trough | AMD24: Peak | AME24: Plat | AMF24: PuDo | AMG24: Trough | AMH24: Peak | AMI24: Plat | AMJ24: PuDo | AMK24: Trough | AML24: Peak | AMM24: =INDEX($B$31:$E$31,MATCH(AMM$23,$B$32:$E$32,0)) -> Plat | AMN24: PuDo | AMO24: Trough | AMP24: Peak | AMQ24: Plat | AMR24: PuDo | AMS24: Trough | AMT24: Peak | AMU24: Plat | AMV24: PuDo | AMW24: Trough | AMX24: Peak | AMY24: Plat | AMZ24: PuDo | ANA24: Trough | ANB24: Peak | ANC24: Plat | AND24: PuDo | ANE24: Trough | ANF24: Peak | ANG24: Plat | ANH24: PuDo | ANI24: Trough | ANJ24: Peak | ANK24: Plat | ANL24: PuDo | ANM24: Trough | ANN24: Peak | ANO24: Plat | ANP24: PuDo | ANQ24: Trough | ANR24: Peak | ANS24: Plat | ANT24: PuDo | ANU24: Trough | ANV24: Peak | ANW24: Plat | ANX24: PuDo | ANY24: Trough | ANZ24: Peak | AOA24: Plat | AOB24: PuDo | AOC24: Trough | AOD24: Peak | AOE24: Plat | AOF24: PuDo | AOG24: Trough | AOH24: Peak | AOI24: Plat | AOJ24: PuDo | AOK24: Trough | AOL24: Peak | AOM24: Plat | AON24: PuDo | AOO24: Trough | AOP24: Peak | AOQ24: Plat | AOR24: PuDo | AOS24: Trough | AOT24: Peak | AOU24: Plat | AOV24: PuDo | AOW24: Trough | AOX24: Peak | AOY24: =INDEX($B$31:$E$31,MATCH(AOY$23,$B$32:$E$32,0)) -> Plat | AOZ24: PuDo | APA24: Trough | APB24: Peak | APC24: Plat | APD24: PuDo | APE24: Trough | APF24: Peak | APG24: Plat | APH24: PuDo | API24: Trough | APJ24: Peak | APK24: Plat | APL24: PuDo | APM24: Trough | APN24: Peak | APO24: Plat | APP24: PuDo | APQ24: Trough | APR24: Peak | APS24: Plat | APT24: PuDo | APU24: Trough | APV24: Peak | APW24: Plat | APX24: PuDo | APY24: Trough | APZ24: Peak | AQA24: Plat | AQB24: PuDo | AQC24: Trough | AQD24: Peak | AQE24: Plat | AQF24: PuDo | AQG24: Trough | AQH24: Peak | AQI24: Plat | AQJ24: PuDo | AQK24: Trough | AQL24: Peak | AQM24: Plat | AQN24: PuDo | AQO24: Trough | AQP24: Peak | AQQ24: Plat | AQR24: PuDo | AQS24: Trough | AQT24: Peak | AQU24: Plat | AQV24: PuDo | AQW24: Trough | AQX24: Peak | AQY24: Plat | AQZ24: PuDo | ARA24: Trough | ARB24: Peak | ARC24: Plat | ARD24: PuDo | ARE24: Trough | ARF24: Peak | ARG24: Plat | ARH24: PuDo | ARI24: Trough | ARJ24: Peak | ARK24: =INDEX($B$31:$E$31,MATCH(ARK$23,$B$32:$E$32,0)) -> Plat | ARL24: PuDo | ARM24: Trough | ARN24: Peak | ARO24: Plat | ARP24: PuDo | ARQ24: Trough | ARR24: Peak | ARS24: Plat | ART24: PuDo | ARU24: Trough | ARV24: Peak | ARW24: Plat | ARX24: PuDo | ARY24: Trough | ARZ24: Peak | ASA24: Plat | ASB24: PuDo | ASC24: Trough | ASD24: Peak | ASE24: Plat | ASF24: PuDo | ASG24: Trough | ASH24: Peak | ASI24: Plat | ASJ24: PuDo | ASK24: Trough | ASL24: Peak | ASM24: Plat | ASN24: PuDo | ASO24: Trough | ASP24: Peak | ASQ24: Plat | ASR24: PuDo | ASS24: Trough | AST24: Peak | ASU24: Plat | ASV24: PuDo | ASW24: Trough | ASX24: Peak | ASY24: Plat | ASZ24: PuDo | ATA24: Trough | ATB24: Peak | ATC24: Plat | ATD24: PuDo | ATE24: Trough | ATF24: Peak | ATG24: Plat | ATH24: PuDo | ATI24: Trough | ATJ24: Peak | ATK24: Plat | ATL24: PuDo | ATM24: Trough | ATN24: Peak | ATO24: Plat | ATP24: PuDo | ATQ24: Trough | ATR24: Peak | ATS24: Plat | ATT24: PuDo | ATU24: Trough | ATV24: Peak | ATW24: =INDEX($B$31:$E$31,MATCH(ATW$23,$B$32:$E$32,0)) -> Plat | ATX24: PuDo | ATY24: Trough | ATZ24: Peak | AUA24: Plat | AUB24: PuDo | AUC24: Trough | AUD24: Peak | AUE24: Plat | AUF24: PuDo | AUG24: Trough | AUH24: Peak | AUI24: Plat | AUJ24: PuDo | AUK24: Trough | AUL24: Peak | AUM24: Plat | AUN24: PuDo | AUO24: Trough | AUP24: Peak | AUQ24: Plat | AUR24: PuDo | AUS24: Trough | AUT24: Peak | AUU24: Plat | AUV24: PuDo | AUW24: Trough | AUX24: Peak | AUY24: Plat | AUZ24: PuDo | AVA24: Trough | AVB24: Peak | AVC24: Plat | AVD24: PuDo | AVE24: Trough | AVF24: Peak | AVG24: Plat | AVH24: PuDo | AVI24: Trough | AVJ24: Peak | AVK24: Plat | AVL24: PuDo | AVM24: Trough | AVN24: Peak | AVO24: Plat | AVP24: PuDo | AVQ24: Trough | AVR24: Peak | AVS24: Plat | AVT24: PuDo | AVU24: Trough | AVV24: Peak | AVW24: Plat | AVX24: PuDo | AVY24: Trough | AVZ24: Peak | AWA24: Plat | AWB24: PuDo | AWC24: Trough | AWD24: Peak | AWE24: Plat | AWF24: PuDo | AWG24: Trough | AWH24: Peak | AWI24: =INDEX($B$31:$E$31,MATCH(AWI$23,$B$32:$E$32,0)) -> Plat | AWJ24: PuDo | AWK24: Trough | AWL24: Peak | AWM24: Plat | AWN24: PuDo | AWO24: Trough | AWP24: Peak | AWQ24: Plat | AWR24: PuDo | AWS24: Trough | AWT24: Peak | AWU24: Plat | AWV24: PuDo | AWW24: Trough | AWX24: Peak | AWY24: Plat | AWZ24: PuDo | AXA24: Trough | AXB24: Peak | AXC24: Plat | AXD24: PuDo | AXE24: Trough | AXF24: Peak | AXG24: Plat | AXH24: PuDo | AXI24: Trough | AXJ24: Peak | AXK24: Plat | AXL24: PuDo | AXM24: Trough | AXN24: Peak | AXO24: Plat | AXP24: PuDo | AXQ24: Trough | AXR24: Peak | AXS24: Plat | AXT24: PuDo | AXU24: Trough | AXV24: Peak | AXW24: Plat | AXX24: PuDo | AXY24: Trough | AXZ24: Peak | AYA24: Plat | AYB24: PuDo | AYC24: Trough | AYD24: Peak | AYE24: Plat | AYF24: PuDo | AYG24: Trough | AYH24: Peak | AYI24: Plat | AYJ24: PuDo | AYK24: Trough | AYL24: Peak | AYM24: Plat | AYN24: PuDo | AYO24: Trough | AYP24: Peak | AYQ24: Plat | AYR24: PuDo | AYS24: Trough | AYT24: Peak | AYU24: =INDEX($B$31:$E$31,MATCH(AYU$23,$B$32:$E$32,0)) -> Plat | AYV24: PuDo | AYW24: Trough | AYX24: Peak | AYY24: Plat | AYZ24: PuDo | AZA24: Trough | AZB24: Peak | AZC24: Plat | AZD24: PuDo | AZE24: Trough | AZF24: Peak | AZG24: Plat | AZH24: PuDo | AZI24: Trough | AZJ24: Peak | AZK24: Plat | AZL24: PuDo | AZM24: Trough | AZN24: Peak | AZO24: Plat | AZP24: PuDo | AZQ24: Trough | AZR24: Peak | AZS24: Plat | AZT24: PuDo | AZU24: Trough | AZV24: Peak | AZW24: Plat | AZX24: PuDo | AZY24: Trough | AZZ24: Peak | BAA24: Plat | BAB24: PuDo | BAC24: Trough | BAD24: Peak | BAE24: Plat | BAF24: PuDo | BAG24: Trough | BAH24: Peak | BAI24: Plat | BAJ24: PuDo | BAK24: Trough | BAL24: Peak | BAM24: Plat | BAN24: PuDo | BAO24: Trough | BAP24: Peak | BAQ24: Plat | BAR24: PuDo | BAS24: Trough | BAT24: Peak | BAU24: Plat | BAV24: PuDo | BAW24: Trough | BAX24: Peak | BAY24: Plat | BAZ24: PuDo | BBA24: Trough | BBB24: Peak | BBC24: Plat | BBD24: PuDo | BBE24: Trough | BBF24: Peak | BBG24: =INDEX($B$31:$E$31,MATCH(BBG$23,$B$32:$E$32,0)) -> Plat | BBH24: PuDo | BBI24: Trough | BBJ24: Peak | BBK24: Plat | BBL24: PuDo | BBM24: Trough | BBN24: Peak | BBO24: Plat | BBP24: PuDo | BBQ24: Trough | BBR24: Peak | BBS24: Plat | BBT24: PuDo | BBU24: Trough | BBV24: Peak | BBW24: Plat | BBX24: PuDo | BBY24: Trough | BBZ24: Peak | BCA24: Plat | BCB24: PuDo | BCC24: Trough | BCD24: Peak | BCE24: Plat | BCF24: PuDo | BCG24: Trough | BCH24: Peak | BCI24: Plat | BCJ24: PuDo | BCK24: Trough | BCL24: Peak | BCM24: Plat | BCN24: PuDo | BCO24: Trough | BCP24: Peak | BCQ24: Plat | BCR24: PuDo | BCS24: Trough | BCT24: Peak | BCU24: Plat | BCV24: PuDo | BCW24: Trough | BCX24: Peak | BCY24: Plat | BCZ24: PuDo | BDA24: Trough | BDB24: Peak | BDC24: Plat | BDD24: PuDo | BDE24: Trough
A25: Day | B25: 1 | C25: =IF(MOD(C22,4)=1,B25+1,B25) -> 1 | D25: =IF(MOD(D22,4)=1,C25+1,C25) -> 1 | E25: 1 | F25: 2 | G25: 2 | H25: 2 | I25: 2 | J25: 3 | K25: 3 | L25: 3 | M25: 3 | N25: 4 | O25: 4 | P25: 4 | Q25: 4 | R25: 5 | S25: 5 | T25: 5 | U25: 5 | V25: 6 | W25: 6 | X25: 6 | Y25: 6 | Z25: 7 | AA25: 7 | AB25: 7 | AC25: 7 | AD25: 8 | AE25: 8 | AF25: 8 | AG25: 8 | AH25: 9 | AI25: 9 | AJ25: 9 | AK25: 9 | AL25: 10 | AM25: 10 | AN25: 10 | AO25: 10 | AP25: 11 | AQ25: 11 | AR25: 11 | AS25: 11 | AT25: 12 | AU25: 12 | AV25: 12 | AW25: 12 | AX25: 13 | AY25: 13 | AZ25: 13 | BA25: 13 | BB25: 14 | BC25: 14 | BD25: 14 | BE25: 14 | BF25: 15 | BG25: 15 | BH25: 15 | BI25: 15 | BJ25: 16 | BK25: 16 | BL25: 16 | BM25: 16 | BN25: 17 | BO25: 17 | BP25: =IF(MOD(BP22,4)=1,BO25+1,BO25) -> 17 | BQ25: 17 | BR25: 18 | BS25: 18 | BT25: 18 | BU25: 18 | BV25: 19 | BW25: 19 | BX25: 19 | BY25: 19 | BZ25: 20 | CA25: 20 | CB25: 20 | CC25: 20 | CD25: 21 | CE25: 21 | CF25: 21 | CG25: 21 | CH25: 22 | CI25: 22 | CJ25: 22 | CK25: 22 | CL25: 23 | CM25: 23 | CN25: 23 | CO25: 23 | CP25: 24 | CQ25: 24 | CR25: 24 | CS25: 24 | CT25: 25 | CU25: 25 | CV25: 25 | CW25: 25 | CX25: 26 | CY25: 26 | CZ25: 26 | DA25: 26 | DB25: 27 | DC25: 27 | DD25: 27 | DE25: 27 | DF25: 28 | DG25: 28 | DH25: 28 | DI25: 28 | DJ25: 29 | DK25: 29 | DL25: 29 | DM25: 29 | DN25: 30 | DO25: 30 | DP25: 30 | DQ25: 30 | DR25: 31 | DS25: 31 | DT25: 31 | DU25: 31 | DV25: 32 | DW25: 32 | DX25: 32 | DY25: 32 | DZ25: 33 | EA25: 33 | EB25: =IF(MOD(EB22,4)=1,EA25+1,EA25) -> 33 | EC25: 33 | ED25: 34 | EE25: 34 | EF25: 34 | EG25: 34 | EH25: 35 | EI25: 35 | EJ25: 35 | EK25: 35 | EL25: 36 | EM25: 36 | EN25: 36 | EO25: 36 | EP25: 37 | EQ25: 37 | ER25: 37 | ES25: 37 | ET25: 38 | EU25: 38 | EV25: 38 | EW25: 38 | EX25: 39 | EY25: 39 | EZ25: 39 | FA25: 39 | FB25: 40 | FC25: 40 | FD25: 40 | FE25: 40 | FF25: 41 | FG25: 41 | FH25: 41 | FI25: 41 | FJ25: 42 | FK25: 42 | FL25: 42 | FM25: 42 | FN25: 43 | FO25: 43 | FP25: 43 | FQ25: 43 | FR25: 44 | FS25: 44 | FT25: 44 | FU25: 44 | FV25: 45 | FW25: 45 | FX25: 45 | FY25: 45 | FZ25: 46 | GA25: 46 | GB25: 46 | GC25: 46 | GD25: 47 | GE25: 47 | GF25: 47 | GG25: 47 | GH25: 48 | GI25: 48 | GJ25: 48 | GK25: 48 | GL25: 49 | GM25: 49 | GN25: =IF(MOD(GN22,4)=1,GM25+1,GM25) -> 49 | GO25: 49 | GP25: 50 | GQ25: 50 | GR25: 50 | GS25: 50 | GT25: 51 | GU25: 51 | GV25: 51 | GW25: 51 | GX25: 52 | GY25: 52 | GZ25: 52 | HA25: 52 | HB25: 53 | HC25: 53 | HD25: 53 | HE25: 53 | HF25: 54 | HG25: 54 | HH25: 54 | HI25: 54 | HJ25: 55 | HK25: 55 | HL25: 55 | HM25: 55 | HN25: 56 | HO25: 56 | HP25: 56 | HQ25: 56 | HR25: 57 | HS25: 57 | HT25: 57 | HU25: 57 | HV25: 58 | HW25: 58 | HX25: 58 | HY25: 58 | HZ25: 59 | IA25: 59 | IB25: 59 | IC25: 59 | ID25: 60 | IE25: 60 | IF25: 60 | IG25: 60 | IH25: 61 | II25: 61 | IJ25: 61 | IK25: 61 | IL25: 62 | IM25: 62 | IN25: 62 | IO25: 62 | IP25: 63 | IQ25: 63 | IR25: 63 | IS25: 63 | IT25: 64 | IU25: 64 | IV25: 64 | IW25: 64 | IX25: 65 | IY25: 65 | IZ25: =IF(MOD(IZ22,4)=1,IY25+1,IY25) -> 65 | JA25: 65 | JB25: 66 | JC25: 66 | JD25: 66 | JE25: 66 | JF25: 67 | JG25: 67 | JH25: 67 | JI25: 67 | JJ25: 68 | JK25: 68 | JL25: 68 | JM25: 68 | JN25: 69 | JO25: 69 | JP25: 69 | JQ25: 69 | JR25: 70 | JS25: 70 | JT25: 70 | JU25: 70 | JV25: 71 | JW25: 71 | JX25: 71 | JY25: 71 | JZ25: 72 | KA25: 72 | KB25: 72 | KC25: 72 | KD25: 73 | KE25: 73 | KF25: 73 | KG25: 73 | KH25: 74 | KI25: 74 | KJ25: 74 | KK25: 74 | KL25: 75 | KM25: 75 | KN25: 75 | KO25: 75 | KP25: 76 | KQ25: 76 | KR25: 76 | KS25: 76 | KT25: 77 | KU25: 77 | KV25: 77 | KW25: 77 | KX25: 78 | KY25: 78 | KZ25: 78 | LA25: 78 | LB25: 79 | LC25: 79 | LD25: 79 | LE25: 79 | LF25: 80 | LG25: 80 | LH25: 80 | LI25: 80 | LJ25: 81 | LK25: 81 | LL25: =IF(MOD(LL22,4)=1,LK25+1,LK25) -> 81 | LM25: 81 | LN25: 82 | LO25: 82 | LP25: 82 | LQ25: 82 | LR25: 83 | LS25: 83 | LT25: 83 | LU25: 83 | LV25: 84 | LW25: 84 | LX25: 84 | LY25: 84 | LZ25: 85 | MA25: 85 | MB25: 85 | MC25: 85 | MD25: 86 | ME25: 86 | MF25: 86 | MG25: 86 | MH25: 87 | MI25: 87 | MJ25: 87 | MK25: 87 | ML25: 88 | MM25: 88 | MN25: 88 | MO25: 88 | MP25: 89 | MQ25: 89 | MR25: 89 | MS25: 89 | MT25: 90 | MU25: 90 | MV25: 90 | MW25: 90 | MX25: 91 | MY25: 91 | MZ25: 91 | NA25: 91 | NB25: 92 | NC25: 92 | ND25: 92 | NE25: 92 | NF25: 93 | NG25: 93 | NH25: 93 | NI25: 93 | NJ25: 94 | NK25: 94 | NL25: 94 | NM25: 94 | NN25: 95 | NO25: 95 | NP25: 95 | NQ25: 95 | NR25: 96 | NS25: 96 | NT25: 96 | NU25: 96 | NV25: 97 | NW25: 97 | NX25: =IF(MOD(NX22,4)=1,NW25+1,NW25) -> 97 | NY25: 97 | NZ25: 98 | OA25: 98 | OB25: 98 | OC25: 98 | OD25: 99 | OE25: 99 | OF25: 99 | OG25: 99 | OH25: 100 | OI25: 100 | OJ25: 100 | OK25: 100 | OL25: 101 | OM25: 101 | ON25: 101 | OO25: 101 | OP25: 102 | OQ25: 102 | OR25: 102 | OS25: 102 | OT25: 103 | OU25: 103 | OV25: 103 | OW25: 103 | OX25: 104 | OY25: 104 | OZ25: 104 | PA25: 104 | PB25: 105 | PC25: 105 | PD25: 105 | PE25: 105 | PF25: 106 | PG25: 106 | PH25: 106 | PI25: 106 | PJ25: 107 | PK25: 107 | PL25: 107 | PM25: 107 | PN25: 108 | PO25: 108 | PP25: 108 | PQ25: 108 | PR25: 109 | PS25: 109 | PT25: 109 | PU25: 109 | PV25: 110 | PW25: 110 | PX25: 110 | PY25: 110 | PZ25: 111 | QA25: 111 | QB25: 111 | QC25: 111 | QD25: 112 | QE25: 112 | QF25: 112 | QG25: 112 | QH25: 113 | QI25: 113 | QJ25: =IF(MOD(QJ22,4)=1,QI25+1,QI25) -> 113 | QK25: 113 | QL25: 114 | QM25: 114 | QN25: 114 | QO25: 114 | QP25: 115 | QQ25: 115 | QR25: 115 | QS25: 115 | QT25: 116 | QU25: 116 | QV25: 116 | QW25: 116 | QX25: 117 | QY25: 117 | QZ25: 117 | RA25: 117 | RB25: 118 | RC25: 118 | RD25: 118 | RE25: 118 | RF25: 119 | RG25: 119 | RH25: 119 | RI25: 119 | RJ25: 120 | RK25: 120 | RL25: 120 | RM25: 120 | RN25: 121 | RO25: 121 | RP25: 121 | RQ25: 121 | RR25: 122 | RS25: 122 | RT25: 122 | RU25: 122 | RV25: 123 | RW25: 123 | RX25: 123 | RY25: 123 | RZ25: 124 | SA25: 124 | SB25: 124 | SC25: 124 | SD25: 125 | SE25: 125 | SF25: 125 | SG25: 125 | SH25: 126 | SI25: 126 | SJ25: 126 | SK25: 126 | SL25: 127 | SM25: 127 | SN25: 127 | SO25: 127 | SP25: 128 | SQ25: 128 | SR25: 128 | SS25: 128 | ST25: 129 | SU25: 129 | SV25: =IF(MOD(SV22,4)=1,SU25+1,SU25) -> 129 | SW25: 129 | SX25: 130 | SY25: 130 | SZ25: 130 | TA25: 130 | TB25: 131 | TC25: 131 | TD25: 131 | TE25: 131 | TF25: 132 | TG25: 132 | TH25: 132 | TI25: 132 | TJ25: 133 | TK25: 133 | TL25: 133 | TM25: 133 | TN25: 134 | TO25: 134 | TP25: 134 | TQ25: 134 | TR25: 135 | TS25: 135 | TT25: 135 | TU25: 135 | TV25: 136 | TW25: 136 | TX25: 136 | TY25: 136 | TZ25: 137 | UA25: 137 | UB25: 137 | UC25: 137 | UD25: 138 | UE25: 138 | UF25: 138 | UG25: 138 | UH25: 139 | UI25: 139 | UJ25: 139 | UK25: 139 | UL25: 140 | UM25: 140 | UN25: 140 | UO25: 140 | UP25: 141 | UQ25: 141 | UR25: 141 | US25: 141 | UT25: 142 | UU25: 142 | UV25: 142 | UW25: 142 | UX25: 143 | UY25: 143 | UZ25: 143 | VA25: 143 | VB25: 144 | VC25: 144 | VD25: 144 | VE25: 144 | VF25: 145 | VG25: 145 | VH25: =IF(MOD(VH22,4)=1,VG25+1,VG25) -> 145 | VI25: 145 | VJ25: 146 | VK25: 146 | VL25: 146 | VM25: 146 | VN25: 147 | VO25: 147 | VP25: 147 | VQ25: 147 | VR25: 148 | VS25: 148 | VT25: 148 | VU25: 148 | VV25: 149 | VW25: 149 | VX25: 149 | VY25: 149 | VZ25: 150 | WA25: 150 | WB25: 150 | WC25: 150 | WD25: 151 | WE25: 151 | WF25: 151 | WG25: 151 | WH25: 152 | WI25: 152 | WJ25: 152 | WK25: 152 | WL25: 153 | WM25: 153 | WN25: 153 | WO25: 153 | WP25: 154 | WQ25: 154 | WR25: 154 | WS25: 154 | WT25: 155 | WU25: 155 | WV25: 155 | WW25: 155 | WX25: 156 | WY25: 156 | WZ25: 156 | XA25: 156 | XB25: 157 | XC25: 157 | XD25: 157 | XE25: 157 | XF25: 158 | XG25: 158 | XH25: 158 | XI25: 158 | XJ25: 159 | XK25: 159 | XL25: 159 | XM25: 159 | XN25: 160 | XO25: 160 | XP25: 160 | XQ25: 160 | XR25: 161 | XS25: 161 | XT25: =IF(MOD(XT22,4)=1,XS25+1,XS25) -> 161 | XU25: 161 | XV25: 162 | XW25: 162 | XX25: 162 | XY25: 162 | XZ25: 163 | YA25: 163 | YB25: 163 | YC25: 163 | YD25: 164 | YE25: 164 | YF25: 164 | YG25: 164 | YH25: 165 | YI25: 165 | YJ25: 165 | YK25: 165 | YL25: 166 | YM25: 166 | YN25: 166 | YO25: 166 | YP25: 167 | YQ25: 167 | YR25: 167 | YS25: 167 | YT25: 168 | YU25: 168 | YV25: 168 | YW25: 168 | YX25: 169 | YY25: 169 | YZ25: 169 | ZA25: 169 | ZB25: 170 | ZC25: 170 | ZD25: 170 | ZE25: 170 | ZF25: 171 | ZG25: 171 | ZH25: 171 | ZI25: 171 | ZJ25: 172 | ZK25: 172 | ZL25: 172 | ZM25: 172 | ZN25: 173 | ZO25: 173 | ZP25: 173 | ZQ25: 173 | ZR25: 174 | ZS25: 174 | ZT25: 174 | ZU25: 174 | ZV25: 175 | ZW25: 175 | ZX25: 175 | ZY25: 175 | ZZ25: 176 | AAA25: 176 | AAB25: 176 | AAC25: 176 | AAD25: 177 | AAE25: 177 | AAF25: =IF(MOD(AAF22,4)=1,AAE25+1,AAE25) -> 177 | AAG25: 177 | AAH25: 178 | AAI25: 178 | AAJ25: 178 | AAK25: 178 | AAL25: 179 | AAM25: 179 | AAN25: 179 | AAO25: 179 | AAP25: 180 | AAQ25: 180 | AAR25: 180 | AAS25: 180 | AAT25: 181 | AAU25: 181 | AAV25: 181 | AAW25: 181 | AAX25: 182 | AAY25: 182 | AAZ25: 182 | ABA25: 182 | ABB25: 183 | ABC25: 183 | ABD25: 183 | ABE25: 183 | ABF25: 184 | ABG25: 184 | ABH25: 184 | ABI25: 184 | ABJ25: 185 | ABK25: 185 | ABL25: 185 | ABM25: 185 | ABN25: 186 | ABO25: 186 | ABP25: 186 | ABQ25: 186 | ABR25: 187 | ABS25: 187 | ABT25: 187 | ABU25: 187 | ABV25: 188 | ABW25: 188 | ABX25: 188 | ABY25: 188 | ABZ25: 189 | ACA25: 189 | ACB25: 189 | ACC25: 189 | ACD25: 190 | ACE25: 190 | ACF25: 190 | ACG25: 190 | ACH25: 191 | ACI25: 191 | ACJ25: 191 | ACK25: 191 | ACL25: 192 | ACM25: 192 | ACN25: 192 | ACO25: 192 | ACP25: 193 | ACQ25: 193 | ACR25: =IF(MOD(ACR22,4)=1,ACQ25+1,ACQ25) -> 193 | ACS25: 193 | ACT25: 194 | ACU25: 194 | ACV25: 194 | ACW25: 194 | ACX25: 195 | ACY25: 195 | ACZ25: 195 | ADA25: 195 | ADB25: 196 | ADC25: 196 | ADD25: 196 | ADE25: 196 | ADF25: 197 | ADG25: 197 | ADH25: 197 | ADI25: 197 | ADJ25: 198 | ADK25: 198 | ADL25: 198 | ADM25: 198 | ADN25: 199 | ADO25: 199 | ADP25: 199 | ADQ25: 199 | ADR25: 200 | ADS25: 200 | ADT25: 200 | ADU25: 200 | ADV25: 201 | ADW25: 201 | ADX25: 201 | ADY25: 201 | ADZ25: 202 | AEA25: 202 | AEB25: 202 | AEC25: 202 | AED25: 203 | AEE25: 203 | AEF25: 203 | AEG25: 203 | AEH25: 204 | AEI25: 204 | AEJ25: 204 | AEK25: 204 | AEL25: 205 | AEM25: 205 | AEN25: 205 | AEO25: 205 | AEP25: 206 | AEQ25: 206 | AER25: 206 | AES25: 206 | AET25: 207 | AEU25: 207 | AEV25: 207 | AEW25: 207 | AEX25: 208 | AEY25: 208 | AEZ25: 208 | AFA25: 208 | AFB25: 209 | AFC25: 209 | AFD25: =IF(MOD(AFD22,4)=1,AFC25+1,AFC25) -> 209 | AFE25: 209 | AFF25: 210 | AFG25: 210 | AFH25: 210 | AFI25: 210 | AFJ25: 211 | AFK25: 211 | AFL25: 211 | AFM25: 211 | AFN25: 212 | AFO25: 212 | AFP25: 212 | AFQ25: 212 | AFR25: 213 | AFS25: 213 | AFT25: 213 | AFU25: 213 | AFV25: 214 | AFW25: 214 | AFX25: 214 | AFY25: 214 | AFZ25: 215 | AGA25: 215 | AGB25: 215 | AGC25: 215 | AGD25: 216 | AGE25: 216 | AGF25: 216 | AGG25: 216 | AGH25: 217 | AGI25: 217 | AGJ25: 217 | AGK25: 217 | AGL25: 218 | AGM25: 218 | AGN25: 218 | AGO25: 218 | AGP25: 219 | AGQ25: 219 | AGR25: 219 | AGS25: 219 | AGT25: 220 | AGU25: 220 | AGV25: 220 | AGW25: 220 | AGX25: 221 | AGY25: 221 | AGZ25: 221 | AHA25: 221 | AHB25: 222 | AHC25: 222 | AHD25: 222 | AHE25: 222 | AHF25: 223 | AHG25: 223 | AHH25: 223 | AHI25: 223 | AHJ25: 224 | AHK25: 224 | AHL25: 224 | AHM25: 224 | AHN25: 225 | AHO25: 225 | AHP25: =IF(MOD(AHP22,4)=1,AHO25+1,AHO25) -> 225 | AHQ25: 225 | AHR25: 226 | AHS25: 226 | AHT25: 226 | AHU25: 226 | AHV25: 227 | AHW25: 227 | AHX25: 227 | AHY25: 227 | AHZ25: 228 | AIA25: 228 | AIB25: 228 | AIC25: 228 | AID25: 229 | AIE25: 229 | AIF25: 229 | AIG25: 229 | AIH25: 230 | AII25: 230 | AIJ25: 230 | AIK25: 230 | AIL25: 231 | AIM25: 231 | AIN25: 231 | AIO25: 231 | AIP25: 232 | AIQ25: 232 | AIR25: 232 | AIS25: 232 | AIT25: 233 | AIU25: 233 | AIV25: 233 | AIW25: 233 | AIX25: 234 | AIY25: 234 | AIZ25: 234 | AJA25: 234 | AJB25: 235 | AJC25: 235 | AJD25: 235 | AJE25: 235 | AJF25: 236 | AJG25: 236 | AJH25: 236 | AJI25: 236 | AJJ25: 237 | AJK25: 237 | AJL25: 237 | AJM25: 237 | AJN25: 238 | AJO25: 238 | AJP25: 238 | AJQ25: 238 | AJR25: 239 | AJS25: 239 | AJT25: 239 | AJU25: 239 | AJV25: 240 | AJW25: 240 | AJX25: 240 | AJY25: 240 | AJZ25: 241 | AKA25: 241 | AKB25: =IF(MOD(AKB22,4)=1,AKA25+1,AKA25) -> 241 | AKC25: 241 | AKD25: 242 | AKE25: 242 | AKF25: 242 | AKG25: 242 | AKH25: 243 | AKI25: 243 | AKJ25: 243 | AKK25: 243 | AKL25: 244 | AKM25: 244 | AKN25: 244 | AKO25: 244 | AKP25: 245 | AKQ25: 245 | AKR25: 245 | AKS25: 245 | AKT25: 246 | AKU25: 246 | AKV25: 246 | AKW25: 246 | AKX25: 247 | AKY25: 247 | AKZ25: 247 | ALA25: 247 | ALB25: 248 | ALC25: 248 | ALD25: 248 | ALE25: 248 | ALF25: 249 | ALG25: 249 | ALH25: 249 | ALI25: 249 | ALJ25: 250 | ALK25: 250 | ALL25: 250 | ALM25: 250 | ALN25: 251 | ALO25: 251 | ALP25: 251 | ALQ25: 251 | ALR25: 252 | ALS25: 252 | ALT25: 252 | ALU25: 252 | ALV25: 253 | ALW25: 253 | ALX25: 253 | ALY25: 253 | ALZ25: 254 | AMA25: 254 | AMB25: 254 | AMC25: 254 | AMD25: 255 | AME25: 255 | AMF25: 255 | AMG25: 255 | AMH25: 256 | AMI25: 256 | AMJ25: 256 | AMK25: 256 | AML25: 257 | AMM25: 257 | AMN25: =IF(MOD(AMN22,4)=1,AMM25+1,AMM25) -> 257 | AMO25: 257 | AMP25: 258 | AMQ25: 258 | AMR25: 258 | AMS25: 258 | AMT25: 259 | AMU25: 259 | AMV25: 259 | AMW25: 259 | AMX25: 260 | AMY25: 260 | AMZ25: 260 | ANA25: 260 | ANB25: 261 | ANC25: 261 | AND25: 261 | ANE25: 261 | ANF25: 262 | ANG25: 262 | ANH25: 262 | ANI25: 262 | ANJ25: 263 | ANK25: 263 | ANL25: 263 | ANM25: 263 | ANN25: 264 | ANO25: 264 | ANP25: 264 | ANQ25: 264 | ANR25: 265 | ANS25: 265 | ANT25: 265 | ANU25: 265 | ANV25: 266 | ANW25: 266 | ANX25: 266 | ANY25: 266 | ANZ25: 267 | AOA25: 267 | AOB25: 267 | AOC25: 267 | AOD25: 268 | AOE25: 268 | AOF25: 268 | AOG25: 268 | AOH25: 269 | AOI25: 269 | AOJ25: 269 | AOK25: 269 | AOL25: 270 | AOM25: 270 | AON25: 270 | AOO25: 270 | AOP25: 271 | AOQ25: 271 | AOR25: 271 | AOS25: 271 | AOT25: 272 | AOU25: 272 | AOV25: 272 | AOW25: 272 | AOX25: 273 | AOY25: 273 | AOZ25: =IF(MOD(AOZ22,4)=1,AOY25+1,AOY25) -> 273 | APA25: 273 | APB25: 274 | APC25: 274 | APD25: 274 | APE25: 274 | APF25: 275 | APG25: 275 | APH25: 275 | API25: 275 | APJ25: 276 | APK25: 276 | APL25: 276 | APM25: 276 | APN25: 277 | APO25: 277 | APP25: 277 | APQ25: 277 | APR25: 278 | APS25: 278 | APT25: 278 | APU25: 278 | APV25: 279 | APW25: 279 | APX25: 279 | APY25: 279 | APZ25: 280 | AQA25: 280 | AQB25: 280 | AQC25: 280 | AQD25: 281 | AQE25: 281 | AQF25: 281 | AQG25: 281 | AQH25: 282 | AQI25: 282 | AQJ25: 282 | AQK25: 282 | AQL25: 283 | AQM25: 283 | AQN25: 283 | AQO25: 283 | AQP25: 284 | AQQ25: 284 | AQR25: 284 | AQS25: 284 | AQT25: 285 | AQU25: 285 | AQV25: 285 | AQW25: 285 | AQX25: 286 | AQY25: 286 | AQZ25: 286 | ARA25: 286 | ARB25: 287 | ARC25: 287 | ARD25: 287 | ARE25: 287 | ARF25: 288 | ARG25: 288 | ARH25: 288 | ARI25: 288 | ARJ25: 289 | ARK25: 289 | ARL25: =IF(MOD(ARL22,4)=1,ARK25+1,ARK25) -> 289 | ARM25: 289 | ARN25: 290 | ARO25: 290 | ARP25: 290 | ARQ25: 290 | ARR25: 291 | ARS25: 291 | ART25: 291 | ARU25: 291 | ARV25: 292 | ARW25: 292 | ARX25: 292 | ARY25: 292 | ARZ25: 293 | ASA25: 293 | ASB25: 293 | ASC25: 293 | ASD25: 294 | ASE25: 294 | ASF25: 294 | ASG25: 294 | ASH25: 295 | ASI25: 295 | ASJ25: 295 | ASK25: 295 | ASL25: 296 | ASM25: 296 | ASN25: 296 | ASO25: 296 | ASP25: 297 | ASQ25: 297 | ASR25: 297 | ASS25: 297 | AST25: 298 | ASU25: 298 | ASV25: 298 | ASW25: 298 | ASX25: 299 | ASY25: 299 | ASZ25: 299 | ATA25: 299 | ATB25: 300 | ATC25: 300 | ATD25: 300 | ATE25: 300 | ATF25: 301 | ATG25: 301 | ATH25: 301 | ATI25: 301 | ATJ25: 302 | ATK25: 302 | ATL25: 302 | ATM25: 302 | ATN25: 303 | ATO25: 303 | ATP25: 303 | ATQ25: 303 | ATR25: 304 | ATS25: 304 | ATT25: 304 | ATU25: 304 | ATV25: 305 | ATW25: 305 | ATX25: =IF(MOD(ATX22,4)=1,ATW25+1,ATW25) -> 305 | ATY25: 305 | ATZ25: 306 | AUA25: 306 | AUB25: 306 | AUC25: 306 | AUD25: 307 | AUE25: 307 | AUF25: 307 | AUG25: 307 | AUH25: 308 | AUI25: 308 | AUJ25: 308 | AUK25: 308 | AUL25: 309 | AUM25: 309 | AUN25: 309 | AUO25: 309 | AUP25: 310 | AUQ25: 310 | AUR25: 310 | AUS25: 310 | AUT25: 311 | AUU25: 311 | AUV25: 311 | AUW25: 311 | AUX25: 312 | AUY25: 312 | AUZ25: 312 | AVA25: 312 | AVB25: 313 | AVC25: 313 | AVD25: 313 | AVE25: 313 | AVF25: 314 | AVG25: 314 | AVH25: 314 | AVI25: 314 | AVJ25: 315 | AVK25: 315 | AVL25: 315 | AVM25: 315 | AVN25: 316 | AVO25: 316 | AVP25: 316 | AVQ25: 316 | AVR25: 317 | AVS25: 317 | AVT25: 317 | AVU25: 317 | AVV25: 318 | AVW25: 318 | AVX25: 318 | AVY25: 318 | AVZ25: 319 | AWA25: 319 | AWB25: 319 | AWC25: 319 | AWD25: 320 | AWE25: 320 | AWF25: 320 | AWG25: 320 | AWH25: 321 | AWI25: 321 | AWJ25: =IF(MOD(AWJ22,4)=1,AWI25+1,AWI25) -> 321 | AWK25: 321 | AWL25: 322 | AWM25: 322 | AWN25: 322 | AWO25: 322 | AWP25: 323 | AWQ25: 323 | AWR25: 323 | AWS25: 323 | AWT25: 324 | AWU25: 324 | AWV25: 324 | AWW25: 324 | AWX25: 325 | AWY25: 325 | AWZ25: 325 | AXA25: 325 | AXB25: 326 | AXC25: 326 | AXD25: 326 | AXE25: 326 | AXF25: 327 | AXG25: 327 | AXH25: 327 | AXI25: 327 | AXJ25: 328 | AXK25: 328 | AXL25: 328 | AXM25: 328 | AXN25: 329 | AXO25: 329 | AXP25: 329 | AXQ25: 329 | AXR25: 330 | AXS25: 330 | AXT25: 330 | AXU25: 330 | AXV25: 331 | AXW25: 331 | AXX25: 331 | AXY25: 331 | AXZ25: 332 | AYA25: 332 | AYB25: 332 | AYC25: 332 | AYD25: 333 | AYE25: 333 | AYF25: 333 | AYG25: 333 | AYH25: 334 | AYI25: 334 | AYJ25: 334 | AYK25: 334 | AYL25: 335 | AYM25: 335 | AYN25: 335 | AYO25: 335 | AYP25: 336 | AYQ25: 336 | AYR25: 336 | AYS25: 336 | AYT25: 337 | AYU25: 337 | AYV25: =IF(MOD(AYV22,4)=1,AYU25+1,AYU25) -> 337 | AYW25: 337 | AYX25: 338 | AYY25: 338 | AYZ25: 338 | AZA25: 338 | AZB25: 339 | AZC25: 339 | AZD25: 339 | AZE25: 339 | AZF25: 340 | AZG25: 340 | AZH25: 340 | AZI25: 340 | AZJ25: 341 | AZK25: 341 | AZL25: 341 | AZM25: 341 | AZN25: 342 | AZO25: 342 | AZP25: 342 | AZQ25: 342 | AZR25: 343 | AZS25: 343 | AZT25: 343 | AZU25: 343 | AZV25: 344 | AZW25: 344 | AZX25: 344 | AZY25: 344 | AZZ25: 345 | BAA25: 345 | BAB25: 345 | BAC25: 345 | BAD25: 346 | BAE25: 346 | BAF25: 346 | BAG25: 346 | BAH25: 347 | BAI25: 347 | BAJ25: 347 | BAK25: 347 | BAL25: 348 | BAM25: 348 | BAN25: 348 | BAO25: 348 | BAP25: 349 | BAQ25: 349 | BAR25: 349 | BAS25: 349 | BAT25: 350 | BAU25: 350 | BAV25: 350 | BAW25: 350 | BAX25: 351 | BAY25: 351 | BAZ25: 351 | BBA25: 351 | BBB25: 352 | BBC25: 352 | BBD25: 352 | BBE25: 352 | BBF25: 353 | BBG25: 353 | BBH25: =IF(MOD(BBH22,4)=1,BBG25+1,BBG25) -> 353 | BBI25: 353 | BBJ25: 354 | BBK25: 354 | BBL25: 354 | BBM25: 354 | BBN25: 355 | BBO25: 355 | BBP25: 355 | BBQ25: 355 | BBR25: 356 | BBS25: 356 | BBT25: 356 | BBU25: 356 | BBV25: 357 | BBW25: 357 | BBX25: 357 | BBY25: 357 | BBZ25: 358 | BCA25: 358 | BCB25: 358 | BCC25: 358 | BCD25: 359 | BCE25: 359 | BCF25: 359 | BCG25: 359 | BCH25: 360 | BCI25: 360 | BCJ25: 360 | BCK25: 360 | BCL25: 361 | BCM25: 361 | BCN25: 361 | BCO25: 361 | BCP25: 362 | BCQ25: 362 | BCR25: 362 | BCS25: 362 | BCT25: 363 | BCU25: 363 | BCV25: 363 | BCW25: 363 | BCX25: 364 | BCY25: 364 | BCZ25: 364 | BDA25: 364 | BDB25: 365 | BDC25: 365 | BDD25: 365 | BDE25: 365
A26: Month | B26: 1 | C26: 1 | D26: 1 | E26: 1 | F26: 1 | G26: 1 | H26: 1 | I26: 1 | J26: 1 | K26: 1 | L26: 1 | M26: 1 | N26: 1 | O26: 1 | P26: 1 | Q26: 1 | R26: 1 | S26: 1 | T26: 1 | U26: 1 | V26: 1 | W26: 1 | X26: 1 | Y26: 1 | Z26: 1 | AA26: 1 | AB26: 1 | AC26: 1 | AD26: 1 | AE26: 1 | AF26: 1 | AG26: 1 | AH26: 1 | AI26: 1 | AJ26: 1 | AK26: 1 | AL26: 1 | AM26: 1 | AN26: 1 | AO26: 1 | AP26: 1 | AQ26: 1 | AR26: 1 | AS26: 1 | AT26: 1 | AU26: 1 | AV26: 1 | AW26: 1 | AX26: 1 | AY26: 1 | AZ26: 1 | BA26: 1 | BB26: 1 | BC26: 1 | BD26: 1 | BE26: 1 | BF26: 1 | BG26: 1 | BH26: 1 | BI26: 1 | BJ26: 1 | BK26: 1 | BL26: 1 | BM26: 1 | BN26: 1 | BO26: 1 | BP26: 1 | BQ26: 1 | BR26: 1 | BS26: 1 | BT26: 1 | BU26: 1 | BV26: 1 | BW26: 1 | BX26: 1 | BY26: 1 | BZ26: 1 | CA26: 1 | CB26: 1 | CC26: 1 | CD26: 1 | CE26: 1 | CF26: 1 | CG26: 1 | CH26: 1 | CI26: 1 | CJ26: 1 | CK26: 1 | CL26: 1 | CM26: 1 | CN26: 1 | CO26: 1 | CP26: 1 | CQ26: 1 | CR26: 1 | CS26: 1 | CT26: 1 | CU26: 1 | CV26: 1 | CW26: 1 | CX26: 1 | CY26: 1 | CZ26: 1 | DA26: 1 | DB26: 1 | DC26: 1 | DD26: 1 | DE26: 1 | DF26: 1 | DG26: 1 | DH26: 1 | DI26: 1 | DJ26: 1 | DK26: 1 | DL26: 1 | DM26: 1 | DN26: 1 | DO26: 1 | DP26: 1 | DQ26: 1 | DR26: 1 | DS26: 1 | DT26: 1 | DU26: 1 | DV26: 2 | DW26: 2 | DX26: 2 | DY26: 2 | DZ26: 2 | EA26: 2 | EB26: 2 | EC26: 2 | ED26: 2 | EE26: 2 | EF26: 2 | EG26: 2 | EH26: 2 | EI26: 2 | EJ26: 2 | EK26: 2 | EL26: 2 | EM26: 2 | EN26: 2 | EO26: 2 | EP26: 2 | EQ26: 2 | ER26: 2 | ES26: 2 | ET26: 2 | EU26: 2 | EV26: 2 | EW26: 2 | EX26: 2 | EY26: 2 | EZ26: 2 | FA26: 2 | FB26: 2 | FC26: 2 | FD26: 2 | FE26: 2 | FF26: 2 | FG26: 2 | FH26: 2 | FI26: 2 | FJ26: 2 | FK26: 2 | FL26: 2 | FM26: 2 | FN26: 2 | FO26: 2 | FP26: 2 | FQ26: 2 | FR26: 2 | FS26: 2 | FT26: 2 | FU26: 2 | FV26: 2 | FW26: 2 | FX26: 2 | FY26: 2 | FZ26: 2 | GA26: 2 | GB26: 2 | GC26: 2 | GD26: 2 | GE26: 2 | GF26: 2 | GG26: 2 | GH26: 2 | GI26: 2 | GJ26: 2 | GK26: 2 | GL26: 2 | GM26: 2 | GN26: 2 | GO26: 2 | GP26: 2 | GQ26: 2 | GR26: 2 | GS26: 2 | GT26: 2 | GU26: 2 | GV26: 2 | GW26: 2 | GX26: 2 | GY26: 2 | GZ26: 2 | HA26: 2 | HB26: 2 | HC26: 2 | HD26: 2 | HE26: 2 | HF26: 2 | HG26: 2 | HH26: 2 | HI26: 2 | HJ26: 2 | HK26: 2 | HL26: 2 | HM26: 2 | HN26: 2 | HO26: 2 | HP26: 2 | HQ26: 2 | HR26: 2 | HS26: 2 | HT26: 2 | HU26: 2 | HV26: 2 | HW26: 2 | HX26: 2 | HY26: 2 | HZ26: 2 | IA26: 2 | IB26: 2 | IC26: 2 | ID26: 3 | IE26: 3 | IF26: 3 | IG26: 3 | IH26: 3 | II26: 3 | IJ26: 3 | IK26: 3 | IL26: 3 | IM26: 3 | IN26: 3 | IO26: 3 | IP26: 3 | IQ26: 3 | IR26: 3 | IS26: 3 | IT26: 3 | IU26: 3 | IV26: 3 | IW26: 3 | IX26: 3 | IY26: 3 | IZ26: 3 | JA26: 3 | JB26: 3 | JC26: 3 | JD26: 3 | JE26: 3 | JF26: 3 | JG26: 3 | JH26: 3 | JI26: 3 | JJ26: 3 | JK26: 3 | JL26: 3 | JM26: 3 | JN26: 3 | JO26: 3 | JP26: 3 | JQ26: 3 | JR26: 3 | JS26: 3 | JT26: 3 | JU26: 3 | JV26: 3 | JW26: 3 | JX26: 3 | JY26: 3 | JZ26: 3 | KA26: 3 | KB26: 3 | KC26: 3 | KD26: 3 | KE26: 3 | KF26: 3 | KG26: 3 | KH26: 3 | KI26: 3 | KJ26: 3 | KK26: 3 | KL26: 3 | KM26: 3 | KN26: 3 | KO26: 3 | KP26: 3 | KQ26: 3 | KR26: 3 | KS26: 3 | KT26: 3 | KU26: 3 | KV26: 3 | KW26: 3 | KX26: 3 | KY26: 3 | KZ26: 3 | LA26: 3 | LB26: 3 | LC26: 3 | LD26: 3 | LE26: 3 | LF26: 3 | LG26: 3 | LH26: 3 | LI26: 3 | LJ26: 3 | LK26: 3 | LL26: 3 | LM26: 3 | LN26: 3 | LO26: 3 | LP26: 3 | LQ26: 3 | LR26: 3 | LS26: 3 | LT26: 3 | LU26: 3 | LV26: 3 | LW26: 3 | LX26: 3 | LY26: 3 | LZ26: 3 | MA26: 3 | MB26: 3 | MC26: 3 | MD26: 3 | ME26: 3 | MF26: 3 | MG26: 3 | MH26: 3 | MI26: 3 | MJ26: 3 | MK26: 3 | ML26: 3 | MM26: 3 | MN26: 3 | MO26: 3 | MP26: 3 | MQ26: 3 | MR26: 3 | MS26: 3 | MT26: 3 | MU26: 3 | MV26: 3 | MW26: 3 | MX26: 4 | MY26: 4 | MZ26: 4 | NA26: 4 | NB26: 4 | NC26: 4 | ND26: 4 | NE26: 4 | NF26: 4 | NG26: 4 | NH26: 4 | NI26: 4 | NJ26: 4 | NK26: 4 | NL26: 4 | NM26: 4 | NN26: 4 | NO26: 4 | NP26: 4 | NQ26: 4 | NR26: 4 | NS26: 4 | NT26: 4 | NU26: 4 | NV26: 4 | NW26: 4 | NX26: 4 | NY26: 4 | NZ26: 4 | OA26: 4 | OB26: 4 | OC26: 4 | OD26: 4 | OE26: 4 | OF26: 4 | OG26: 4 | OH26: 4 | OI26: 4 | OJ26: 4 | OK26: 4 | OL26: 4 | OM26: 4 | ON26: 4 | OO26: 4 | OP26: 4 | OQ26: 4 | OR26: 4 | OS26: 4 | OT26: 4 | OU26: 4 | OV26: 4 | OW26: 4 | OX26: 4 | OY26: 4 | OZ26: 4 | PA26: 4 | PB26: 4 | PC26: 4 | PD26: 4 | PE26: 4 | PF26: 4 | PG26: 4 | PH26: 4 | PI26: 4 | PJ26: 4 | PK26: 4 | PL26: 4 | PM26: 4 | PN26: 4 | PO26: 4 | PP26: 4 | PQ26: 4 | PR26: 4 | PS26: 4 | PT26: 4 | PU26: 4 | PV26: 4 | PW26: 4 | PX26: 4 | PY26: 4 | PZ26: 4 | QA26: 4 | QB26: 4 | QC26: 4 | QD26: 4 | QE26: 4 | QF26: 4 | QG26: 4 | QH26: 4 | QI26: 4 | QJ26: 4 | QK26: 4 | QL26: 4 | QM26: 4 | QN26: 4 | QO26: 4 | QP26: 4 | QQ26: 4 | QR26: 4 | QS26: 4 | QT26: 4 | QU26: 4 | QV26: 4 | QW26: 4 | QX26: 4 | QY26: 4 | QZ26: 4 | RA26: 4 | RB26: 4 | RC26: 4 | RD26: 4 | RE26: 4 | RF26: 4 | RG26: 4 | RH26: 4 | RI26: 4 | RJ26: 4 | RK26: 4 | RL26: 4 | RM26: 4 | RN26: 5 | RO26: 5 | RP26: 5 | RQ26: 5 | RR26: 5 | RS26: 5 | RT26: 5 | RU26: 5 | RV26: 5 | RW26: 5 | RX26: 5 | RY26: 5 | RZ26: 5 | SA26: 5 | SB26: 5 | SC26: 5 | SD26: 5 | SE26: 5 | SF26: 5 | SG26: 5 | SH26: 5 | SI26: 5 | SJ26: 5 | SK26: 5 | SL26: 5 | SM26: 5 | SN26: 5 | SO26: 5 | SP26: 5 | SQ26: 5 | SR26: 5 | SS26: 5 | ST26: 5 | SU26: 5 | SV26: 5 | SW26: 5 | SX26: 5 | SY26: 5 | SZ26: 5 | TA26: 5 | TB26: 5 | TC26: 5 | TD26: 5 | TE26: 5 | TF26: 5 | TG26: 5 | TH26: 5 | TI26: 5 | TJ26: 5 | TK26: 5 | TL26: 5 | TM26: 5 | TN26: 5 | TO26: 5 | TP26: 5 | TQ26: 5 | TR26: 5 | TS26: 5 | TT26: 5 | TU26: 5 | TV26: 5 | TW26: 5 | TX26: 5 | TY26: 5 | TZ26: 5 | UA26: 5 | UB26: 5 | UC26: 5 | UD26: 5 | UE26: 5 | UF26: 5 | UG26: 5 | UH26: 5 | UI26: 5 | UJ26: 5 | UK26: 5 | UL26: 5 | UM26: 5 | UN26: 5 | UO26: 5 | UP26: 5 | UQ26: 5 | UR26: 5 | US26: 5 | UT26: 5 | UU26: 5 | UV26: 5 | UW26: 5 | UX26: 5 | UY26: 5 | UZ26: 5 | VA26: 5 | VB26: 5 | VC26: 5 | VD26: 5 | VE26: 5 | VF26: 5 | VG26: 5 | VH26: 5 | VI26: 5 | VJ26: 5 | VK26: 5 | VL26: 5 | VM26: 5 | VN26: 5 | VO26: 5 | VP26: 5 | VQ26: 5 | VR26: 5 | VS26: 5 | VT26: 5 | VU26: 5 | VV26: 5 | VW26: 5 | VX26: 5 | VY26: 5 | VZ26: 5 | WA26: 5 | WB26: 5 | WC26: 5 | WD26: 5 | WE26: 5 | WF26: 5 | WG26: 5 | WH26: 6 | WI26: 6 | WJ26: 6 | WK26: 6 | WL26: 6 | WM26: 6 | WN26: 6 | WO26: 6 | WP26: 6 | WQ26: 6 | WR26: 6 | WS26: 6 | WT26: 6 | WU26: 6 | WV26: 6 | WW26: 6 | WX26: 6 | WY26: 6 | WZ26: 6 | XA26: 6 | XB26: 6 | XC26: 6 | XD26: 6 | XE26: 6 | XF26: 6 | XG26: 6 | XH26: 6 | XI26: 6 | XJ26: 6 | XK26: 6 | XL26: 6 | XM26: 6 | XN26: 6 | XO26: 6 | XP26: 6 | XQ26: 6 | XR26: 6 | XS26: 6 | XT26: 6 | XU26: 6 | XV26: 6 | XW26: 6 | XX26: 6 | XY26: 6 | XZ26: 6 | YA26: 6 | YB26: 6 | YC26: 6 | YD26: 6 | YE26: 6 | YF26: 6 | YG26: 6 | YH26: 6 | YI26: 6 | YJ26: 6 | YK26: 6 | YL26: 6 | YM26: 6 | YN26: 6 | YO26: 6 | YP26: 6 | YQ26: 6 | YR26: 6 | YS26: 6 | YT26: 6 | YU26: 6 | YV26: 6 | YW26: 6 | YX26: 6 | YY26: 6 | YZ26: 6 | ZA26: 6 | ZB26: 6 | ZC26: 6 | ZD26: 6 | ZE26: 6 | ZF26: 6 | ZG26: 6 | ZH26: 6 | ZI26: 6 | ZJ26: 6 | ZK26: 6 | ZL26: 6 | ZM26: 6 | ZN26: 6 | ZO26: 6 | ZP26: 6 | ZQ26: 6 | ZR26: 6 | ZS26: 6 | ZT26: 6 | ZU26: 6 | ZV26: 6 | ZW26: 6 | ZX26: 6 | ZY26: 6 | ZZ26: 6 | AAA26: 6 | AAB26: 6 | AAC26: 6 | AAD26: 6 | AAE26: 6 | AAF26: 6 | AAG26: 6 | AAH26: 6 | AAI26: 6 | AAJ26: 6 | AAK26: 6 | AAL26: 6 | AAM26: 6 | AAN26: 6 | AAO26: 6 | AAP26: 6 | AAQ26: 6 | AAR26: 6 | AAS26: 6 | AAT26: 6 | AAU26: 6 | AAV26: 6 | AAW26: 6 | AAX26: 7 | AAY26: 7 | AAZ26: 7 | ABA26: 7 | ABB26: 7 | ABC26: 7 | ABD26: 7 | ABE26: 7 | ABF26: 7 | ABG26: 7 | ABH26: 7 | ABI26: 7 | ABJ26: 7 | ABK26: 7 | ABL26: 7 | ABM26: 7 | ABN26: 7 | ABO26: 7 | ABP26: 7 | ABQ26: 7 | ABR26: 7 | ABS26: 7 | ABT26: 7 | ABU26: 7 | ABV26: 7 | ABW26: 7 | ABX26: 7 | ABY26: 7 | ABZ26: 7 | ACA26: 7 | ACB26: 7 | ACC26: 7 | ACD26: 7 | ACE26: 7 | ACF26: 7 | ACG26: 7 | ACH26: 7 | ACI26: 7 | ACJ26: 7 | ACK26: 7 | ACL26: 7 | ACM26: 7 | ACN26: 7 | ACO26: 7 | ACP26: 7 | ACQ26: 7 | ACR26: 7 | ACS26: 7 | ACT26: 7 | ACU26: 7 | ACV26: 7 | ACW26: 7 | ACX26: 7 | ACY26: 7 | ACZ26: 7 | ADA26: 7 | ADB26: 7 | ADC26: 7 | ADD26: 7 | ADE26: 7 | ADF26: 7 | ADG26: 7 | ADH26: 7 | ADI26: 7 | ADJ26: 7 | ADK26: 7 | ADL26: 7 | ADM26: 7 | ADN26: 7 | ADO26: 7 | ADP26: 7 | ADQ26: 7 | ADR26: 7 | ADS26: 7 | ADT26: 7 | ADU26: 7 | ADV26: 7 | ADW26: 7 | ADX26: 7 | ADY26: 7 | ADZ26: 7 | AEA26: 7 | AEB26: 7 | AEC26: 7 | AED26: 7 | AEE26: 7 | AEF26: 7 | AEG26: 7 | AEH26: 7 | AEI26: 7 | AEJ26: 7 | AEK26: 7 | AEL26: 7 | AEM26: 7 | AEN26: 7 | AEO26: 7 | AEP26: 7 | AEQ26: 7 | AER26: 7 | AES26: 7 | AET26: 7 | AEU26: 7 | AEV26: 7 | AEW26: 7 | AEX26: 7 | AEY26: 7 | AEZ26: 7 | AFA26: 7 | AFB26: 7 | AFC26: 7 | AFD26: 7 | AFE26: 7 | AFF26: 7 | AFG26: 7 | AFH26: 7 | AFI26: 7 | AFJ26: 7 | AFK26: 7 | AFL26: 7 | AFM26: 7 | AFN26: 7 | AFO26: 7 | AFP26: 7 | AFQ26: 7 | AFR26: 8 | AFS26: 8 | AFT26: 8 | AFU26: 8 | AFV26: 8 | AFW26: 8 | AFX26: 8 | AFY26: 8 | AFZ26: 8 | AGA26: 8 | AGB26: 8 | AGC26: 8 | AGD26: 8 | AGE26: 8 | AGF26: 8 | AGG26: 8 | AGH26: 8 | AGI26: 8 | AGJ26: 8 | AGK26: 8 | AGL26: 8 | AGM26: 8 | AGN26: 8 | AGO26: 8 | AGP26: 8 | AGQ26: 8 | AGR26: 8 | AGS26: 8 | AGT26: 8 | AGU26: 8 | AGV26: 8 | AGW26: 8 | AGX26: 8 | AGY26: 8 | AGZ26: 8 | AHA26: 8 | AHB26: 8 | AHC26: 8 | AHD26: 8 | AHE26: 8 | AHF26: 8 | AHG26: 8 | AHH26: 8 | AHI26: 8 | AHJ26: 8 | AHK26: 8 | AHL26: 8 | AHM26: 8 | AHN26: 8 | AHO26: 8 | AHP26: 8 | AHQ26: 8 | AHR26: 8 | AHS26: 8 | AHT26: 8 | AHU26: 8 | AHV26: 8 | AHW26: 8 | AHX26: 8 | AHY26: 8 | AHZ26: 8 | AIA26: 8 | AIB26: 8 | AIC26: 8 | AID26: 8 | AIE26: 8 | AIF26: 8 | AIG26: 8 | AIH26: 8 | AII26: 8 | AIJ26: 8 | AIK26: 8 | AIL26: 8 | AIM26: 8 | AIN26: 8 | AIO26: 8 | AIP26: 8 | AIQ26: 8 | AIR26: 8 | AIS26: 8 | AIT26: 8 | AIU26: 8 | AIV26: 8 | AIW26: 8 | AIX26: 8 | AIY26: 8 | AIZ26: 8 | AJA26: 8 | AJB26: 8 | AJC26: 8 | AJD26: 8 | AJE26: 8 | AJF26: 8 | AJG26: 8 | AJH26: 8 | AJI26: 8 | AJJ26: 8 | AJK26: 8 | AJL26: 8 | AJM26: 8 | AJN26: 8 | AJO26: 8 | AJP26: 8 | AJQ26: 8 | AJR26: 8 | AJS26: 8 | AJT26: 8 | AJU26: 8 | AJV26: 8 | AJW26: 8 | AJX26: 8 | AJY26: 8 | AJZ26: 8 | AKA26: 8 | AKB26: 8 | AKC26: 8 | AKD26: 8 | AKE26: 8 | AKF26: 8 | AKG26: 8 | AKH26: 8 | AKI26: 8 | AKJ26: 8 | AKK26: 8 | AKL26: 9 | AKM26: 9 | AKN26: 9 | AKO26: 9 | AKP26: 9 | AKQ26: 9 | AKR26: 9 | AKS26: 9 | AKT26: 9 | AKU26: 9 | AKV26: 9 | AKW26: 9 | AKX26: 9 | AKY26: 9 | AKZ26: 9 | ALA26: 9 | ALB26: 9 | ALC26: 9 | ALD26: 9 | ALE26: 9 | ALF26: 9 | ALG26: 9 | ALH26: 9 | ALI26: 9 | ALJ26: 9 | ALK26: 9 | ALL26: 9 | ALM26: 9 | ALN26: 9 | ALO26: 9 | ALP26: 9 | ALQ26: 9 | ALR26: 9 | ALS26: 9 | ALT26: 9 | ALU26: 9 | ALV26: 9 | ALW26: 9 | ALX26: 9 | ALY26: 9 | ALZ26: 9 | AMA26: 9 | AMB26: 9 | AMC26: 9 | AMD26: 9 | AME26: 9 | AMF26: 9 | AMG26: 9 | AMH26: 9 | AMI26: 9 | AMJ26: 9 | AMK26: 9 | AML26: 9 | AMM26: 9 | AMN26: 9 | AMO26: 9 | AMP26: 9 | AMQ26: 9 | AMR26: 9 | AMS26: 9 | AMT26: 9 | AMU26: 9 | AMV26: 9 | AMW26: 9 | AMX26: 9 | AMY26: 9 | AMZ26: 9 | ANA26: 9 | ANB26: 9 | ANC26: 9 | AND26: 9 | ANE26: 9 | ANF26: 9 | ANG26: 9 | ANH26: 9 | ANI26: 9 | ANJ26: 9 | ANK26: 9 | ANL26: 9 | ANM26: 9 | ANN26: 9 | ANO26: 9 | ANP26: 9 | ANQ26: 9 | ANR26: 9 | ANS26: 9 | ANT26: 9 | ANU26: 9 | ANV26: 9 | ANW26: 9 | ANX26: 9 | ANY26: 9 | ANZ26: 9 | AOA26: 9 | AOB26: 9 | AOC26: 9 | AOD26: 9 | AOE26: 9 | AOF26: 9 | AOG26: 9 | AOH26: 9 | AOI26: 9 | AOJ26: 9 | AOK26: 9 | AOL26: 9 | AOM26: 9 | AON26: 9 | AOO26: 9 | AOP26: 9 | AOQ26: 9 | AOR26: 9 | AOS26: 9 | AOT26: 9 | AOU26: 9 | AOV26: 9 | AOW26: 9 | AOX26: 9 | AOY26: 9 | AOZ26: 9 | APA26: 9 | APB26: 10 | APC26: 10 | APD26: 10 | APE26: 10 | APF26: 10 | APG26: 10 | APH26: 10 | API26: 10 | APJ26: 10 | APK26: 10 | APL26: 10 | APM26: 10 | APN26: 10 | APO26: 10 | APP26: 10 | APQ26: 10 | APR26: 10 | APS26: 10 | APT26: 10 | APU26: 10 | APV26: 10 | APW26: 10 | APX26: 10 | APY26: 10 | APZ26: 10 | AQA26: 10 | AQB26: 10 | AQC26: 10 | AQD26: 10 | AQE26: 10 | AQF26: 10 | AQG26: 10 | AQH26: 10 | AQI26: 10 | AQJ26: 10 | AQK26: 10 | AQL26: 10 | AQM26: 10 | AQN26: 10 | AQO26: 10 | AQP26: 10 | AQQ26: 10 | AQR26: 10 | AQS26: 10 | AQT26: 10 | AQU26: 10 | AQV26: 10 | AQW26: 10 | AQX26: 10 | AQY26: 10 | AQZ26: 10 | ARA26: 10 | ARB26: 10 | ARC26: 10 | ARD26: 10 | ARE26: 10 | ARF26: 10 | ARG26: 10 | ARH26: 10 | ARI26: 10 | ARJ26: 10 | ARK26: 10 | ARL26: 10 | ARM26: 10 | ARN26: 10 | ARO26: 10 | ARP26: 10 | ARQ26: 10 | ARR26: 10 | ARS26: 10 | ART26: 10 | ARU26: 10 | ARV26: 10 | ARW26: 10 | ARX26: 10 | ARY26: 10 | ARZ26: 10 | ASA26: 10 | ASB26: 10 | ASC26: 10 | ASD26: 10 | ASE26: 10 | ASF26: 10 | ASG26: 10 | ASH26: 10 | ASI26: 10 | ASJ26: 10 | ASK26: 10 | ASL26: 10 | ASM26: 10 | ASN26: 10 | ASO26: 10 | ASP26: 10 | ASQ26: 10 | ASR26: 10 | ASS26: 10 | AST26: 10 | ASU26: 10 | ASV26: 10 | ASW26: 10 | ASX26: 10 | ASY26: 10 | ASZ26: 10 | ATA26: 10 | ATB26: 10 | ATC26: 10 | ATD26: 10 | ATE26: 10 | ATF26: 10 | ATG26: 10 | ATH26: 10 | ATI26: 10 | ATJ26: 10 | ATK26: 10 | ATL26: 10 | ATM26: 10 | ATN26: 10 | ATO26: 10 | ATP26: 10 | ATQ26: 10 | ATR26: 10 | ATS26: 10 | ATT26: 10 | ATU26: 10 | ATV26: 11 | ATW26: 11 | ATX26: 11 | ATY26: 11 | ATZ26: 11 | AUA26: 11 | AUB26: 11 | AUC26: 11 | AUD26: 11 | AUE26: 11 | AUF26: 11 | AUG26: 11 | AUH26: 11 | AUI26: 11 | AUJ26: 11 | AUK26: 11 | AUL26: 11 | AUM26: 11 | AUN26: 11 | AUO26: 11 | AUP26: 11 | AUQ26: 11 | AUR26: 11 | AUS26: 11 | AUT26: 11 | AUU26: 11 | AUV26: 11 | AUW26: 11 | AUX26: 11 | AUY26: 11 | AUZ26: 11 | AVA26: 11 | AVB26: 11 | AVC26: 11 | AVD26: 11 | AVE26: 11 | AVF26: 11 | AVG26: 11 | AVH26: 11 | AVI26: 11 | AVJ26: 11 | AVK26: 11 | AVL26: 11 | AVM26: 11 | AVN26: 11 | AVO26: 11 | AVP26: 11 | AVQ26: 11 | AVR26: 11 | AVS26: 11 | AVT26: 11 | AVU26: 11 | AVV26: 11 | AVW26: 11 | AVX26: 11 | AVY26: 11 | AVZ26: 11 | AWA26: 11 | AWB26: 11 | AWC26: 11 | AWD26: 11 | AWE26: 11 | AWF26: 11 | AWG26: 11 | AWH26: 11 | AWI26: 11 | AWJ26: 11 | AWK26: 11 | AWL26: 11 | AWM26: 11 | AWN26: 11 | AWO26: 11 | AWP26: 11 | AWQ26: 11 | AWR26: 11 | AWS26: 11 | AWT26: 11 | AWU26: 11 | AWV26: 11 | AWW26: 11 | AWX26: 11 | AWY26: 11 | AWZ26: 11 | AXA26: 11 | AXB26: 11 | AXC26: 11 | AXD26: 11 | AXE26: 11 | AXF26: 11 | AXG26: 11 | AXH26: 11 | AXI26: 11 | AXJ26: 11 | AXK26: 11 | AXL26: 11 | AXM26: 11 | AXN26: 11 | AXO26: 11 | AXP26: 11 | AXQ26: 11 | AXR26: 11 | AXS26: 11 | AXT26: 11 | AXU26: 11 | AXV26: 11 | AXW26: 11 | AXX26: 11 | AXY26: 11 | AXZ26: 11 | AYA26: 11 | AYB26: 11 | AYC26: 11 | AYD26: 11 | AYE26: 11 | AYF26: 11 | AYG26: 11 | AYH26: 11 | AYI26: 11 | AYJ26: 11 | AYK26: 11 | AYL26: 12 | AYM26: 12 | AYN26: 12 | AYO26: 12 | AYP26: 12 | AYQ26: 12 | AYR26: 12 | AYS26: 12 | AYT26: 12 | AYU26: 12 | AYV26: 12 | AYW26: 12 | AYX26: 12 | AYY26: 12 | AYZ26: 12 | AZA26: 12 | AZB26: 12 | AZC26: 12 | AZD26: 12 | AZE26: 12 | AZF26: 12 | AZG26: 12 | AZH26: 12 | AZI26: 12 | AZJ26: 12 | AZK26: 12 | AZL26: 12 | AZM26: 12 | AZN26: 12 | AZO26: 12 | AZP26: 12 | AZQ26: 12 | AZR26: 12 | AZS26: 12 | AZT26: 12 | AZU26: 12 | AZV26: 12 | AZW26: 12 | AZX26: 12 | AZY26: 12 | AZZ26: 12 | BAA26: 12 | BAB26: 12 | BAC26: 12 | BAD26: 12 | BAE26: 12 | BAF26: 12 | BAG26: 12 | BAH26: 12 | BAI26: 12 | BAJ26: 12 | BAK26: 12 | BAL26: 12 | BAM26: 12 | BAN26: 12 | BAO26: 12 | BAP26: 12 | BAQ26: 12 | BAR26: 12 | BAS26: 12 | BAT26: 12 | BAU26: 12 | BAV26: 12 | BAW26: 12 | BAX26: 12 | BAY26: 12 | BAZ26: 12 | BBA26: 12 | BBB26: 12 | BBC26: 12 | BBD26: 12 | BBE26: 12 | BBF26: 12 | BBG26: 12 | BBH26: 12 | BBI26: 12 | BBJ26: 12 | BBK26: 12 | BBL26: 12 | BBM26: 12 | BBN26: 12 | BBO26: 12 | BBP26: 12 | BBQ26: 12 | BBR26: 12 | BBS26: 12 | BBT26: 12 | BBU26: 12 | BBV26: 12 | BBW26: 12 | BBX26: 12 | BBY26: 12 | BBZ26: 12 | BCA26: 12 | BCB26: 12 | BCC26: 12 | BCD26: 12 | BCE26: 12 | BCF26: 12 | BCG26: 12 | BCH26: 12 | BCI26: 12 | BCJ26: 12 | BCK26: 12 | BCL26: 12 | BCM26: 12 | BCN26: 12 | BCO26: 12 | BCP26: 12 | BCQ26: 12 | BCR26: 12 | BCS26: 12 | BCT26: 12 | BCU26: 12 | BCV26: 12 | BCW26: 12 | BCX26: 12 | BCY26: 12 | BCZ26: 12 | BDA26: 12 | BDB26: 12 | BDC26: 12 | BDD26: 12 | BDE26: 12
A27: Multiplier | B27: 1000 | C27: 1000 | D27: 1000 | E27: 1000 | F27: 1000 | G27: 1000 | H27: 1000 | I27: 1000 | J27: 1000 | K27: 1000 | L27: 1000 | M27: 1000 | N27: 1000 | O27: 1000 | P27: 1000 | Q27: 1000 | R27: 1000 | S27: 1000 | T27: 1000 | U27: 1000 | V27: 1000 | W27: 1000 | X27: 1000 | Y27: 1000 | Z27: 1000 | AA27: 1000 | AB27: 1000 | AC27: 1000 | AD27: 1000 | AE27: 1000 | AF27: 1000 | AG27: 1000 | AH27: 1000 | AI27: 1000 | AJ27: 1000 | AK27: 1000 | AL27: 1000 | AM27: 1000 | AN27: 1000 | AO27: 1000 | AP27: 1000 | AQ27: 1000 | AR27: 1000 | AS27: 1000 | AT27: 1000 | AU27: 1000 | AV27: 1000 | AW27: 1000 | AX27: 1000 | AY27: 1000 | AZ27: 1000 | BA27: 1000 | BB27: 1000 | BC27: 1000 | BD27: 1000 | BE27: 1000 | BF27: 1000 | BG27: 1000 | BH27: 1000 | BI27: 1000 | BJ27: 1000 | BK27: 1000 | BL27: 1000 | BM27: 1000 | BN27: 1000 | BO27: 1000 | BP27: 1000 | BQ27: 1000 | BR27: 1000 | BS27: 1000 | BT27: 1000 | BU27: 1000 | BV27: 1000 | BW27: 1000 | BX27: 1000 | BY27: 1000 | BZ27: 1000 | CA27: 1000 | CB27: 1000 | CC27: 1000 | CD27: 1000 | CE27: 1000 | CF27: 1000 | CG27: 1000 | CH27: 1000 | CI27: 1000 | CJ27: 1000 | CK27: 1000 | CL27: 1000 | CM27: 1000 | CN27: 1000 | CO27: 1000 | CP27: 1000 | CQ27: 1000 | CR27: 1000 | CS27: 1000 | CT27: 1000 | CU27: 1000 | CV27: 1000 | CW27: 1000 | CX27: 1000 | CY27: 1000 | CZ27: 1000 | DA27: 1000 | DB27: 1000 | DC27: 1000 | DD27: 1000 | DE27: 1000 | DF27: 1000 | DG27: 1000 | DH27: 1000 | DI27: 1000 | DJ27: 1000 | DK27: 1000 | DL27: 1000 | DM27: 1000 | DN27: 1000 | DO27: 1000 | DP27: 1000 | DQ27: 1000 | DR27: 1000 | DS27: 1000 | DT27: 1000 | DU27: 1000 | DV27: 1000 | DW27: 1000 | DX27: 1000 | DY27: 1000 | DZ27: 1000 | EA27: 1000 | EB27: 1000 | EC27: 1000 | ED27: 1000 | EE27: 1000 | EF27: 1000 | EG27: 1000 | EH27: 1000 | EI27: 1000 | EJ27: 1000 | EK27: 1000 | EL27: 1000 | EM27: 1000 | EN27: 1000 | EO27: 1000 | EP27: 1000 | EQ27: 1000 | ER27: 1000 | ES27: 1000 | ET27: 1000 | EU27: 1000 | EV27: 1000 | EW27: 1000 | EX27: 1000 | EY27: 1000 | EZ27: 1000 | FA27: 1000 | FB27: 1000 | FC27: 1000 | FD27: 1000 | FE27: 1000 | FF27: 1000 | FG27: 1000 | FH27: 1000 | FI27: 1000 | FJ27: 1000 | FK27: 1000 | FL27: 1000 | FM27: 1000 | FN27: 1000 | FO27: 1000 | FP27: 1000 | FQ27: 1000 | FR27: 1000 | FS27: 1000 | FT27: 1000 | FU27: 1000 | FV27: 1000 | FW27: 1000 | FX27: 1000 | FY27: 1000 | FZ27: 1000 | GA27: 1000 | GB27: 1000 | GC27: 1000 | GD27: 1000 | GE27: 1000 | GF27: 1000 | GG27: 1000 | GH27: 1000 | GI27: 1000 | GJ27: 1000 | GK27: 1000 | GL27: 1000 | GM27: 1000 | GN27: 1000 | GO27: 1000 | GP27: 1000 | GQ27: 1000 | GR27: 1000 | GS27: 1000 | GT27: 1000 | GU27: 1000 | GV27: 1000 | GW27: 1000 | GX27: 1000 | GY27: 1000 | GZ27: 1000 | HA27: 1000 | HB27: 1000 | HC27: 1000 | HD27: 1000 | HE27: 1000 | HF27: 1000 | HG27: 1000 | HH27: 1000 | HI27: 1000 | HJ27: 1000 | HK27: 1000 | HL27: 1000 | HM27: 1000 | HN27: 1000 | HO27: 1000 | HP27: 1000 | HQ27: 1000 | HR27: 1000 | HS27: 1000 | HT27: 1000 | HU27: 1000 | HV27: 1000 | HW27: 1000 | HX27: 1000 | HY27: 1000 | HZ27: 1000 | IA27: 1000 | IB27: 1000 | IC27: 1000 | ID27: 1000 | IE27: 1000 | IF27: 1000 | IG27: 1000 | IH27: 1000 | II27: 1000 | IJ27: 1000 | IK27: 1000 | IL27: 1000 | IM27: 1000 | IN27: 1000 | IO27: 1000 | IP27: 1000 | IQ27: 1000 | IR27: 1000 | IS27: 1000 | IT27: 1000 | IU27: 1000 | IV27: 1000 | IW27: 1000 | IX27: 1000 | IY27: 1000 | IZ27: 1000 | JA27: 1000 | JB27: 1000 | JC27: 1000 | JD27: 1000 | JE27: 1000 | JF27: 1000 | JG27: 1000 | JH27: 1000 | JI27: 1000 | JJ27: 1000 | JK27: 1000 | JL27: 1000 | JM27: 1000 | JN27: 1000 | JO27: 1000 | JP27: 1000 | JQ27: 1000 | JR27: 1000 | JS27: 1000 | JT27: 1000 | JU27: 1000 | JV27: 1000 | JW27: 1000 | JX27: 1000 | JY27: 1000 | JZ27: 1000 | KA27: 1000 | KB27: 1000 | KC27: 1000 | KD27: 1000 | KE27: 1000 | KF27: 1000 | KG27: 1000 | KH27: 1000 | KI27: 1000 | KJ27: 1000 | KK27: 1000 | KL27: 1000 | KM27: 1000 | KN27: 1000 | KO27: 1000 | KP27: 1000 | KQ27: 1000 | KR27: 1000 | KS27: 1000 | KT27: 1000 | KU27: 1000 | KV27: 1000 | KW27: 1000 | KX27: 1000 | KY27: 1000 | KZ27: 1000 | LA27: 1000 | LB27: 1000 | LC27: 1000 | LD27: 1000 | LE27: 1000 | LF27: 1000 | LG27: 1000 | LH27: 1000 | LI27: 1000 | LJ27: 1000 | LK27: 1000 | LL27: 1000 | LM27: 1000 | LN27: 1000 | LO27: 1000 | LP27: 1000 | LQ27: 1000 | LR27: 1000 | LS27: 1000 | LT27: 1000 | LU27: 1000 | LV27: 1000 | LW27: 1000 | LX27: 1000 | LY27: 1000 | LZ27: 1000 | MA27: 1000 | MB27: 1000 | MC27: 1000 | MD27: 1000 | ME27: 1000 | MF27: 1000 | MG27: 1000 | MH27: 1000 | MI27: 1000 | MJ27: 1000 | MK27: 1000 | ML27: 1000 | MM27: 1000 | MN27: 1000 | MO27: 1000 | MP27: 1000 | MQ27: 1000 | MR27: 1000 | MS27: 1000 | MT27: 1000 | MU27: 1000 | MV27: 1000 | MW27: 1000 | MX27: 1000 | MY27: 1000 | MZ27: 1000 | NA27: 1000 | NB27: 1000 | NC27: 1000 | ND27: 1000 | NE27: 1000 | NF27: 1000 | NG27: 1000 | NH27: 1000 | NI27: 1000 | NJ27: 1000 | NK27: 1000 | NL27: 1000 | NM27: 1000 | NN27: 1000 | NO27: 1000 | NP27: 1000 | NQ27: 1000 | NR27: 1000 | NS27: 1000 | NT27: 1000 | NU27: 1000 | NV27: 1000 | NW27: 1000 | NX27: 1000 | NY27: 1000 | NZ27: 1000 | OA27: 1000 | OB27: 1000 | OC27: 1000 | OD27: 1000 | OE27: 1000 | OF27: 1000 | OG27: 1000 | OH27: 1000 | OI27: 1000 | OJ27: 1000 | OK27: 1000 | OL27: 1000 | OM27: 1000 | ON27: 1000 | OO27: 1000 | OP27: 1000 | OQ27: 1000 | OR27: 1000 | OS27: 1000 | OT27: 1000 | OU27: 1000 | OV27: 1000 | OW27: 1000 | OX27: 1000 | OY27: 1000 | OZ27: 1000 | PA27: 1000 | PB27: 1000 | PC27: 1000 | PD27: 1000 | PE27: 1000 | PF27: 1000 | PG27: 1000 | PH27: 1000 | PI27: 1000 | PJ27: 1000 | PK27: 1000 | PL27: 1000 | PM27: 1000 | PN27: 1000 | PO27: 1000 | PP27: 1000 | PQ27: 1000 | PR27: 1000 | PS27: 1000 | PT27: 1000 | PU27: 1000 | PV27: 1000 | PW27: 1000 | PX27: 1000 | PY27: 1000 | PZ27: 1000 | QA27: 1000 | QB27: 1000 | QC27: 1000 | QD27: 1000 | QE27: 1000 | QF27: 1000 | QG27: 1000 | QH27: 1000 | QI27: 1000 | QJ27: 1000 | QK27: 1000 | QL27: 1000 | QM27: 1000 | QN27: 1000 | QO27: 1000 | QP27: 1000 | QQ27: 1000 | QR27: 1000 | QS27: 1000 | QT27: 1000 | QU27: 1000 | QV27: 1000 | QW27: 1000 | QX27: 1000 | QY27: 1000 | QZ27: 1000 | RA27: 1000 | RB27: 1000 | RC27: 1000 | RD27: 1000 | RE27: 1000 | RF27: 1000 | RG27: 1000 | RH27: 1000 | RI27: 1000 | RJ27: 1000 | RK27: 1000 | RL27: 1000 | RM27: 1000 | RN27: 1000 | RO27: 1000 | RP27: 1000 | RQ27: 1000 | RR27: 1000 | RS27: 1000 | RT27: 1000 | RU27: 1000 | RV27: 1000 | RW27: 1000 | RX27: 1000 | RY27: 1000 | RZ27: 1000 | SA27: 1000 | SB27: 1000 | SC27: 1000 | SD27: 1000 | SE27: 1000 | SF27: 1000 | SG27: 1000 | SH27: 1000 | SI27: 1000 | SJ27: 1000 | SK27: 1000 | SL27: 1000 | SM27: 1000 | SN27: 1000 | SO27: 1000 | SP27: 1000 | SQ27: 1000 | SR27: 1000 | SS27: 1000 | ST27: 1000 | SU27: 1000 | SV27: 1000 | SW27: 1000 | SX27: 1000 | SY27: 1000 | SZ27: 1000 | TA27: 1000 | TB27: 1000 | TC27: 1000 | TD27: 1000 | TE27: 1000 | TF27: 1000 | TG27: 1000 | TH27: 1000 | TI27: 1000 | TJ27: 1000 | TK27: 1000 | TL27: 1000 | TM27: 1000 | TN27: 1000 | TO27: 1000 | TP27: 1000 | TQ27: 1000 | TR27: 1000 | TS27: 1000 | TT27: 1000 | TU27: 1000 | TV27: 1000 | TW27: 1000 | TX27: 1000 | TY27: 1000 | TZ27: 1000 | UA27: 1000 | UB27: 1000 | UC27: 1000 | UD27: 1000 | UE27: 1000 | UF27: 1000 | UG27: 1000 | UH27: 1000 | UI27: 1000 | UJ27: 1000 | UK27: 1000 | UL27: 1000 | UM27: 1000 | UN27: 1000 | UO27: 1000 | UP27: 1000 | UQ27: 1000 | UR27: 1000 | US27: 1000 | UT27: 1000 | UU27: 1000 | UV27: 1000 | UW27: 1000 | UX27: 1000 | UY27: 1000 | UZ27: 1000 | VA27: 1000 | VB27: 1000 | VC27: 1000 | VD27: 1000 | VE27: 1000 | VF27: 1000 | VG27: 1000 | VH27: 1000 | VI27: 1000 | VJ27: 1000 | VK27: 1000 | VL27: 1000 | VM27: 1000 | VN27: 1000 | VO27: 1000 | VP27: 1000 | VQ27: 1000 | VR27: 1000 | VS27: 1000 | VT27: 1000 | VU27: 1000 | VV27: 1000 | VW27: 1000 | VX27: 1000 | VY27: 1000 | VZ27: 1000 | WA27: 1000 | WB27: 1000 | WC27: 1000 | WD27: 1000 | WE27: 1000 | WF27: 1000 | WG27: 1000 | WH27: 1000 | WI27: 1000 | WJ27: 1000 | WK27: 1000 | WL27: 1000 | WM27: 1000 | WN27: 1000 | WO27: 1000 | WP27: 1000 | WQ27: 1000 | WR27: 1000 | WS27: 1000 | WT27: 1000 | WU27: 1000 | WV27: 1000 | WW27: 1000 | WX27: 1000 | WY27: 1000 | WZ27: 1000 | XA27: 1000 | XB27: 1000 | XC27: 1000 | XD27: 1000 | XE27: 1000 | XF27: 1000 | XG27: 1000 | XH27: 1000 | XI27: 1000 | XJ27: 1000 | XK27: 1000 | XL27: 1000 | XM27: 1000 | XN27: 1000 | XO27: 1000 | XP27: 1000 | XQ27: 1000 | XR27: 1000 | XS27: 1000 | XT27: 1000 | XU27: 1000 | XV27: 1000 | XW27: 1000 | XX27: 1000 | XY27: 1000 | XZ27: 1000 | YA27: 1000 | YB27: 1000 | YC27: 1000 | YD27: 1000 | YE27: 1000 | YF27: 1000 | YG27: 1000 | YH27: 1000 | YI27: 1000 | YJ27: 1000 | YK27: 1000 | YL27: 1000 | YM27: 1000 | YN27: 1000 | YO27: 1000 | YP27: 1000 | YQ27: 1000 | YR27: 1000 | YS27: 1000 | YT27: 1000 | YU27: 1000 | YV27: 1000 | YW27: 1000 | YX27: 1000 | YY27: 1000 | YZ27: 1000 | ZA27: 1000 | ZB27: 1000 | ZC27: 1000 | ZD27: 1000 | ZE27: 1000 | ZF27: 1000 | ZG27: 1000 | ZH27: 1000 | ZI27: 1000 | ZJ27: 1000 | ZK27: 1000 | ZL27: 1000 | ZM27: 1000 | ZN27: 1000 | ZO27: 1000 | ZP27: 1000 | ZQ27: 1000 | ZR27: 1000 | ZS27: 1000 | ZT27: 1000 | ZU27: 1000 | ZV27: 1000 | ZW27: 1000 | ZX27: 1000 | ZY27: 1000 | ZZ27: 1000 | AAA27: 1000 | AAB27: 1000 | AAC27: 1000 | AAD27: 1000 | AAE27: 1000 | AAF27: 1000 | AAG27: 1000 | AAH27: 1000 | AAI27: 1000 | AAJ27: 1000 | AAK27: 1000 | AAL27: 1000 | AAM27: 1000 | AAN27: 1000 | AAO27: 1000 | AAP27: 1000 | AAQ27: 1000 | AAR27: 1000 | AAS27: 1000 | AAT27: 1000 | AAU27: 1000 | AAV27: 1000 | AAW27: 1000 | AAX27: 1000 | AAY27: 1000 | AAZ27: 1000 | ABA27: 1000 | ABB27: 1000 | ABC27: 1000 | ABD27: 1000 | ABE27: 1000 | ABF27: 1000 | ABG27: 1000 | ABH27: 1000 | ABI27: 1000 | ABJ27: 1000 | ABK27: 1000 | ABL27: 1000 | ABM27: 1000 | ABN27: 1000 | ABO27: 1000 | ABP27: 1000 | ABQ27: 1000 | ABR27: 1000 | ABS27: 1000 | ABT27: 1000 | ABU27: 1000 | ABV27: 1000 | ABW27: 1000 | ABX27: 1000 | ABY27: 1000 | ABZ27: 1000 | ACA27: 1000 | ACB27: 1000 | ACC27: 1000 | ACD27: 1000 | ACE27: 1000 | ACF27: 1000 | ACG27: 1000 | ACH27: 1000 | ACI27: 1000 | ACJ27: 1000 | ACK27: 1000 | ACL27: 1000 | ACM27: 1000 | ACN27: 1000 | ACO27: 1000 | ACP27: 1000 | ACQ27: 1000 | ACR27: 1000 | ACS27: 1000 | ACT27: 1000 | ACU27: 1000 | ACV27: 1000 | ACW27: 1000 | ACX27: 1000 | ACY27: 1000 | ACZ27: 1000 | ADA27: 1000 | ADB27: 1000 | ADC27: 1000 | ADD27: 1000 | ADE27: 1000 | ADF27: 1000 | ADG27: 1000 | ADH27: 1000 | ADI27: 1000 | ADJ27: 1000 | ADK27: 1000 | ADL27: 1000 | ADM27: 1000 | ADN27: 1000 | ADO27: 1000 | ADP27: 1000 | ADQ27: 1000 | ADR27: 1000 | ADS27: 1000 | ADT27: 1000 | ADU27: 1000 | ADV27: 1000 | ADW27: 1000 | ADX27: 1000 | ADY27: 1000 | ADZ27: 1000 | AEA27: 1000 | AEB27: 1000 | AEC27: 1000 | AED27: 1000 | AEE27: 1000 | AEF27: 1000 | AEG27: 1000 | AEH27: 1000 | AEI27: 1000 | AEJ27: 1000 | AEK27: 1000 | AEL27: 1000 | AEM27: 1000 | AEN27: 1000 | AEO27: 1000 | AEP27: 1000 | AEQ27: 1000 | AER27: 1000 | AES27: 1000 | AET27: 1000 | AEU27: 1000 | AEV27: 1000 | AEW27: 1000 | AEX27: 1000 | AEY27: 1000 | AEZ27: 1000 | AFA27: 1000 | AFB27: 1000 | AFC27: 1000 | AFD27: 1000 | AFE27: 1000 | AFF27: 1000 | AFG27: 1000 | AFH27: 1000 | AFI27: 1000 | AFJ27: 1000 | AFK27: 1000 | AFL27: 1000 | AFM27: 1000 | AFN27: 1000 | AFO27: 1000 | AFP27: 1000 | AFQ27: 1000 | AFR27: 1000 | AFS27: 1000 | AFT27: 1000 | AFU27: 1000 | AFV27: 1000 | AFW27: 1000 | AFX27: 1000 | AFY27: 1000 | AFZ27: 1000 | AGA27: 1000 | AGB27: 1000 | AGC27: 1000 | AGD27: 1000 | AGE27: 1000 | AGF27: 1000 | AGG27: 1000 | AGH27: 1000 | AGI27: 1000 | AGJ27: 1000 | AGK27: 1000 | AGL27: 1000 | AGM27: 1000 | AGN27: 1000 | AGO27: 1000 | AGP27: 1000 | AGQ27: 1000 | AGR27: 1000 | AGS27: 1000 | AGT27: 1000 | AGU27: 1000 | AGV27: 1000 | AGW27: 1000 | AGX27: 1000 | AGY27: 1000 | AGZ27: 1000 | AHA27: 1000 | AHB27: 1000 | AHC27: 1000 | AHD27: 1000 | AHE27: 1000 | AHF27: 1000 | AHG27: 1000 | AHH27: 1000 | AHI27: 1000 | AHJ27: 1000 | AHK27: 1000 | AHL27: 1000 | AHM27: 1000 | AHN27: 1000 | AHO27: 1000 | AHP27: 1000 | AHQ27: 1000 | AHR27: 1000 | AHS27: 1000 | AHT27: 1000 | AHU27: 1000 | AHV27: 1000 | AHW27: 1000 | AHX27: 1000 | AHY27: 1000 | AHZ27: 1000 | AIA27: 1000 | AIB27: 1000 | AIC27: 1000 | AID27: 1000 | AIE27: 1000 | AIF27: 1000 | AIG27: 1000 | AIH27: 1000 | AII27: 1000 | AIJ27: 1000 | AIK27: 1000 | AIL27: 1000 | AIM27: 1000 | AIN27: 1000 | AIO27: 1000 | AIP27: 1000 | AIQ27: 1000 | AIR27: 1000 | AIS27: 1000 | AIT27: 1000 | AIU27: 1000 | AIV27: 1000 | AIW27: 1000 | AIX27: 1000 | AIY27: 1000 | AIZ27: 1000 | AJA27: 1000 | AJB27: 1000 | AJC27: 1000 | AJD27: 1000 | AJE27: 1000 | AJF27: 1000 | AJG27: 1000 | AJH27: 1000 | AJI27: 1000 | AJJ27: 1000 | AJK27: 1000 | AJL27: 1000 | AJM27: 1000 | AJN27: 1000 | AJO27: 1000 | AJP27: 1000 | AJQ27: 1000 | AJR27: 1000 | AJS27: 1000 | AJT27: 1000 | AJU27: 1000 | AJV27: 1000 | AJW27: 1000 | AJX27: 1000 | AJY27: 1000 | AJZ27: 1000 | AKA27: 1000 | AKB27: 1000 | AKC27: 1000 | AKD27: 1000 | AKE27: 1000 | AKF27: 1000 | AKG27: 1000 | AKH27: 1000 | AKI27: 1000 | AKJ27: 1000 | AKK27: 1000 | AKL27: 1000 | AKM27: 1000 | AKN27: 1000 | AKO27: 1000 | AKP27: 1000 | AKQ27: 1000 | AKR27: 1000 | AKS27: 1000 | AKT27: 1000 | AKU27: 1000 | AKV27: 1000 | AKW27: 1000 | AKX27: 1000 | AKY27: 1000 | AKZ27: 1000 | ALA27: 1000 | ALB27: 1000 | ALC27: 1000 | ALD27: 1000 | ALE27: 1000 | ALF27: 1000 | ALG27: 1000 | ALH27: 1000 | ALI27: 1000 | ALJ27: 1000 | ALK27: 1000 | ALL27: 1000 | ALM27: 1000 | ALN27: 1000 | ALO27: 1000 | ALP27: 1000 | ALQ27: 1000 | ALR27: 1000 | ALS27: 1000 | ALT27: 1000 | ALU27: 1000 | ALV27: 1000 | ALW27: 1000 | ALX27: 1000 | ALY27: 1000 | ALZ27: 1000 | AMA27: 1000 | AMB27: 1000 | AMC27: 1000 | AMD27: 1000 | AME27: 1000 | AMF27: 1000 | AMG27: 1000 | AMH27: 1000 | AMI27: 1000 | AMJ27: 1000 | AMK27: 1000 | AML27: 1000 | AMM27: 1000 | AMN27: 1000 | AMO27: 1000 | AMP27: 1000 | AMQ27: 1000 | AMR27: 1000 | AMS27: 1000 | AMT27: 1000 | AMU27: 1000 | AMV27: 1000 | AMW27: 1000 | AMX27: 1000 | AMY27: 1000 | AMZ27: 1000 | ANA27: 1000 | ANB27: 1000 | ANC27: 1000 | AND27: 1000 | ANE27: 1000 | ANF27: 1000 | ANG27: 1000 | ANH27: 1000 | ANI27: 1000 | ANJ27: 1000 | ANK27: 1000 | ANL27: 1000 | ANM27: 1000 | ANN27: 1000 | ANO27: 1000 | ANP27: 1000 | ANQ27: 1000 | ANR27: 1000 | ANS27: 1000 | ANT27: 1000 | ANU27: 1000 | ANV27: 1000 | ANW27: 1000 | ANX27: 1000 | ANY27: 1000 | ANZ27: 1000 | AOA27: 1000 | AOB27: 1000 | AOC27: 1000 | AOD27: 1000 | AOE27: 1000 | AOF27: 1000 | AOG27: 1000 | AOH27: 1000 | AOI27: 1000 | AOJ27: 1000 | AOK27: 1000 | AOL27: 1000 | AOM27: 1000 | AON27: 1000 | AOO27: 1000 | AOP27: 1000 | AOQ27: 1000 | AOR27: 1000 | AOS27: 1000 | AOT27: 1000 | AOU27: 1000 | AOV27: 1000 | AOW27: 1000 | AOX27: 1000 | AOY27: 1000 | AOZ27: 1000 | APA27: 1000 | APB27: 1000 | APC27: 1000 | APD27: 1000 | APE27: 1000 | APF27: 1000 | APG27: 1000 | APH27: 1000 | API27: 1000 | APJ27: 1000 | APK27: 1000 | APL27: 1000 | APM27: 1000 | APN27: 1000 | APO27: 1000 | APP27: 1000 | APQ27: 1000 | APR27: 1000 | APS27: 1000 | APT27: 1000 | APU27: 1000 | APV27: 1000 | APW27: 1000 | APX27: 1000 | APY27: 1000 | APZ27: 1000 | AQA27: 1000 | AQB27: 1000 | AQC27: 1000 | AQD27: 1000 | AQE27: 1000 | AQF27: 1000 | AQG27: 1000 | AQH27: 1000 | AQI27: 1000 | AQJ27: 1000 | AQK27: 1000 | AQL27: 1000 | AQM27: 1000 | AQN27: 1000 | AQO27: 1000 | AQP27: 1000 | AQQ27: 1000 | AQR27: 1000 | AQS27: 1000 | AQT27: 1000 | AQU27: 1000 | AQV27: 1000 | AQW27: 1000 | AQX27: 1000 | AQY27: 1000 | AQZ27: 1000 | ARA27: 1000 | ARB27: 1000 | ARC27: 1000 | ARD27: 1000 | ARE27: 1000 | ARF27: 1000 | ARG27: 1000 | ARH27: 1000 | ARI27: 1000 | ARJ27: 1000 | ARK27: 1000 | ARL27: 1000 | ARM27: 1000 | ARN27: 1000 | ARO27: 1000 | ARP27: 1000 | ARQ27: 1000 | ARR27: 1000 | ARS27: 1000 | ART27: 1000 | ARU27: 1000 | ARV27: 1000 | ARW27: 1000 | ARX27: 1000 | ARY27: 1000 | ARZ27: 1000 | ASA27: 1000 | ASB27: 1000 | ASC27: 1000 | ASD27: 1000 | ASE27: 1000 | ASF27: 1000 | ASG27: 1000 | ASH27: 1000 | ASI27: 1000 | ASJ27: 1000 | ASK27: 1000 | ASL27: 1000 | ASM27: 1000 | ASN27: 1000 | ASO27: 1000 | ASP27: 1000 | ASQ27: 1000 | ASR27: 1000 | ASS27: 1000 | AST27: 1000 | ASU27: 1000 | ASV27: 1000 | ASW27: 1000 | ASX27: 1000 | ASY27: 1000 | ASZ27: 1000 | ATA27: 1000 | ATB27: 1000 | ATC27: 1000 | ATD27: 1000 | ATE27: 1000 | ATF27: 1000 | ATG27: 1000 | ATH27: 1000 | ATI27: 1000 | ATJ27: 1000 | ATK27: 1000 | ATL27: 1000 | ATM27: 1000 | ATN27: 1000 | ATO27: 1000 | ATP27: 1000 | ATQ27: 1000 | ATR27: 1000 | ATS27: 1000 | ATT27: 1000 | ATU27: 1000 | ATV27: 1000 | ATW27: 1000 | ATX27: 1000 | ATY27: 1000 | ATZ27: 1000 | AUA27: 1000 | AUB27: 1000 | AUC27: 1000 | AUD27: 1000 | AUE27: 1000 | AUF27: 1000 | AUG27: 1000 | AUH27: 1000 | AUI27: 1000 | AUJ27: 1000 | AUK27: 1000 | AUL27: 1000 | AUM27: 1000 | AUN27: 1000 | AUO27: 1000 | AUP27: 1000 | AUQ27: 1000 | AUR27: 1000 | AUS27: 1000 | AUT27: 1000 | AUU27: 1000 | AUV27: 1000 | AUW27: 1000 | AUX27: 1000 | AUY27: 1000 | AUZ27: 1000 | AVA27: 1000 | AVB27: 1000 | AVC27: 1000 | AVD27: 1000 | AVE27: 1000 | AVF27: 1000 | AVG27: 1000 | AVH27: 1000 | AVI27: 1000 | AVJ27: 1000 | AVK27: 1000 | AVL27: 1000 | AVM27: 1000 | AVN27: 1000 | AVO27: 1000 | AVP27: 1000 | AVQ27: 1000 | AVR27: 1000 | AVS27: 1000 | AVT27: 1000 | AVU27: 1000 | AVV27: 1000 | AVW27: 1000 | AVX27: 1000 | AVY27: 1000 | AVZ27: 1000 | AWA27: 1000 | AWB27: 1000 | AWC27: 1000 | AWD27: 1000 | AWE27: 1000 | AWF27: 1000 | AWG27: 1000 | AWH27: 1000 | AWI27: 1000 | AWJ27: 1000 | AWK27: 1000 | AWL27: 1000 | AWM27: 1000 | AWN27: 1000 | AWO27: 1000 | AWP27: 1000 | AWQ27: 1000 | AWR27: 1000 | AWS27: 1000 | AWT27: 1000 | AWU27: 1000 | AWV27: 1000 | AWW27: 1000 | AWX27: 1000 | AWY27: 1000 | AWZ27: 1000 | AXA27: 1000 | AXB27: 1000 | AXC27: 1000 | AXD27: 1000 | AXE27: 1000 | AXF27: 1000 | AXG27: 1000 | AXH27: 1000 | AXI27: 1000 | AXJ27: 1000 | AXK27: 1000 | AXL27: 1000 | AXM27: 1000 | AXN27: 1000 | AXO27: 1000 | AXP27: 1000 | AXQ27: 1000 | AXR27: 1000 | AXS27: 1000 | AXT27: 1000 | AXU27: 1000 | AXV27: 1000 | AXW27: 1000 | AXX27: 1000 | AXY27: 1000 | AXZ27: 1000 | AYA27: 1000 | AYB27: 1000 | AYC27: 1000 | AYD27: 1000 | AYE27: 1000 | AYF27: 1000 | AYG27: 1000 | AYH27: 1000 | AYI27: 1000 | AYJ27: 1000 | AYK27: 1000 | AYL27: 1000 | AYM27: 1000 | AYN27: 1000 | AYO27: 1000 | AYP27: 1000 | AYQ27: 1000 | AYR27: 1000 | AYS27: 1000 | AYT27: 1000 | AYU27: 1000 | AYV27: 1000 | AYW27: 1000 | AYX27: 1000 | AYY27: 1000 | AYZ27: 1000 | AZA27: 1000 | AZB27: 1000 | AZC27: 1000 | AZD27: 1000 | AZE27: 1000 | AZF27: 1000 | AZG27: 1000 | AZH27: 1000 | AZI27: 1000 | AZJ27: 1000 | AZK27: 1000 | AZL27: 1000 | AZM27: 1000 | AZN27: 1000 | AZO27: 1000 | AZP27: 1000 | AZQ27: 1000 | AZR27: 1000 | AZS27: 1000 | AZT27: 1000 | AZU27: 1000 | AZV27: 1000 | AZW27: 1000 | AZX27: 1000 | AZY27: 1000 | AZZ27: 1000 | BAA27: 1000 | BAB27: 1000 | BAC27: 1000 | BAD27: 1000 | BAE27: 1000 | BAF27: 1000 | BAG27: 1000 | BAH27: 1000 | BAI27: 1000 | BAJ27: 1000 | BAK27: 1000 | BAL27: 1000 | BAM27: 1000 | BAN27: 1000 | BAO27: 1000 | BAP27: 1000 | BAQ27: 1000 | BAR27: 1000 | BAS27: 1000 | BAT27: 1000 | BAU27: 1000 | BAV27: 1000 | BAW27: 1000 | BAX27: 1000 | BAY27: 1000 | BAZ27: 1000 | BBA27: 1000 | BBB27: 1000 | BBC27: 1000 | BBD27: 1000 | BBE27: 1000 | BBF27: 1000 | BBG27: 1000 | BBH27: 1000 | BBI27: 1000 | BBJ27: 1000 | BBK27: 1000 | BBL27: 1000 | BBM27: 1000 | BBN27: 1000 | BBO27: 1000 | BBP27: 1000 | BBQ27: 1000 | BBR27: 1000 | BBS27: 1000 | BBT27: 1000 | BBU27: 1000 | BBV27: 1000 | BBW27: 1000 | BBX27: 1000 | BBY27: 1000 | BBZ27: 1000 | BCA27: 1000 | BCB27: 1000 | BCC27: 1000 | BCD27: 1000 | BCE27: 1000 | BCF27: 1000 | BCG27: 1000 | BCH27: 1000 | BCI27: 1000 | BCJ27: 1000 | BCK27: 1000 | BCL27: 1000 | BCM27: 1000 | BCN27: 1000 | BCO27: 1000 | BCP27: 1000 | BCQ27: 1000 | BCR27: 1000 | BCS27: 1000 | BCT27: 1000 | BCU27: 1000 | BCV27: 1000 | BCW27: 1000 | BCX27: 1000 | BCY27: 1000 | BCZ27: 1000 | BDA27: 1000 | BDB27: 1000 | BDC27: 1000 | BDD27: 1000 | BDE27: 1000
B28: 2 | C28: Number of piecewise segments to represent i^2r link loss characteristic
B30: 4 demand periods to # hours mapping across the year
B31: Peak | C31: Plat | D31: PuDo | E31: Trough
A32: Months | B32: 1 | C32: 2 | D32: 3 | E32: 4
A33: 1 | B33: =Overview_Periods!C10 -> 4 | C33: =Overview_Periods!D10 -> 9 | D33: =Overview_Periods!E10 -> 2 | E33: =Overview_Periods!F10 -> 9
A34: 2 | B34: =Overview_Periods!C11 -> 3 | C34: =Overview_Periods!D11 -> 10 | D34: =Overview_Periods!E11 -> 3 | E34: =Overview_Periods!F11 -> 8
A35: 3 | B35: =Overview_Periods!C12 -> 2 | C35: =Overview_Periods!D12 -> 11 | D35: =Overview_Periods!E12 -> 3 | E35: =Overview_Periods!F12 -> 8
A36: 4 | B36: =Overview_Periods!C13 -> 2 | C36: =Overview_Periods!D13 -> 11.5 | D36: =Overview_Periods!E13 -> 2.5 | E36: =Overview_Periods!F13 -> 8
A37: 5 | B37: =Overview_Periods!C14 -> 6 | C37: =Overview_Periods!D14 -> 9 | D37: =Overview_Periods!E14 -> 2 | E37: =Overview_Periods!F14 -> 7
A38: 6 | B38: =Overview_Periods!C15 -> 7 | C38: =Overview_Periods!D15 -> 5 | D38: =Overview_Periods!E15 -> 4 | E38: =Overview_Periods!F15 -> 8
A39: 7 | B39: =Overview_Periods!C16 -> 4 | C39: =Overview_Periods!D16 -> 8 | D39: =Overview_Periods!E16 -> 4 | E39: =Overview_Periods!F16 -> 8
A40: 8 | B40: =Overview_Periods!C17 -> 9 | C40: =Overview_Periods!D17 -> 3.5 | D40: =Overview_Periods!E17 -> 3.5 | E40: =Overview_Periods!F17 -> 8
A41: 9 | B41: =Overview_Periods!C18 -> 5 | C41: =Overview_Periods!D18 -> 10 | D41: =Overview_Periods!E18 -> 2 | E41: =Overview_Periods!F18 -> 7
A42: 10 | B42: =Overview_Periods!C19 -> 3 | C42: =Overview_Periods!D19 -> 12 | D42: =Overview_Periods!E19 -> 2 | E42: =Overview_Periods!F19 -> 7
A43: 11 | B43: =Overview_Periods!C20 -> 4 | C43: =Overview_Periods!D20 -> 11 | D43: =Overview_Periods!E20 -> 2 | E43: =Overview_Periods!F20 -> 7
A44: 12 | B44: =Overview_Periods!C21 -> 3 | C44: =Overview_Periods!D21 -> 10 | D44: =Overview_Periods!E21 -> 3 | E44: =Overview_Periods!F21 -> 8
A46: GB zone | B46: =MATCH("GB",Overview_Master_Set!$C$49:$C$59,0) -> 11
A47: Count plant types | B47: =COUNTA(Overview_Master_Set!$C$103:$C$150) -> 48
A48: Count GB zone plant combinations | B48: =COUNTA(I_GB_Capacities!C13:C862) -> 850
A49: Count NWE zone plant combinations | B49: =COUNTA(I_NWE_Capacity!C8:C118) -> 111
A50: Total zone plant combinations | B50: =B48+B49 -> 961
A51: DSR plant type | B51: =MATCH("Demand Side Response",Overview_Master_Set!$C$103:$C$150,0) -> 48
A52: Dropdown menu
A53: TRUE
A54: FALSE
A57: Total GB sub zone plant combinations | B57: =COUNTA(rngSetGBzones)*rngIPDSRtype -> 1920
A60: User Mode | D60: Geographical scope
A61: Single phase calc - optimal intercons | B61: 0 | D61: GB-only
A62: Two phase calc - hub driven intercons | B62: 1 | D62: Full NWE
A63: Two phase calc - optimal intercons | B63: 2
A65: Mode index | B65: =INDEX($B$61:$B$63,MATCH(Control!$I$12,Variables!$A$61:$A$63,0),1) -> 2

Sheet I_Commodities
B1: INSTRUCTIONS: Enter data in blue cells for given scenario - do not edit grey cells | N1: Go to control sheet
B2: Data source | C2: FES 2016
F3: Lignite Discount | H3: Distillate Multiplier | J3: Gas transport adder (NWE to GB) (£/th) | M3: Gas transport adder for CHP (NWE to GB) (£/MWh)
B4: Selected scenario | C4: =SelectedScenario -> NP | F4: 0.5 | H4: 1.2 | J4: 1.854214118 | M4: 1.512606961
B6: ="Fuel prices " &C4&"-"&D7 -> Fuel prices NP-2017 | D6: 1 | E6: 2 | F6: 3 | G6: 4 | H6: 5 | I6: 6 | J6: 7 | K6: 8 | L6: 9 | M6: 10 | N6: 11 | O6: 12 | P6: 13 | Q6: 14 | R6: 15 | S6: 16 | T6: 17 | U6: 18 | V6: 19 | W6: 20 | AB6: 1 | AC6: 2 | AD6: 3 | AE6: 4 | AF6: 5 | AG6: 6 | AH6: 7 | AI6: 8 | AJ6: 9 | AK6: 10 | AL6: 11 | AM6: 12 | AN6: 13 | AO6: 14 | AP6: 15 | AQ6: 16 | AR6: 17 | AS6: 18 | AT6: 19 | AU6: 20
B7: GB | C7: Unit | D7: =TRANSPOSE(rngSetYears) -> 2017 | E7: 2018 | F7: 2019 | G7: 2020 | H7: 2021 | I7: 2022 | J7: 2023 | K7: 2024 | L7: 2025 | M7: 2026 | N7: 2027 | O7: 2028 | P7: 2029 | Q7: 2030 | R7: 2031 | S7: 2032 | T7: 2033 | U7: 2034 | V7: 2035 | W7: 2036 | Z7: NWE | AA7: Unit | AB7: =TRANSPOSE(rngSetYears) -> 2017 | AC7: 2018 | AD7: 2019 | AE7: 2020 | AF7: 2021 | AG7: 2022 | AH7: 2023 | AI7: 2024 | AJ7: 2025 | AK7: 2026 | AL7: 2027 | AM7: 2028 | AN7: 2029 | AO7: 2030 | AP7: 2031 | AQ7: 2032 | AR7: 2033 | AS7: 2034 | AT7: 2035 | AU7: 2036
A8: 1 | B8: =rngSetFuelTypes -> Biomass | C8: =rngSetFuelTypeCostUnits -> £/MWh | D8: =OFFSET($A$7,MATCH($C$4,$C$7:$C$206,0)+$A8,D$6+2) -> 88.88889 | E8: 88.88889 | F8: 88.88889 | G8: 88.88889 | H8: 88.88889 | I8: 88.88889 | J8: 88.88889 | K8: 88.88889 | L8: 88.88889 | M8: 88.88889 | N8: =OFFSET($A$7,MATCH($C$4,$C$7:$C$206,0)+$A8,N$6+2) -> 88.88889 | O8: 88.88889 | P8: 88.88889 | Q8: 88.88889 | R8: 88.88889 | S8: 88.88889 | T8: 88.88889 | U8: 88.88889 | V8: 88.88889 | W8: 88.88889 | Z8: =rngSetFuelTypes -> Biomass | AA8: =rngSetFuelTypeCostUnits -> £/MWh | AB8: =OFFSET($Y$7,MATCH($C$4,$C$7:$C$206,0)+$A8,AB$6+2) -> 82.70945 | AC8: 82.70945 | AD8: 82.70945 | AE8: 82.70945 | AF8: 82.70945 | AG8: 82.70945 | AH8: 82.70945 | AI8: 82.70945 | AJ8: 82.70945 | AK8: 82.70945 | AL8: =OFFSET($Y$7,MATCH($C$4,$C$7:$C$206,0)+$A8,AL$6+2) -> 82.70945 | AM8: 82.70945 | AN8: 82.70945 | AO8: 82.70945 | AP8: 82.70945 | AQ8: 82.70945 | AR8: 82.70945 | AS8: 82.70945 | AT8: 82.70945 | AU8: 82.70945
A9: 2 | B9: CHP | C9: £/MWh | D9: 34.22958951 | E9: 35.06982967 | F9: 36.05690792 | G9: 37.03582849 | H9: 38.14527181 | I9: 39.67075638 | J9: 40.80467271 | K9: 41.89780069 | L9: 43.21934347 | M9: 44.67956666 | N9: 45.37296874 | O9: 45.69111793 | P9: 46.19689356 | Q9: 46.27847027 | R9: 46.39267767 | S9: 46.49056973 | T9: 46.62109248 | U9: 46.82503426 | V9: 47.22476016 | W9: 47.57554004 | Z9: CHP | AA9: £/MWh | AB9: 32.71698254 | AC9: 33.55722271 | AD9: 34.54430095 | AE9: 35.52322153 | AF9: 36.63266485 | AG9: 38.15814942 | AH9: 39.29206575 | AI9: 40.38519373 | AJ9: 41.70673651 | AK9: 43.1669597 | AL9: 43.86036178 | AM9: 44.17851097 | AN9: 44.6842866 | AO9: 44.76586331 | AP9: 44.88007071 | AQ9: 44.97796277 | AR9: 45.10848551 | AS9: 45.3124273 | AT9: 45.7121532 | AU9: 46.06293308
A10: 3 | B10: Coal | C10: £/t | D10: 36.24 | E10: 38.64 | F10: 40.24 | G10: 41.52 | H10: 42.24 | I10: 42.96 | J10: 42.64 | K10: 43.36 | L10: 43.76 | M10: 43.36 | N10: 43.12 | O10: 43.52 | P10: 43.52 | Q10: 44.08 | R10: 43.92 | S10: 43.6 | T10: 43.84 | U10: 42.8 | V10: 42.8 | W10: 42.64 | Z10: Coal | AA10: £/t | AB10: 36.24 | AC10: 38.64 | AD10: 40.24 | AE10: 41.52 | AF10: 42.24 | AG10: 42.96 | AH10: 42.64 | AI10: 43.36 | AJ10: 43.76 | AK10: 43.36 | AL10: 43.12 | AM10: 43.52 | AN10: 43.52 | AO10: 44.08 | AP10: 43.92 | AQ10: 43.6 | AR10: 43.84 | AS10: 42.8 | AT10: 42.8 | AU10: 42.64
A11: 4 | B11: Distillate | C11: £/barrel | D11: 62.2368 | E11: 70.416 | F11: 74.7552 | G11: 76.6848 | H11: 78.1344 | I11: 79.5744 | J11: 80.544 | K11: 81.984 | L11: 83.4336 | M11: 85.3536 | N11: 87.2832 | O11: 88.3392 | P11: 89.2128 | Q11: 89.6928 | R11: 90.1728 | S11: 90.9024 | T11: 91.6224 | U11: 92.3424 | V11: 93.072 | W11: 93.3024 | Z11: Distillate | AA11: £/barrel | AB11: 62.2368 | AC11: 70.416 | AD11: 74.7552 | AE11: 76.6848 | AF11: 78.1344 | AG11: 79.5744 | AH11: 80.544 | AI11: 81.984 | AJ11: 83.4336 | AK11: 85.3536 | AL11: 87.2832 | AM11: 88.3392 | AN11: 89.2128 | AO11: 89.6928 | AP11: 90.1728 | AQ11: 90.9024 | AR11: 91.6224 | AS11: 92.3424 | AT11: 93.072 | AU11: 93.3024
A12: 5 | B12: Gas | C12: p/th | D12: 41.96 | E12: 42.99 | F12: 44.2 | G12: 45.4 | H12: 46.76 | I12: 48.63 | J12: 50.02 | K12: 51.36 | L12: 52.98 | M12: 54.77 | N12: 55.62 | O12: 56.01 | P12: 56.63 | Q12: 56.73 | R12: 56.87 | S12: 56.99 | T12: 57.15 | U12: 57.4 | V12: 57.89 | W12: 58.32 | Z12: Gas | AA12: p/th | AB12: 40.10578588 | AC12: 41.13578588 | AD12: 42.34578588 | AE12: 43.54578588 | AF12: 44.90578588 | AG12: 46.77578588 | AH12: 48.16578588 | AI12: 49.50578588 | AJ12: 51.12578588 | AK12: 52.91578588 | AL12: 53.76578588 | AM12: 54.15578588 | AN12: 54.77578588 | AO12: 54.87578588 | AP12: 55.01578588 | AQ12: 55.13578588 | AR12: 55.29578588 | AS12: 55.54578588 | AT12: 56.03578588 | AU12: 56.46578588
A13: 6 | B13: Lignite | C13: £/t | D13: 0 | E13: 0 | F13: 0 | G13: 0 | H13: 0 | I13: 0 | J13: 0 | K13: 0 | L13: 0 | M13: 0 | N13: 0 | O13: 0 | P13: 0 | Q13: 0 | R13: 0 | S13: 0 | T13: 0 | U13: 0 | V13: 0 | W13: 0 | Z13: Lignite | AA13: £/t | AB13: 18.12 | AC13: 19.32 | AD13: 20.12 | AE13: 20.76 | AF13: 21.12 | AG13: 21.48 | AH13: 21.32 | AI13: 21.68 | AJ13: 21.88 | AK13: 21.68 | AL13: 21.56 | AM13: 21.76 | AN13: 21.76 | AO13: 22.04 | AP13: 21.96 | AQ13: 21.8 | AR13: 21.92 | AS13: 21.4 | AT13: 21.4 | AU13: 21.32
A14: 7 | B14: Nuclear | C14: £/MWh | D14: 0 | E14: 0 | F14: 0 | G14: 0 | H14: 0 | I14: 0 | J14: 0 | K14: 0 | L14: 0 | M14: 0 | N14: 0 | O14: 0 | P14: 0 | Q14: 0 | R14: 0 | S14: 0 | T14: 0 | U14: 0 | V14: 0 | W14: 0 | Z14: Nuclear | AA14: £/MWh | AB14: 0 | AC14: 0 | AD14: 0 | AE14: 0 | AF14: 0 | AG14: 0 | AH14: 0 | AI14: 0 | AJ14: 0 | AK14: 0 | AL14: 0 | AM14: 0 | AN14: 0 | AO14: 0 | AP14: 0 | AQ14: 0 | AR14: 0 | AS14: 0 | AT14: 0 | AU14: 0
A15: 8 | B15: Oil | C15: £/barrel | D15: 0 | E15: 0 | F15: 0 | G15: 0 | H15: 0 | I15: 0 | J15: 0 | K15: 0 | L15: 0 | M15: 0 | N15: 0 | O15: 0 | P15: 0 | Q15: 0 | R15: 0 | S15: 0 | T15: 0 | U15: 0 | V15: 0 | W15: 0 | Z15: Oil | AA15: £/barrel | AB15: 51.864 | AC15: 58.68 | AD15: 62.296 | AE15: 63.904 | AF15: 65.112 | AG15: 66.312 | AH15: 67.12 | AI15: 68.32 | AJ15: 69.528 | AK15: 71.128 | AL15: 72.736 | AM15: 73.616 | AN15: 74.344 | AO15: 74.744 | AP15: 75.144 | AQ15: 75.752 | AR15: 76.352 | AS15: 76.952 | AT15: 77.56 | AU15: 77.752
A16: 9 | B16: Other Fossil Fuels | C16: £/MWh | D16: 0 | E16: 0 | F16: 0 | G16: 0 | H16: 0 | I16: 0 | J16: 0 | K16: 0 | L16: 0 | M16: 0 | N16: 0 | O16: 0 | P16: 0 | Q16: 0 | R16: 0 | S16: 0 | T16: 0 | U16: 0 | V16: 0 | W16: 0 | Z16: Other Fossil Fuels | AA16: £/MWh | AB16: 0 | AC16: 0 | AD16: 0 | AE16: 0 | AF16: 0 | AG16: 0 | AH16: 0 | AI16: 0 | AJ16: 0 | AK16: 0 | AL16: 0 | AM16: 0 | AN16: 0 | AO16: 0 | AP16: 0 | AQ16: 0 | AR16: 0 | AS16: 0 | AT16: 0 | AU16: 0
A17: 10 | B17: Renewable | C17: £/MWh | D17: 0 | E17: 0 | F17: 0 | G17: 0 | H17: 0 | I17: 0 | J17: 0 | K17: 0 | L17: 0 | M17: 0 | N17: 0 | O17: 0 | P17: 0 | Q17: 0 | R17: 0 | S17: 0 | T17: 0 | U17: 0 | V17: 0 | W17: 0 | Z17: Renewable | AA17: £/MWh | AB17: 0 | AC17: 0 | AD17: 0 | AE17: 0 | AF17: 0 | AG17: 0 | AH17: 0 | AI17: 0 | AJ17: 0 | AK17: 0 | AL17: 0 | AM17: 0 | AN17: 0 | AO17: 0 | AP17: 0 | AQ17: 0 | AR17: 0 | AS17: 0 | AT17: 0 | AU17: 0
A18: 11 | B18: Not Identified | C18: £/MWh | D18: =OFFSET($A$7,MATCH($C$4,$C$7:$C$206,0)+$A18,D$6+2) -> 0 | E18: 0 | F18: 0 | G18: 0 | H18: 0 | I18: 0 | J18: 0 | K18: 0 | L18: 0 | M18: 0 | N18: =OFFSET($A$7,MATCH($C$4,$C$7:$C$206,0)+$A18,N$6+2) -> 0 | O18: 0 | P18: 0 | Q18: 0 | R18: 0 | S18: 0 | T18: 0 | U18: 0 | V18: 0 | W18: 0 | Z18: Not Identified | AA18: £/MWh | AB18: =OFFSET($Y$7,MATCH($C$4,$C$7:$C$206,0)+$A18,AB$6+2) -> 0 | AC18: 0 | AD18: 0 | AE18: 0 | AF18: 0 | AG18: 0 | AH18: 0 | AI18: 0 | AJ18: 0 | AK18: 0 | AL18: =OFFSET($Y$7,MATCH($C$4,$C$7:$C$206,0)+$A18,AL$6+2) -> 0 | AM18: 0 | AN18: 0 | AO18: 0 | AP18: 0 | AQ18: 0 | AR18: 0 | AS18: 0 | AT18: 0 | AU18: 0
A19: 12 | B19: Intercon France | C19: £/MWh | D19: 0 | E19: 0 | F19: 0 | G19: 0 | H19: 0 | I19: 0 | J19: 0 | K19: 0 | L19: 0 | M19: 0 | N19: 0 | O19: 0 | P19: 0 | Q19: 0 | R19: 0 | S19: 0 | T19: 0 | U19: 0 | V19: 0 | W19: 0 | Z19: Intercon France | AA19: £/MWh | AB19: 0 | AC19: 0 | AD19: 0 | AE19: 0 | AF19: 0 | AG19: 0 | AH19: 0 | AI19: 0 | AJ19: 0 | AK19: 0 | AL19: 0 | AM19: 0 | AN19: 0 | AO19: 0 | AP19: 0 | AQ19: 0 | AR19: 0 | AS19: 0 | AT19: 0 | AU19: 0
A20: 13 | B20: Intercon Netherlands | C20: £/MWh | D20: 0 | E20: 0 | F20: 0 | G20: 0 | H20: 0 | I20: 0 | J20: 0 | K20: 0 | L20: 0 | M20: 0 | N20: 0 | O20: 0 | P20: 0 | Q20: 0 | R20: 0 | S20: 0 | T20: 0 | U20: 0 | V20: 0 | W20: 0 | Z20: Intercon Netherlands | AA20: £/MWh | AB20: 0 | AC20: 0 | AD20: 0 | AE20: 0 | AF20: 0 | AG20: 0 | AH20: 0 | AI20: 0 | AJ20: 0 | AK20: 0 | AL20: 0 | AM20: 0 | AN20: 0 | AO20: 0 | AP20: 0 | AQ20: 0 | AR20: 0 | AS20: 0 | AT20: 0 | AU20: 0
A21: 14 | B21: Intercon Belgium | C21: £/MWh | D21: 0 | E21: 0 | F21: 0 | G21: 0 | H21: 0 | I21: 0 | J21: 0 | K21: 0 | L21: 0 | M21: 0 | N21: 0 | O21: 0 | P21: 0 | Q21: 0 | R21: 0 | S21: 0 | T21: 0 | U21: 0 | V21: 0 | W21: 0 | Z21: Intercon Belgium | AA21: £/MWh | AB21: 0 | AC21: 0 | AD21: 0 | AE21: 0 | AF21: 0 | AG21: 0 | AH21: 0 | AI21: 0 | AJ21: 0 | AK21: 0 | AL21: 0 | AM21: 0 | AN21: 0 | AO21: 0 | AP21: 0 | AQ21: 0 | AR21: 0 | AS21: 0 | AT21: 0 | AU21: 0
A22: 15 | B22: Intercon Norway | C22: £/MWh | D22: 0 | E22: 0 | F22: 0 | G22: 0 | H22: 0 | I22: 0 | J22: 0 | K22: 0 | L22: 0 | M22: 0 | N22: 0 | O22: 0 | P22: 0 | Q22: 0 | R22: 0 | S22: 0 | T22: 0 | U22: 0 | V22: 0 | W22: 0 | Z22: Intercon Norway | AA22: £/MWh | AB22: 0 | AC22: 0 | AD22: 0 | AE22: 0 | AF22: 0 | AG22: 0 | AH22: 0 | AI22: 0 | AJ22: 0 | AK22: 0 | AL22: 0 | AM22: 0 | AN22: 0 | AO22: 0 | AP22: 0 | AQ22: 0 | AR22: 0 | AS22: 0 | AT22: 0 | AU22: 0
A23: 16 | B23: Intercon Denmark | C23: £/MWh | D23: 0 | E23: 0 | F23: 0 | G23: 0 | H23: 0 | I23: 0 | J23: 0 | K23: 0 | L23: 0 | M23: 0 | N23: 0 | O23: 0 | P23: 0 | Q23: 0 | R23: 0 | S23: 0 | T23: 0 | U23: 0 | V23: 0 | W23: 0 | Z23: Intercon Denmark | AA23: £/MWh | AB23: 0 | AC23: 0 | AD23: 0 | AE23: 0 | AF23: 0 | AG23: 0 | AH23: 0 | AI23: 0 | AJ23: 0 | AK23: 0 | AL23: 0 | AM23: 0 | AN23: 0 | AO23: 0 | AP23: 0 | AQ23: 0 | AR23: 0 | AS23: 0 | AT23: 0 | AU23: 0
A24: 17 | B24: Intercon Iceland | C24: £/MWh | D24: 0 | E24: 0 | F24: 0 | G24: 0 | H24: 0 | I24: 0 | J24: 0 | K24: 0 | L24: 0 | M24: 0 | N24: 0 | O24: 0 | P24: 0 | Q24: 0 | R24: 0 | S24: 0 | T24: 0 | U24: 0 | V24: 0 | W24: 0 | Z24: Intercon Iceland | AA24: £/MWh | AB24: 0 | AC24: 0 | AD24: 0 | AE24: 0 | AF24: 0 | AG24: 0 | AH24: 0 | AI24: 0 | AJ24: 0 | AK24: 0 | AL24: 0 | AM24: 0 | AN24: 0 | AO24: 0 | AP24: 0 | AQ24: 0 | AR24: 0 | AS24: 0 | AT24: 0 | AU24: 0
A25: 18 | B25: Intercon Spain | C25: £/MWh | D25: 0 | E25: 0 | F25: 0 | G25: 0 | H25: 0 | I25: 0 | J25: 0 | K25: 0 | L25: 0 | M25: 0 | N25: 0 | O25: 0 | P25: 0 | Q25: 0 | R25: 0 | S25: 0 | T25: 0 | U25: 0 | V25: 0 | W25: 0 | Z25: Intercon Spain | AA25: £/MWh | AB25: 0 | AC25: 0 | AD25: 0 | AE25: 0 | AF25: 0 | AG25: 0 | AH25: 0 | AI25: 0 | AJ25: 0 | AK25: 0 | AL25: 0 | AM25: 0 | AN25: 0 | AO25: 0 | AP25: 0 | AQ25: 0 | AR25: 0 | AS25: 0 | AT25: 0 | AU25: 0
A26: 19 | B26: Intercon Ireland | C26: £/MWh | D26: 0 | E26: 0 | F26: 0 | G26: 0 | H26: 0 | I26: 0 | J26: 0 | K26: 0 | L26: 0 | M26: 0 | N26: 0 | O26: 0 | P26: 0 | Q26: 0 | R26: 0 | S26: 0 | T26: 0 | U26: 0 | V26: 0 | W26: 0 | Z26: Intercon Ireland | AA26: £/MWh | AB26: 0 | AC26: 0 | AD26: 0 | AE26: 0 | AF26: 0 | AG26: 0 | AH26: 0 | AI26: 0 | AJ26: 0 | AK26: 0 | AL26: 0 | AM26: 0 | AN26: 0 | AO26: 0 | AP26: 0 | AQ26: 0 | AR26: 0 | AS26: 0 | AT26: 0 | AU26: 0
A27: 20 | B27: CO2 | C27: £/t | D27: 21.98 | E27: 22.32 | F27: 22.66 | G27: 22.92 | H27: 23.13 | I27: 23.23 | J27: 23.53 | K27: 24.04 | L27: 24.54 | M27: 25.04 | N27: 25.45 | O27: 25.74 | P27: 26.35 | Q27: 27.05 | R27: 27.65 | S27: 28.26 | T27: 28.96 | U27: 29.66 | V27: 30.37 | W27: 30.66 | Z27: CO2 | AA27: £/t | AB27: 7.176470588 | AC27: 7.302521008 | AD27: 8.008403361 | AE27: 8.915966387 | AF27: 10.75630252 | AG27: 13.14285714 | AH27: 15.86554622 | AI27: 18.5210084 | AJ27: 20.98319328 | AK27: 24.42016807 | AL27: 26.00840336 | AM27: 27.17647059 | AN27: 29.44537815 | AO27: 31 | AP27: 31.69747899 | AQ27: 32.66386555 | AR27: 33.56302521 | AS27: 34.46218487 | AT27: 34.78151261 | AU27: 35.64705882
A28: 21 | B28: VLL | C28: £/MWh | D28: 6000 | E28: 6000 | F28: 6000 | G28: 6000 | H28: 6000 | I28: 6000 | J28: 6000 | K28: 6000 | L28: 6000 | M28: 6000 | N28: 6000 | O28: 6000 | P28: 6000 | Q28: 6000 | R28: 6000 | S28: 6000 | T28: 6000 | U28: 6000 | V28: 6000 | W28: 6000 | Z28: VLL | AA28: £/MWh | AB28: 6000 | AC28: 6000 | AD28: 6000 | AE28: 6000 | AF28: 6000 | AG28: 6000 | AH28: 6000 | AI28: 6000 | AJ28: 6000 | AK28: 6000 | AL28: 6000 | AM28: 6000 | AN28: 6000 | AO28: 6000 | AP28: 6000 | AQ28: 6000 | AR28: 6000 | AS28: 6000 | AT28: 6000 | AU28: 6000
B31: Source | C31: FES 2016 | Z31: Source | AA31: FES 2016
B32: Scenario | C32: =Variables!D8 -> GG | Z32: Scenario | AA32: =Variables!D8 -> GG
B33: GB | C33: Unit | D33: =TRANSPOSE(rngSetYears) -> 2017 | E33: 2018 | F33: 2019 | G33: 2020 | H33: 2021 | I33: 2022 | J33: 2023 | K33: 2024 | L33: 2025 | M33: 2026 | N33: 2027 | O33: 2028 | P33: 2029 | Q33: 2030 | R33: 2031 | S33: 2032 | T33: 2033 | U33: 2034 | V33: 2035 | W33: 2036 | Z33: NWE | AA33: Unit | AB33: =TRANSPOSE(rngSetYears) -> 2017 | AC33: 2018 | AD33: 2019 | AE33: 2020 | AF33: 2021 | AG33: 2022 | AH33: 2023 | AI33: 2024 | AJ33: 2025 | AK33: 2026 | AL33: 2027 | AM33: 2028 | AN33: 2029 | AO33: 2030 | AP33: 2031 | AQ33: 2032 | AR33: 2033 | AS33: 2034 | AT33: 2035 | AU33: 2036
B34: =rngSetFuelTypes -> Biomass | C34: =rngSetFuelTypeCostUnits -> £/MWh | D34: 88.88889 | E34: 88.88889 | F34: 88.88889 | G34: 88.88889 | H34: 88.88889 | I34: 88.88889 | J34: 88.88889 | K34: 88.88889 | L34: 88.88889 | M34: 88.88889 | N34: 88.88889 | O34: 88.88889 | P34: 88.88889 | Q34: 88.88889 | R34: 88.88889 | S34: 88.88889 | T34: 88.88889 | U34: 88.88889 | V34: 88.88889 | W34: 88.88889 | Z34: =rngSetFuelTypes -> Biomass | AA34: =rngSetFuelTypeCostUnits -> £/MWh | AB34: 82.70945 | AC34: 82.70945 | AD34: 82.70945 | AE34: 82.70945 | AF34: 82.70945 | AG34: 82.70945 | AH34: 82.70945 | AI34: 82.70945 | AJ34: 82.70945 | AK34: 82.70945 | AL34: 82.70945 | AM34: 82.70945 | AN34: 82.70945 | AO34: 82.70945 | AP34: 82.70945 | AQ34: 82.70945 | AR34: 82.70945 | AS34: 82.70945 | AT34: 82.70945 | AU34: 82.70945
B35: CHP | C35: £/MWh | D35: 34.22958951 | E35: 35.06982967 | F35: 36.05690792 | G35: 37.03582849 | H35: 38.14527181 | I35: 39.67075638 | J35: 40.80467271 | K35: 41.89780069 | L35: 43.21934347 | M35: 44.67956666 | N35: 45.37296874 | O35: 45.69111793 | P35: 46.19689356 | Q35: 46.27847027 | R35: 46.39267767 | S35: 46.49056973 | T35: 46.62109248 | U35: 46.82503426 | V35: 47.22476016 | W35: 47.57554004 | Z35: CHP | AA35: £/MWh | AB35: =D35-$M$4 -> 32.71698254 | AC35: =E35-$M$4 -> 33.55722271 | AD35: 34.54430095 | AE35: 35.52322153 | AF35: 36.63266485 | AG35: 38.15814942 | AH35: 39.29206575 | AI35: 40.38519373 | AJ35: 41.70673651 | AK35: 43.1669597 | AL35: 43.86036178 | AM35: 44.17851097 | AN35: 44.6842866 | AO35: 44.76586331 | AP35: 44.88007071 | AQ35: 44.97796277 | AR35: 45.10848551 | AS35: 45.3124273 | AT35: 45.7121532 | AU35: 46.06293308
B36: Coal | C36: £/t | D36: 36.24 | E36: 38.64 | F36: 40.24 | G36: 41.52 | H36: 42.24 | I36: 42.96 | J36: 42.64 | K36: 43.36 | L36: 43.76 | M36: 43.36 | N36: 43.12 | O36: 43.52 | P36: 43.52 | Q36: 44.08 | R36: 43.92 | S36: 43.6 | T36: 43.84 | U36: 42.8 | V36: 42.8 | W36: 42.64 | Z36: Coal | AA36: £/t | AB36: 36.24 | AC36: 38.64 | AD36: 40.24 | AE36: 41.52 | AF36: 42.24 | AG36: 42.96 | AH36: 42.64 | AI36: 43.36 | AJ36: 43.76 | AK36: 43.36 | AL36: 43.12 | AM36: 43.52 | AN36: 43.52 | AO36: 44.08 | AP36: 43.92 | AQ36: 43.6 | AR36: 43.84 | AS36: 42.8 | AT36: 42.8 | AU36: 42.64
B37: Distillate | C37: £/barrel | D37: 62.2368 | E37: 70.416 | F37: 74.7552 | G37: 76.6848 | H37: 78.1344 | I37: 79.5744 | J37: 80.544 | K37: 81.984 | L37: 83.4336 | M37: 85.3536 | N37: 87.2832 | O37: 88.3392 | P37: 89.2128 | Q37: 89.6928 | R37: 90.1728 | S37: 90.9024 | T37: 91.6224 | U37: 92.3424 | V37: 93.072 | W37: 93.3024 | Z37: Distillate | AA37: £/barrel | AB37: 62.2368 | AC37: 70.416 | AD37: 74.7552 | AE37: 76.6848 | AF37: 78.1344 | AG37: 79.5744 | AH37: 80.544 | AI37: 81.984 | AJ37: 83.4336 | AK37: 85.3536 | AL37: 87.2832 | AM37: 88.3392 | AN37: 89.2128 | AO37: 89.6928 | AP37: 90.1728 | AQ37: 90.9024 | AR37: 91.6224 | AS37: 92.3424 | AT37: 93.072 | AU37: 93.3024
B38: Gas | C38: p/th | D38: 41.96 | E38: 42.99 | F38: 44.2 | G38: 45.4 | H38: 46.76 | I38: 48.63 | J38: 50.02 | K38: 51.36 | L38: 52.98 | M38: 54.77 | N38: 55.62 | O38: 56.01 | P38: 56.63 | Q38: 56.73 | R38: 56.87 | S38: 56.99 | T38: 57.15 | U38: 57.4 | V38: 57.89 | W38: 58.32 | Z38: Gas | AA38: p/th | AB38: =D38-$J$4 -> 40.10578588 | AC38: =E38-$J$4 -> 41.13578588 | AD38: 42.34578588 | AE38: 43.54578588 | AF38: 44.90578588 | AG38: 46.77578588 | AH38: 48.16578588 | AI38: 49.50578588 | AJ38: 51.12578588 | AK38: 52.91578588 | AL38: 53.76578588 | AM38: 54.15578588 | AN38: 54.77578588 | AO38: 54.87578588 | AP38: 55.01578588 | AQ38: 55.13578588 | AR38: 55.29578588 | AS38: 55.54578588 | AT38: 56.03578588 | AU38: 56.46578588
B39: Lignite | C39: £/t | D39: 0 | E39: 0 | F39: 0 | G39: 0 | H39: 0 | I39: 0 | J39: 0 | K39: 0 | L39: 0 | M39: 0 | N39: 0 | O39: 0 | P39: 0 | Q39: 0 | R39: 0 | S39: 0 | T39: 0 | U39: 0 | V39: 0 | W39: 0 | Z39: Lignite | AA39: £/t | AB39: =AB36*$F$4 -> 18.12 | AC39: =AC36*$F$4 -> 19.32 | AD39: 20.12 | AE39: 20.76 | AF39: 21.12 | AG39: 21.48 | AH39: 21.32 | AI39: 21.68 | AJ39: 21.88 | AK39: 21.68 | AL39: 21.56 | AM39: 21.76 | AN39: 21.76 | AO39: 22.04 | AP39: 21.96 | AQ39: 21.8 | AR39: 21.92 | AS39: 21.4 | AT39: 21.4 | AU39: 21.32
B40: Nuclear | C40: £/MWh | D40: 0 | E40: 0 | F40: 0 | G40: 0 | H40: 0 | I40: 0 | J40: 0 | K40: 0 | L40: 0 | M40: 0 | N40: 0 | O40: 0 | P40: 0 | Q40: 0 | R40: 0 | S40: 0 | T40: 0 | U40: 0 | V40: 0 | W40: 0 | Z40: Nuclear | AA40: £/MWh | AB40: 0 | AC40: 0 | AD40: 0 | AE40: 0 | AF40: 0 | AG40: 0 | AH40: 0 | AI40: 0 | AJ40: 0 | AK40: 0 | AL40: 0 | AM40: 0 | AN40: 0 | AO40: 0 | AP40: 0 | AQ40: 0 | AR40: 0 | AS40: 0 | AT40: 0 | AU40: 0
B41: Oil | C41: £/barrel | D41: 0 | E41: 0 | F41: 0 | G41: 0 | H41: 0 | I41: 0 | J41: 0 | K41: 0 | L41: 0 | M41: 0 | N41: 0 | O41: 0 | P41: 0 | Q41: 0 | R41: 0 | S41: 0 | T41: 0 | U41: 0 | V41: 0 | W41: 0 | Z41: Oil | AA41: £/barrel | AB41: =AB37/$H$4 -> 51.864 | AC41: =AC37/$H$4 -> 58.68 | AD41: 62.296 | AE41: 63.904 | AF41: 65.112 | AG41: 66.312 | AH41: 67.12 | AI41: 68.32 | AJ41: 69.528 | AK41: 71.128 | AL41: 72.736 | AM41: 73.616 | AN41: 74.344 | AO41: 74.744 | AP41: 75.144 | AQ41: 75.752 | AR41: 76.352 | AS41: 76.952 | AT41: 77.56 | AU41: 77.752
B42: Other Fossil Fuels | C42: £/MWh | D42: 0 | E42: 0 | F42: 0 | G42: 0 | H42: 0 | I42: 0 | J42: 0 | K42: 0 | L42: 0 | M42: 0 | N42: 0 | O42: 0 | P42: 0 | Q42: 0 | R42: 0 | S42: 0 | T42: 0 | U42: 0 | V42: 0 | W42: 0 | Z42: Other Fossil Fuels | AA42: £/MWh | AB42: 0 | AC42: 0 | AD42: 0 | AE42: 0 | AF42: 0 | AG42: 0 | AH42: 0 | AI42: 0 | AJ42: 0 | AK42: 0 | AL42: 0 | AM42: 0 | AN42: 0 | AO42: 0 | AP42: 0 | AQ42: 0 | AR42: 0 | AS42: 0 | AT42: 0 | AU42: 0
B43: Renewable | C43: £/MWh | D43: 0 | E43: 0 | F43: 0 | G43: 0 | H43: 0 | I43: 0 | J43: 0 | K43: 0 | L43: 0 | M43: 0 | N43: 0 | O43: 0 | P43: 0 | Q43: 0 | R43: 0 | S43: 0 | T43: 0 | U43: 0 | V43: 0 | W43: 0 | Z43: Renewable | AA43: £/MWh | AB43: 0 | AC43: 0 | AD43: 0 | AE43: 0 | AF43: 0 | AG43: 0 | AH43: 0 | AI43: 0 | AJ43: 0 | AK43: 0 | AL43: 0 | AM43: 0 | AN43: 0 | AO43: 0 | AP43: 0 | AQ43: 0 | AR43: 0 | AS43: 0 | AT43: 0 | AU43: 0
B44: Not Identified | C44: £/MWh | D44: 0 | E44: 0 | F44: 0 | G44: 0 | H44: 0 | I44: 0 | J44: 0 | K44: 0 | L44: 0 | M44: 0 | N44: 0 | O44: 0 | P44: 0 | Q44: 0 | R44: 0 | S44: 0 | T44: 0 | U44: 0 | V44: 0 | W44: 0 | Z44: Not Identified | AA44: £/MWh | AB44: 0 | AC44: 0 | AD44: 0 | AE44: 0 | AF44: 0 | AG44: 0 | AH44: 0 | AI44: 0 | AJ44: 0 | AK44: 0 | AL44: 0 | AM44: 0 | AN44: 0 | AO44: 0 | AP44: 0 | AQ44: 0 | AR44: 0 | AS44: 0 | AT44: 0 | AU44: 0
B45: Intercon France | C45: £/MWh | D45: 0 | E45: 0 | F45: 0 | G45: 0 | H45: 0 | I45: 0 | J45: 0 | K45: 0 | L45: 0 | M45: 0 | N45: 0 | O45: 0 | P45: 0 | Q45: 0 | R45: 0 | S45: 0 | T45: 0 | U45: 0 | V45: 0 | W45: 0 | Z45: Intercon France | AA45: £/MWh | AB45: 0 | AC45: 0 | AD45: 0 | AE45: 0 | AF45: 0 | AG45: 0 | AH45: 0 | AI45: 0 | AJ45: 0 | AK45: 0 | AL45: 0 | AM45: 0 | AN45: 0 | AO45: 0 | AP45: 0 | AQ45: 0 | AR45: 0 | AS45: 0 | AT45: 0 | AU45: 0
B46: Intercon Netherlands | C46: £/MWh | D46: 0 | E46: 0 | F46: 0 | G46: 0 | H46: 0 | I46: 0 | J46: 0 | K46: 0 | L46: 0 | M46: 0 | N46: 0 | O46: 0 | P46: 0 | Q46: 0 | R46: 0 | S46: 0 | T46: 0 | U46: 0 | V46: 0 | W46: 0 | Z46: Intercon Netherlands | AA46: £/MWh | AB46: 0 | AC46: 0 | AD46: 0 | AE46: 0 | AF46: 0 | AG46: 0 | AH46: 0 | AI46: 0 | AJ46: 0 | AK46: 0 | AL46: 0 | AM46: 0 | AN46: 0 | AO46: 0 | AP46: 0 | AQ46: 0 | AR46: 0 | AS46: 0 | AT46: 0 | AU46: 0
B47: Intercon Belgium | C47: £/MWh | D47: 0 | E47: 0 | F47: 0 | G47: 0 | H47: 0 | I47: 0 | J47: 0 | K47: 0 | L47: 0 | M47: 0 | N47: 0 | O47: 0 | P47: 0 | Q47: 0 | R47: 0 | S47: 0 | T47: 0 | U47: 0 | V47: 0 | W47: 0 | Z47: Intercon Belgium | AA47: £/MWh | AB47: 0 | AC47: 0 | AD47: 0 | AE47: 0 | AF47: 0 | AG47: 0 | AH47: 0 | AI47: 0 | AJ47: 0 | AK47: 0 | AL47: 0 | AM47: 0 | AN47: 0 | AO47: 0 | AP47: 0 | AQ47: 0 | AR47: 0 | AS47: 0 | AT47: 0 | AU47: 0
B48: Intercon Norway | C48: £/MWh | D48: 0 | E48: 0 | F48: 0 | G48: 0 | H48: 0 | I48: 0 | J48: 0 | K48: 0 | L48: 0 | M48: 0 | N48: 0 | O48: 0 | P48: 0 | Q48: 0 | R48: 0 | S48: 0 | T48: 0 | U48: 0 | V48: 0 | W48: 0 | Z48: Intercon Norway | AA48: £/MWh | AB48: 0 | AC48: 0 | AD48: 0 | AE48: 0 | AF48: 0 | AG48: 0 | AH48: 0 | AI48: 0 | AJ48: 0 | AK48: 0 | AL48: 0 | AM48: 0 | AN48: 0 | AO48: 0 | AP48: 0 | AQ48: 0 | AR48: 0 | AS48: 0 | AT48: 0 | AU48: 0
B49: Intercon Denmark | C49: £/MWh | D49: 0 | E49: 0 | F49: 0 | G49: 0 | H49: 0 | I49: 0 | J49: 0 | K49: 0 | L49: 0 | M49: 0 | N49: 0 | O49: 0 | P49: 0 | Q49: 0 | R49: 0 | S49: 0 | T49: 0 | U49: 0 | V49: 0 | W49: 0 | Z49: Intercon Denmark | AA49: £/MWh | AB49: 0 | AC49: 0 | AD49: 0 | AE49: 0 | AF49: 0 | AG49: 0 | AH49: 0 | AI49: 0 | AJ49: 0 | AK49: 0 | AL49: 0 | AM49: 0 | AN49: 0 | AO49: 0 | AP49: 0 | AQ49: 0 | AR49: 0 | AS49: 0 | AT49: 0 | AU49: 0
B50: Intercon Iceland | C50: £/MWh | D50: 0 | E50: 0 | F50: 0 | G50: 0 | H50: 0 | I50: 0 | J50: 0 | K50: 0 | L50: 0 | M50: 0 | N50: 0 | O50: 0 | P50: 0 | Q50: 0 | R50: 0 | S50: 0 | T50: 0 | U50: 0 | V50: 0 | W50: 0 | Z50: Intercon Iceland | AA50: £/MWh | AB50: 0 | AC50: 0 | AD50: 0 | AE50: 0 | AF50: 0 | AG50: 0 | AH50: 0 | AI50: 0 | AJ50: 0 | AK50: 0 | AL50: 0 | AM50: 0 | AN50: 0 | AO50: 0 | AP50: 0 | AQ50: 0 | AR50: 0 | AS50: 0 | AT50: 0 | AU50: 0
B51: Intercon Spain | C51: £/MWh | D51: 0 | E51: 0 | F51: 0 | G51: 0 | H51: 0 | I51: 0 | J51: 0 | K51: 0 | L51: 0 | M51: 0 | N51: 0 | O51: 0 | P51: 0 | Q51: 0 | R51: 0 | S51: 0 | T51: 0 | U51: 0 | V51: 0 | W51: 0 | Z51: Intercon Spain | AA51: £/MWh | AB51: 0 | AC51: 0 | AD51: 0 | AE51: 0 | AF51: 0 | AG51: 0 | AH51: 0 | AI51: 0 | AJ51: 0 | AK51: 0 | AL51: 0 | AM51: 0 | AN51: 0 | AO51: 0 | AP51: 0 | AQ51: 0 | AR51: 0 | AS51: 0 | AT51: 0 | AU51: 0
B52: Intercon Ireland | C52: £/MWh | D52: 0 | E52: 0 | F52: 0 | G52: 0 | H52: 0 | I52: 0 | J52: 0 | K52: 0 | L52: 0 | M52: 0 | N52: 0 | O52: 0 | P52: 0 | Q52: 0 | R52: 0 | S52: 0 | T52: 0 | U52: 0 | V52: 0 | W52: 0 | Z52: Intercon Ireland | AA52: £/MWh | AB52: 0 | AC52: 0 | AD52: 0 | AE52: 0 | AF52: 0 | AG52: 0 | AH52: 0 | AI52: 0 | AJ52: 0 | AK52: 0 | AL52: 0 | AM52: 0 | AN52: 0 | AO52: 0 | AP52: 0 | AQ52: 0 | AR52: 0 | AS52: 0 | AT52: 0 | AU52: 0
B53: CO2 | C53: £/t | D53: 26.7 | E53: 27.53 | F53: 27.93 | G53: 28.33 | H53: 28.82 | I53: 29.51 | J53: 30.71 | K53: 31.96 | L53: 33.16 | M53: 34.36 | N53: 35.49 | O53: 36.24 | P53: 36.94 | Q53: 37.55 | R53: 38.45 | S53: 39.33 | T53: 40.19 | U53: 41.03 | V53: 41.88 | W53: 42.72 | Z53: CO2 | AA53: £/t | AB53: 7.176470588 | AC53: 7.302521008 | AD53: 8.008403361 | AE53: 8.915966387 | AF53: 10.75630252 | AG53: 13.14285714 | AH53: 15.86554622 | AI53: 18.5210084 | AJ53: 20.98319328 | AK53: 24.42016807 | AL53: 26.00840336 | AM53: 27.17647059 | AN53: 29.44537815 | AO53: 31 | AP53: 31.69747899 | AQ53: 32.66386555 | AR53: 33.56302521 | AS53: 34.46218487 | AT53: 34.78151261 | AU53: 35.64705882
B54: VLL | C54: £/MWh | D54: 6000 | E54: 6000 | F54: 6000 | G54: 6000 | H54: 6000 | I54: 6000 | J54: 6000 | K54: 6000 | L54: 6000 | M54: 6000 | N54: 6000 | O54: 6000 | P54: 6000 | Q54: 6000 | R54: 6000 | S54: 6000 | T54: 6000 | U54: 6000 | V54: 6000 | W54: 6000 | Z54: VLL | AA54: £/MWh | AB54: 6000 | AC54: 6000 | AD54: 6000 | AE54: 6000 | AF54: 6000 | AG54: 6000 | AH54: 6000 | AI54: 6000 | AJ54: 6000 | AK54: 6000 | AL54: 6000 | AM54: 6000 | AN54: 6000 | AO54: 6000 | AP54: 6000 | AQ54: 6000 | AR54: 6000 | AS54: 6000 | AT54: 6000 | AU54: 6000
B57: Source | C57: FES 2016 | Z57: Source | AA57: FES 2016
B58: Scenario | C58: =Variables!E8 -> SP | Z58: Scenario | AA58: =Variables!E8 -> SP
B59: GB | C59: Unit | D59: =TRANSPOSE(rngSetYears) -> 2017 | E59: 2018 | F59: 2019 | G59: 2020 | H59: 2021 | I59: 2022 | J59: 2023 | K59: 2024 | L59: 2025 | M59: 2026 | N59: 2027 | O59: 2028 | P59: 2029 | Q59: 2030 | R59: 2031 | S59: 2032 | T59: 2033 | U59: 2034 | V59: 2035 | W59: 2036 | Z59: NWE | AA59: Unit | AB59: =TRANSPOSE(rngSetYears) -> 2017 | AC59: 2018 | AD59: 2019 | AE59: 2020 | AF59: 2021 | AG59: 2022 | AH59: 2023 | AI59: 2024 | AJ59: 2025 | AK59: 2026 | AL59: 2027 | AM59: 2028 | AN59: 2029 | AO59: 2030 | AP59: 2031 | AQ59: 2032 | AR59: 2033 | AS59: 2034 | AT59: 2035 | AU59: 2036
B60: =rngSetFuelTypes -> Biomass | C60: =rngSetFuelTypeCostUnits -> £/MWh | D60: 88.88889 | E60: 88.88889 | F60: 88.88889 | G60: 88.88889 | H60: 88.88889 | I60: 88.88889 | J60: 88.88889 | K60: 88.88889 | L60: 88.88889 | M60: 88.88889 | N60: 88.88889 | O60: 88.88889 | P60: 88.88889 | Q60: 88.88889 | R60: 88.88889 | S60: 88.88889 | T60: 88.88889 | U60: 88.88889 | V60: 88.88889 | W60: 88.88889 | Z60: =rngSetFuelTypes -> Biomass | AA60: =rngSetFuelTypeCostUnits -> £/MWh | AB60: 82.70945 | AC60: 82.70945 | AD60: 82.70945 | AE60: 82.70945 | AF60: 82.70945 | AG60: 82.70945 | AH60: 82.70945 | AI60: 82.70945 | AJ60: 82.70945 | AK60: 82.70945 | AL60: 82.70945 | AM60: 82.70945 | AN60: 82.70945 | AO60: 82.70945 | AP60: 82.70945 | AQ60: 82.70945 | AR60: 82.70945 | AS60: 82.70945 | AT60: 82.70945 | AU60: 82.70945
B61: CHP | C61: £/MWh | D61: 43.88827253 | E61: 45.11192325 | F61: 47.23291784 | G61: 49.35391242 | H61: 51.39333029 | I61: 53.43274816 | J61: 55.47216602 | K61: 57.51158389 | L61: 59.55100176 | M61: 60.69307577 | N61: 61.83514977 | O61: 62.97722378 | P61: 64.11929779 | Q61: 65.26137179 | R61: 65.26137179 | S61: 65.26137179 | T61: 65.26137179 | U61: 65.26137179 | V61: 65.26137179 | W61: 65.26137179 | Z61: CHP | AA61: £/MWh | AB61: =D61-$M$4 -> 42.37566557 | AC61: 43.59931629 | AD61: 45.72031087 | AE61: 47.84130546 | AF61: 49.88072333 | AG61: 51.92014119 | AH61: 53.95955906 | AI61: 55.99897693 | AJ61: 58.0383948 | AK61: 59.18046881 | AL61: 60.32254281 | AM61: 61.46461682 | AN61: 62.60669083 | AO61: 63.74876483 | AP61: 63.74876483 | AQ61: 63.74876483 | AR61: 63.74876483 | AS61: 63.74876483 | AT61: 63.74876483 | AU61: 63.74876483
B62: Coal | C62: £/t | D62: 36.24 | E62: 38.64 | F62: 40.24 | G62: 41.52 | H62: 42.24 | I62: 42.96 | J62: 42.64 | K62: 43.36 | L62: 43.76 | M62: 43.36 | N62: 43.12 | O62: 43.52 | P62: 43.52 | Q62: 44.08 | R62: 43.92 | S62: 43.6 | T62: 43.84 | U62: 42.8 | V62: 42.8 | W62: 42.64 | Z62: Coal | AA62: £/t | AB62: 36.24 | AC62: 38.64 | AD62: 40.24 | AE62: 41.52 | AF62: 42.24 | AG62: 42.96 | AH62: 42.64 | AI62: 43.36 | AJ62: 43.76 | AK62: 43.36 | AL62: 43.12 | AM62: 43.52 | AN62: 43.52 | AO62: 44.08 | AP62: 43.92 | AQ62: 43.6 | AR62: 43.84 | AS62: 42.8 | AT62: 42.8 | AU62: 42.64
B63: Distillate | C63: £/barrel | D63: 62.2368 | E63: 70.416 | F63: 74.7552 | G63: 76.6848 | H63: 78.1344 | I63: 79.5744 | J63: 80.544 | K63: 81.984 | L63: 83.4336 | M63: 85.3536 | N63: 87.2832 | O63: 88.3392 | P63: 89.2128 | Q63: 89.6928 | R63: 90.1728 | S63: 90.9024 | T63: 91.6224 | U63: 92.3424 | V63: 93.072 | W63: 93.3024 | Z63: Distillate | AA63: £/barrel | AB63: 62.2368 | AC63: 70.416 | AD63: 74.7552 | AE63: 76.6848 | AF63: 78.1344 | AG63: 79.5744 | AH63: 80.544 | AI63: 81.984 | AJ63: 83.4336 | AK63: 85.3536 | AL63: 87.2832 | AM63: 88.3392 | AN63: 89.2128 | AO63: 89.6928 | AP63: 90.1728 | AQ63: 90.9024 | AR63: 91.6224 | AS63: 92.3424 | AT63: 93.072 | AU63: 93.3024
B64: Gas | C64: p/th | D64: 53.8 | E64: 55.3 | F64: 57.9 | G64: 60.5 | H64: 63 | I64: 65.5 | J64: 68 | K64: 70.5 | L64: 73 | M64: 74.4 | N64: 75.8 | O64: 77.2 | P64: 78.6 | Q64: 80 | R64: 80 | S64: 80 | T64: 80 | U64: 80 | V64: 80 | W64: 80 | Z64: Gas | AA64: p/th | AB64: =D64-$J$4 -> 51.94578588 | AC64: 53.44578588 | AD64: 56.04578588 | AE64: 58.64578588 | AF64: 61.14578588 | AG64: 63.64578588 | AH64: 66.14578588 | AI64: 68.64578588 | AJ64: 71.14578588 | AK64: 72.54578588 | AL64: 73.94578588 | AM64: 75.34578588 | AN64: 76.74578588 | AO64: 78.14578588 | AP64: 78.14578588 | AQ64: 78.14578588 | AR64: 78.14578588 | AS64: 78.14578588 | AT64: 78.14578588 | AU64: 78.14578588
B65: Lignite | C65: £/t | D65: 0 | E65: 0 | F65: 0 | G65: 0 | H65: 0 | I65: 0 | J65: 0 | K65: 0 | L65: 0 | M65: 0 | N65: 0 | O65: 0 | P65: 0 | Q65: 0 | R65: 0 | S65: 0 | T65: 0 | U65: 0 | V65: 0 | W65: 0 | Z65: Lignite | AA65: £/t | AB65: =AB62*$F$4 -> 18.12 | AC65: =AC62*$F$4 -> 19.32 | AD65: 20.12 | AE65: 20.76 | AF65: 21.12 | AG65: 21.48 | AH65: 21.32 | AI65: 21.68 | AJ65: 21.88 | AK65: 21.68 | AL65: 21.56 | AM65: 21.76 | AN65: 21.76 | AO65: 22.04 | AP65: 21.96 | AQ65: 21.8 | AR65: 21.92 | AS65: 21.4 | AT65: 21.4 | AU65: 21.32
B66: Nuclear | C66: £/MWh | D66: 0 | E66: 0 | F66: 0 | G66: 0 | H66: 0 | I66: 0 | J66: 0 | K66: 0 | L66: 0 | M66: 0 | N66: 0 | O66: 0 | P66: 0 | Q66: 0 | R66: 0 | S66: 0 | T66: 0 | U66: 0 | V66: 0 | W66: 0 | Z66: Nuclear | AA66: £/MWh | AB66: 0 | AC66: 0 | AD66: 0 | AE66: 0 | AF66: 0 | AG66: 0 | AH66: 0 | AI66: 0 | AJ66: 0 | AK66: 0 | AL66: 0 | AM66: 0 | AN66: 0 | AO66: 0 | AP66: 0 | AQ66: 0 | AR66: 0 | AS66: 0 | AT66: 0 | AU66: 0
B67: Oil | C67: £/barrel | D67: 0 | E67: 0 | F67: 0 | G67: 0 | H67: 0 | I67: 0 | J67: 0 | K67: 0 | L67: 0 | M67: 0 | N67: 0 | O67: 0 | P67: 0 | Q67: 0 | R67: 0 | S67: 0 | T67: 0 | U67: 0 | V67: 0 | W67: 0 | Z67: Oil | AA67: £/barrel | AB67: =AB63/$H$4 -> 51.864 | AC67: 58.68 | AD67: 62.296 | AE67: 63.904 | AF67: 65.112 | AG67: 66.312 | AH67: 67.12 | AI67: 68.32 | AJ67: 69.528 | AK67: 71.128 | AL67: 72.736 | AM67: 73.616 | AN67: 74.344 | AO67: 74.744 | AP67: 75.144 | AQ67: 75.752 | AR67: 76.352 | AS67: 76.952 | AT67: 77.56 | AU67: 77.752
B68: Other Fossil Fuels | C68: £/MWh | D68: 0 | E68: 0 | F68: 0 | G68: 0 | H68: 0 | I68: 0 | J68: 0 | K68: 0 | L68: 0 | M68: 0 | N68: 0 | O68: 0 | P68: 0 | Q68: 0 | R68: 0 | S68: 0 | T68: 0 | U68: 0 | V68: 0 | W68: 0 | Z68: Other Fossil Fuels | AA68: £/MWh | AB68: 0 | AC68: 0 | AD68: 0 | AE68: 0 | AF68: 0 | AG68: 0 | AH68: 0 | AI68: 0 | AJ68: 0 | AK68: 0 | AL68: 0 | AM68: 0 | AN68: 0 | AO68: 0 | AP68: 0 | AQ68: 0 | AR68: 0 | AS68: 0 | AT68: 0 | AU68: 0
B69: Renewable | C69: £/MWh | D69: 0 | E69: 0 | F69: 0 | G69: 0 | H69: 0 | I69: 0 | J69: 0 | K69: 0 | L69: 0 | M69: 0 | N69: 0 | O69: 0 | P69: 0 | Q69: 0 | R69: 0 | S69: 0 | T69: 0 | U69: 0 | V69: 0 | W69: 0 | Z69: Renewable | AA69: £/MWh | AB69: 0 | AC69: 0 | AD69: 0 | AE69: 0 | AF69: 0 | AG69: 0 | AH69: 0 | AI69: 0 | AJ69: 0 | AK69: 0 | AL69: 0 | AM69: 0 | AN69: 0 | AO69: 0 | AP69: 0 | AQ69: 0 | AR69: 0 | AS69: 0 | AT69: 0 | AU69: 0
B70: Not Identified | C70: £/MWh | D70: 0 | E70: 0 | F70: 0 | G70: 0 | H70: 0 | I70: 0 | J70: 0 | K70: 0 | L70: 0 | M70: 0 | N70: 0 | O70: 0 | P70: 0 | Q70: 0 | R70: 0 | S70: 0 | T70: 0 | U70: 0 | V70: 0 | W70: 0 | Z70: Not Identified | AA70: £/MWh | AB70: 0 | AC70: 0 | AD70: 0 | AE70: 0 | AF70: 0 | AG70: 0 | AH70: 0 | AI70: 0 | AJ70: 0 | AK70: 0 | AL70: 0 | AM70: 0 | AN70: 0 | AO70: 0 | AP70: 0 | AQ70: 0 | AR70: 0 | AS70: 0 | AT70: 0 | AU70: 0
B71: Intercon France | C71: £/MWh | D71: 0 | E71: 0 | F71: 0 | G71: 0 | H71: 0 | I71: 0 | J71: 0 | K71: 0 | L71: 0 | M71: 0 | N71: 0 | O71: 0 | P71: 0 | Q71: 0 | R71: 0 | S71: 0 | T71: 0 | U71: 0 | V71: 0 | W71: 0 | Z71: Intercon France | AA71: £/MWh | AB71: 0 | AC71: 0 | AD71: 0 | AE71: 0 | AF71: 0 | AG71: 0 | AH71: 0 | AI71: 0 | AJ71: 0 | AK71: 0 | AL71: 0 | AM71: 0 | AN71: 0 | AO71: 0 | AP71: 0 | AQ71: 0 | AR71: 0 | AS71: 0 | AT71: 0 | AU71: 0
B72: Intercon Netherlands | C72: £/MWh | D72: 0 | E72: 0 | F72: 0 | G72: 0 | H72: 0 | I72: 0 | J72: 0 | K72: 0 | L72: 0 | M72: 0 | N72: 0 | O72: 0 | P72: 0 | Q72: 0 | R72: 0 | S72: 0 | T72: 0 | U72: 0 | V72: 0 | W72: 0 | Z72: Intercon Netherlands | AA72: £/MWh | AB72: 0 | AC72: 0 | AD72: 0 | AE72: 0 | AF72: 0 | AG72: 0 | AH72: 0 | AI72: 0 | AJ72: 0 | AK72: 0 | AL72: 0 | AM72: 0 | AN72: 0 | AO72: 0 | AP72: 0 | AQ72: 0 | AR72: 0 | AS72: 0 | AT72: 0 | AU72: 0
B73: Intercon Belgium | C73: £/MWh | D73: 0 | E73: 0 | F73: 0 | G73: 0 | H73: 0 | I73: 0 | J73: 0 | K73: 0 | L73: 0 | M73: 0 | N73: 0 | O73: 0 | P73: 0 | Q73: 0 | R73: 0 | S73: 0 | T73: 0 | U73: 0 | V73: 0 | W73: 0 | Z73: Intercon Belgium | AA73: £/MWh | AB73: 0 | AC73: 0 | AD73: 0 | AE73: 0 | AF73: 0 | AG73: 0 | AH73: 0 | AI73: 0 | AJ73: 0 | AK73: 0 | AL73: 0 | AM73: 0 | AN73: 0 | AO73: 0 | AP73: 0 | AQ73: 0 | AR73: 0 | AS73: 0 | AT73: 0 | AU73: 0
B74: Intercon Norway | C74: £/MWh | D74: 0 | E74: 0 | F74: 0 | G74: 0 | H74: 0 | I74: 0 | J74: 0 | K74: 0 | L74: 0 | M74: 0 | N74: 0 | O74: 0 | P74: 0 | Q74: 0 | R74: 0 | S74: 0 | T74: 0 | U74: 0 | V74: 0 | W74: 0 | Z74: Intercon Norway | AA74: £/MWh | AB74: 0 | AC74: 0 | AD74: 0 | AE74: 0 | AF74: 0 | AG74: 0 | AH74: 0 | AI74: 0 | AJ74: 0 | AK74: 0 | AL74: 0 | AM74: 0 | AN74: 0 | AO74: 0 | AP74: 0 | AQ74: 0 | AR74: 0 | AS74: 0 | AT74: 0 | AU74: 0
B75: Intercon Denmark | C75: £/MWh | D75: 0 | E75: 0 | F75: 0 | G75: 0 | H75: 0 | I75: 0 | J75: 0 | K75: 0 | L75: 0 | M75: 0 | N75: 0 | O75: 0 | P75: 0 | Q75: 0 | R75: 0 | S75: 0 | T75: 0 | U75: 0 | V75: 0 | W75: 0 | Z75: Intercon Denmark | AA75: £/MWh | AB75: 0 | AC75: 0 | AD75: 0 | AE75: 0 | AF75: 0 | AG75: 0 | AH75: 0 | AI75: 0 | AJ75: 0 | AK75: 0 | AL75: 0 | AM75: 0 | AN75: 0 | AO75: 0 | AP75: 0 | AQ75: 0 | AR75: 0 | AS75: 0 | AT75: 0 | AU75: 0
B76: Intercon Iceland | C76: £/MWh | D76: 0 | E76: 0 | F76: 0 | G76: 0 | H76: 0 | I76: 0 | J76: 0 | K76: 0 | L76: 0 | M76: 0 | N76: 0 | O76: 0 | P76: 0 | Q76: 0 | R76: 0 | S76: 0 | T76: 0 | U76: 0 | V76: 0 | W76: 0 | Z76: Intercon Iceland | AA76: £/MWh | AB76: 0 | AC76: 0 | AD76: 0 | AE76: 0 | AF76: 0 | AG76: 0 | AH76: 0 | AI76: 0 | AJ76: 0 | AK76: 0 | AL76: 0 | AM76: 0 | AN76: 0 | AO76: 0 | AP76: 0 | AQ76: 0 | AR76: 0 | AS76: 0 | AT76: 0 | AU76: 0
B77: Intercon Spain | C77: £/MWh | D77: 0 | E77: 0 | F77: 0 | G77: 0 | H77: 0 | I77: 0 | J77: 0 | K77: 0 | L77: 0 | M77: 0 | N77: 0 | O77: 0 | P77: 0 | Q77: 0 | R77: 0 | S77: 0 | T77: 0 | U77: 0 | V77: 0 | W77: 0 | Z77: Intercon Spain | AA77: £/MWh | AB77: 0 | AC77: 0 | AD77: 0 | AE77: 0 | AF77: 0 | AG77: 0 | AH77: 0 | AI77: 0 | AJ77: 0 | AK77: 0 | AL77: 0 | AM77: 0 | AN77: 0 | AO77: 0 | AP77: 0 | AQ77: 0 | AR77: 0 | AS77: 0 | AT77: 0 | AU77: 0
B78: Intercon Ireland | C78: £/MWh | D78: 0 | E78: 0 | F78: 0 | G78: 0 | H78: 0 | I78: 0 | J78: 0 | K78: 0 | L78: 0 | M78: 0 | N78: 0 | O78: 0 | P78: 0 | Q78: 0 | R78: 0 | S78: 0 | T78: 0 | U78: 0 | V78: 0 | W78: 0 | Z78: Intercon Ireland | AA78: £/MWh | AB78: 0 | AC78: 0 | AD78: 0 | AE78: 0 | AF78: 0 | AG78: 0 | AH78: 0 | AI78: 0 | AJ78: 0 | AK78: 0 | AL78: 0 | AM78: 0 | AN78: 0 | AO78: 0 | AP78: 0 | AQ78: 0 | AR78: 0 | AS78: 0 | AT78: 0 | AU78: 0
B79: CO2 | C79: £/t | D79: 26.7 | E79: 27.53 | F79: 27.93 | G79: 28.33 | H79: 28.82 | I79: 29.51 | J79: 30.71 | K79: 31.96 | L79: 33.16 | M79: 34.36 | N79: 35.49 | O79: 36.24 | P79: 36.94 | Q79: 37.55 | R79: 38.45 | S79: 39.33 | T79: 40.19 | U79: 41.03 | V79: 41.88 | W79: 42.72 | Z79: CO2 | AA79: £/t | AB79: 7.176470588 | AC79: 7.302521008 | AD79: 8.008403361 | AE79: 8.915966387 | AF79: 10.75630252 | AG79: 13.14285714 | AH79: 15.86554622 | AI79: 18.5210084 | AJ79: 20.98319328 | AK79: 24.42016807 | AL79: 26.00840336 | AM79: 27.17647059 | AN79: 29.44537815 | AO79: 31 | AP79: 31.69747899 | AQ79: 32.66386555 | AR79: 33.56302521 | AS79: 34.46218487 | AT79: 34.78151261 | AU79: 35.64705882
B80: VLL | C80: £/MWh | D80: 6000 | E80: 6000 | F80: 6000 | G80: 6000 | H80: 6000 | I80: 6000 | J80: 6000 | K80: 6000 | L80: 6000 | M80: 6000 | N80: 6000 | O80: 6000 | P80: 6000 | Q80: 6000 | R80: 6000 | S80: 6000 | T80: 6000 | U80: 6000 | V80: 6000 | W80: 6000 | Z80: VLL | AA80: £/MWh | AB80: 6000 | AC80: 6000 | AD80: 6000 | AE80: 6000 | AF80: 6000 | AG80: 6000 | AH80: 6000 | AI80: 6000 | AJ80: 6000 | AK80: 6000 | AL80: 6000 | AM80: 6000 | AN80: 6000 | AO80: 6000 | AP80: 6000 | AQ80: 6000 | AR80: 6000 | AS80: 6000 | AT80: 6000 | AU80: 6000
B83: Source | C83: FES 2016 | Z83: Source | AA83: FES 2016
B84: Scenario | C84: =Variables!F8 -> NP | Z84: Scenario | AA84: =Variables!F8 -> NP
B85: GB | C85: Unit | D85: =TRANSPOSE(rngSetYears) -> 2017 | E85: 2018 | F85: 2019 | G85: 2020 | H85: 2021 | I85: 2022 | J85: 2023 | K85: 2024 | L85: 2025 | M85: 2026 | N85: 2027 | O85: 2028 | P85: 2029 | Q85: 2030 | R85: 2031 | S85: 2032 | T85: 2033 | U85: 2034 | V85: 2035 | W85: 2036 | Z85: NWE | AA85: Unit | AB85: =TRANSPOSE(rngSetYears) -> 2017 | AC85: 2018 | AD85: 2019 | AE85: 2020 | AF85: 2021 | AG85: 2022 | AH85: 2023 | AI85: 2024 | AJ85: 2025 | AK85: 2026 | AL85: 2027 | AM85: 2028 | AN85: 2029 | AO85: 2030 | AP85: 2031 | AQ85: 2032 | AR85: 2033 | AS85: 2034 | AT85: 2035 | AU85: 2036
B86: =rngSetFuelTypes -> Biomass | C86: =rngSetFuelTypeCostUnits -> £/MWh | D86: 88.88889 | E86: 88.88889 | F86: 88.88889 | G86: 88.88889 | H86: 88.88889 | I86: 88.88889 | J86: 88.88889 | K86: 88.88889 | L86: 88.88889 | M86: 88.88889 | N86: 88.88889 | O86: 88.88889 | P86: 88.88889 | Q86: 88.88889 | R86: 88.88889 | S86: 88.88889 | T86: 88.88889 | U86: 88.88889 | V86: 88.88889 | W86: 88.88889 | Z86: =rngSetFuelTypes -> Biomass | AA86: =rngSetFuelTypeCostUnits -> £/MWh | AB86: 82.70945 | AC86: 82.70945 | AD86: 82.70945 | AE86: 82.70945 | AF86: 82.70945 | AG86: 82.70945 | AH86: 82.70945 | AI86: 82.70945 | AJ86: 82.70945 | AK86: 82.70945 | AL86: 82.70945 | AM86: 82.70945 | AN86: 82.70945 | AO86: 82.70945 | AP86: 82.70945 | AQ86: 82.70945 | AR86: 82.70945 | AS86: 82.70945 | AT86: 82.70945 | AU86: 82.70945
B87: CHP | C87: £/MWh | D87: 34.22958951 | E87: 35.06982967 | F87: 36.05690792 | G87: 37.03582849 | H87: 38.14527181 | I87: 39.67075638 | J87: 40.80467271 | K87: 41.89780069 | L87: 43.21934347 | M87: 44.67956666 | N87: 45.37296874 | O87: 45.69111793 | P87: 46.19689356 | Q87: 46.27847027 | R87: 46.39267767 | S87: 46.49056973 | T87: 46.62109248 | U87: 46.82503426 | V87: 47.22476016 | W87: 47.57554004 | Z87: CHP | AA87: £/MWh | AB87: =D87-$M$4 -> 32.71698254 | AC87: 33.55722271 | AD87: 34.54430095 | AE87: 35.52322153 | AF87: 36.63266485 | AG87: 38.15814942 | AH87: 39.29206575 | AI87: 40.38519373 | AJ87: 41.70673651 | AK87: 43.1669597 | AL87: 43.86036178 | AM87: 44.17851097 | AN87: 44.6842866 | AO87: 44.76586331 | AP87: 44.88007071 | AQ87: 44.97796277 | AR87: 45.10848551 | AS87: 45.3124273 | AT87: 45.7121532 | AU87: 46.06293308
B88: Coal | C88: £/t | D88: 36.24 | E88: 38.64 | F88: 40.24 | G88: 41.52 | H88: 42.24 | I88: 42.96 | J88: 42.64 | K88: 43.36 | L88: 43.76 | M88: 43.36 | N88: 43.12 | O88: 43.52 | P88: 43.52 | Q88: 44.08 | R88: 43.92 | S88: 43.6 | T88: 43.84 | U88: 42.8 | V88: 42.8 | W88: 42.64 | Z88: Coal | AA88: £/t | AB88: 36.24 | AC88: 38.64 | AD88: 40.24 | AE88: 41.52 | AF88: 42.24 | AG88: 42.96 | AH88: 42.64 | AI88: 43.36 | AJ88: 43.76 | AK88: 43.36 | AL88: 43.12 | AM88: 43.52 | AN88: 43.52 | AO88: 44.08 | AP88: 43.92 | AQ88: 43.6 | AR88: 43.84 | AS88: 42.8 | AT88: 42.8 | AU88: 42.64
B89: Distillate | C89: £/barrel | D89: 62.2368 | E89: 70.416 | F89: 74.7552 | G89: 76.6848 | H89: 78.1344 | I89: 79.5744 | J89: 80.544 | K89: 81.984 | L89: 83.4336 | M89: 85.3536 | N89: 87.2832 | O89: 88.3392 | P89: 89.2128 | Q89: 89.6928 | R89: 90.1728 | S89: 90.9024 | T89: 91.6224 | U89: 92.3424 | V89: 93.072 | W89: 93.3024 | Z89: Distillate | AA89: £/barrel | AB89: 62.2368 | AC89: 70.416 | AD89: 74.7552 | AE89: 76.6848 | AF89: 78.1344 | AG89: 79.5744 | AH89: 80.544 | AI89: 81.984 | AJ89: 83.4336 | AK89: 85.3536 | AL89: 87.2832 | AM89: 88.3392 | AN89: 89.2128 | AO89: 89.6928 | AP89: 90.1728 | AQ89: 90.9024 | AR89: 91.6224 | AS89: 92.3424 | AT89: 93.072 | AU89: 93.3024
B90: Gas | C90: p/th | D90: 41.96 | E90: 42.99 | F90: 44.2 | G90: 45.4 | H90: 46.76 | I90: 48.63 | J90: 50.02 | K90: 51.36 | L90: 52.98 | M90: 54.77 | N90: 55.62 | O90: 56.01 | P90: 56.63 | Q90: 56.73 | R90: 56.87 | S90: 56.99 | T90: 57.15 | U90: 57.4 | V90: 57.89 | W90: 58.32 | Z90: Gas | AA90: p/th | AB90: =D90-$J$4 -> 40.10578588 | AC90: 41.13578588 | AD90: 42.34578588 | AE90: 43.54578588 | AF90: 44.90578588 | AG90: 46.77578588 | AH90: 48.16578588 | AI90: 49.50578588 | AJ90: 51.12578588 | AK90: 52.91578588 | AL90: 53.76578588 | AM90: 54.15578588 | AN90: 54.77578588 | AO90: 54.87578588 | AP90: 55.01578588 | AQ90: 55.13578588 | AR90: 55.29578588 | AS90: 55.54578588 | AT90: 56.03578588 | AU90: 56.46578588
B91: Lignite | C91: £/t | D91: 0 | E91: 0 | F91: 0 | G91: 0 | H91: 0 | I91: 0 | J91: 0 | K91: 0 | L91: 0 | M91: 0 | N91: 0 | O91: 0 | P91: 0 | Q91: 0 | R91: 0 | S91: 0 | T91: 0 | U91: 0 | V91: 0 | W91: 0 | Z91: Lignite | AA91: £/t | AB91: =AB88*$F$4 -> 18.12 | AC91: =AC88*$F$4 -> 19.32 | AD91: 20.12 | AE91: 20.76 | AF91: 21.12 | AG91: 21.48 | AH91: 21.32 | AI91: 21.68 | AJ91: 21.88 | AK91: 21.68 | AL91: 21.56 | AM91: 21.76 | AN91: 21.76 | AO91: 22.04 | AP91: 21.96 | AQ91: 21.8 | AR91: 21.92 | AS91: 21.4 | AT91: 21.4 | AU91: 21.32
B92: Nuclear | C92: £/MWh | D92: 0 | E92: 0 | F92: 0 | G92: 0 | H92: 0 | I92: 0 | J92: 0 | K92: 0 | L92: 0 | M92: 0 | N92: 0 | O92: 0 | P92: 0 | Q92: 0 | R92: 0 | S92: 0 | T92: 0 | U92: 0 | V92: 0 | W92: 0 | Z92: Nuclear | AA92: £/MWh | AB92: 0 | AC92: 0 | AD92: 0 | AE92: 0 | AF92: 0 | AG92: 0 | AH92: 0 | AI92: 0 | AJ92: 0 | AK92: 0 | AL92: 0 | AM92: 0 | AN92: 0 | AO92: 0 | AP92: 0 | AQ92: 0 | AR92: 0 | AS92: 0 | AT92: 0 | AU92: 0
B93: Oil | C93: £/barrel | D93: 0 | E93: 0 | F93: 0 | G93: 0 | H93: 0 | I93: 0 | J93: 0 | K93: 0 | L93: 0 | M93: 0 | N93: 0 | O93: 0 | P93: 0 | Q93: 0 | R93: 0 | S93: 0 | T93: 0 | U93: 0 | V93: 0 | W93: 0 | Z93: Oil | AA93: £/barrel | AB93: =AB89/$H$4 -> 51.864 | AC93: 58.68 | AD93: 62.296 | AE93: 63.904 | AF93: 65.112 | AG93: 66.312 | AH93: 67.12 | AI93: 68.32 | AJ93: 69.528 | AK93: 71.128 | AL93: 72.736 | AM93: 73.616 | AN93: 74.344 | AO93: 74.744 | AP93: 75.144 | AQ93: 75.752 | AR93: 76.352 | AS93: 76.952 | AT93: 77.56 | AU93: 77.752
B94: Other Fossil Fuels | C94: £/MWh | D94: 0 | E94: 0 | F94: 0 | G94: 0 | H94: 0 | I94: 0 | J94: 0 | K94: 0 | L94: 0 | M94: 0 | N94: 0 | O94: 0 | P94: 0 | Q94: 0 | R94: 0 | S94: 0 | T94: 0 | U94: 0 | V94: 0 | W94: 0 | Z94: Other Fossil Fuels | AA94: £/MWh | AB94: 0 | AC94: 0 | AD94: 0 | AE94: 0 | AF94: 0 | AG94: 0 | AH94: 0 | AI94: 0 | AJ94: 0 | AK94: 0 | AL94: 0 | AM94: 0 | AN94: 0 | AO94: 0 | AP94: 0 | AQ94: 0 | AR94: 0 | AS94: 0 | AT94: 0 | AU94: 0
B95: Renewable | C95: £/MWh | D95: 0 | E95: 0 | F95: 0 | G95: 0 | H95: 0 | I95: 0 | J95: 0 | K95: 0 | L95: 0 | M95: 0 | N95: 0 | O95: 0 | P95: 0 | Q95: 0 | R95: 0 | S95: 0 | T95: 0 | U95: 0 | V95: 0 | W95: 0 | Z95: Renewable | AA95: £/MWh | AB95: 0 | AC95: 0 | AD95: 0 | AE95: 0 | AF95: 0 | AG95: 0 | AH95: 0 | AI95: 0 | AJ95: 0 | AK95: 0 | AL95: 0 | AM95: 0 | AN95: 0 | AO95: 0 | AP95: 0 | AQ95: 0 | AR95: 0 | AS95: 0 | AT95: 0 | AU95: 0
B96: Not Identified | C96: £/MWh | D96: 0 | E96: 0 | F96: 0 | G96: 0 | H96: 0 | I96: 0 | J96: 0 | K96: 0 | L96: 0 | M96: 0 | N96: 0 | O96: 0 | P96: 0 | Q96: 0 | R96: 0 | S96: 0 | T96: 0 | U96: 0 | V96: 0 | W96: 0 | Z96: Not Identified | AA96: £/MWh | AB96: 0 | AC96: 0 | AD96: 0 | AE96: 0 | AF96: 0 | AG96: 0 | AH96: 0 | AI96: 0 | AJ96: 0 | AK96: 0 | AL96: 0 | AM96: 0 | AN96: 0 | AO96: 0 | AP96: 0 | AQ96: 0 | AR96: 0 | AS96: 0 | AT96: 0 | AU96: 0
B97: Intercon France | C97: £/MWh | D97: 0 | E97: 0 | F97: 0 | G97: 0 | H97: 0 | I97: 0 | J97: 0 | K97: 0 | L97: 0 | M97: 0 | N97: 0 | O97: 0 | P97: 0 | Q97: 0 | R97: 0 | S97: 0 | T97: 0 | U97: 0 | V97: 0 | W97: 0 | Z97: Intercon France | AA97: £/MWh | AB97: 0 | AC97: 0 | AD97: 0 | AE97: 0 | AF97: 0 | AG97: 0 | AH97: 0 | AI97: 0 | AJ97: 0 | AK97: 0 | AL97: 0 | AM97: 0 | AN97: 0 | AO97: 0 | AP97: 0 | AQ97: 0 | AR97: 0 | AS97: 0 | AT97: 0 | AU97: 0
B98: Intercon Netherlands | C98: £/MWh | D98: 0 | E98: 0 | F98: 0 | G98: 0 | H98: 0 | I98: 0 | J98: 0 | K98: 0 | L98: 0 | M98: 0 | N98: 0 | O98: 0 | P98: 0 | Q98: 0 | R98: 0 | S98: 0 | T98: 0 | U98: 0 | V98: 0 | W98: 0 | Z98: Intercon Netherlands | AA98: £/MWh | AB98: 0 | AC98: 0 | AD98: 0 | AE98: 0 | AF98: 0 | AG98: 0 | AH98: 0 | AI98: 0 | AJ98: 0 | AK98: 0 | AL98: 0 | AM98: 0 | AN98: 0 | AO98: 0 | AP98: 0 | AQ98: 0 | AR98: 0 | AS98: 0 | AT98: 0 | AU98: 0
B99: Intercon Belgium | C99: £/MWh | D99: 0 | E99: 0 | F99: 0 | G99: 0 | H99: 0 | I99: 0 | J99: 0 | K99: 0 | L99: 0 | M99: 0 | N99: 0 | O99: 0 | P99: 0 | Q99: 0 | R99: 0 | S99: 0 | T99: 0 | U99: 0 | V99: 0 | W99: 0 | Z99: Intercon Belgium | AA99: £/MWh | AB99: 0 | AC99: 0 | AD99: 0 | AE99: 0 | AF99: 0 | AG99: 0 | AH99: 0 | AI99: 0 | AJ99: 0 | AK99: 0 | AL99: 0 | AM99: 0 | AN99: 0 | AO99: 0 | AP99: 0 | AQ99: 0 | AR99: 0 | AS99: 0 | AT99: 0 | AU99: 0
B100: Intercon Norway | C100: £/MWh | D100: 0 | E100: 0 | F100: 0 | G100: 0 | H100: 0 | I100: 0 | J100: 0 | K100: 0 | L100: 0 | M100: 0 | N100: 0 | O100: 0 | P100: 0 | Q100: 0 | R100: 0 | S100: 0 | T100: 0 | U100: 0 | V100: 0 | W100: 0 | Z100: Intercon Norway | AA100: £/MWh | AB100: 0 | AC100: 0 | AD100: 0 | AE100: 0 | AF100: 0 | AG100: 0 | AH100: 0 | AI100: 0 | AJ100: 0 | AK100: 0 | AL100: 0 | AM100: 0 | AN100: 0 | AO100: 0 | AP100: 0 | AQ100: 0 | AR100: 0 | AS100: 0 | AT100: 0 | AU100: 0
B101: Intercon Denmark | C101: £/MWh | D101: 0 | E101: 0 | F101: 0 | G101: 0 | H101: 0 | I101: 0 | J101: 0 | K101: 0 | L101: 0 | M101: 0 | N101: 0 | O101: 0 | P101: 0 | Q101: 0 | R101: 0 | S101: 0 | T101: 0 | U101: 0 | V101: 0 | W101: 0 | Z101: Intercon Denmark | AA101: £/MWh | AB101: 0 | AC101: 0 | AD101: 0 | AE101: 0 | AF101: 0 | AG101: 0 | AH101: 0 | AI101: 0 | AJ101: 0 | AK101: 0 | AL101: 0 | AM101: 0 | AN101: 0 | AO101: 0 | AP101: 0 | AQ101: 0 | AR101: 0 | AS101: 0 | AT101: 0 | AU101: 0
B102: Intercon Iceland | C102: £/MWh | D102: 0 | E102: 0 | F102: 0 | G102: 0 | H102: 0 | I102: 0 | J102: 0 | K102: 0 | L102: 0 | M102: 0 | N102: 0 | O102: 0 | P102: 0 | Q102: 0 | R102: 0 | S102: 0 | T102: 0 | U102: 0 | V102: 0 | W102: 0 | Z102: Intercon Iceland | AA102: £/MWh | AB102: 0 | AC102: 0 | AD102: 0 | AE102: 0 | AF102: 0 | AG102: 0 | AH102: 0 | AI102: 0 | AJ102: 0 | AK102: 0 | AL102: 0 | AM102: 0 | AN102: 0 | AO102: 0 | AP102: 0 | AQ102: 0 | AR102: 0 | AS102: 0 | AT102: 0 | AU102: 0
B103: Intercon Spain | C103: £/MWh | D103: 0 | E103: 0 | F103: 0 | G103: 0 | H103: 0 | I103: 0 | J103: 0 | K103: 0 | L103: 0 | M103: 0 | N103: 0 | O103: 0 | P103: 0 | Q103: 0 | R103: 0 | S103: 0 | T103: 0 | U103: 0 | V103: 0 | W103: 0 | Z103: Intercon Spain | AA103: £/MWh | AB103: 0 | AC103: 0 | AD103: 0 | AE103: 0 | AF103: 0 | AG103: 0 | AH103: 0 | AI103: 0 | AJ103: 0 | AK103: 0 | AL103: 0 | AM103: 0 | AN103: 0 | AO103: 0 | AP103: 0 | AQ103: 0 | AR103: 0 | AS103: 0 | AT103: 0 | AU103: 0
B104: Intercon Ireland | C104: £/MWh | D104: 0 | E104: 0 | F104: 0 | G104: 0 | H104: 0 | I104: 0 | J104: 0 | K104: 0 | L104: 0 | M104: 0 | N104: 0 | O104: 0 | P104: 0 | Q104: 0 | R104: 0 | S104: 0 | T104: 0 | U104: 0 | V104: 0 | W104: 0 | Z104: Intercon Ireland | AA104: £/MWh | AB104: 0 | AC104: 0 | AD104: 0 | AE104: 0 | AF104: 0 | AG104: 0 | AH104: 0 | AI104: 0 | AJ104: 0 | AK104: 0 | AL104: 0 | AM104: 0 | AN104: 0 | AO104: 0 | AP104: 0 | AQ104: 0 | AR104: 0 | AS104: 0 | AT104: 0 | AU104: 0
B105: CO2 | C105: £/t | D105: 21.98 | E105: 22.32 | F105: 22.66 | G105: 22.92 | H105: 23.13 | I105: 23.23 | J105: 23.53 | K105: 24.04 | L105: 24.54 | M105: 25.04 | N105: 25.45 | O105: 25.74 | P105: 26.35 | Q105: 27.05 | R105: 27.65 | S105: 28.26 | T105: 28.96 | U105: 29.66 | V105: 30.37 | W105: 30.66 | Z105: CO2 | AA105: £/t | AB105: 7.176470588 | AC105: 7.302521008 | AD105: 8.008403361 | AE105: 8.915966387 | AF105: 10.75630252 | AG105: 13.14285714 | AH105: 15.86554622 | AI105: 18.5210084 | AJ105: 20.98319328 | AK105: 24.42016807 | AL105: 26.00840336 | AM105: 27.17647059 | AN105: 29.44537815 | AO105: 31 | AP105: 31.69747899 | AQ105: 32.66386555 | AR105: 33.56302521 | AS105: 34.46218487 | AT105: 34.78151261 | AU105: 35.64705882
B106: VLL | C106: £/MWh | D106: 6000 | E106: 6000 | F106: 6000 | G106: 6000 | H106: 6000 | I106: 6000 | J106: 6000 | K106: 6000 | L106: 6000 | M106: 6000 | N106: 6000 | O106: 6000 | P106: 6000 | Q106: 6000 | R106: 6000 | S106: 6000 | T106: 6000 | U106: 6000 | V106: 6000 | W106: 6000 | Z106: VLL | AA106: £/MWh | AB106: 6000 | AC106: 6000 | AD106: 6000 | AE106: 6000 | AF106: 6000 | AG106: 6000 | AH106: 6000 | AI106: 6000 | AJ106: 6000 | AK106: 6000 | AL106: 6000 | AM106: 6000 | AN106: 6000 | AO106: 6000 | AP106: 6000 | AQ106: 6000 | AR106: 6000 | AS106: 6000 | AT106: 6000 | AU106: 6000
B109: Source | C109: FES 2016 | Z109: Source | AA109: FES 2016
B110: Scenario | C110: =Variables!G8 -> CP | Z110: Scenario | AA110: =Variables!G8 -> CP
B111: GB | C111: Unit | D111: =TRANSPOSE(rngSetYears) -> 2017 | E111: 2018 | F111: 2019 | G111: 2020 | H111: 2021 | I111: 2022 | J111: 2023 | K111: 2024 | L111: 2025 | M111: 2026 | N111: 2027 | O111: 2028 | P111: 2029 | Q111: 2030 | R111: 2031 | S111: 2032 | T111: 2033 | U111: 2034 | V111: 2035 | W111: 2036 | Z111: NWE | AA111: Unit | AB111: =TRANSPOSE(rngSetYears) -> 2017 | AC111: 2018 | AD111: 2019 | AE111: 2020 | AF111: 2021 | AG111: 2022 | AH111: 2023 | AI111: 2024 | AJ111: 2025 | AK111: 2026 | AL111: 2027 | AM111: 2028 | AN111: 2029 | AO111: 2030 | AP111: 2031 | AQ111: 2032 | AR111: 2033 | AS111: 2034 | AT111: 2035 | AU111: 2036
B112: =rngSetFuelTypes -> Biomass | C112: =rngSetFuelTypeCostUnits -> £/MWh | D112: 88.88889 | E112: 88.88889 | F112: 88.88889 | G112: 88.88889 | H112: 88.88889 | I112: 88.88889 | J112: 88.88889 | K112: 88.88889 | L112: 88.88889 | M112: 88.88889 | N112: 88.88889 | O112: 88.88889 | P112: 88.88889 | Q112: 88.88889 | R112: 88.88889 | S112: 88.88889 | T112: 88.88889 | U112: 88.88889 | V112: 88.88889 | W112: 88.88889 | Z112: =rngSetFuelTypes -> Biomass | AA112: =rngSetFuelTypeCostUnits -> £/MWh | AB112: 82.70945 | AC112: 82.70945 | AD112: 82.70945 | AE112: 82.70945 | AF112: 82.70945 | AG112: 82.70945 | AH112: 82.70945 | AI112: 82.70945 | AJ112: 82.70945 | AK112: 82.70945 | AL112: 82.70945 | AM112: 82.70945 | AN112: 82.70945 | AO112: 82.70945 | AP112: 82.70945 | AQ112: 82.70945 | AR112: 82.70945 | AS112: 82.70945 | AT112: 82.70945 | AU112: 82.70945
B113: CHP | C113: £/MWh | D113: 28.75579195 | E113: 29.45735169 | F113: 30.28943418 | G113: 30.4281146 | H113: 31.57018861 | I113: 32.79383933 | J113: 34.09906676 | K113: 35.48587091 | L113: 37.6068655 | M113: 38.01474907 | N113: 38.50420936 | O113: 39.07524636 | P113: 39.72786008 | Q113: 40.54362723 | R113: 40.62520394 | S113: 40.62520394 | T113: 40.62520394 | U113: 40.62520394 | V113: 40.62520394 | W113: 40.62520394 | Z113: CHP | AA113: £/MWh | AB113: =D113-$M$4 -> 27.24318499 | AC113: 27.94474473 | AD113: 28.77682722 | AE113: 28.91550764 | AF113: 30.05758164 | AG113: 31.28123237 | AH113: 32.5864598 | AI113: 33.97326395 | AJ113: 36.09425853 | AK113: 36.50214211 | AL113: 36.9916024 | AM113: 37.5626394 | AN113: 38.21525312 | AO113: 39.03102027 | AP113: 39.11259698 | AQ113: 39.11259698 | AR113: 39.11259698 | AS113: 39.11259698 | AT113: 39.11259698 | AU113: 39.11259698
B114: Coal | C114: £/t | D114: 36.24 | E114: 38.64 | F114: 40.24 | G114: 41.52 | H114: 42.24 | I114: 42.96 | J114: 42.64 | K114: 43.36 | L114: 43.76 | M114: 43.36 | N114: 43.12 | O114: 43.52 | P114: 43.52 | Q114: 44.08 | R114: 43.92 | S114: 43.6 | T114: 43.84 | U114: 42.8 | V114: 42.8 | W114: 42.64 | Z114: Coal | AA114: £/t | AB114: 36.24 | AC114: 38.64 | AD114: 40.24 | AE114: 41.52 | AF114: 42.24 | AG114: 42.96 | AH114: 42.64 | AI114: 43.36 | AJ114: 43.76 | AK114: 43.36 | AL114: 43.12 | AM114: 43.52 | AN114: 43.52 | AO114: 44.08 | AP114: 43.92 | AQ114: 43.6 | AR114: 43.84 | AS114: 42.8 | AT114: 42.8 | AU114: 42.64
B115: Distillate | C115: £/barrel | D115: 62.2368 | E115: 70.416 | F115: 74.7552 | G115: 76.6848 | H115: 78.1344 | I115: 79.5744 | J115: 80.544 | K115: 81.984 | L115: 83.4336 | M115: 85.3536 | N115: 87.2832 | O115: 88.3392 | P115: 89.2128 | Q115: 89.6928 | R115: 90.1728 | S115: 90.9024 | T115: 91.6224 | U115: 92.3424 | V115: 93.072 | W115: 93.3024 | Z115: Distillate | AA115: £/barrel | AB115: 62.2368 | AC115: 70.416 | AD115: 74.7552 | AE115: 76.6848 | AF115: 78.1344 | AG115: 79.5744 | AH115: 80.544 | AI115: 81.984 | AJ115: 83.4336 | AK115: 85.3536 | AL115: 87.2832 | AM115: 88.3392 | AN115: 89.2128 | AO115: 89.6928 | AP115: 90.1728 | AQ115: 90.9024 | AR115: 91.6224 | AS115: 92.3424 | AT115: 93.072 | AU115: 93.3024
B116: Gas | C116: p/th | D116: 35.25 | E116: 36.11 | F116: 37.13 | G116: 37.3 | H116: 38.7 | I116: 40.2 | J116: 41.8 | K116: 43.5 | L116: 46.1 | M116: 46.6 | N116: 47.2 | O116: 47.9 | P116: 48.7 | Q116: 49.7 | R116: 49.8 | S116: 49.8 | T116: 49.8 | U116: 49.8 | V116: 49.8 | W116: 49.8 | Z116: Gas | AA116: p/th | AB116: =D116-$J$4 -> 33.39578588 | AC116: 34.25578588 | AD116: 35.27578588 | AE116: 35.44578588 | AF116: 36.84578588 | AG116: 38.34578588 | AH116: 39.94578588 | AI116: 41.64578588 | AJ116: 44.24578588 | AK116: 44.74578588 | AL116: 45.34578588 | AM116: 46.04578588 | AN116: 46.84578588 | AO116: 47.84578588 | AP116: 47.94578588 | AQ116: 47.94578588 | AR116: 47.94578588 | AS116: 47.94578588 | AT116: 47.94578588 | AU116: 47.94578588
B117: Lignite | C117: £/t | D117: 0 | E117: 0 | F117: 0 | G117: 0 | H117: 0 | I117: 0 | J117: 0 | K117: 0 | L117: 0 | M117: 0 | N117: 0 | O117: 0 | P117: 0 | Q117: 0 | R117: 0 | S117: 0 | T117: 0 | U117: 0 | V117: 0 | W117: 0 | Z117: Lignite | AA117: £/t | AB117: =AB114*$F$4 -> 18.12 | AC117: =AC114*$F$4 -> 19.32 | AD117: 20.12 | AE117: 20.76 | AF117: 21.12 | AG117: 21.48 | AH117: 21.32 | AI117: 21.68 | AJ117: 21.88 | AK117: 21.68 | AL117: 21.56 | AM117: 21.76 | AN117: 21.76 | AO117: 22.04 | AP117: 21.96 | AQ117: 21.8 | AR117: 21.92 | AS117: 21.4 | AT117: 21.4 | AU117: 21.32
B118: Nuclear | C118: £/MWh | D118: 0 | E118: 0 | F118: 0 | G118: 0 | H118: 0 | I118: 0 | J118: 0 | K118: 0 | L118: 0 | M118: 0 | N118: 0 | O118: 0 | P118: 0 | Q118: 0 | R118: 0 | S118: 0 | T118: 0 | U118: 0 | V118: 0 | W118: 0 | Z118: Nuclear | AA118: £/MWh | AB118: 0 | AC118: 0 | AD118: 0 | AE118: 0 | AF118: 0 | AG118: 0 | AH118: 0 | AI118: 0 | AJ118: 0 | AK118: 0 | AL118: 0 | AM118: 0 | AN118: 0 | AO118: 0 | AP118: 0 | AQ118: 0 | AR118: 0 | AS118: 0 | AT118: 0 | AU118: 0
B119: Oil | C119: £/barrel | D119: 0 | E119: 0 | F119: 0 | G119: 0 | H119: 0 | I119: 0 | J119: 0 | K119: 0 | L119: 0 | M119: 0 | N119: 0 | O119: 0 | P119: 0 | Q119: 0 | R119: 0 | S119: 0 | T119: 0 | U119: 0 | V119: 0 | W119: 0 | Z119: Oil | AA119: £/barrel | AB119: =AB115/$H$4 -> 51.864 | AC119: 58.68 | AD119: 62.296 | AE119: 63.904 | AF119: 65.112 | AG119: 66.312 | AH119: 67.12 | AI119: 68.32 | AJ119: 69.528 | AK119: 71.128 | AL119: 72.736 | AM119: 73.616 | AN119: 74.344 | AO119: 74.744 | AP119: 75.144 | AQ119: 75.752 | AR119: 76.352 | AS119: 76.952 | AT119: 77.56 | AU119: 77.752
B120: Other Fossil Fuels | C120: £/MWh | D120: 0 | E120: 0 | F120: 0 | G120: 0 | H120: 0 | I120: 0 | J120: 0 | K120: 0 | L120: 0 | M120: 0 | N120: 0 | O120: 0 | P120: 0 | Q120: 0 | R120: 0 | S120: 0 | T120: 0 | U120: 0 | V120: 0 | W120: 0 | Z120: Other Fossil Fuels | AA120: £/MWh | AB120: 0 | AC120: 0 | AD120: 0 | AE120: 0 | AF120: 0 | AG120: 0 | AH120: 0 | AI120: 0 | AJ120: 0 | AK120: 0 | AL120: 0 | AM120: 0 | AN120: 0 | AO120: 0 | AP120: 0 | AQ120: 0 | AR120: 0 | AS120: 0 | AT120: 0 | AU120: 0
B121: Renewable | C121: £/MWh | D121: 0 | E121: 0 | F121: 0 | G121: 0 | H121: 0 | I121: 0 | J121: 0 | K121: 0 | L121: 0 | M121: 0 | N121: 0 | O121: 0 | P121: 0 | Q121: 0 | R121: 0 | S121: 0 | T121: 0 | U121: 0 | V121: 0 | W121: 0 | Z121: Renewable | AA121: £/MWh | AB121: 0 | AC121: 0 | AD121: 0 | AE121: 0 | AF121: 0 | AG121: 0 | AH121: 0 | AI121: 0 | AJ121: 0 | AK121: 0 | AL121: 0 | AM121: 0 | AN121: 0 | AO121: 0 | AP121: 0 | AQ121: 0 | AR121: 0 | AS121: 0 | AT121: 0 | AU121: 0
B122: Not Identified | C122: £/MWh | D122: 0 | E122: 0 | F122: 0 | G122: 0 | H122: 0 | I122: 0 | J122: 0 | K122: 0 | L122: 0 | M122: 0 | N122: 0 | O122: 0 | P122: 0 | Q122: 0 | R122: 0 | S122: 0 | T122: 0 | U122: 0 | V122: 0 | W122: 0 | Z122: Not Identified | AA122: £/MWh | AB122: 0 | AC122: 0 | AD122: 0 | AE122: 0 | AF122: 0 | AG122: 0 | AH122: 0 | AI122: 0 | AJ122: 0 | AK122: 0 | AL122: 0 | AM122: 0 | AN122: 0 | AO122: 0 | AP122: 0 | AQ122: 0 | AR122: 0 | AS122: 0 | AT122: 0 | AU122: 0
B123: Intercon France | C123: £/MWh | D123: 0 | E123: 0 | F123: 0 | G123: 0 | H123: 0 | I123: 0 | J123: 0 | K123: 0 | L123: 0 | M123: 0 | N123: 0 | O123: 0 | P123: 0 | Q123: 0 | R123: 0 | S123: 0 | T123: 0 | U123: 0 | V123: 0 | W123: 0 | Z123: Intercon France | AA123: £/MWh | AB123: 0 | AC123: 0 | AD123: 0 | AE123: 0 | AF123: 0 | AG123: 0 | AH123: 0 | AI123: 0 | AJ123: 0 | AK123: 0 | AL123: 0 | AM123: 0 | AN123: 0 | AO123: 0 | AP123: 0 | AQ123: 0 | AR123: 0 | AS123: 0 | AT123: 0 | AU123: 0
B124: Intercon Netherlands | C124: £/MWh | D124: 0 | E124: 0 | F124: 0 | G124: 0 | H124: 0 | I124: 0 | J124: 0 | K124: 0 | L124: 0 | M124: 0 | N124: 0 | O124: 0 | P124: 0 | Q124: 0 | R124: 0 | S124: 0 | T124: 0 | U124: 0 | V124: 0 | W124: 0 | Z124: Intercon Netherlands | AA124: £/MWh | AB124: 0 | AC124: 0 | AD124: 0 | AE124: 0 | AF124: 0 | AG124: 0 | AH124: 0 | AI124: 0 | AJ124: 0 | AK124: 0 | AL124: 0 | AM124: 0 | AN124: 0 | AO124: 0 | AP124: 0 | AQ124: 0 | AR124: 0 | AS124: 0 | AT124: 0 | AU124: 0
B125: Intercon Belgium | C125: £/MWh | D125: 0 | E125: 0 | F125: 0 | G125: 0 | H125: 0 | I125: 0 | J125: 0 | K125: 0 | L125: 0 | M125: 0 | N125: 0 | O125: 0 | P125: 0 | Q125: 0 | R125: 0 | S125: 0 | T125: 0 | U125: 0 | V125: 0 | W125: 0 | Z125: Intercon Belgium | AA125: £/MWh | AB125: 0 | AC125: 0 | AD125: 0 | AE125: 0 | AF125: 0 | AG125: 0 | AH125: 0 | AI125: 0 | AJ125: 0 | AK125: 0 | AL125: 0 | AM125: 0 | AN125: 0 | AO125: 0 | AP125: 0 | AQ125: 0 | AR125: 0 | AS125: 0 | AT125: 0 | AU125: 0
B126: Intercon Norway | C126: £/MWh | D126: 0 | E126: 0 | F126: 0 | G126: 0 | H126: 0 | I126: 0 | J126: 0 | K126: 0 | L126: 0 | M126: 0 | N126: 0 | O126: 0 | P126: 0 | Q126: 0 | R126: 0 | S126: 0 | T126: 0 | U126: 0 | V126: 0 | W126: 0 | Z126: Intercon Norway | AA126: £/MWh | AB126: 0 | AC126: 0 | AD126: 0 | AE126: 0 | AF126: 0 | AG126: 0 | AH126: 0 | AI126: 0 | AJ126: 0 | AK126: 0 | AL126: 0 | AM126: 0 | AN126: 0 | AO126: 0 | AP126: 0 | AQ126: 0 | AR126: 0 | AS126: 0 | AT126: 0 | AU126: 0
B127: Intercon Denmark | C127: £/MWh | D127: 0 | E127: 0 | F127: 0 | G127: 0 | H127: 0 | I127: 0 | J127: 0 | K127: 0 | L127: 0 | M127: 0 | N127: 0 | O127: 0 | P127: 0 | Q127: 0 | R127: 0 | S127: 0 | T127: 0 | U127: 0 | V127: 0 | W127: 0 | Z127: Intercon Denmark | AA127: £/MWh | AB127: 0 | AC127: 0 | AD127: 0 | AE127: 0 | AF127: 0 | AG127: 0 | AH127: 0 | AI127: 0 | AJ127: 0 | AK127: 0 | AL127: 0 | AM127: 0 | AN127: 0 | AO127: 0 | AP127: 0 | AQ127: 0 | AR127: 0 | AS127: 0 | AT127: 0 | AU127: 0
B128: Intercon Iceland | C128: £/MWh | D128: 0 | E128: 0 | F128: 0 | G128: 0 | H128: 0 | I128: 0 | J128: 0 | K128: 0 | L128: 0 | M128: 0 | N128: 0 | O128: 0 | P128: 0 | Q128: 0 | R128: 0 | S128: 0 | T128: 0 | U128: 0 | V128: 0 | W128: 0 | Z128: Intercon Iceland | AA128: £/MWh | AB128: 0 | AC128: 0 | AD128: 0 | AE128: 0 | AF128: 0 | AG128: 0 | AH128: 0 | AI128: 0 | AJ128: 0 | AK128: 0 | AL128: 0 | AM128: 0 | AN128: 0 | AO128: 0 | AP128: 0 | AQ128: 0 | AR128: 0 | AS128: 0 | AT128: 0 | AU128: 0
B129: Intercon Spain | C129: £/MWh | D129: 0 | E129: 0 | F129: 0 | G129: 0 | H129: 0 | I129: 0 | J129: 0 | K129: 0 | L129: 0 | M129: 0 | N129: 0 | O129: 0 | P129: 0 | Q129: 0 | R129: 0 | S129: 0 | T129: 0 | U129: 0 | V129: 0 | W129: 0 | Z129: Intercon Spain | AA129: £/MWh | AB129: 0 | AC129: 0 | AD129: 0 | AE129: 0 | AF129: 0 | AG129: 0 | AH129: 0 | AI129: 0 | AJ129: 0 | AK129: 0 | AL129: 0 | AM129: 0 | AN129: 0 | AO129: 0 | AP129: 0 | AQ129: 0 | AR129: 0 | AS129: 0 | AT129: 0 | AU129: 0
B130: Intercon Ireland | C130: £/MWh | D130: 0 | E130: 0 | F130: 0 | G130: 0 | H130: 0 | I130: 0 | J130: 0 | K130: 0 | L130: 0 | M130: 0 | N130: 0 | O130: 0 | P130: 0 | Q130: 0 | R130: 0 | S130: 0 | T130: 0 | U130: 0 | V130: 0 | W130: 0 | Z130: Intercon Ireland | AA130: £/MWh | AB130: 0 | AC130: 0 | AD130: 0 | AE130: 0 | AF130: 0 | AG130: 0 | AH130: 0 | AI130: 0 | AJ130: 0 | AK130: 0 | AL130: 0 | AM130: 0 | AN130: 0 | AO130: 0 | AP130: 0 | AQ130: 0 | AR130: 0 | AS130: 0 | AT130: 0 | AU130: 0
B131: CO2 | C131: £/t | D131: 25.24 | E131: 25.43 | F131: 25.8 | G131: 25.89 | H131: 25.97 | I131: 26.22 | J131: 26.48 | K131: 26.93 | L131: 28.02 | M131: 28.64 | N131: 29.55 | O131: 30.54 | P131: 31.45 | Q131: 32.25 | R131: 33.05 | S131: 33.86 | T131: 34.76 | U131: 35.46 | V131: 35.86 | W131: 36.46 | Z131: CO2 | AA131: £/t | AB131: 7.176470588 | AC131: 7.302521008 | AD131: 8.008403361 | AE131: 8.915966387 | AF131: 10.75630252 | AG131: 13.14285714 | AH131: 15.86554622 | AI131: 18.5210084 | AJ131: 20.98319328 | AK131: 24.42016807 | AL131: 26.00840336 | AM131: 27.17647059 | AN131: 29.44537815 | AO131: 31 | AP131: 31.69747899 | AQ131: 32.66386555 | AR131: 33.56302521 | AS131: 34.46218487 | AT131: 34.78151261 | AU131: 35.64705882
B132: VLL | C132: £/MWh | D132: 6000 | E132: 6000 | F132: 6000 | G132: 6000 | H132: 6000 | I132: 6000 | J132: 6000 | K132: 6000 | L132: 6000 | M132: 6000 | N132: 6000 | O132: 6000 | P132: 6000 | Q132: 6000 | R132: 6000 | S132: 6000 | T132: 6000 | U132: 6000 | V132: 6000 | W132: 6000 | Z132: VLL | AA132: £/MWh | AB132: 6000 | AC132: 6000 | AD132: 6000 | AE132: 6000 | AF132: 6000 | AG132: 6000 | AH132: 6000 | AI132: 6000 | AJ132: 6000 | AK132: 6000 | AL132: 6000 | AM132: 6000 | AN132: 6000 | AO132: 6000 | AP132: 6000 | AQ132: 6000 | AR132: 6000 | AS132: 6000 | AT132: 6000 | AU132: 6000

Sheet I_Plant_Assumptions
B1: INSTRUCTIONS: Enter data in white cells for given scenario - do not edit grey cells | N1: Go to control sheet
B2: Data source | C2: National Grid | E2: Power plant availabilities
D3: t CO2/MWh @ 100% eff | E3: % | F3: % | G3: % | H3: Power plant efficiencies
B4: Plant Types | D4: Emissions Factor | E4: Winter Availability | F4: Spring Autumn Availability | G4: Summer Availability | H4: Efficiency | I4: Fuel Type | J4: Flex Flag | K4: Flex Coeff | L4: Conversion Factor to MWh | M4: Interconnector losses (%)
B5: =rngSetPlantTypes -> Biomass | D5: 0 | E5: 0.617881 | F5: 0.577417 | G5: 0.467035 | H5: 1 | I5: Biomass | J5: 1 | K5: =IF(J5<=1,1,0) -> 1 | L5: =IFERROR(INDEX($B$56:$D$60,MATCH($I5,$B$56:$B$60,0),3),1) -> 1
B6: Biomass Conversion | D6: 0 | E6: 0.949558 | F6: 0.875994 | G6: 0.809099 | H6: 1 | I6: Biomass | J6: 1 | K6: =IF(J6<=1,1,0) -> 1 | L6: 1
B7: Clean Coal CCS | D7: 0.0322308 | E7: 0.95 | F7: 0.858333 | G7: 0.84 | H7: 0.37 | I7: Coal | J7: 1 | K7: 1 | L7: 7.027777778
B8: Clean Gas CCS | D8: 0.0181764 | E8: 0.95 | F8: 0.883333 | G8: 0.85 | H8: 0.4765 | I8: Gas | J8: 1 | K8: 1 | L8: 3.0646
B9: CHP | D9: 0.0181764 | E9: 0.862216 | F9: 0.848911 | G9: 0.830528 | H9: 1 | I9: CHP | J9: 2 | K9: 0 | L9: 1 | N9: <--- Currently assumed to be gas CHP, but CHP "commodity" price available for future use
B10: CHP New | D10: 0.0181764 | E10: 0.9 | F10: 0.9 | G10: 0.9 | H10: 1 | I10: CHP | J10: 2 | K10: 0 | L10: 1 | N10: <--- Currently assumed to be gas CHP, but CHP "commodity" price available for future use
B11: Gas Base | D11: 0.181764 | E11: 0.965372 | F11: 0.902872 | G11: 0.865372 | H11: 0.5378 | I11: Gas | J11: 1 | K11: 1 | L11: 3.0646
B12: Gas Marg | D12: 0.181764 | E12: 0.824431 | F12: 0.771292 | G12: 0.761056 | H12: 0.4317 | I12: Gas | J12: 1 | K12: 1 | L12: 3.0646
B13: Gas Mid | D13: 0.181764 | E13: 0.824431 | F13: 0.771292 | G13: 0.761056 | H13: 0.5057 | I13: Gas | J13: 1 | K13: 1 | L13: 3.0646
B14: Hard Coal Base | D14: 0.322308 | E14: 0.882279 | F14: 0.813831 | G14: 0.675383 | H14: 0.3666 | I14: Coal | J14: 1 | K14: 1 | L14: =IFERROR(INDEX($B$56:$D$60,MATCH($I14,$B$56:$B$60,0),3),1) -> 7.027777778
B15: Hard Coal Marg | D15: 0.322308 | E15: 0.815 | F15: 0.751667 | G15: 0.541667 | H15: 0.3208 | I15: Coal | J15: 1 | K15: 1 | L15: 7.027777778
B16: Hard Coal Mid | D16: 0.322308 | E16: 0.815 | F16: 0.751667 | G16: 0.541667 | H16: 0.34 | I16: Coal | J16: 1 | K16: 1 | L16: 7.027777778
B17: Hydro Run of River | D17: 0 | E17: 0.933333 | F17: 0.825 | G17: 0.783333 | H17: 1 | I17: Renewable | J17: 1 | K17: 1 | L17: 1
B18: Hydro Storage | D18: 0 | E18: 1 | F18: 1 | G18: 1 | H18: 1 | I18: Renewable | J18: 1 | K18: 1 | L18: 1
B19: Lignite | D19: 0.353952 | E19: 0.815 | F19: 0.751667 | G19: 0.541667 | H19: 0.345 | I19: Lignite | J19: 1 | K19: 1 | L19: 3.513888889
B20: Nuclear | D20: 0 | E20: 0.89 | F20: 0.740833 | G20: 0.738333 | H20: 1 | I20: Nuclear | J20: 4 | K20: 0 | L20: 1
B21: Nuclear New | D21: 0 | E21: 0.95 | F21: 0.86 | G21: 0.77 | H21: 1 | I21: Nuclear | J21: 4 | K21: 0 | L21: 1
B22: OCGT | D22: 0.250884 | E22: 0.9 | F22: 0.9 | G22: 0.9 | H22: 0.375 | I22: Distillate | J22: 1 | K22: 1 | L22: 2.060959722
B23: Offshore Wind | D23: 0 | E23: 1 | F23: 1 | G23: 1 | H23: 1 | I23: Renewable | J23: 3 | K23: 0 | L23: 1
B24: Oil | D24: 0.250884 | E24: 0.9 | F24: 0.9 | G24: 0.9 | H24: 0.33 | I24: Oil | J24: 1 | K24: 1 | L24: =IFERROR(INDEX($B$56:$D$60,MATCH($I24,$B$56:$B$60,0),3),1) -> 1.792138889
B25: Onshore Wind | D25: 0 | E25: 1 | F25: 1 | G25: 1 | H25: 1 | I25: Renewable | J25: 3 | K25: 0 | L25: 1
B26: Other Fossil Fuels | D26: 0.322308 | E26: 0.9 | F26: 0.9 | G26: 0.9 | H26: 1 | I26: Other Fossil Fuels | J26: 1 | K26: 1 | L26: 1 | N26: <----Assumed to be of the most polluting type
B27: Pumped Storage | D27: 0 | E27: 0.716667 | F27: 0.716667 | G27: 0.716667 | H27: 1 | I27: Not Identified | J27: 5 | K27: 0 | L27: 1
B28: Battery Storage | D28: 0 | E28: =E$27 -> 0.716667 | F28: 0.716667 | G28: 0.716667 | H28: 1 | I28: Not Identified | J28: 5 | K28: 0 | L28: 1
B29: Air Storage | D29: 0 | E29: 0.716667 | F29: 0.716667 | G29: 0.716667 | H29: 1 | I29: Not Identified | J29: 5 | K29: 0 | L29: 1
B30: Solar | D30: 0 | E30: 1 | F30: 1 | G30: 1 | H30: 1 | I30: Renewable | J30: 3 | K30: 0 | L30: 1
B31: Tidal Enhanced | D31: 0 | E31: 0.410827 | F31: 0.403969 | G31: 0.401037 | H31: 1 | I31: Renewable | J31: 3 | K31: 0 | L31: 1
B32: Tidal | D32: 0 | E32: 0.410827 | F32: 0.403969 | G32: 0.401037 | H32: 1 | I32: Renewable | J32: 3 | K32: 0 | L32: 1
B33: Wave Enhanced | D33: 0 | E33: 0.410827 | F33: 0.403969 | G33: 0.401037 | H33: 1 | I33: Renewable | J33: 3 | K33: 0 | L33: 1
B34: SBR | D34: 0.181764 | H34: 1 | I34: Gas | J34: 1 | K34: 1 | L34: 3.065
B35: Intercon France Imp | D35: 0 | E35: 0.985 | F35: =$E$35 -> 0.985 | G35: =$E$35 -> 0.985 | H35: 1 | I35: Intercon France | J35: 1 | K35: 1 | L35: 1 | M35: 0.029
B36: Intercon France Float | D36: 0 | E36: =$E$35 -> 0.985 | F36: =$E$35 -> 0.985 | G36: =$E$35 -> 0.985 | H36: 1 | I36: Intercon France | J36: 1 | K36: 1 | L36: 1 | M36: 0.029
B37: Intercon Netherlands Imp | D37: 0 | E37: 0.985 | F37: =$E$37 -> 0.985 | G37: =$E$37 -> 0.985 | H37: 1 | I37: Intercon Netherlands | J37: 1 | K37: =IF(J37<=1,1,0) -> 1 | L37: 1 | M37: 0.041
B38: Intercon Netherlands Float | D38: 0 | E38: =$E$37 -> 0.985 | F38: =$E$37 -> 0.985 | G38: =$E$37 -> 0.985 | H38: 1 | I38: Intercon Netherlands | J38: 1 | K38: 1 | L38: 1 | M38: 0.041
B39: Intercon Belgium Imp | D39: 0 | E39: 0.95 | F39: =$E$39 -> 0.95 | G39: =$E$39 -> 0.95 | H39: 1 | I39: Intercon Belgium | J39: 1 | K39: 1 | L39: 1 | M39: 0.029
B40: Intercon Belgium Float | D40: 0 | E40: =$E$39 -> 0.95 | F40: =$E$39 -> 0.95 | G40: =$E$39 -> 0.95 | H40: 1 | I40: Intercon Belgium | J40: 1 | K40: 1 | L40: 1 | M40: 0.029
B41: Intercon Norway Imp | D41: 0 | E41: 0.99 | F41: =$E$41 -> 0.99 | G41: =$E$41 -> 0.99 | H41: 1 | I41: Intercon Norway | J41: 1 | K41: 1 | L41: 1 | M41: 0.05
B42: Intercon Norway Float | D42: 0 | E42: =$E$41 -> 0.99 | F42: =$E$41 -> 0.99 | G42: =$E$41 -> 0.99 | H42: 1 | I42: Intercon Norway | J42: 1 | K42: 1 | L42: 1 | M42: 0.05
B43: Intercon Denmark Imp | D43: 0 | E43: 0.95 | F43: =$E$43 -> 0.95 | G43: =$E$43 -> 0.95 | H43: 1 | I43: Intercon Denmark | J43: 1 | K43: 1 | L43: 1 | M43: 0.05
B44: Intercon Denmark Float | D44: 0 | E44: =$E$43 -> 0.95 | F44: =$E$43 -> 0.95 | G44: =$E$43 -> 0.95 | H44: 1 | I44: Intercon Denmark | J44: 1 | K44: 1 | L44: 1 | M44: 0.05
B45: Intercon Iceland Imp | D45: 0 | E45: 0.920258 | F45: =$E$45 -> 0.920258 | G45: =$E$45 -> 0.920258 | H45: 1 | I45: Intercon Iceland | J45: 1 | K45: 1 | L45: 1 | M45: 0.058
B46: Intercon Iceland Float | D46: 0 | E46: =$E$45 -> 0.920258 | F46: =$E$45 -> 0.920258 | G46: =$E$45 -> 0.920258 | H46: 1 | I46: Intercon Iceland | J46: 1 | K46: 1 | L46: 1 | M46: 0.058
A47: No Spanish I/C in this model >> | B47: Intercon Spain Imp | D47: 0 | E47: 1 | F47: =$E$47 -> 1 | G47: =$E$47 -> 1 | H47: 1 | I47: Intercon Spain | J47: 1 | K47: 1 | L47: 1 | M47: 0
B48: Intercon Spain Float | D48: 0 | E48: =$E$47 -> 1 | F48: =$E$47 -> 1 | G48: =$E$47 -> 1 | H48: 1 | I48: Intercon Spain | J48: 1 | K48: 1 | L48: 1 | M48: 0
B49: Intercon Ireland Imp | D49: 0 | E49: 0.95 | F49: =$E$49 -> 0.95 | G49: =$E$49 -> 0.95 | H49: 1 | I49: Intercon Ireland | J49: 1 | K49: 1 | L49: 1 | M49: 0.007
B50: Intercon Ireland Float | D50: 0 | E50: =$E$49 -> 0.95 | F50: =$E$49 -> 0.95 | G50: =$E$49 -> 0.95 | H50: 1 | I50: Intercon Ireland | J50: 1 | K50: 1 | L50: 1 | M50: 0.007
B51: Not Identified | D51: 0 | E51: 1 | F51: 1 | G51: 1 | H51: 1 | I51: Not Identified | J51: 1 | K51: 1 | L51: 1
B52: Demand Side Response | D52: 0 | E52: 1 | F52: 1 | G52: 1 | H52: 1 | I52: VLL | J52: 1 | K52: 1 | L52: 1
B55: Conversion Factors
B56: Coal | D56: =Conversion_Tonnes_MWh -> 7.027777778 | E56: Energy (MWh) for 1 tonne of coal with a 100% efficient power plant
B57: Lignite | D57: =Conversion_Tonnes_MWh*I_Commodities!$F$4 -> 3.513888889 | E57: Energy (MWh) for 1 tonne of lignite with a 100% efficient power plant
B58: Gas | D58: =Conversion_Therm_MWh*100 -> 3.0646 | E58: Energy (MWh) for 100 therms of gas with a 100% efficient power plant
B59: Distillate | D59: =Conversion_Barrel_MWh*Conversion_Distillate_Oil -> 2.060959722 | E59: Energy (MWh) for 1 barrel of distillate with a 100% efficient power plant
B60: Oil | D60: =Conversion_Barrel_MWh -> 1.792138889 | E60: Energy (MWh) for 1 barrel of oil with a 100% efficient power plant
B63: Notes
B65: Efficiencies of gas plant are quoted in HHV terms
B67: Storage Round-trip Efficiencies
B68: Pumped | D68: 0.75
B69: Battery | D69: 0.85
B70: Air | D70: 0.65

Sheet I_OMPs
B1: INSTRUCTIONS: Enter data in blue cells for given scenario - do not edit grey cells. Unconstrained NEW market prices will be populated at the end of a full NWE run. | N1: Go to control sheet
A3: GG | C3: AVG
A4: 2017/18 | B4: =rngSetMarkets -> BE | C4: =AVERAGE(D4:BDG4) -> 
B5: DE | C5: =AVERAGE(D5:BDG5) -> 
B6: DK
B7: ES
B8: FR
B9: IC
B10: IE
B11: NL
B12: NO
A14: 2018/19 | B14: =rngSetMarkets -> BE | C14: =AVERAGE(D14:BDG14) -> 
B15: DE
B16: DK
B17: ES
B18: FR
B19: IC
B20: IE
B21: NL
B22: NO
A24: 2019/20 | B24: =rngSetMarkets -> BE | C24: =AVERAGE(D24:BDG24) -> 
B25: DE
B26: DK
B27: ES
B28: FR
B29: IC
B30: IE
B31: NL
B32: NO
A34: 2020/21 | B34: =rngSetMarkets -> BE | C34: =AVERAGE(D34:BDG34) -> 
B35: DE
B36: DK
B37: ES
B38: FR
B39: IC
B40: IE
B41: NL
B42: NO
A44: 2021/22 | B44: =rngSetMarkets -> BE | C44: =AVERAGE(D44:BDG44) -> 
B45: DE
B46: DK
B47: ES
B48: FR
B49: IC
B50: IE
B51: NL
B52: NO
A54: 2022/23 | B54: =rngSetMarkets -> BE | C54: =AVERAGE(D54:BDG54) -> 
B55: DE
B56: DK
B57: ES
B58: FR
B59: IC
B60: IE
B61: NL
B62: NO
A64: 2023/24 | B64: =rngSetMarkets -> BE | C64: =AVERAGE(D64:BDG64) -> 
B65: DE
B66: DK
B67: ES
B68: FR
B69: IC
B70: IE
B71: NL
B72: NO
A74: 2024/25 | B74: =rngSetMarkets -> BE | C74: =AVERAGE(D74:BDG74) -> 
B75: DE
B76: DK
B77: ES
B78: FR
B79: IC
B80: IE
B81: NL
B82: NO
A84: 2025/26 | B84: =rngSetMarkets -> BE | C84: =AVERAGE(D84:BDG84) -> 
B85: DE
B86: DK
B87: ES
B88: FR
B89: IC
B90: IE
B91: NL
B92: NO
A94: 2026/27 | B94: =rngSetMarkets -> BE | C94: =AVERAGE(D94:BDG94) -> 
B95: DE
B96: DK
B97: ES
B98: FR
B99: IC
B100: IE
B101: NL
B102: NO
A104: 2027/28 | B104: =rngSetMarkets -> BE | C104: =AVERAGE(D104:BDG104) -> 
B105: DE
B106: DK
B107: ES
B108: FR
B109: IC
B110: IE
B111: NL
B112: NO
A114: 2028/29 | B114: =rngSetMarkets -> BE | C114: =AVERAGE(D114:BDG114) -> 
B115: DE
B116: DK
B117: ES
B118: FR
B119: IC
B120: IE
B121: NL
B122: NO
A124: 2029/30 | B124: =rngSetMarkets -> BE | C124: =AVERAGE(D124:BDG124) -> 
B125: DE
... 133 more rows

Sheet I_NWE_Capacity
B1: INSTRUCTIONS: Enter data in blue cells for given scenario - do not edit grey cells | N1: Go to control sheet
B2: Data source | C2: ENTSOe
B4: Selected scenario | C4: =SelectedScenario -> NP
D6: 1 | E6: 2 | F6: 3 | G6: 4 | H6: 5 | I6: 6 | J6: 7 | K6: 8 | L6: 9 | M6: 10 | N6: 11 | O6: 12 | P6: 13 | Q6: 14 | R6: 15 | S6: 16 | T6: 17 | U6: 18 | V6: 19 | W6: 20
D7: =TRANSPOSE(rngSetYears) -> 2017 | E7: 2018 | F7: 2019 | G7: 2020 | H7: 2021 | I7: 2022 | J7: 2023 | K7: 2024 | L7: 2025 | M7: 2026 | N7: 2027 | O7: 2028 | P7: 2029 | Q7: 2030 | R7: 2031 | S7: 2032 | T7: 2033 | U7: 2034 | V7: 2035 | W7: 2036
B8: =B7+1 -> 1 | C8: BE_Biomass | D8: =OFFSET($B$7,MATCH($C$4,$C$7:$C$2453,0)+$B8,D$6+1) -> 1.896 | E8: 1.896 | F8: 1.896 | G8: 1.896 | H8: 1.896 | I8: 1.896 | J8: 1.896 | K8: 1.896 | L8: 1.896 | M8: 1.8568 | N8: =OFFSET($B$7,MATCH($C$4,$C$7:$C$2453,0)+$B8,N$6+1) -> 1.8176 | O8: 1.7784 | P8: 1.7392 | Q8: 1.7 | R8: 1.6608 | S8: 1.6216 | T8: 1.5824 | U8: 1.5432 | V8: 1.504 | W8: 1.4648
B9: =B8+1 -> 2 | C9: BE_CHP | D9: 1.5394 | E9: 1.6891 | F9: 1.8388 | G9: 1.9885 | H9: 2.1382 | I9: 2.2879 | J9: 2.4376 | K9: 2.5873 | L9: 2.737 | M9: 2.9266 | N9: 3.1162 | O9: 3.3058 | P9: 3.4954 | Q9: 3.685 | R9: 3.8746 | S9: 4.0642 | T9: 4.2538 | U9: 4.4434 | V9: 4.633 | W9: 4.8226
B10: 3 | C10: BE_Gas Base | D10: 1.5394 | E10: 1.6891 | F10: 1.8388 | G10: 1.9885 | H10: 2.1382 | I10: 2.2879 | J10: 2.4376 | K10: 2.5873 | L10: 2.737 | M10: 2.9266 | N10: 3.1162 | O10: 3.3058 | P10: 3.4954 | Q10: 3.685 | R10: 3.8746 | S10: 4.0642 | T10: 4.2538 | U10: 4.4434 | V10: 4.633 | W10: 4.8226
B11: 4 | C11: BE_Gas Mid | D11: 0 | E11: 0 | F11: 0 | G11: 0 | H11: 0 | I11: 0 | J11: 0 | K11: 0 | L11: 0 | M11: 0 | N11: 0 | O11: 0 | P11: 0 | Q11: 0 | R11: 0 | S11: 0 | T11: 0 | U11: 0 | V11: 0 | W11: 0
B12: 5 | C12: BE_Hydro run of river | D12: 1.422 | E12: 1.422 | F12: 1.422 | G12: 1.422 | H12: 1.422 | I12: 1.422 | J12: 1.422 | K12: 1.422 | L12: 1.422 | M12: 1.4252 | N12: 1.4284 | O12: 1.4316 | P12: 1.4348 | Q12: 1.438 | R12: 1.4412 | S12: 1.4444 | T12: 1.4476 | U12: 1.4508 | V12: 1.454 | W12: 1.4572
B13: 6 | C13: BE_Not identified | D13: 0 | E13: 0 | F13: 0 | G13: 0 | H13: 0 | I13: 0 | J13: 0 | K13: 0 | L13: 0 | M13: 0 | N13: 0 | O13: 0 | P13: 0 | Q13: 0 | R13: 0 | S13: 0 | T13: 0 | U13: 0 | V13: 0 | W13: 0
B14: 7 | C14: BE_Nuclear | D14: 9.4688 | E14: 8.2852 | F14: 7.1016 | G14: 5.918 | H14: 4.7344 | I14: 3.5508 | J14: 2.3672 | K14: 1.1836 | L14: 0 | M14: 0 | N14: 0 | O14: 0 | P14: 0 | Q14: 0 | R14: 0 | S14: 0 | T14: 0 | U14: 0 | V14: 0 | W14: 0
B15: 8 | C15: BE_OCGT | D15: 1.216 | E15: 1.216 | F15: 1.216 | G15: 1.216 | H15: 1.216 | I15: 1.216 | J15: 1.216 | K15: 1.216 | L15: 1.216 | M15: 1.6128 | N15: 2.0096 | O15: 2.4064 | P15: 2.8032 | Q15: 3.2 | R15: 3.5968 | S15: 3.9936 | T15: 4.3904 | U15: 4.7872 | V15: 5.184 | W15: 5.5808
B16: 9 | C16: BE_Offshore wind | D16: 1.391866667 | E16: 1.4478 | F16: 1.503733333 | G16: 1.559666667 | H16: 1.6156 | I16: 1.671533333 | J16: 1.727466667 | K16: 1.7834 | L16: 1.839333333 | M16: 1.839333333 | N16: 1.839333333 | O16: 1.839333333 | P16: 1.839333333 | Q16: 1.839333333 | R16: 1.839333333 | S16: 1.839333333 | T16: 1.839333333 | U16: 1.839333333 | V16: 1.839333333 | W16: 1.839333333
B17: 10 | C17: BE_Onshore wind | D17: 2.783733333 | E17: 2.8956 | F17: 3.007466667 | G17: 3.119333333 | H17: 3.2312 | I17: 3.343066667 | J17: 3.454933333 | K17: 3.5668 | L17: 3.678666667 | M17: 3.678666667 | N17: 3.678666667 | O17: 3.678666667 | P17: 3.678666667 | Q17: 3.678666667 | R17: 3.678666667 | S17: 3.678666667 | T17: 3.678666667 | U17: 3.678666667 | V17: 3.678666667 | W17: 3.678666667
B18: 11 | C18: BE_Pumped storage | D18: =OFFSET($B$7,MATCH($C$4,$C$7:$C$2453,0)+$B18,D$6+1) -> 0 | E18: 0 | F18: 0 | G18: 0 | H18: 0 | I18: 0 | J18: 0 | K18: 0 | L18: 0 | M18: 0 | N18: =OFFSET($B$7,MATCH($C$4,$C$7:$C$2453,0)+$B18,N$6+1) -> 0 | O18: 0 | P18: 0 | Q18: 0 | R18: 0 | S18: 0 | T18: 0 | U18: 0 | V18: 0 | W18: 0
B19: 12 | C19: BE_Solar | D19: 3.3622 | E19: 3.5248 | F19: 3.6874 | G19: 3.85 | H19: 4.0126 | I19: 4.1752 | J19: 4.3378 | K19: 4.5004 | L19: 4.663 | M19: 4.5404 | N19: 4.4178 | O19: 4.2952 | P19: 4.1726 | Q19: 4.05 | R19: 3.9274 | S19: 3.8048 | T19: 3.6822 | U19: 3.5596 | V19: 3.437 | W19: 3.3144
B20: 13 | C20: DE_Biomass | D20: 7 | E20: 7.15 | F20: 7.3 | G20: 7.45 | H20: 7.6 | I20: 7.75 | J20: 7.9 | K20: 8.05 | L20: 8.2 | M20: 7.952 | N20: 7.704 | O20: 7.456 | P20: 7.208 | Q20: 6.96 | R20: 6.712 | S20: 6.464 | T20: 6.216 | U20: 5.968 | V20: 5.72 | W20: 5.472
B21: 14 | C21: DE_CHP | D21: 41.3721 | E21: 40.5339 | F21: 39.6957 | G21: 38.8575 | H21: 38.0193 | I21: 37.1811 | J21: 36.3429 | K21: 35.5047 | L21: 34.6665 | M21: 34.4121 | N21: 34.1577 | O21: 33.9033 | P21: 33.6489 | Q21: 33.3945 | R21: 33.1401 | S21: 32.8857 | T21: 32.6313 | U21: 32.3769 | V21: 32.1225 | W21: 31.8681
B22: 15 | C22: DE_Gas Marg | D22: 0 | E22: 0 | F22: 0 | G22: 0 | H22: 0 | I22: 0 | J22: 0 | K22: 0 | L22: 0 | M22: 0 | N22: 0 | O22: 0 | P22: 0 | Q22: 0 | R22: 0 | S22: 0 | T22: 0 | U22: 0 | V22: 0 | W22: 0
B23: 16 | C23: DE_Gas Mid | D23: 9.9843 | E23: 10.2797 | F23: 10.5751 | G23: 10.8705 | H23: 11.1659 | I23: 11.4613 | J23: 11.7567 | K23: 12.0521 | L23: 12.3475 | M23: 11.9918 | N23: 11.6361 | O23: 11.2804 | P23: 10.9247 | Q23: 10.569 | R23: 10.2133 | S23: 9.8576 | T23: 9.5019 | U23: 9.1462 | V23: 8.7905 | W23: 8.4348
B24: 17 | C24: DE_Hard Coal Base | D24: 14.5176 | E24: 14.0629 | F24: 13.6082 | G24: 13.1535 | H24: 12.6988 | I24: 12.2441 | J24: 11.7894 | K24: 11.3347 | L24: 10.88 | M24: 11.0405 | N24: 11.201 | O24: 11.3615 | P24: 11.522 | Q24: 11.6825 | R24: 11.843 | S24: 12.0035 | T24: 12.164 | U24: 12.3245 | V24: 12.485 | W24: 12.6455
B25: 18 | C25: DE_Hard Coal Mid | D25: 0 | E25: 0 | F25: 0 | G25: 0 | H25: 0 | I25: 0 | J25: 0 | K25: 0 | L25: 0 | M25: 0 | N25: 0 | O25: 0 | P25: 0 | Q25: 0 | R25: 0 | S25: 0 | T25: 0 | U25: 0 | V25: 0 | W25: 0
B26: 19 | C26: DE_Hydro run of river | D26: 8.727 | E26: 9.216 | F26: 9.705 | G26: 10.194 | H26: 10.683 | I26: 11.172 | J26: 11.661 | K26: 12.15 | L26: 12.639 | M26: 10.1112 | N26: 7.5834 | O26: 5.0556 | P26: 2.5278 | Q26: 0 | R26: 0 | S26: 0 | T26: 0 | U26: 0 | V26: 0 | W26: 0
B27: 20 | C27: DE_Hydro storage | D27: 0 | E27: 0 | F27: 0 | G27: 0 | H27: 0 | I27: 0 | J27: 0 | K27: 0 | L27: 0 | M27: 0 | N27: 0 | O27: 0 | P27: 0 | Q27: 0 | R27: 0 | S27: 0 | T27: 0 | U27: 0 | V27: 0 | W27: 0
B28: 21 | C28: DE_Lignite | D28: =OFFSET($B$7,MATCH($C$4,$C$7:$C$2453,0)+$B28,D$6+1) -> 10.6706 | E28: 10.1249 | F28: 9.5792 | G28: 9.0335 | H28: 8.4878 | I28: 7.9421 | J28: 7.3964 | K28: 6.8507 | L28: 6.305 | M28: 6.305 | N28: =OFFSET($B$7,MATCH($C$4,$C$7:$C$2453,0)+$B28,N$6+1) -> 6.305 | O28: 6.305 | P28: 6.305 | Q28: 6.305 | R28: 6.305 | S28: 6.305 | T28: 6.305 | U28: 6.305 | V28: 6.305 | W28: 6.305
B29: 22 | C29: DE_Not identified | D29: 0 | E29: 0 | F29: 0 | G29: 0 | H29: 0 | I29: 0 | J29: 0 | K29: 0 | L29: 0 | M29: 0 | N29: 0 | O29: 0 | P29: 0 | Q29: 0 | R29: 0 | S29: 0 | T29: 0 | U29: 0 | V29: 0 | W29: 0
B30: 23 | C30: DE_Nuclear | D30: 12.9712 | E30: 11.3498 | F30: 9.7284 | G30: 8.107 | H30: 6.4856 | I30: 4.8642 | J30: 3.2428 | K30: 1.6214 | L30: 0 | M30: 0 | N30: 0 | O30: 0 | P30: 0 | Q30: 0 | R30: 0 | S30: 0 | T30: 0 | U30: 0 | V30: 0 | W30: 0
B31: 24 | C31: DE_OCGT | D31: 4.4929 | E31: 4.5186 | F31: 4.5443 | G31: 4.57 | H31: 4.5957 | I31: 4.6214 | J31: 4.6471 | K31: 4.6728 | L31: 4.6985 | M31: 4.6238 | N31: 4.5491 | O31: 4.4744 | P31: 4.3997 | Q31: 4.325 | R31: 4.2503 | S31: 4.1756 | T31: 4.1009 | U31: 4.0262 | V31: 3.9515 | W31: 3.8768
B32: 25 | C32: DE_Offshore wind | D32: 46.8396 | E32: 49.3434 | F32: 51.8472 | G32: 54.351 | H32: 56.8548 | I32: 59.3586 | J32: 61.8624 | K32: 64.3662 | L32: 66.87 | M32: 68.306 | N32: 69.742 | O32: 71.178 | P32: 72.614 | Q32: 74.05 | R32: 75.486 | S32: 76.922 | T32: 78.358 | U32: 79.794 | V32: 81.23 | W32: 82.666
B33: 26 | C33: DE_Oil | D33: 1.7067 | E33: 1.5478 | F33: 1.3889 | G33: 1.23 | H33: 1.0711 | I33: 0.9122 | J33: 0.7533 | K33: 0.5944 | L33: 0.4355 | M33: 0.451 | N33: 0.4665 | O33: 0.482 | P33: 0.4975 | Q33: 0.513 | R33: 0.5285 | S33: 0.544 | T33: 0.5595 | U33: 0.575 | V33: 0.5905 | W33: 0.606
B34: 27 | C34: DE_Onshore wind | D34: 5.2044 | E34: 5.4826 | F34: 5.7608 | G34: 6.039 | H34: 6.3172 | I34: 6.5954 | J34: 6.8736 | K34: 7.1518 | L34: 7.43 | M34: 7.425 | N34: 7.42 | O34: 7.415 | P34: 7.41 | Q34: 7.405 | R34: 7.4 | S34: 7.395 | T34: 7.39 | U34: 7.385 | V34: 7.38 | W34: 7.375
B35: 28 | C35: DE_Pumped storage | D35: 0 | E35: 0 | F35: 0 | G35: 0 | H35: 0 | I35: 0 | J35: 0 | K35: 0 | L35: 0 | M35: 0 | N35: 0 | O35: 0 | P35: 0 | Q35: 0 | R35: 0 | S35: 0 | T35: 0 | U35: 0 | V35: 0 | W35: 0
B36: 29 | C36: DE_Solar | D36: 42.5974 | E36: 44.1316 | F36: 45.6658 | G36: 47.2 | H36: 48.7342 | I36: 50.2684 | J36: 51.8026 | K36: 53.3368 | L36: 54.871 | M36: 55.3448 | N36: 55.8186 | O36: 56.2924 | P36: 56.7662 | Q36: 57.24 | R36: 57.7138 | S36: 58.1876 | T36: 58.6614 | U36: 59.1352 | V36: 59.609 | W36: 60.0828
B37: 30 | C37: DK_CHP | D37: 1.823 | E37: 1.752 | F37: 1.681 | G37: 1.61 | H37: 1.539 | I37: 1.468 | J37: 1.397 | K37: 1.326 | L37: 1.255 | M37: 1.5248 | N37: 1.7946 | O37: 2.0644 | P37: 2.3342 | Q37: 2.604 | R37: 2.8738 | S37: 3.1436 | T37: 3.4134 | U37: 3.6832 | V37: 3.953 | W37: 4.2228
B38: 31 | C38: DK_Hard Coal Base | D38: =OFFSET($B$7,MATCH($C$4,$C$7:$C$2453,0)+$B38,D$6+1) -> 0.964 | E38: 0.891 | F38: 0.818 | G38: 0.745 | H38: 0.672 | I38: 0.599 | J38: 0.526 | K38: 0.453 | L38: 0.38 | M38: 0.386 | N38: =OFFSET($B$7,MATCH($C$4,$C$7:$C$2453,0)+$B38,N$6+1) -> 0.392 | O38: 0.398 | P38: 0.404 | Q38: 0.41 | R38: 0.416 | S38: 0.422 | T38: 0.428 | U38: 0.434 | V38: 0.44 | W38: 0.446
B39: 32 | C39: DK_Hard Coal Marg | D39: 0 | E39: 0 | F39: 0 | G39: 0 | H39: 0 | I39: 0 | J39: 0 | K39: 0 | L39: 0 | M39: 0 | N39: 0 | O39: 0 | P39: 0 | Q39: 0 | R39: 0 | S39: 0 | T39: 0 | U39: 0 | V39: 0 | W39: 0
B40: 33 | C40: DK_Hydro run of river | D40: 0.007 | E40: 0.007 | F40: 0.007 | G40: 0.007 | H40: 0.007 | I40: 0.007 | J40: 0.007 | K40: 0.007 | L40: 0.007 | M40: 0.0056 | N40: 0.0042 | O40: 0.0028 | P40: 0.0014 | Q40: 0 | R40: 0 | S40: 0 | T40: 0 | U40: 0 | V40: 0 | W40: 0
B41: 34 | C41: DK_Not identified | D41: 2.321 | E41: 2.314 | F41: 2.307 | G41: 2.3 | H41: 2.293 | I41: 2.286 | J41: 2.279 | K41: 2.272 | L41: 2.265 | M41: 2.156 | N41: 2.047 | O41: 1.938 | P41: 1.829 | Q41: 1.72 | R41: 1.611 | S41: 1.502 | T41: 1.393 | U41: 1.284 | V41: 1.175 | W41: 1.066
B42: 35 | C42: DK_Offshore wind | D42: 2.023333333 | E42: 2.053333333 | F42: 2.083333333 | G42: 2.113333333 | H42: 2.143333333 | I42: 2.173333333 | J42: 2.203333333 | K42: 2.233333333 | L42: 2.263333333 | M42: 2.263333333 | N42: 2.263333333 | O42: 2.263333333 | P42: 2.263333333 | Q42: 2.263333333 | R42: 2.263333333 | S42: 2.263333333 | T42: 2.263333333 | U42: 2.263333333 | V42: 2.263333333 | W42: 2.263333333
B43: 36 | C43: DK_Oil | D43: 0.891 | E43: 0.839 | F43: 0.787 | G43: 0.735 | H43: 0.683 | I43: 0.631 | J43: 0.579 | K43: 0.527 | L43: 0.475 | M43: 0.527 | N43: 0.579 | O43: 0.631 | P43: 0.683 | Q43: 0.735 | R43: 0.787 | S43: 0.839 | T43: 0.891 | U43: 0.943 | V43: 0.995 | W43: 1.047
B44: 37 | C44: DK_Onshore wind | D44: 4.046666667 | E44: 4.106666667 | F44: 4.166666667 | G44: 4.226666667 | H44: 4.286666667 | I44: 4.346666667 | J44: 4.406666667 | K44: 4.466666667 | L44: 4.526666667 | M44: 4.526666667 | N44: 4.526666667 | O44: 4.526666667 | P44: 4.526666667 | Q44: 4.526666667 | R44: 4.526666667 | S44: 4.526666667 | T44: 4.526666667 | U44: 4.526666667 | V44: 4.526666667 | W44: 4.526666667
B45: 38 | C45: DK_Solar | D45: 0.66 | E45: 0.72 | F45: 0.78 | G45: 0.84 | H45: 0.9 | I45: 0.96 | J45: 1.02 | K45: 1.08 | L45: 1.14 | M45: 1.08 | N45: 1.02 | O45: 0.96 | P45: 0.9 | Q45: 0.84 | R45: 0.78 | S45: 0.72 | T45: 0.66 | U45: 0.6 | V45: 0.54 | W45: 0.48
B46: 39 | C46: ES_Battery Storage | D46: 0 | E46: 0 | F46: 0 | G46: 0 | H46: 0 | I46: 0 | J46: 0 | K46: 0 | L46: 0 | M46: 0 | N46: 0 | O46: 0 | P46: 0 | Q46: 0 | R46: 0 | S46: 0 | T46: 0 | U46: 0 | V46: 0 | W46: 0
B47: 40 | C47: ES_Biomass | D47: 0.902 | E47: 1.018 | F47: 1.134 | G47: 1.25 | H47: 1.366 | I47: 1.482 | J47: 1.598 | K47: 1.714 | L47: 1.83 | M47: 1.944 | N47: 2.058 | O47: 2.172 | P47: 2.286 | Q47: 2.4 | R47: 2.514 | S47: 2.628 | T47: 2.742 | U47: 2.856 | V47: 2.97 | W47: 3.084
B48: 41 | C48: ES_CHP | D48: =OFFSET($B$7,MATCH($C$4,$C$7:$C$2453,0)+$B48,D$6+1) -> 4.794666667 | E48: 4.838666667 | F48: 4.882666667 | G48: 4.926666667 | H48: 4.970666667 | I48: 5.014666667 | J48: 5.058666667 | K48: 5.102666667 | L48: 5.146666667 | M48: 5.514666667 | N48: =OFFSET($B$7,MATCH($C$4,$C$7:$C$2453,0)+$B48,N$6+1) -> 5.882666667 | O48: 6.250666667 | P48: 6.618666667 | Q48: 6.986666667 | R48: 7.354666667 | S48: 7.722666667 | T48: 8.090666667 | U48: 8.458666667 | V48: 8.826666667 | W48: 9.194666667
B49: 42 | C49: ES_Hard Coal Marg | D49: 0 | E49: 0 | F49: 0 | G49: 0 | H49: 0 | I49: 0 | J49: 0 | K49: 0 | L49: 0 | M49: 0 | N49: 0 | O49: 0 | P49: 0 | Q49: 0 | R49: 0 | S49: 0 | T49: 0 | U49: 0 | V49: 0 | W49: 0
B50: 43 | C50: ES_Gas Base | D50: 0 | E50: 0 | F50: 0 | G50: 0 | H50: 0 | I50: 0 | J50: 0 | K50: 0 | L50: 0 | M50: 0 | N50: 0 | O50: 0 | P50: 0 | Q50: 0 | R50: 0 | S50: 0 | T50: 0 | U50: 0 | V50: 0 | W50: 0
B51: 44 | C51: ES_Gas Marg | D51: 0 | E51: 0 | F51: 0 | G51: 0 | H51: 0 | I51: 0 | J51: 0 | K51: 0 | L51: 0 | M51: 0 | N51: 0 | O51: 0 | P51: 0 | Q51: 0 | R51: 0 | S51: 0 | T51: 0 | U51: 0 | V51: 0 | W51: 0
B52: 45 | C52: ES_Gas Mid | D52: 24.945012 | E52: 24.945008 | F52: 24.945004 | G52: 24.945 | H52: 24.944996 | I52: 24.944992 | J52: 24.944988 | K52: 24.944984 | L52: 24.94498 | M52: 24.945584 | N52: 24.946188 | O52: 24.946792 | P52: 24.947396 | Q52: 24.948 | R52: 24.948604 | S52: 24.949208 | T52: 24.949812 | U52: 24.950416 | V52: 24.95102 | W52: 24.951624
B53: 46 | C53: ES_Hard Coal Base | D53: 0 | E53: 0 | F53: 0 | G53: 0 | H53: 0 | I53: 0 | J53: 0 | K53: 0 | L53: 0 | M53: 0 | N53: 0 | O53: 0 | P53: 0 | Q53: 0 | R53: 0 | S53: 0 | T53: 0 | U53: 0 | V53: 0 | W53: 0
B54: 47 | C54: ES_Hard Coal Mid | D54: 12.1136 | E54: 11.2094 | F54: 10.3052 | G54: 9.401 | H54: 8.4968 | I54: 7.5926 | J54: 6.6884 | K54: 5.7842 | L54: 4.88 | M54: 5.084 | N54: 5.288 | O54: 5.492 | P54: 5.696 | Q54: 5.9 | R54: 6.104 | S54: 6.308 | T54: 6.512 | U54: 6.716 | V54: 6.92 | W54: 7.124
B55: 48 | C55: ES_Hydro run of river | D55: 2.076 | E55: 2.076 | F55: 2.076 | G55: 2.076 | H55: 2.076 | I55: 2.076 | J55: 2.076 | K55: 2.076 | L55: 2.076 | M55: 2.1298 | N55: 2.1836 | O55: 2.2374 | P55: 2.2912 | Q55: 2.345 | R55: 2.3988 | S55: 2.4526 | T55: 2.5064 | U55: 2.5602 | V55: 2.614 | W55: 2.6678
B56: 49 | C56: ES_Hydro storage | D56: 18.684 | E56: 18.684 | F56: 18.684 | G56: 18.684 | H56: 18.684 | I56: 18.684 | J56: 18.684 | K56: 18.684 | L56: 18.684 | M56: 19.1682 | N56: 19.6524 | O56: 20.1366 | P56: 20.6208 | Q56: 21.105 | R56: 21.5892 | S56: 22.0734 | T56: 22.5576 | U56: 23.0418 | V56: 23.526 | W56: 24.0102
B57: 50 | C57: ES_Lignite | D57: 0 | E57: 0 | F57: 0 | G57: 0 | H57: 0 | I57: 0 | J57: 0 | K57: 0 | L57: 0 | M57: 0 | N57: 0 | O57: 0 | P57: 0 | Q57: 0 | R57: 0 | S57: 0 | T57: 0 | U57: 0 | V57: 0 | W57: 0
B58: 51 | C58: ES_Not identified | D58: =OFFSET($B$7,MATCH($C$4,$C$7:$C$2453,0)+$B58,D$6+1) -> 0 | E58: 0 | F58: 0 | G58: 0 | H58: 0 | I58: 0 | J58: 0 | K58: 0 | L58: 0 | M58: 0 | N58: =OFFSET($B$7,MATCH($C$4,$C$7:$C$2453,0)+$B58,N$6+1) -> 0 | O58: 0 | P58: 0 | Q58: 0 | R58: 0 | S58: 0 | T58: 0 | U58: 0 | V58: 0 | W58: 0
B59: 52 | C59: ES_Nuclear | D59: 7.572 | E59: 7.572 | F59: 7.572 | G59: 7.572 | H59: 7.572 | I59: 7.572 | J59: 7.572 | K59: 7.572 | L59: 7.572 | M59: 7.4816 | N59: 7.3912 | O59: 7.3008 | P59: 7.2104 | Q59: 7.12 | R59: 7.0296 | S59: 6.9392 | T59: 6.8488 | U59: 6.7584 | V59: 6.668 | W59: 6.5776
B60: 53 | C60: ES_OCGT | D60: 2.397333333 | E60: 2.419333333 | F60: 2.441333333 | G60: 2.463333333 | H60: 2.485333333 | I60: 2.507333333 | J60: 2.529333333 | K60: 2.551333333 | L60: 2.573333333 | M60: 2.757333333 | N60: 2.941333333 | O60: 3.125333333 | P60: 3.309333333 | Q60: 3.493333333 | R60: 3.677333333 | S60: 3.861333333 | T60: 4.045333333 | U60: 4.229333333 | V60: 4.413333333 | W60: 4.597333333
B61: 54 | C61: ES_Oil | D61: 0 | E61: 0 | F61: 0 | G61: 0 | H61: 0 | I61: 0 | J61: 0 | K61: 0 | L61: 0 | M61: 0 | N61: 0 | O61: 0 | P61: 0 | Q61: 0 | R61: 0 | S61: 0 | T61: 0 | U61: 0 | V61: 0 | W61: 0
B62: 55 | C62: ES_Onshore wind | D62: 24.665 | E62: 25.66 | F62: 26.655 | G62: 27.65 | H62: 28.645 | I62: 29.64 | J62: 30.635 | K62: 31.63 | L62: 32.625 | M62: 33.25 | N62: 33.875 | O62: 34.5 | P62: 35.125 | Q62: 35.75 | R62: 36.375 | S62: 37 | T62: 37.625 | U62: 38.25 | V62: 38.875 | W62: 39.5
B63: 56 | C63: ES_Pumped storage | D63: 0 | E63: 0 | F63: 0 | G63: 0 | H63: 0 | I63: 0 | J63: 0 | K63: 0 | L63: 0 | M63: 0 | N63: 0 | O63: 0 | P63: 0 | Q63: 0 | R63: 0 | S63: 0 | T63: 0 | U63: 0 | V63: 0 | W63: 0
B64: 57 | C64: ES_Solar | D64: 4.13 | E64: 5.45 | F64: 6.77 | G64: 8.09 | H64: 9.41 | I64: 10.73 | J64: 12.05 | K64: 13.37 | L64: 14.69 | M64: 15.112 | N64: 15.534 | O64: 15.956 | P64: 16.378 | Q64: 16.8 | R64: 17.222 | S64: 17.644 | T64: 18.066 | U64: 18.488 | V64: 18.91 | W64: 19.332
B65: 58 | C65: FR_Biomass | D65: 0.48 | E65: 0.82 | F65: 1.16 | G65: 1.5 | H65: 1.84 | I65: 2.18 | J65: 2.52 | K65: 2.86 | L65: 3.2 | M65: 3.2 | N65: 3.2 | O65: 3.2 | P65: 3.2 | Q65: 3.2 | R65: 3.2 | S65: 3.2 | T65: 3.2 | U65: 3.2 | V65: 3.2 | W65: 3.2
B66: 59 | C66: FR_CHP | D66: 0 | E66: 0 | F66: 0 | G66: 0 | H66: 0 | I66: 0 | J66: 0 | K66: 0 | L66: 0 | M66: 0 | N66: 0 | O66: 0 | P66: 0 | Q66: 0 | R66: 0 | S66: 0 | T66: 0 | U66: 0 | V66: 0 | W66: 0
B67: 60 | C67: FR_Gas Base | D67: 0 | E67: 0 | F67: 0 | G67: 0 | H67: 0 | I67: 0 | J67: 0 | K67: 0 | L67: 0 | M67: 0 | N67: 0 | O67: 0 | P67: 0 | Q67: 0 | R67: 0 | S67: 0 | T67: 0 | U67: 0 | V67: 0 | W67: 0
B68: 61 | C68: FR_Gas Mid | D68: =OFFSET($B$7,MATCH($C$4,$C$7:$C$2453,0)+$B68,D$6+1) -> 7.81208 | E68: 7.75932 | F68: 7.70656 | G68: 7.6538 | H68: 7.60104 | I68: 7.54828 | J68: 7.49552 | K68: 7.44276 | L68: 7.39 | M68: 7.1222 | N68: =OFFSET($B$7,MATCH($C$4,$C$7:$C$2453,0)+$B68,N$6+1) -> 6.8544 | O68: 6.5866 | P68: 6.3188 | Q68: 6.051 | R68: 5.7832 | S68: 5.5154 | T68: 5.2476 | U68: 4.9798 | V68: 4.712 | W68: 4.4442
B69: 62 | C69: FR_Hard Coal Base | D69: 0 | E69: 0 | F69: 0 | G69: 0 | H69: 0 | I69: 0 | J69: 0 | K69: 0 | L69: 0 | M69: 0 | N69: 0 | O69: 0 | P69: 0 | Q69: 0 | R69: 0 | S69: 0 | T69: 0 | U69: 0 | V69: 0 | W69: 0
B70: 63 | C70: FR_Hard Coal Mid | D70: 3.1672 | E70: 3.0588 | F70: 2.9504 | G70: 2.842 | H70: 2.7336 | I70: 2.6252 | J70: 2.5168 | K70: 2.4084 | L70: 2.3 | M70: 2.188 | N70: 2.076 | O70: 1.964 | P70: 1.852 | Q70: 1.74 | R70: 1.628 | S70: 1.516 | T70: 1.404 | U70: 1.292 | V70: 1.18 | W70: 1.068
B71: 64 | C71: FR_Hydro run of river | D71: 12.6 | E71: 12.6 | F71: 12.6 | G71: 12.6 | H71: 12.6 | I71: 12.6 | J71: 12.6 | K71: 12.6 | L71: 12.6 | M71: 12.6 | N71: 12.6 | O71: 12.6 | P71: 12.6 | Q71: 12.6 | R71: 12.6 | S71: 12.6 | T71: 12.6 | U71: 12.6 | V71: 12.6 | W71: 12.6
B72: 65 | C72: FR_Hydro storage | D72: 12.6 | E72: 12.6 | F72: 12.6 | G72: 12.6 | H72: 12.6 | I72: 12.6 | J72: 12.6 | K72: 12.6 | L72: 12.6 | M72: 12.6 | N72: 12.6 | O72: 12.6 | P72: 12.6 | Q72: 12.6 | R72: 12.6 | S72: 12.6 | T72: 12.6 | U72: 12.6 | V72: 12.6 | W72: 12.6
B73: 66 | C73: FR_Not identified | D73: 0 | E73: 0 | F73: 0 | G73: 0 | H73: 0 | I73: 0 | J73: 0 | K73: 0 | L73: 0 | M73: 0 | N73: 0 | O73: 0 | P73: 0 | Q73: 0 | R73: 0 | S73: 0 | T73: 0 | U73: 0 | V73: 0 | W73: 0
B74: =B73+1 -> 67 | C74: FR_Nuclear | D74: 67.464 | E74: 65.556 | F74: 63.648 | G74: 61.74 | H74: 59.832 | I74: 57.924 | J74: 56.016 | K74: 54.108 | L74: 52.2 | M74: 53.2888 | N74: 54.3776 | O74: 55.4664 | P74: 56.5552 | Q74: 57.644 | R74: 58.7328 | S74: 59.8216 | T74: 60.9104 | U74: 61.9992 | V74: 63.088 | W74: 64.1768
B75: 68 | C75: FR_OCGT | D75: 6.36 | E75: 6.24 | F75: 6.12 | G75: 6 | H75: 5.88 | I75: 5.76 | J75: 5.64 | K75: 5.52 | L75: 5.4 | M75: 5.4 | N75: 5.4 | O75: 5.4 | P75: 5.4 | Q75: 5.4 | R75: 5.4 | S75: 5.4 | T75: 5.4 | U75: 5.4 | V75: 5.4 | W75: 5.4
B76: 69 | C76: FR_Offshore wind | D76: 0 | E76: 0.058 | F76: 0.784 | G76: 1.51 | H76: 2.236 | I76: 2.962 | J76: 3.688 | K76: 4.414 | L76: 5.14 | M76: 5.14 | N76: 5.14 | O76: 5.14 | P76: 5.14 | Q76: 5.14 | R76: 5.14 | S76: 5.14 | T76: 5.14 | U76: 5.14 | V76: 5.14 | W76: 5.14
B77: 70 | C77: FR_Oil | D77: 2.3308 | E77: 2.1582 | F77: 1.9856 | G77: 1.813 | H77: 1.6404 | I77: 1.4678 | J77: 1.2952 | K77: 1.1226 | L77: 0.95 | M77: 0.9238 | N77: 0.8976 | O77: 0.8714 | P77: 0.8452 | Q77: 0.819 | R77: 0.7928 | S77: 0.7666 | T77: 0.7404 | U77: 0.7142 | V77: 0.688 | W77: 0.6618
B78: 71 | C78: FR_Onshore wind | D78: =OFFSET($B$7,MATCH($C$4,$C$7:$C$2453,0)+$B78,D$6+1) -> 9.408 | E78: 10.802 | F78: 12.196 | G78: 13.59 | H78: 14.984 | I78: 16.378 | J78: 17.772 | K78: 19.166 | L78: 20.56 | M78: 20.56 | N78: =OFFSET($B$7,MATCH($C$4,$C$7:$C$2453,0)+$B78,N$6+1) -> 20.56 | O78: 20.56 | P78: 20.56 | Q78: 20.56 | R78: 20.56 | S78: 20.56 | T78: 20.56 | U78: 20.56 | V78: 20.56 | W78: 20.56
B79: 72 | C79: FR_Pumped storage | D79: 0 | E79: 0 | F79: 0 | G79: 0 | H79: 0 | I79: 0 | J79: 0 | K79: 0 | L79: 0 | M79: 0 | N79: 0 | O79: 0 | P79: 0 | Q79: 0 | R79: 0 | S79: 0 | T79: 0 | U79: 0 | V79: 0 | W79: 0
B80: 73 | C80: FR_Solar | D80: 4.56 | E80: 6.04 | F80: 7.52 | G80: 9 | H80: 10.48 | I80: 11.96 | J80: 13.44 | K80: 14.92 | L80: 16.4 | M80: 16.4 | N80: 16.4 | O80: 16.4 | P80: 16.4 | Q80: 16.4 | R80: 16.4 | S80: 16.4 | T80: 16.4 | U80: 16.4 | V80: 16.4 | W80: 16.4
B81: 74 | C81: FR_Tidal | D81: 0 | E81: 0 | F81: 0 | G81: 0 | H81: 0 | I81: 0 | J81: 0 | K81: 0 | L81: 0 | M81: 0 | N81: 0 | O81: 0 | P81: 0 | Q81: 0 | R81: 0 | S81: 0 | T81: 0 | U81: 0 | V81: 0 | W81: 0
B82: 75 | C82: IC_Hydro Run of River | D82: 2 | E82: 2.033333333 | F82: 2.066666667 | G82: 2.1 | H82: 2.111 | I82: 2.122 | J82: 2.133 | K82: 2.144 | L82: 2.155 | M82: 2.166 | N82: 2.177 | O82: 2.188 | P82: 2.199 | Q82: 2.21 | R82: 2.221 | S82: 2.232 | T82: 2.243 | U82: 2.254 | V82: 2.265 | W82: 2.276
B83: 76 | C83: IC_Not Identified | D83: 0 | E83: 0 | F83: 0 | G83: 0 | H83: 0 | I83: 0 | J83: 0 | K83: 0 | L83: 0 | M83: 0 | N83: 0 | O83: 0 | P83: 0 | Q83: 0 | R83: 0 | S83: 0 | T83: 0 | U83: 0 | V83: 0 | W83: 0
B84: 77 | C84: IC_Oil | D84: 0.8 | E84: 0.8226666667 | F84: 0.8453333333 | G84: 0.868 | H84: 0.8766 | I84: 0.8852 | J84: 0.8938 | K84: 0.9024 | L84: 0.911 | M84: 0.9196 | N84: 0.9282 | O84: 0.9368 | P84: 0.9454 | Q84: 0.954 | R84: 0.9626 | S84: 0.9712 | T84: 0.9798 | U84: 0.9884 | V84: 0.997 | W84: 1.0056
B85: 78 | C85: IC_Onshore Wind | D85: 0 | E85: 0 | F85: 0 | G85: 0 | H85: 0 | I85: 0 | J85: 0 | K85: 0 | L85: 0 | M85: 0 | N85: 0 | O85: 0 | P85: 0 | Q85: 0 | R85: 0 | S85: 0 | T85: 0 | U85: 0 | V85: 0 | W85: 0
B86: 79 | C86: IE_Biomass | D86: 0.37 | E86: 0.37 | F86: 0.37 | G86: 0.37 | H86: 0.37 | I86: 0.37 | J86: 0.37 | K86: 0.37 | L86: 0.37 | M86: 0.368 | N86: 0.366 | O86: 0.364 | P86: 0.362 | Q86: 0.36 | R86: 0.358 | S86: 0.356 | T86: 0.354 | U86: 0.352 | V86: 0.35 | W86: 0.348
B87: 80 | C87: IE_CHP | D87: 0 | E87: 0 | F87: 0 | G87: 0 | H87: 0 | I87: 0 | J87: 0 | K87: 0 | L87: 0 | M87: 0 | N87: 0 | O87: 0 | P87: 0 | Q87: 0 | R87: 0 | S87: 0 | T87: 0 | U87: 0 | V87: 0 | W87: 0
B88: 81 | C88: IE_Gas Base | D88: =OFFSET($B$7,MATCH($C$4,$C$7:$C$2453,0)+$B88,D$6+1) -> 0 | E88: 0 | F88: 0 | G88: 0 | H88: 0 | I88: 0 | J88: 0 | K88: 0 | L88: 0 | M88: 0 | N88: =OFFSET($B$7,MATCH($C$4,$C$7:$C$2453,0)+$B88,N$6+1) -> 0 | O88: 0 | P88: 0 | Q88: 0 | R88: 0 | S88: 0 | T88: 0 | U88: 0 | V88: 0 | W88: 0
B89: 82 | C89: IE_Gas Marg | D89: 0 | E89: 0 | F89: 0 | G89: 0 | H89: 0 | I89: 0 | J89: 0 | K89: 0 | L89: 0 | M89: 0 | N89: 0 | O89: 0 | P89: 0 | Q89: 0 | R89: 0 | S89: 0 | T89: 0 | U89: 0 | V89: 0 | W89: 0
B90: 83 | C90: IE_Gas Mid | D90: 4.68388 | E90: 4.67577 | F90: 4.66766 | G90: 4.65955 | H90: 4.65144 | I90: 4.64333 | J90: 4.63522 | K90: 4.62711 | L90: 4.619 | M90: 4.7482 | N90: 4.8774 | O90: 5.0066 | P90: 5.1358 | Q90: 5.265 | R90: 5.3942 | S90: 5.5234 | T90: 5.6526 | U90: 5.7818 | V90: 5.911 | W90: 6.0402
B91: 84 | C91: IE_Hard Coal Marg | D91: 0.118 | E91: 0.118 | F91: 0.118 | G91: 0.118 | H91: 0.118 | I91: 0.118 | J91: 0.118 | K91: 0.118 | L91: 0.118 | M91: 0.0944 | N91: 0.0708 | O91: 0.0472 | P91: 0.0236 | Q91: 0 | R91: 0 | S91: 0 | T91: 0 | U91: 0 | V91: 0 | W91: 0
B92: 85 | C92: IE_Hard Coal Mid | D92: 0.855 | E92: 0.855 | F92: 0.855 | G92: 0.855 | H92: 0.855 | I92: 0.855 | J92: 0.855 | K92: 0.855 | L92: 0.855 | M92: 0.834 | N92: 0.813 | O92: 0.792 | P92: 0.771 | Q92: 0.75 | R92: 0.729 | S92: 0.708 | T92: 0.687 | U92: 0.666 | V92: 0.645 | W92: 0.624
B93: 86 | C93: IE_Hydro run of river | D93: 0.106 | E93: 0.106 | F93: 0.106 | G93: 0.106 | H93: 0.106 | I93: 0.106 | J93: 0.106 | K93: 0.106 | L93: 0.106 | M93: 0.106 | N93: 0.106 | O93: 0.106 | P93: 0.106 | Q93: 0.106 | R93: 0.106 | S93: 0.106 | T93: 0.106 | U93: 0.106 | V93: 0.106 | W93: 0.106
B94: 87 | C94: IE_Hydro Storage | D94: 0.424 | E94: 0.424 | F94: 0.424 | G94: 0.424 | H94: 0.424 | I94: 0.424 | J94: 0.424 | K94: 0.424 | L94: 0.424 | M94: 0.424 | N94: 0.424 | O94: 0.424 | P94: 0.424 | Q94: 0.424 | R94: 0.424 | S94: 0.424 | T94: 0.424 | U94: 0.424 | V94: 0.424 | W94: 0.424
B95: 88 | C95: IE_OCGT | D95: 0.205 | E95: 0.205 | F95: 0.205 | G95: 0.205 | H95: 0.205 | I95: 0.205 | J95: 0.205 | K95: 0.205 | L95: 0.205 | M95: 0.21 | N95: 0.215 | O95: 0.22 | P95: 0.225 | Q95: 0.23 | R95: 0.235 | S95: 0.24 | T95: 0.245 | U95: 0.25 | V95: 0.255 | W95: 0.26
B96: 89 | C96: IE_Offshore wind | D96: 0 | E96: 0 | F96: 0 | G96: 0 | H96: 0 | I96: 0 | J96: 0 | K96: 0 | L96: 0 | M96: 0 | N96: 0 | O96: 0 | P96: 0 | Q96: 0 | R96: 0 | S96: 0 | T96: 0 | U96: 0 | V96: 0 | W96: 0
B97: 90 | C97: IE_Oil | D97: 2.37972 | E97: 2.16163 | F97: 1.94354 | G97: 1.72545 | H97: 1.50736 | I97: 1.28927 | J97: 1.07118 | K97: 0.85309 | L97: 0.635 | M97: 0.6 | N97: 0.565 | O97: 0.53 | P97: 0.495 | Q97: 0.46 | R97: 0.425 | S97: 0.39 | T97: 0.355 | U97: 0.32 | V97: 0.285 | W97: 0.25
B98: 91 | C98: IE_Onshore wind | D98: =OFFSET($B$7,MATCH($C$4,$C$7:$C$2453,0)+$B98,D$6+1) -> 4.84 | E98: 5.01 | F98: 5.18 | G98: 5.35 | H98: 5.52 | I98: 5.69 | J98: 5.86 | K98: 6.03 | L98: 6.2 | M98: 6.134 | N98: =OFFSET($B$7,MATCH($C$4,$C$7:$C$2453,0)+$B98,N$6+1) -> 6.068 | O98: 6.002 | P98: 5.936 | Q98: 5.87 | R98: 5.804 | S98: 5.738 | T98: 5.672 | U98: 5.606 | V98: 5.54 | W98: 5.474
B99: 92 | C99: IE_Other fossil fuels | D99: 0 | E99: 0 | F99: 0 | G99: 0 | H99: 0 | I99: 0 | J99: 0 | K99: 0 | L99: 0 | M99: 0 | N99: 0 | O99: 0 | P99: 0 | Q99: 0 | R99: 0 | S99: 0 | T99: 0 | U99: 0 | V99: 0 | W99: 0
B100: 93 | C100: IE_Pumped storage | D100: 0 | E100: 0 | F100: 0 | G100: 0 | H100: 0 | I100: 0 | J100: 0 | K100: 0 | L100: 0 | M100: 0 | N100: 0 | O100: 0 | P100: 0 | Q100: 0 | R100: 0 | S100: 0 | T100: 0 | U100: 0 | V100: 0 | W100: 0
B101: 94 | C101: IE_Solar | D101: 0.226 | E101: 0.229 | F101: 0.232 | G101: 0.235 | H101: 0.238 | I101: 0.241 | J101: 0.244 | K101: 0.247 | L101: 0.25 | M101: 0.28 | N101: 0.31 | O101: 0.34 | P101: 0.37 | Q101: 0.4 | R101: 0.43 | S101: 0.46 | T101: 0.49 | U101: 0.52 | V101: 0.55 | W101: 0.58
B102: 95 | C102: NL_Biomass | D102: 0.441 | E102: 0.441 | F102: 0.441 | G102: 0.441 | H102: 0.441 | I102: 0.441 | J102: 0.441 | K102: 0.441 | L102: 0.441 | M102: 0.441 | N102: 0.441 | O102: 0.441 | P102: 0.441 | Q102: 0.441 | R102: 0.441 | S102: 0.441 | T102: 0.441 | U102: 0.441 | V102: 0.441 | W102: 0.441
B103: 96 | C103: NL_CHP | D103: 4.9376 | E103: 4.9144 | F103: 4.8912 | G103: 4.868 | H103: 4.8448 | I103: 4.8216 | J103: 4.7984 | K103: 4.7752 | L103: 4.752 | M103: 4.7894 | N103: 4.8268 | O103: 4.8642 | P103: 4.9016 | Q103: 4.939 | R103: 4.9764 | S103: 5.0138 | T103: 5.0512 | U103: 5.0886 | V103: 5.126 | W103: 5.1634
B104: 97 | C104: NL_Gas Base | D104: 0 | E104: 0 | F104: 0 | G104: 0 | H104: 0 | I104: 0 | J104: 0 | K104: 0 | L104: 0 | M104: 0 | N104: 0 | O104: 0 | P104: 0 | Q104: 0 | R104: 0 | S104: 0 | T104: 0 | U104: 0 | V104: 0 | W104: 0
B105: 98 | C105: NL_Gas Marg | D105: 0 | E105: 0 | F105: 0 | G105: 0 | H105: 0 | I105: 0 | J105: 0 | K105: 0 | L105: 0 | M105: 0 | N105: 0 | O105: 0 | P105: 0 | Q105: 0 | R105: 0 | S105: 0 | T105: 0 | U105: 0 | V105: 0 | W105: 0
B106: 99 | C106: NL_Gas Mid | D106: 11.5925 | E106: 11.2765 | F106: 10.9605 | G106: 10.6445 | H106: 10.3285 | I106: 10.0125 | J106: 9.6965 | K106: 9.3805 | L106: 9.0645 | M106: 9.003 | N106: 8.9415 | O106: 8.88 | P106: 8.8185 | Q106: 8.757 | R106: 8.6955 | S106: 8.634 | T106: 8.5725 | U106: 8.511 | V106: 8.4495 | W106: 8.388
B107: 100 | C107: NL_Hard Coal Base | D107: 4.608 | E107: 4.608 | F107: 4.608 | G107: 4.608 | H107: 4.608 | I107: 4.608 | J107: 4.608 | K107: 4.608 | L107: 4.608 | M107: 4.6084 | N107: 4.6088 | O107: 4.6092 | P107: 4.6096 | Q107: 4.61 | R107: 4.6104 | S107: 4.6108 | T107: 4.6112 | U107: 4.6116 | V107: 4.612 | W107: 4.6124
B108: 101 | C108: NL_Hydro Run of River | D108: =OFFSET($B$7,MATCH($C$4,$C$7:$C$2453,0)+$B108,D$6+1) -> 0.002 | E108: 0.014 | F108: 0.026 | G108: 0.038 | H108: 0.05 | I108: 0.062 | J108: 0.074 | K108: 0.086 | L108: 0.098 | M108: 0.098 | N108: =OFFSET($B$7,MATCH($C$4,$C$7:$C$2453,0)+$B108,N$6+1) -> 0.098 | O108: 0.098 | P108: 0.098 | Q108: 0.098 | R108: 0.098 | S108: 0.098 | T108: 0.098 | U108: 0.098 | V108: 0.098 | W108: 0.098
B109: 102 | C109: NL_Nuclear | D109: 0.486 | E109: 0.486 | F109: 0.486 | G109: 0.486 | H109: 0.486 | I109: 0.486 | J109: 0.486 | K109: 0.486 | L109: 0.486 | M109: 0.486 | N109: 0.486 | O109: 0.486 | P109: 0.486 | Q109: 0.486 | R109: 0.486 | S109: 0.486 | T109: 0.486 | U109: 0.486 | V109: 0.486 | W109: 0.486
B110: 103 | C110: NL_OCGT | D110: 0 | E110: 0 | F110: 0 | G110: 0 | H110: 0 | I110: 0 | J110: 0 | K110: 0 | L110: 0 | M110: 0 | N110: 0 | O110: 0 | P110: 0 | Q110: 0 | R110: 0 | S110: 0 | T110: 0 | U110: 0 | V110: 0 | W110: 0
B111: 104 | C111: NL_Offshore wind | D111: 1.18575 | E111: 1.3805 | F111: 1.57525 | G111: 1.77 | H111: 1.96475 | I111: 2.1595 | J111: 2.35425 | K111: 2.549 | L111: 2.74375 | M111: 2.74375 | N111: 2.74375 | O111: 2.74375 | P111: 2.74375 | Q111: 2.74375 | R111: 2.74375 | S111: 2.74375 | T111: 2.74375 | U111: 2.74375 | V111: 2.74375 | W111: 2.74375
B112: 105 | C112: NL_Onshore wind | D112: 3.55725 | E112: 4.1415 | F112: 4.72575 | G112: 5.31 | H112: 5.89425 | I112: 6.4785 | J112: 7.06275 | K112: 7.647 | L112: 8.23125 | M112: 8.23125 | N112: 8.23125 | O112: 8.23125 | P112: 8.23125 | Q112: 8.23125 | R112: 8.23125 | S112: 8.23125 | T112: 8.23125 | U112: 8.23125 | V112: 8.23125 | W112: 8.23125
B113: 106 | C113: NL_Solar | D113: 2.0956 | E113: 2.8604 | F113: 3.6252 | G113: 4.39 | H113: 5.1548 | I113: 5.9196 | J113: 6.6844 | K113: 7.4492 | L113: 8.214 | M113: 7.3712 | N113: 6.5284 | O113: 5.6856 | P113: 4.8428 | Q113: 4 | R113: 3.1572 | S113: 2.3144 | T113: 1.4716 | U113: 0.6288 | V113: 0 | W113: 0
B114: 107 | C114: NO_CHP | D114: 0.425 | E114: 0.425 | F114: 0.425 | G114: 0.425 | H114: 0.425 | I114: 0.425 | J114: 0.425 | K114: 0.425 | L114: 0.425 | M114: 0.425 | N114: 0.425 | O114: 0.425 | P114: 0.425 | Q114: 0.425 | R114: 0.425 | S114: 0.425 | T114: 0.425 | U114: 0.425 | V114: 0.425 | W114: 0.425
B115: 108 | C115: NO_Hydro Storage | D115: 9.78 | E115: 9.78 | F115: 9.78 | G115: 9.78 | H115: 9.78 | I115: 9.78 | J115: 9.78 | K115: 9.78 | L115: 9.78 | M115: 9.78 | N115: 9.78 | O115: 9.78 | P115: 9.78 | Q115: 9.78 | R115: 9.78 | S115: 9.78 | T115: 9.78 | U115: 9.78 | V115: 9.78 | W115: 9.78
B116: 109 | C116: ZZ_Hydro storage | D116: 0 | E116: 0 | F116: 0 | G116: 0 | H116: 0 | I116: 0 | J116: 0 | K116: 0 | L116: 0 | M116: 0 | N116: 0 | O116: 0 | P116: 0 | Q116: 0 | R116: 0 | S116: 0 | T116: 0 | U116: 0 | V116: 0 | W116: 0
B117: 110 | C117: ZZ_Not Identified | D117: 0 | E117: 0 | F117: 0 | G117: 0 | H117: 0 | I117: 0 | J117: 0 | K117: 0 | L117: 0 | M117: 0 | N117: 0 | O117: 0 | P117: 0 | Q117: 0 | R117: 0 | S117: 0 | T117: 0 | U117: 0 | V117: 0 | W117: 0
B118: 111 | C118: ZZ_Pumped Storage | D118: 0 | E118: 0 | F118: 0 | G118: 0 | H118: 0 | I118: 0 | J118: 0 | K118: 0 | L118: 0 | M118: 0 | N118: 0 | O118: 0 | P118: 0 | Q118: 0 | R118: 0 | S118: 0 | T118: 0 | U118: 0 | V118: 0 | W118: 0
B121: Source | C121: Source: ENTSOe
B122: Scenario | C122: =Variables!D8 -> GG
C123: Zone & Plant type | D123: =TRANSPOSE(rngSetYears) -> 2017 | E123: 2018 | F123: 2019 | G123: 2020 | H123: 2021 | I123: 2022 | J123: 2023 | K123: 2024 | L123: 2025 | M123: 2026 | N123: 2027 | O123: 2028 | P123: 2029 | Q123: 2030 | R123: 2031 | S123: 2032 | T123: 2033 | U123: 2034 | V123: 2035 | W123: 2036
C124: BE_Biomass | D124: 1.896 | E124: 1.896 | F124: 1.896 | G124: 1.896 | H124: 1.896 | I124: 1.896 | J124: 1.896 | K124: 1.896 | L124: 1.896 | M124: 1.8568 | N124: 1.8176 | O124: 1.7784 | P124: 1.7392 | Q124: 1.7 | R124: 1.6608 | S124: 1.6216 | T124: 1.5824 | U124: 1.5432 | V124: 1.504 | W124: 1.4648 | Y124: =MID(C124,4,LEN(C124)-3) -> Biomass | Z124: =IFERROR(MATCH($Y124,rngSetPlantTypes,0), "ERROR") -> 1
B125: Biomass & Waste CHP >> | C125: BE_CHP | D125: 1.5394 | E125: 1.6891 | F125: 1.8388 | G125: 1.9885 | H125: 2.1382 | I125: 2.2879 | J125: 2.4376 | K125: 2.5873 | L125: 2.737 | M125: 2.9266 | N125: 3.1162 | O125: 3.3058 | P125: 3.4954 | Q125: 3.685 | R125: 3.8746 | S125: 4.0642 | T125: 4.2538 | U125: 4.4434 | V125: 4.633 | W125: 4.8226 | Y125: =MID(C125,4,LEN(C125)-3) -> CHP | Z125: 5
... 154 more rows

Sheet I_GB_Capacities
B1: INSTRUCTIONS: Do not enter data on to this sheet - data is populated from hidden Ranking Order sheets | N1: Go to control sheet
C2: Data source | D2: National Grid
C4: Selected scenario | D4: =SelectedScenario -> NP
C5: Worksheet | D5: ="'I_GB_Capacity_"&D4&"'!" -> 'I_GB_Capacity_NP'!
E6: =IF(ABS(SUM(F6:Y6))<=0.000001,"Correct","Error") -> Correct | F6: =F8-F7 -> 0 | G6: =G8-G7 -> 0 | H6: 0 | I6: 0 | J6: -1.600710675e-10 | K6: -1.164153218e-10 | L6: -1.600710675e-10 | M6: 0 | N6: 0 | O6: 0 | P6: -2.328306437e-10 | Q6: 0 | R6: 0 | S6: 0 | T6: 0 | U6: 0 | V6: 0 | W6: -2.328306437e-10 | X6: 0 | Y6: 0
E7: Capacity (MW) in this sheet | F7: =SUM(F13:F862)*1000 -> 101550.45 | G7: 102685.34 | H7: 104445.38 | I7: 102703.11 | J7: 103818.98 | K7: 105265.445 | L7: 104603.645 | M7: 105557.685 | N7: 145212.865 | O7: 146568.035 | P7: 148354.985 | Q7: 148961.465 | R7: 149415.705 | S7: 149380.145 | T7: 148828.895 | U7: 148625.395 | V7: 147730.685 | W7: 146367.995 | X7: 145171.395 | Y7: 144179.165
E8: Capacity (MW) in the associated FES sheet | F8: =INDIRECT($D$5&F9) -> 101550.45 | G8: =INDIRECT($D$5&G9) -> 102685.34 | H8: 104445.38 | I8: 102703.11 | J8: 103818.98 | K8: 105265.445 | L8: 104603.645 | M8: 105557.685 | N8: 145212.865 | O8: 146568.035 | P8: 148354.985 | Q8: 148961.465 | R8: 149415.705 | S8: 149380.145 | T8: 148828.895 | U8: 148625.395 | V8: 147730.685 | W8: 146367.995 | X8: 145171.395 | Y8: 144179.165
F9: $H3 | G9: $I3 | H9: $J3 | I9: $K3 | J9: $L3 | K9: $M3 | L9: $N3 | M9: $O3 | N9: $P3 | O9: $Q3 | P9: $R3 | Q9: $S3 | R9: $T3 | S9: $U3 | T9: $V3 | U9: $W3 | V9: $X3 | W9: $Y3 | X9: $Z3 | Y9: $AA3
F10: $H6:$H1000 | G10: $I6:$I1000 | H10: $J6:$J1000 | I10: $K6:$K1000 | J10: $L6:$L1000 | K10: $M6:$M1000 | L10: $N6:$N1000 | M10: $O6:$O1000 | N10: $P6:$P1000 | O10: $Q6:$Q1000 | P10: $R6:$R1000 | Q10: $S6:$S1000 | R10: $T6:$T1000 | S10: $U6:$U1000 | T10: $V6:$V1000 | U10: $W6:$W1000 | V10: $X6:$X1000 | W10: $Y6:$Y1000 | X10: $Z6:$Z1000 | Y10: $AA6:$AA1000
F11: =MATCH(F12,rngSetYears,0) -> 1 | G11: 2 | H11: 3 | I11: 4 | J11: 5 | K11: 6 | L11: 7 | M11: 8 | N11: 9 | O11: 10 | P11: 11 | Q11: 12 | R11: 13 | S11: 14 | T11: 15 | U11: 16 | V11: 17 | W11: 18 | X11: 19 | Y11: 20
B12: ID | C12: GB zone & plant type | D12: GB zone | E12: Plant type | F12: =TRANSPOSE(rngSetYears) -> 2017 | G12: 2018 | H12: 2019 | I12: 2020 | J12: 2021 | K12: 2022 | L12: 2023 | M12: 2024 | N12: 2025 | O12: 2026 | P12: 2027 | Q12: 2028 | R12: 2029 | S12: 2030 | T12: 2031 | U12: 2032 | V12: 2033 | W12: 2034 | X12: 2035 | Y12: 2036
B13: 1 | C13: ="GB_"&D13&"_"&E13 -> GB_A_Wave Enhanced | D13: A | E13: Wave Enhanced | F13: =SUMIFS(INDIRECT($D$5&F$10),INDIRECT($D$5&"$D$6:$D$1000"),$E13,INDIRECT($D$5&"$F$6:$F$1000"),$D13)/1000 -> 0 | G13: =SUMIFS(INDIRECT($D$5&G$10),INDIRECT($D$5&"$D$6:$D$1000"),$E13,INDIRECT($D$5&"$F$6:$F$1000"),$D13)/1000 -> 0 | H13: 0 | I13: 0 | J13: 0 | K13: 0 | L13: 0 | M13: 0 | N13: 0 | O13: 0 | P13: 0 | Q13: 0 | R13: 0 | S13: 0 | T13: 0 | U13: 0 | V13: 0 | W13: =SUMIFS(INDIRECT($D$5&W$10),INDIRECT($D$5&"$D$6:$D$1000"),$E13,INDIRECT($D$5&"$F$6:$F$1000"),$D13)/1000 -> 0 | X13: 0 | Y13: 0
B14: =B13+1 -> 2 | C14: GB_A_Tidal | D14: A | E14: Tidal | F14: 0 | G14: 0 | H14: 0 | I14: 0 | J14: 0 | K14: 0 | L14: 0 | M14: 0 | N14: 0 | O14: 0 | P14: 0 | Q14: 0 | R14: 0 | S14: 0 | T14: 0 | U14: 0 | V14: 0 | W14: 0 | X14: 0 | Y14: 0
B15: =B14+1 -> 3 | C15: GB_A_Solar | D15: A | E15: Solar | F15: 0.19826 | G15: 0.20703 | H15: 0.21579 | I15: 0.22682 | J15: 0.23612 | K15: 0.24657 | L15: 0.25865 | M15: 0.27084 | N15: 0.28139 | O15: 0.28938 | P15: 0.29611 | Q15: 0.30357 | R15: 0.30977 | S15: 0.30695 | T15: 0.3136 | U15: 0.32256 | V15: 0.33116 | W15: 0.33928 | X15: 0.34734 | Y15: 0.35489
B16: 4 | C16: GB_A_Pumped Storage | D16: A | E16: Pumped Storage | F16: 0 | G16: 0 | H16: 0 | I16: 0 | J16: 1e-05 | K16: 2e-05 | L16: 4e-05 | M16: 5e-05 | N16: 8e-05 | O16: 0.00011 | P16: 0.00015 | Q16: 0.00021 | R16: 0.00031 | S16: 0.00108 | T16: 0.00131 | U16: 0.00157 | V16: 0.00185 | W16: 0.00214 | X16: 0.00247 | Y16: 0.0028
B17: 5 | C17: GB_A_Other Fossil Fuels | D17: A | E17: Other Fossil Fuels | F17: 0 | G17: 0 | H17: 0 | I17: 0 | J17: 0 | K17: 0 | L17: 0 | M17: 0 | N17: 0 | O17: 0 | P17: 0 | Q17: 0 | R17: 0 | S17: 0 | T17: 0 | U17: 0 | V17: 0 | W17: 0 | X17: 0 | Y17: 0
B18: 6 | C18: GB_A_Onshore Wind | D18: A | E18: Onshore Wind | F18: 0.01484 | G18: 0.01525 | H18: 0.01554 | I18: 0.01572 | J18: 0.01569 | K18: 0.01555 | L18: 0.0156 | M18: 0.01565 | N18: 0.01559 | O18: 0.01553 | P18: 0.01557 | Q18: 0.0156 | R18: 0.01554 | S18: 0.01557 | T18: 0.0153 | U18: 0.01493 | V18: 0.01457 | W18: 0.014 | X18: 0.01343 | Y18: 0.01296
B19: 7 | C19: GB_A_OCGT | D19: A | E19: OCGT | F19: 0.66948 | G19: 0.80698 | H19: 0.82702 | I19: 0.84855 | J19: 0.88322 | K19: 0.91915 | L19: 0.95657 | M19: 0.99397 | N19: 1.02011 | O19: 1.04672 | P19: 1.0708 | Q19: 1.09646 | R19: 1.12401 | S19: 1.13674 | T19: 1.14979 | U19: 1.16085 | V19: 1.173 | W19: 1.18606 | X19: 1.1897 | Y19: 1.19416
B20: 8 | C20: GB_A_Nuclear New | D20: A | E20: Nuclear New | F20: 0 | G20: 0 | H20: 0 | I20: 0 | J20: 0 | K20: 0 | L20: 0 | M20: 0 | N20: 0 | O20: 0 | P20: 0 | Q20: 0 | R20: 0 | S20: 0 | T20: 0 | U20: 0 | V20: 0 | W20: 0 | X20: 0 | Y20: 0
B21: 9 | C21: GB_A_Not Identified | D21: A | E21: Not Identified | F21: 0.1109 | G21: 0.1398 | H21: 0.1442 | I21: 0.1484 | J21: 0.1522 | K21: 0.168 | L21: 0.1718 | M21: 0.1751 | N21: 0.1771 | O21: 0.1791 | P21: 0.1808 | Q21: 0.1821 | R21: 0.1833 | S21: 0.1844 | T21: 0.1854 | U21: 0.1863 | V21: 0.1867 | W21: 0.1867 | X21: 0.1867 | Y21: 0.1867
B22: 10 | C22: GB_A_Intercon France Float | D22: A | E22: Intercon France Float | F22: 0 | G22: 0 | H22: 0 | I22: 0 | J22: 0 | K22: 0 | L22: 0 | M22: 0 | N22: 1.4406 | O22: 1.4406 | P22: 1.4406 | Q22: 1.4406 | R22: 1.4406 | S22: 1.4406 | T22: 1.4406 | U22: 1.4406 | V22: 1.4406 | W22: 1.4406 | X22: 1.4406 | Y22: 1.4406
B23: 11 | C23: GB_A_Intercon France Imp | D23: A | E23: Intercon France Imp | F23: 0 | G23: 0 | H23: 0 | I23: 0 | J23: 0 | K23: 0 | L23: 0 | M23: 0 | N23: 1.4 | O23: 1.4 | P23: 1.4 | Q23: 1.4 | R23: 1.4 | S23: 1.4 | T23: 1.4 | U23: 1.4 | V23: 1.4 | W23: 1.4 | X23: 1.4 | Y23: 1.4
B24: 12 | C24: GB_A_Hydro Run of River | D24: A | E24: Hydro Run of River | F24: 0.00211 | G24: 0.00213 | H24: 0.00215 | I24: 0.00217 | J24: 0.00219 | K24: 0.00221 | L24: 0.00223 | M24: 0.00225 | N24: 0.00226 | O24: 0.00228 | P24: 0.0023 | Q24: 0.00232 | R24: 0.00234 | S24: 0.00235 | T24: 0.00237 | U24: 0.00239 | V24: 0.0024 | W24: 0.00242 | X24: 0.00244 | Y24: 0.00245
B25: 13 | C25: GB_A_Gas Mid | D25: A | E25: Gas Mid | F25: 0.4671 | G25: 0.4671 | H25: 0.4671 | I25: 0.4671 | J25: 0.0591 | K25: 0.0591 | L25: 0.073 | M25: 0.073 | N25: 0.481 | O25: 0.481 | P25: 0.481 | Q25: 0.481 | R25: 0.481 | S25: 0.481 | T25: 0.4857 | U25: 0.4857 | V25: 0.4857 | W25: 0.4857 | X25: 0.4857 | Y25: 0.4857
B26: 14 | C26: GB_A_Gas Marg | D26: A | E26: Gas Marg | F26: 0.715 | G26: 0.715 | H26: 0.715 | I26: 0.715 | J26: 0.715 | K26: 0.715 | L26: 0.715 | M26: 0 | N26: 0 | O26: 0 | P26: 0 | Q26: 0 | R26: 0 | S26: 0 | T26: 0 | U26: 0 | V26: 0 | W26: 0 | X26: 0 | Y26: 0
B27: 15 | C27: GB_A_Gas Base | D27: A | E27: Gas Base | F27: 0 | G27: 0 | H27: 0 | I27: 0 | J27: 0 | K27: 0 | L27: 0 | M27: 0 | N27: 0 | O27: 0 | P27: 0 | Q27: 0 | R27: 0 | S27: 0 | T27: 0 | U27: 0 | V27: 0 | W27: 0 | X27: 0 | Y27: 0
B28: 16 | C28: GB_A_Clean Gas CCS | D28: A | E28: Clean Gas CCS | F28: 0 | G28: 0 | H28: 0 | I28: 0 | J28: 0 | K28: 0 | L28: 0 | M28: 0 | N28: 0 | O28: 0 | P28: 0 | Q28: 0 | R28: 0 | S28: 0 | T28: 0 | U28: 0 | V28: =SUMIFS(INDIRECT($D$5&V$10),INDIRECT($D$5&"$D$6:$D$1000"),$E28,INDIRECT($D$5&"$F$6:$F$1000"),$D28)/1000 -> 0 | W28: 0 | X28: 0 | Y28: 0
B29: 17 | C29: GB_A_Clean Coal CCS | D29: A | E29: Clean Coal CCS | F29: 0 | G29: =SUMIFS(INDIRECT($D$5&G$10),INDIRECT($D$5&"$D$6:$D$1000"),$E29,INDIRECT($D$5&"$F$6:$F$1000"),$D29)/1000 -> 0 | H29: 0 | I29: 0 | J29: 0 | K29: 0 | L29: 0 | M29: 0 | N29: 0 | O29: 0 | P29: 0 | Q29: 0 | R29: 0 | S29: 0 | T29: 0 | U29: 0 | V29: 0 | W29: 0 | X29: 0 | Y29: 0
B30: 18 | C30: GB_A_CHP | D30: A | E30: CHP | F30: =SUMIFS(INDIRECT($D$5&F$10),INDIRECT($D$5&"$D$6:$D$1000"),$E30,INDIRECT($D$5&"$F$6:$F$1000"),$D30)/1000 -> 0.25445 | G30: 0.26901 | H30: 0.27529 | I30: 0.27956 | J30: 0.28778 | K30: 0.30084 | L30: 0.30914 | M30: 0.31419 | N30: 0.32065 | O30: 0.34903 | P30: 0.35341 | Q30: 0.36053 | R30: 0.36586 | S30: 0.39992 | T30: 0.403 | U30: 0.40609 | V30: 0.41355 | W30: 0.44749 | X30: 0.45367 | Y30: 0.45633
B31: 19 | C31: GB_A_Biomass Conversion | D31: A | E31: Biomass Conversion | F31: 0 | G31: 0 | H31: 0 | I31: 0 | J31: 0 | K31: 0 | L31: 0 | M31: 0 | N31: 0 | O31: 0 | P31: 0 | Q31: 0 | R31: 0 | S31: 0 | T31: 0 | U31: 0 | V31: 0 | W31: 0 | X31: 0 | Y31: 0
B32: 20 | C32: GB_A_Biomass | D32: A | E32: Biomass | F32: 0.1071 | G32: 0.1075 | H32: 0.108 | I32: 0.1083 | J32: 0.1063 | K32: 0.1161 | L32: 0.1138 | M32: 0.114 | N32: 0.114 | O32: 0.1138 | P32: 0.1138 | Q32: 0.1116 | R32: 0.1114 | S32: 0.1112 | T32: 0.1109 | U32: 0.1106 | V32: 0.108 | W32: 0.1077 | X32: 0.1055 | Y32: 0.1052
B33: 21 | C33: GB_A_Battery Storage | D33: A | E33: Battery Storage | F33: 0 | G33: 0 | H33: 0 | I33: 0 | J33: 0 | K33: 0 | L33: 0 | M33: 0 | N33: 0 | O33: 0 | P33: 0 | Q33: 0 | R33: 0 | S33: 0 | T33: 0 | U33: 0 | V33: 0 | W33: 0 | X33: 1e-05 | Y33: 1e-05
B34: 22 | C34: GB_A_Air Storage | D34: A | E34: Air Storage | F34: 0 | G34: 0 | H34: 0 | I34: 0 | J34: 0 | K34: 0 | L34: 0 | M34: 0 | N34: 0 | O34: 0 | P34: 0 | Q34: 0 | R34: 0 | S34: 0 | T34: 0 | U34: 0 | V34: 0 | W34: 0 | X34: 0 | Y34: 0
B35: 23 | C35: GB_B_Wave Enhanced | D35: B | E35: Wave Enhanced | F35: 0 | G35: 0 | H35: 0 | I35: 0 | J35: 0 | K35: 0 | L35: 0 | M35: 0 | N35: 0 | O35: 0 | P35: 0 | Q35: 0 | R35: 0 | S35: 0 | T35: 0 | U35: 0 | V35: 0 | W35: 0 | X35: 0 | Y35: 0
B36: 24 | C36: GB_B_Tidal | D36: B | E36: Tidal | F36: 0 | G36: 0 | H36: 0 | I36: 0 | J36: 0 | K36: 0 | L36: 0 | M36: 0 | N36: 0 | O36: 0 | P36: 0 | Q36: 0 | R36: 0 | S36: 0 | T36: 0 | U36: 0 | V36: 0 | W36: 0 | X36: 0 | Y36: 0
B37: 25 | C37: GB_B_Solar | D37: B | E37: Solar | F37: 0.10762 | G37: 0.11328 | H37: 0.11569 | I37: 0.11738 | J37: 0.11884 | K37: 0.12048 | L37: 0.12221 | M37: 0.12405 | N37: 0.12561 | O37: 0.1268 | P37: 0.1278 | Q37: 0.12904 | R37: 0.13002 | S37: 0.12964 | T37: 0.13077 | U37: 0.13209 | V37: 0.13055 | W37: 0.12433 | X37: 0.12071 | Y37: 0.1157
B38: 26 | C38: GB_B_Pumped Storage | D38: B | E38: Pumped Storage | F38: 0 | G38: 0 | H38: 0 | I38: 0 | J38: 0 | K38: 0 | L38: 1e-05 | M38: 1e-05 | N38: 1e-05 | O38: 2e-05 | P38: 2e-05 | Q38: 3e-05 | R38: 5e-05 | S38: 0.00168 | T38: 0.00171 | U38: 0.00175 | V38: 0.0018 | W38: 0.00184 | X38: 0.0019 | Y38: 0.00195
B39: 27 | C39: GB_B_Other Fossil Fuels | D39: B | E39: Other Fossil Fuels | F39: 0 | G39: 0 | H39: 0 | I39: 0 | J39: 0 | K39: 0 | L39: 0 | M39: 0 | N39: 0 | O39: 0 | P39: 0 | Q39: 0 | R39: 0 | S39: 0 | T39: 0 | U39: 0 | V39: 0 | W39: 0 | X39: 0 | Y39: 0
B40: 28 | C40: GB_B_Onshore Wind | D40: B | E40: Onshore Wind | F40: 0.00314 | G40: 0.00331 | H40: 0.00338 | I40: 0.00344 | J40: 0.00349 | K40: 0.00345 | L40: 0.0035 | M40: 0.00355 | N40: 0.00349 | O40: 0.00354 | P40: 0.00359 | Q40: 0.00363 | R40: 0.00358 | S40: 0.00362 | T40: 0.00356 | U40: 0.00351 | V40: 0.00345 | W40: 0.0034 | X40: 0.00334 | Y40: 0.00328
B41: 29 | C41: GB_B_OCGT | D41: B | E41: OCGT | F41: 0.06925 | G41: 0.09313 | H41: 0.09339 | I41: 0.10644 | J41: 0.11928 | K41: 0.13131 | L41: 0.14373 | M41: 0.15416 | N41: 0.16378 | O41: 0.17139 | P41: 0.17911 | Q41: 0.18723 | R41: 0.19564 | S41: 0.20275 | T41: 0.20897 | U41: 0.21528 | V41: 0.2218 | W41: 0.22851 | X41: 0.23203 | Y41: 0.23554
B42: 30 | C42: GB_B_Nuclear New | D42: B | E42: Nuclear New | F42: 0 | G42: 0 | H42: 0 | I42: 0 | J42: 0 | K42: 0 | L42: 0 | M42: 0 | N42: 0 | O42: 0 | P42: 0 | Q42: 0 | R42: 0 | S42: 0 | T42: 0 | U42: 0 | V42: 0 | W42: 0 | X42: 0 | Y42: 0
B43: 31 | C43: GB_B_Not Identified | D43: B | E43: Not Identified | F43: 0 | G43: 0 | H43: 0 | I43: 0 | J43: 0 | K43: 0 | L43: 0 | M43: 0 | N43: 0 | O43: 0 | P43: 0 | Q43: 0 | R43: 0 | S43: 0 | T43: 0 | U43: 0 | V43: 0 | W43: 0 | X43: 0 | Y43: 0
B44: 32 | C44: GB_B_Hydro Run of River | D44: B | E44: Hydro Run of River | F44: 0.00096 | G44: 0.00097 | H44: 0.00098 | I44: 0.00099 | J44: 0.001 | K44: 0.00101 | L44: 0.00101 | M44: 0.00102 | N44: 0.00103 | O44: 0.00104 | P44: 0.00105 | Q44: 0.00106 | R44: 0.00106 | S44: 0.00107 | T44: 0.00108 | U44: 0.00109 | V44: 0.00109 | W44: 0.0011 | X44: 0.00111 | Y44: 0.00112
B45: 33 | C45: GB_B_Gas Mid | D45: B | E45: Gas Mid | F45: 0.051 | G45: 0.051 | H45: 0.051 | I45: 0.051 | J45: 0.051 | K45: 0.051 | L45: 0.0631 | M45: 0.0631 | N45: 0.0631 | O45: 0.0631 | P45: 0.0631 | Q45: 0.0631 | R45: 0.0631 | S45: 0.0631 | T45: 0.0671 | U45: =SUMIFS(INDIRECT($D$5&U$10),INDIRECT($D$5&"$D$6:$D$1000"),$E45,INDIRECT($D$5&"$F$6:$F$1000"),$D45)/1000 -> 0.0671 | V45: 0.0671 | W45: 0.0671 | X45: 0.0671 | Y45: 0.0671
B46: 34 | C46: GB_B_Gas Base | D46: B | E46: Gas Base | F46: =SUMIFS(INDIRECT($D$5&F$10),INDIRECT($D$5&"$D$6:$D$1000"),$E46,INDIRECT($D$5&"$F$6:$F$1000"),$D46)/1000 -> 0 | G46: 0 | H46: 0 | I46: 0 | J46: 0 | K46: 0 | L46: 0 | M46: 0 | N46: 0 | O46: 0 | P46: 0 | Q46: 0 | R46: 0 | S46: 0 | T46: 0 | U46: 0 | V46: 0 | W46: 0 | X46: 0 | Y46: 0
B47: 35 | C47: GB_B_Clean Gas CCS | D47: B | E47: Clean Gas CCS | F47: 0 | G47: 0 | H47: 0 | I47: 0 | J47: 0 | K47: 0 | L47: 0 | M47: 0 | N47: 0 | O47: 0 | P47: 0 | Q47: 0 | R47: 0 | S47: 0 | T47: 0 | U47: 0 | V47: 0 | W47: 0 | X47: 0 | Y47: 0
B48: 36 | C48: GB_B_Clean Coal CCS | D48: B | E48: Clean Coal CCS | F48: 0 | G48: 0 | H48: 0 | I48: 0 | J48: 0 | K48: 0 | L48: 0 | M48: 0 | N48: 0 | O48: 0 | P48: 0 | Q48: 0 | R48: 0 | S48: 0 | T48: 0 | U48: 0 | V48: 0 | W48: 0 | X48: 0 | Y48: 0
B49: 37 | C49: GB_B_CHP | D49: B | E49: CHP | F49: 0.02089 | G49: 0.02126 | H49: 0.02181 | I49: 0.0223 | J49: 0.02299 | K49: 0.02282 | L49: 0.02342 | M49: 0.02382 | N49: 0.02432 | O49: 0.02477 | P49: 0.02503 | Q49: 0.02553 | R49: 0.02586 | S49: 0.02625 | T49: 0.02647 | U49: 0.02659 | V49: 0.0271 | W49: 0.02747 | X49: 0.02795 | Y49: 0.02806
B50: 38 | C50: GB_B_Biomass Conversion | D50: B | E50: Biomass Conversion | F50: 0 | G50: 0 | H50: 0 | I50: 0 | J50: 0 | K50: 0 | L50: 0 | M50: 0 | N50: 0 | O50: 0 | P50: 0 | Q50: 0 | R50: 0 | S50: 0 | T50: 0 | U50: 0 | V50: 0 | W50: 0 | X50: 0 | Y50: 0
B51: 39 | C51: GB_B_Biomass | D51: B | E51: Biomass | F51: 0.0081 | G51: 0.0082 | H51: 0.0082 | I51: 0.0082 | J51: 0.0083 | K51: 0.0092 | L51: 0.0092 | M51: 0.0092 | N51: 0.0092 | O51: 0.0092 | P51: 0.0092 | Q51: 0.0092 | R51: 0.0091 | S51: 0.0091 | T51: 0.0091 | U51: 0.0091 | V51: 0.009 | W51: 0.009 | X51: 0.009 | Y51: 0.0089
B52: 40 | C52: GB_B_Battery Storage | D52: B | E52: Battery Storage | F52: 0 | G52: 0 | H52: 0 | I52: 0 | J52: 0 | K52: 0 | L52: 0 | M52: 0 | N52: 0 | O52: 0 | P52: 0 | Q52: 0 | R52: 0 | S52: 0 | T52: 0 | U52: 0 | V52: 0 | W52: 0 | X52: 0 | Y52: 0
B53: 41 | C53: GB_B_Air Storage | D53: B | E53: Air Storage | F53: 0 | G53: 0 | H53: 0 | I53: 0 | J53: 0 | K53: 0 | L53: 0 | M53: 0 | N53: 0 | O53: 0 | P53: 0 | Q53: 0 | R53: 0 | S53: 0 | T53: 0 | U53: 0 | V53: 0 | W53: 0 | X53: 0 | Y53: 0
B54: 42 | C54: GB_C_Wave Enhanced | D54: C | E54: Wave Enhanced | F54: 0 | G54: 0 | H54: 0 | I54: 0 | J54: 0 | K54: 0 | L54: 0 | M54: 0 | N54: 0 | O54: 0 | P54: 0 | Q54: 0 | R54: 0 | S54: 0 | T54: 0 | U54: 0 | V54: 0 | W54: 0 | X54: 0 | Y54: 0
B55: 43 | C55: GB_C_Tidal | D55: C | E55: Tidal | F55: 0 | G55: 0 | H55: 0 | I55: 0 | J55: 0 | K55: 0 | L55: 0 | M55: 0 | N55: 0 | O55: 0 | P55: 0 | Q55: 0 | R55: 0 | S55: 0 | T55: 0 | U55: 0 | V55: 0 | W55: 0 | X55: 0 | Y55: 0
B56: 44 | C56: GB_C_Solar | D56: C | E56: Solar | F56: 0.35814 | G56: 0.37679 | H56: 0.38537 | I56: 0.39571 | J56: 0.40408 | K56: 0.41552 | L56: 0.42996 | M56: 0.44537 | N56: 0.45877 | O56: 0.4683 | P56: 0.47551 | Q56: 0.4832 | R56: 0.48678 | S56: 0.47222 | T56: 0.47334 | U56: 0.47791 | V56: 0.46928 | W56: 0.43797 | X56: 0.41882 | Y56: 0.39338
B57: 45 | C57: GB_C_Pumped Storage | D57: C | E57: Pumped Storage | F57: 0 | G57: 0 | H57: 0 | I57: 0 | J57: 1e-05 | K57: 1e-05 | L57: 2e-05 | M57: 3e-05 | N57: 5e-05 | O57: 6e-05 | P57: 9e-05 | Q57: 0.00012 | R57: 0.00018 | S57: 0.00538 | T57: 0.00551 | U57: 0.00566 | V57: 0.00582 | W57: 0.00599 | X57: 0.00618 | Y57: 0.00637
B58: 46 | C58: GB_C_Other Fossil Fuels | D58: C | E58: Other Fossil Fuels | F58: 0 | G58: 0 | H58: 0 | I58: 0 | J58: 0 | K58: 0 | L58: 0 | M58: 0 | N58: 0 | O58: 0 | P58: 0 | Q58: 0 | R58: 0 | S58: 0 | T58: 0 | U58: 0 | V58: 0 | W58: 0 | X58: 0 | Y58: 0
